Workbook

Sheet START

Sheet Instructions
D2: 2020
X4: Yes
X5: No
W7: Type of Entities Range:
X8: Parent Municipality
X9: Consolidated Information
F14: START
F15: Instructions
F16: Template names
F17: Lookup and lists | W17: MTREF Range: | X17: 2013
F18: Org structure | X18: 2014
F19: Contacts | X19: 2015
F20: A1-Sum | X20: 2016
F21: A2-FinPerf SC | X21: 2017
F22: A2A | X22: 2018
F23: A3-FinPerf V | X23: 2019
F24: A3A | X24: 2020
F25: A4-FinPerf RE | X25: 2021
F26: A5-Capex | X26: 2022
F27: A5A | X27: 2023
F28: A6-FinPos | X28: 2024
F29: A7-CFlow | X29: 2025
F30: A8-ResRecon | X30: 2026
F31: A9-Asset | X31: 2027
F32: A10-SerDel
F33: SA1 | W33: MTREF Linked: | X33: 11
F34: SA2 | W34: MTREF: | X34: =INDEX(X17:X31,X33,1) -> 2023
F35: SA3
F36: SA4 | W36: Fin Year: | X36: =MTREF&"/"&RIGHT(MTREF,2)+1 -> 2023/24
F37: SA5
F38: SA6
F39: SA7
F40: SA8
F41: SA9
F42: SA10
F43: SA11
F44: SA12a
F45: SA12b
F46: SA13a
F47: SA13b
F48: SA14
F49: SA15
F50: SA16
F51: SA17
F52: SA18
F53: SA19
F54: SA20
F55: SA21
F56: SA22
F57: SA23
F58: SA24
F59: SA25
F60: SA26
F61: SA27
F62: SA28
F63: SA29
F64: SA30
F65: SA31
F66: SA32
F67: SA33
F68: SA34a
F69: SA34b
F70: SA34c
F71: SA34d
F72: SA34e
F73: SA35
F74: SA36
F75: SA37
F76: SA38
F77: LGDB_EXPORT

Sheet Template names (hidden)
A1: Common sheet headings
A2: Head1 | B2: =HLOOKUP(MTREF,Headings,2) -> 2021/22 | C2: Prior year -1
A3: Head1A | B3: =HLOOKUP(MTREF,Headings,3) -> 2020/21 | C3: Prior year -2
A4: Head1B | B4: =HLOOKUP(MTREF,Headings,4) -> 2019/20 | C4: Prior year -3
A5: Head2 | B5: =HLOOKUP(MTREF,Headings,5) -> Current Year 2022/23 | C5: Year in which budget is being prepared
A6: Head2A | B6: =HLOOKUP(MTREF,Headings,6) -> 2022/23 | C6: Year in which budget is being prepared
A7: Head3 | B7: =HLOOKUP(MTREF,Headings,7) -> 2023/24 Medium Term Revenue & Expenditure Framework | C7: MTREF name
A8: Head4 | B8: LTFS | C8: Long term financial strategy
A9: Head5 | B9: Audited Outcome
A10: Head5A | B10: Outcome
A11: Head5B | B11: Pre-audit outcome
A12: Head6 | B12: Original Budget
A13: Head7 | B13: Adjusted Budget
A14: Head8 | B14: Full Year Forecast
A15: Head9 | B15: =HLOOKUP(MTREF,Headings,8) -> Budget Year 2023/24 | C15: 1st year of MTREF | D15: Year1
A16: Head10 | B16: =HLOOKUP(MTREF,Headings,9) -> Budget Year +1 2024/25 | C16: 2nd year of MTREF | D16: Year2
A17: Head11 | B17: =HLOOKUP(MTREF,Headings,10) -> Budget Year +2 2025/26 | C17: 3rd year of MTREF | D17: Year3
A18: Head12 | B18: =HLOOKUP(MTREF,Headings,11) -> Forecast 2026/27 | C18: 1st yr of long term forecast | D18: Year4
A19: Head13 | B19: =HLOOKUP(MTREF,Headings,12) -> Forecast 2027/28 | C19: Next yr of long term forecast | D19: Year5
A20: Head14 | B20: =HLOOKUP(MTREF,Headings,13) -> Forecast 2028/29 | C20: Next yr of long term forecast | D20: Year6
A21: Head15 | B21: =HLOOKUP(MTREF,Headings,14) -> Forecast 2029/30 | C21: Next yr of long term forecast | D21: Year7
A22: Head16 | B22: =HLOOKUP(MTREF,Headings,15) -> Forecast 2030/31 | C22: Next yr of long term forecast | D22: Year8
A23: Head17 | B23: =HLOOKUP(MTREF,Headings,16) -> Forecast 2031/32 | C23: Next yr of long term forecast | D23: Year9
A24: Head18 | B24: =HLOOKUP(MTREF,Headings,17) -> Forecast 2032/33 | C24: Next yr of long term forecast | D24: Year10
A25: Head19 | B25: =HLOOKUP(MTREF,Headings,18) -> Forecast 2033/34 | C25: Next yr of long term forecast | D25: Year11
A26: Head20 | B26: =HLOOKUP(MTREF,Headings,19) -> Forecast 2034/35 | C26: Next yr of long term forecast | D26: Year12
A27: Head21 | B27: =HLOOKUP(MTREF,Headings,20) -> Forecast 2035/36 | C27: Next yr of long term forecast | D27: Year13
A28: Head22 | B28: =HLOOKUP(MTREF,Headings,21) -> Forecast 2036/37 | C28: Next yr of long term forecast | D28: Year14
A29: Head23 | B29: =HLOOKUP(MTREF,Headings,22) -> Forecast 2037/38 | C29: Next yr of long term forecast | D29: Year15
A30: Head24 | B30: Description
A31: Head25
A32: Head26 | B32: Vote Description
A33: Head27 | B33: Ref
A34: Head27a | B34: References
A35: Head28 | B35: Surplus/(Deficit) for the year | D35: Result
A36: Head29 | B36: =HLOOKUP(MTREF,Headings,23) -> Annual target 2023/24
A37: Head30 | B37: =HLOOKUP(MTREF,Headings,24) -> Revised target 2023/24
A38: Head31 | B38: Quarter ended 30 September
A39: Head32 | B39: Quarter ended 31 December
A40: Head33 | B40: Quarter ended 31 March
A41: Head34 | B41: Quarter ended 30 June
A42: Head35 | B42: Variance explanation
A43: Head36 | B43: YTD Actual 31 Dec
A44: Head37 | B44: YTD Budget 31 Dec
A45: Head38 | B45: Monthly actual
A46: Head39 | B46: YTD actual
A47: Head40 | B47: YTD budget
A48: Head41 | B48: YTD variance
A49: Head42 | B49: Surplus/ (Deficit) for the yr/period
A50: Head43 | B50: =Head3&" Summary" -> 2023/24 Medium Term Revenue & Expenditure Framework Summary
A51: Head44 | B51: 2001 Census
A52: Head45 | B52: 2011 Census
A53: Head46 | B53: - Adjustments Budget - January 2007
A54: Head47 | B54: Previous target year to complete
A55: Head48 | B55: Present value
A56: Head49
A57: Head50 | B57: Other Adjusts.
A58: Head51 | B58: Accum. Funds
A59: Head52 | B59: Multi-year capital
A60: Head53 | B60: Unfore. Unavoid.
A61: Head54 | B61: Prior Adjusted
A62: Head55 | B62: Nat. or Prov. Govt
A63: Head56 | B63: Total Adjusts.
A64: SFPerf1 | B64: Budgeted Financial Performance
A65: SFPerf2 | B65: Forecast Financial Performance
A66: SFPos1 | B66: Budgeted Financial Position
A67: SFPos2 | B67: Forecast Financial Position
A68: Cash1 | B68: Budget Cash Flow
A69: Cash2 | B69: Forecast Cash Flow
A70: RandM | B70: Expenditure includes repairs & maintenance of R'000
A71: Depart1 | B71: Department 1 - | D71: DEP1
A72: Depart2 | B72: Department 2 - | D72: DEP2
A73: Depart3 | B73: Department 3 - | D73: DEP3
A74: Depart4 | B74: Department 4 - | D74: DEP4
A75: Depart5 | B75: Department 5 - | D75: DEP5
A76: Depart6 | B76: Department 6 - | D76: DEP6
A77: Depart7 | B77: Department 7 - | D77: DEP7
A78: Depart8 | B78: Department 8 - | D78: DEP8
A79: Depart9 | B79: Department 9 - | D79: DEP9
A80: Depart10 | B80: Department 10 - | D80: DEP10
A81: Depart11 | B81: Department 11 - | D81: DEP11
A82: Depart12 | B82: Department 12 - | D82: DEP12
A83: Depart13 | B83: Department 13 - | D83: DEP13
A84: Depart14 | B84: Department 14 - | D84: DEP14
A87: Base year of forecast column selection names
A88: Choose | B88: ACT
B89: APP
B90: ADJ
A92: Standard nomenclature
A93: Muni | B93: ='Lookup and lists'!B28 -> 0
A94: Municipal Entities | B94: 2 | C94: Type of report: | D94: 1
A95: =IF((MuniEntities=1)*(MuniType=2),"YES","NO") -> NO | B95: Does this municipality have entities (consolidated budget and entity budgets required)? YES/NO
A96: Entity 1 | B96: (Pty) Ltd Example 1 - Municipal entity - | D96: Ent1
A97: Entity 2 | B97: (Pty) Ltd Example 2 - Municipal entity - | D97: Ent2
A98: Entity 3 | B98: Municipal Entity Example 3 | D98: Ent3
A99: Budget approval tables | C99: Chart x-ref | D99: Sch/Tab/Ch | E99: Alternative for municipalities without entities | F99: Alternative for municipalities without entities
B100: =IF(Consolques="YES",E100,F100) -> Table A1 Budget Summary | D100: Table A1 | E100: =D100&"Consolidated Budget Summary" -> Table A1 Consolidated Budget Summary | F100: =D100&"Budget Summary" -> Table A1 Budget Summary
B101: Table A2 Budgeted Financial Performance (revenue and expenditure by functional classification) | C101: Charts 5, 6 | D101: Table A2 | E101: =D101&"Consolidated Budgeted Financial Performance (revenue and expenditure by functional classification)" -> Table A2 Consolidated Budgeted Financial Performance (revenue and expenditure by functional classification) | F101: =D101&"Budgeted Financial Performance (revenue and expenditure by functional classification)" -> Table A2 Budgeted Financial Performance (revenue and expenditure by functional classification)
B102: Table A3 Budgeted Financial Performance (revenue and expenditure by municipal vote) | D102: Table A3 | E102: =D102&"Consolidated Budgeted Financial Performance (revenue and expenditure by municipal vote)" -> Table A3 Consolidated Budgeted Financial Performance (revenue and expenditure by municipal vote) | F102: =D102&"Budgeted Financial Performance (revenue and expenditure by municipal vote)" -> Table A3 Budgeted Financial Performance (revenue and expenditure by municipal vote)
B103: Table A4 Budgeted Financial Performance (revenue and expenditure) | C103: Charts 1, 2, 3, 4 | D103: Table A4 | E103: =D103&"Consolidated Budgeted Financial Performance (revenue and expenditure)" -> Table A4 Consolidated Budgeted Financial Performance (revenue and expenditure) | F103: =D103&"Budgeted Financial Performance (revenue and expenditure)" -> Table A4 Budgeted Financial Performance (revenue and expenditure)
B104: Table A5 Budgeted Capital Expenditure by vote, functional classification and funding | C104: Charts 7, 8, 9, 10, 20 | D104: Table A5 | E104: =D104&"Consolidated Budgeted Capital Expenditure by vote, functional classification and funding" -> Table A5 Consolidated Budgeted Capital Expenditure by vote, functional classification and funding | F104: =D104&"Budgeted Capital Expenditure by vote, functional classification and funding" -> Table A5 Budgeted Capital Expenditure by vote, functional classification and funding
B105: Table A6 Budgeted Financial Position | D105: Table A6 | E105: =D105&"Consolidated Budgeted Financial Position" -> Table A6 Consolidated Budgeted Financial Position | F105: =D105&"Budgeted Financial Position" -> Table A6 Budgeted Financial Position
B106: Table A7 Budgeted Cash Flows | D106: Table A7 | E106: =D106&"Consolidated Budgeted Cash Flows" -> Table A7 Consolidated Budgeted Cash Flows | F106: =D106&"Budgeted Cash Flows" -> Table A7 Budgeted Cash Flows
B107: Table A8 Cash backed reserves/accumulated surplus reconciliation | D107: Table A8 | E107: =D107&"Consolidated Cash backed reserves/accumulated surplus reconciliation" -> Table A8 Consolidated Cash backed reserves/accumulated surplus reconciliation | F107: =D107&"Cash backed reserves/accumulated surplus reconciliation" -> Table A8 Cash backed reserves/accumulated surplus reconciliation
B108: Table A9 Asset Management | D108: Table A9 | E108: =D108&"Consolidated Asset Management" -> Table A9 Consolidated Asset Management | F108: =D108&"Asset Management" -> Table A9 Asset Management
B109: Table A10 Basic service delivery measurement | D109: Table A10 | E109: =D109&"Consolidated basic service delivery measurement" -> Table A10 Consolidated basic service delivery measurement | F109: =D109&"Basic service delivery measurement" -> Table A10 Basic service delivery measurement
A110: Supportinging Tables to the Budget Approval Tables | C110: =$C$99 -> Chart x-ref | D110: =$D$99 -> Sch/Tab/Ch
A111: Supporting Table SA1 | B111: =A111&" Supportinging detail to 'Budgeted Financial Performance'" -> Supporting Table SA1 Supportinging detail to 'Budgeted Financial Performance'
A112: Supporting Table SA2 | B112: =IF(Consolques="YES",E112,F112) -> Supporting Table SA2 Matrix Financial Performance Budget (revenue source/expenditure type and dept.) | E112: =A112&"Consolidated Matrix Financial Performance Budget (revenue source/expenditure type & dept.)" -> Supporting Table SA2 Consolidated Matrix Financial Performance Budget (revenue source/expenditure type & dept.) | F112: =A112&"Matrix Financial Performance Budget (revenue source/expenditure type and dept.)" -> Supporting Table SA2 Matrix Financial Performance Budget (revenue source/expenditure type and dept.)
A113: Supporting Table SA3 | B113: =A113&"Supportinging detail to 'Budgeted Financial Position'" -> Supporting Table SA3 Supportinging detail to 'Budgeted Financial Position'
A114: Supporting Table SA4 | B114: =A114&"Reconciliation of IDP strategic objectives and budget (revenue)" -> Supporting Table SA4 Reconciliation of IDP strategic objectives and budget (revenue) | C114: Chart 11
A115: Supporting Table SA5 | B115: =A115&"Reconciliation of IDP strategic objectives and budget (operating expenditure)" -> Supporting Table SA5 Reconciliation of IDP strategic objectives and budget (operating expenditure) | C115: Chart 12
A116: Supporting Table SA6 | B116: =A116&"Reconciliation of IDP strategic objectives and budget (capital expenditure)" -> Supporting Table SA6 Reconciliation of IDP strategic objectives and budget (capital expenditure) | C116: Chart 13
A117: Supporting Table SA7 | B117: =A117&" Measureable performance objectives" -> Supporting Table SA7 Measureable performance objectives
A118: Supporting Table SA8 | B118: =A118&" Performance indicators and benchmarks" -> Supporting Table SA8 Performance indicators and benchmarks | C118: Chts 15-19
A119: Supporting Table SA9 | B119: =A119&" Social, economic and demographic statistics and assumptions" -> Supporting Table SA9 Social, economic and demographic statistics and assumptions
A120: Supporting Table SA10 | B120: =A120&" Funding measurement" -> Supporting Table SA10 Funding measurement | C120: Chart 14
A121: Supporting Table SA11 | B121: =A121&" Property rates summary" -> Supporting Table SA11 Property rates summary
A122: Supporting Table SA12a | B122: =A122&" Property rates by category (current year)" -> Supporting Table SA12a Property rates by category (current year)
A123: Supporting Table SA12b | B123: =A123&" Property rates by category (budget year)" -> Supporting Table SA12b Property rates by category (budget year)
A124: Supporting Table SA13a | B124: =A124&" Service Tariffs by category" -> Supporting Table SA13a Service Tariffs by category
A125: Supporting Table SA13b | B125: =A125&" Service Tariffs by category - explanatory" -> Supporting Table SA13b Service Tariffs by category - explanatory
A126: Supporting Table SA14 | B126: =A126&" Household bills" -> Supporting Table SA14 Household bills
A127: Supporting Table SA15 | B127: =A127&" Investment particulars by type" -> Supporting Table SA15 Investment particulars by type
A128: Supporting Table SA16 | B128: =A128&" Investment particulars by maturity" -> Supporting Table SA16 Investment particulars by maturity
A129: Supporting Table SA17 | B129: =A129&" Borrowing" -> Supporting Table SA17 Borrowing
A130: Supporting Table SA18 | B130: =A130&" Transfers and grant receipts" -> Supporting Table SA18 Transfers and grant receipts
A131: Supporting Table SA19 | B131: =A131&" Expenditure on transfers and grant programme" -> Supporting Table SA19 Expenditure on transfers and grant programme
A132: Supporting Table SA20 | B132: =A132&" Reconciliation of transfers, grant receipts and unspent funds" -> Supporting Table SA20 Reconciliation of transfers, grant receipts and unspent funds
A133: Supporting Table SA21 | B133: =A133&" Transfers and grants made by the municipality" -> Supporting Table SA21 Transfers and grants made by the municipality
A134: Supporting Table SA22 | B134: =A134&" Summary councillor and staff benefits" -> Supporting Table SA22 Summary councillor and staff benefits
A135: Supporting Table SA23 | B135: =A135&" Salaries, allowances & benefits (political office bearers/councillors/senior managers)" -> Supporting Table SA23 Salaries, allowances & benefits (political office bearers/councillors/senior managers)
A136: Supporting Table SA24 | B136: =A136&" Summary of personnel numbers" -> Supporting Table SA24 Summary of personnel numbers
A137: Supporting Table SA25 | B137: =IF(Consolques="YES",E137,F137) -> Supporting Table SA25 Budgeted monthly revenue and expenditure | E137: =A137&" Consolidated budgeted monthly revenue and expenditure" -> Supporting Table SA25 Consolidated budgeted monthly revenue and expenditure | F137: =A137&" Budgeted monthly revenue and expenditure" -> Supporting Table SA25 Budgeted monthly revenue and expenditure
A138: Supporting Table SA26 | B138: Supporting Table SA26 Budgeted monthly revenue and expenditure (municipal vote) | E138: =A138&" Consolidated budgeted monthly revenue and expenditure (municipal vote)" -> Supporting Table SA26 Consolidated budgeted monthly revenue and expenditure (municipal vote) | F138: =A138&" Budgeted monthly revenue and expenditure (municipal vote)" -> Supporting Table SA26 Budgeted monthly revenue and expenditure (municipal vote)
A139: Supporting Table SA27 | B139: Supporting Table SA27 Budgeted monthly revenue and expenditure (functional classification) | E139: =A139&" Consolidated budgeted monthly revenue and expenditure (functional classification)" -> Supporting Table SA27 Consolidated budgeted monthly revenue and expenditure (functional classification) | F139: =A139&" Budgeted monthly revenue and expenditure (functional classification)" -> Supporting Table SA27 Budgeted monthly revenue and expenditure (functional classification)
A140: Supporting Table SA28 | B140: Supporting Table SA28 Budgeted monthly capital expenditure (municipal vote) | E140: =A140&" Consolidated budgeted monthly capital expenditure (municipal vote)" -> Supporting Table SA28 Consolidated budgeted monthly capital expenditure (municipal vote) | F140: =A140&" Budgeted monthly capital expenditure (municipal vote)" -> Supporting Table SA28 Budgeted monthly capital expenditure (municipal vote)
A141: Supporting Table SA29 | B141: Supporting Table SA29 Budgeted monthly capital expenditure (functional classification) | E141: =A141&" Consolidated budgeted monthly capital expenditure (functional classification)" -> Supporting Table SA29 Consolidated budgeted monthly capital expenditure (functional classification) | F141: =A141&" Budgeted monthly capital expenditure (functional classification)" -> Supporting Table SA29 Budgeted monthly capital expenditure (functional classification)
A142: Supporting Table SA30 | B142: Supporting Table SA30 Budgeted monthly cash flow | E142: =A142&" Consolidated budgeted monthly cash flow" -> Supporting Table SA30 Consolidated budgeted monthly cash flow | F142: =A142&" Budgeted monthly cash flow" -> Supporting Table SA30 Budgeted monthly cash flow
A143: Supporting Table SA31 | B143: NOT REQUIRED - municipality does not have entities | E143: =A143&" Aggregated entity budget" -> Supporting Table SA31 Aggregated entity budget | F143: NOT REQUIRED - municipality does not have entities
A144: Supporting Table SA32 | B144: =A144&" List of external mechanisms" -> Supporting Table SA32 List of external mechanisms
A145: Supporting Table SA33 | B145: =A145&" Contracts having future budgetary implications" -> Supporting Table SA33 Contracts having future budgetary implications
A146: Supporting Table SA34a | B146: =IF(Consolques="YES",E146,F146) -> Supporting Table SA34a Capital expenditure on new assets by asset class | E146: =A146&" Consolidated capital expenditure on new assets by asset class" -> Supporting Table SA34a Consolidated capital expenditure on new assets by asset class | F146: =A146&" Capital expenditure on new assets by asset class" -> Supporting Table SA34a Capital expenditure on new assets by asset class
A147: Supporting Table SA34b | B147: Supporting Table SA34b Capital expenditure on the renewal of existing assets by asset class | E147: =A147&" Consolidated capital expenditure on the renewal of existing assets by asset class" -> Supporting Table SA34b Consolidated capital expenditure on the renewal of existing assets by asset class | F147: =A147&" Capital expenditure on the renewal of existing assets by asset class" -> Supporting Table SA34b Capital expenditure on the renewal of existing assets by asset class
A148: Supporting Table SA34c | B148: Supporting Table SA34c Repairs and maintenance expenditure by asset class | E148: =A148&" Consolidated repairs and maintenance by asset class" -> Supporting Table SA34c Consolidated repairs and maintenance by asset class | F148: =A148&" Repairs and maintenance expenditure by asset class" -> Supporting Table SA34c Repairs and maintenance expenditure by asset class
A149: Supporting Table SA34d | B149: =IF(Consolques="YES",E149,F149) -> Supporting Table SA34d Depreciation by asset class | E149: =A149&" Consolidated Depreciation by asset class" -> Supporting Table SA34d Consolidated Depreciation by asset class | F149: =A149&" Depreciation by asset class" -> Supporting Table SA34d Depreciation by asset class
A150: Supporting Table SA34e | B150: =IF(Consolques="YES",E150,F150) -> Supporting Table SA34e Capital expenditure on the upgrading of existing assets by asset class | E150: =A150&" Consolidated capital expenditure on the upgrading of existing assets by asset class" -> Supporting Table SA34e Consolidated capital expenditure on the upgrading of existing assets by asset class | F150: =A150&" Capital expenditure on the upgrading of existing assets by asset class" -> Supporting Table SA34e Capital expenditure on the upgrading of existing assets by asset class
A151: Supporting Table SA35 | B151: Supporting Table SA35 Future financial implications of the capital budget | E151: =A151&" Consolidated future financial implications of the capital budget" -> Supporting Table SA35 Consolidated future financial implications of the capital budget | F151: =A151& " Future financial implications of the capital budget" -> Supporting Table SA35 Future financial implications of the capital budget
A152: Supporting Table SA36 | B152: Supporting Table SA36 Detailed capital budget | E152: =A152&" Consolidated detailed capital budget" -> Supporting Table SA36 Consolidated detailed capital budget | F152: =A152& " Detailed capital budget" -> Supporting Table SA36 Detailed capital budget
A153: Supporting Table SA37 | B153: Supporting Table SA37 Projects delayed from previous financial year/s | E153: =A153&" Consolidated projects delayed from previous financial year/s" -> Supporting Table SA37 Consolidated projects delayed from previous financial year/s | F153: =A153& " Projects delayed from previous financial year/s" -> Supporting Table SA37 Projects delayed from previous financial year/s
A154: Supporting Table SA38 | B154: =IF(Consolques="YES",E154,F154) -> Supporting Table SA38 Detailed operational projects | E154: =A154&" Consolidated detailed operational projects" -> Supporting Table SA38 Consolidated detailed operational projects | F154: =A154& " Detailed operational projects" -> Supporting Table SA38 Detailed operational projects
A156: Budget Charts | B156: Charts | C156: Cross reference
A157: Chart A1 | B157: =A157&"Revenue by Municipal Vote" -> Chart A1 Revenue by Municipal Vote
A158: Chart A2 | B158: =A158&"Expenditure by Municipal Vote" -> Chart A2 Expenditure by Municipal Vote
A159: Chart A3 | B159: =A159&"Revenue by Standard Classification" -> Chart A3 Revenue by Standard Classification | C159: A2
A160: Chart A4 | B160: =A160&"Expenditure by Standard Classification" -> Chart A4 Expenditure by Standard Classification | C160: A2
A161: Chart A5 | B161: =A161&"Revenue by Major Source (refer 'Minor' source for 'Other Revenue' allocation" -> Chart A5 Revenue by Major Source (refer 'Minor' source for 'Other Revenue' allocation | C161: A3
A162: Chart A6 | B162: =A162&"Revenue by Minor Source (Other)" -> Chart A6 Revenue by Minor Source (Other) | C162: A3
A163: Chart A7 | B163: =A163&"Expenditure by Major Type" -> Chart A7 Expenditure by Major Type | C163: A3
A164: Chart A8 | B164: =A164&"Expenditure by Minor Type (Other)" -> Chart A8 Expenditure by Minor Type (Other) | C164: A3
A165: Chart A9 | B165: =A165&"Capital Expenditure by Municipal Vote/Appropriation (Major)" -> Chart A9 Capital Expenditure by Municipal Vote/Appropriation (Major) | C165: A5
A166: Chart A10 | B166: =A166&"Capital Expenditure by Municipal Vote/Appropriation (Minor)" -> Chart A10 Capital Expenditure by Municipal Vote/Appropriation (Minor) | C166: A5
A167: Chart A11 | B167: =A166&"Capital Expenditure by Standard Classification" -> Chart A10 Capital Expenditure by Standard Classification | C167: A5
A168: Chart A12 | B168: =A168&"Capital expenditure performance trend" -> Chart A12 Capital expenditure performance trend | C168: A5
A169: Chart A13 | B169: =A169&"Capital funding by Source" -> Chart A13 Capital funding by Source | C169: A5
A170: Chart A14 | B170: =A170&"Cash flow trend" -> Chart A14 Cash flow trend | C170: A7
A171: Chart A15 | B171: =A171&"IDP Strategic Objective - Revenue" -> Chart A15 IDP Strategic Objective - Revenue | C171: Table A4
A172: Chart A16 | B172: =A172&"IDP Strategic Objective - Expenditure" -> Chart A16 IDP Strategic Objective - Expenditure | C172: Table A5
A173: Chart A17 | B173: =A173&"IDP Strategic Objective - Capital Expenditure" -> Chart A17 IDP Strategic Objective - Capital Expenditure | C173: Table A6
A174: Chart A18 | B174: =A174&"Debt (borrowing to Total Revenue)" -> Chart A18 Debt (borrowing to Total Revenue) | C174: Table A8
A175: Chart A19 | B175: =A175&"Debtors' trend analysis" -> Chart A19 Debtors' trend analysis | C175: Table A8
A176: Chart A20 | B176: =A176&"Distribution losses" -> Chart A20 Distribution losses | C176: Table A8
A177: Chart A21 | B177: =A177&"Borrowed funding of capital expenditure" -> Chart A21 Borrowed funding of capital expenditure | C177: Table A8
A178: Chart A22 | B178: =A178&"Expenditure analysis (% of Revenue)" -> Chart A22 Expenditure analysis (% of Revenue) | C178: Table A8
A179: Chart A23 | B179: =A179&"Increases in service charges" -> Chart A23 Increases in service charges | C179: Table A10

Sheet Lookup and lists (hidden)
A1: Description | B1: 2013 | C1: 2014 | D1: 2015 | E1: 2016 | F1: 2017 | G1: 2018 | H1: 2019 | I1: 2020 | J1: 2021 | K1: 2022 | L1: 2023 | M1: 2024 | N1: 2025 | O1: 2026 | Q1: Lists | Y1: Grants: | Z1: National - opex | AA1: Provincial - opex | AB1: National - capex | AC1: Provincial - capex
A2: ='Template names'!C2 -> Prior year -1 | B2: =B1-2&"/"&RIGHT(B1,2)-1 -> 2011/12 | C2: 2012/13 | D2: 2013/14 | E2: 2014/15 | F2: 2015/16 | G2: 2016/17 | H2: 2017/18 | I2: 2018/19 | J2: =J1-2&"/"&RIGHT(J1,2)-1 -> 2019/20 | K2: 2020/21 | L2: 2021/22 | M2: 2022/23 | N2: 2023/24 | O2: 2024/25 | Q2: Yes | R2: <1 | S2: <4 | T2: Market | U2: Land & impr. | V2: Yes | W2: Uniform | X2: Yrs | Z2: Local Government Equitable Share | AA2: Health subsidy | AB2: Municipal Infrastructure Grant (MIG) | AC2: Agriculture
A3: ='Template names'!C3 -> Prior year -2 | B3: =B1-3&"/"&RIGHT(B1,2)-2 -> 2010/11 | C3: 2011/12 | D3: 2012/13 | E3: 2013/14 | F3: 2014/15 | G3: 2015/16 | H3: 2016/17 | I3: 2017/18 | J3: =J1-3&"/"&RIGHT(J1,2)-2 -> 2018/19 | K3: 2019/20 | L3: 2020/21 | M3: 2021/22 | N3: 2022/23 | O3: 2023/24 | Q3: No | R3: 1 | S3: 4 | T3: Dep.Replace | U3: Land only | V3: No | W3: Variable | X3: Mths | Z3: RSC Levy Replacement | AA3: Ambulance subsidy | AB3: Public Transport and Systems | AC3: Education
A4: ='Template names'!C4 -> Prior year -3 | B4: =B1-4&"/"&RIGHT(B1,2)-3 -> 2009/10 | C4: 2010/11 | D4: 2011/12 | E4: 2012/13 | F4: 2013/14 | G4: 2014/15 | H4: 2015/16 | I4: 2016/17 | J4: =J1-4&"/"&RIGHT(J1,2)-3 -> 2017/18 | K4: 2018/19 | L4: 2019/20 | M4: 2020/21 | N4: 2021/22 | O4: 2022/23 | R4: 2 | S4: 5 | T4: Other | U4: Other | Z4: Finance Management | AA4: Housing | AB4: Rural Transport Services and Infrastructure | AC4: Health
A5: ='Template names'!C5 -> Year in which budget is being prepared | B5: ="Current Year "& B1-1&"/"&RIGHT(B1,2) -> Current Year 2012/13 | C5: Current Year 2013/14 | D5: Current Year 2014/15 | E5: Current Year 2015/16 | F5: Current Year 2016/17 | G5: Current Year 2017/18 | H5: Current Year 2018/19 | I5: Current Year 2019/20 | J5: ="Current Year "& J1-1&"/"&RIGHT(J1,2) -> Current Year 2020/21 | K5: Current Year 2021/22 | L5: Current Year 2022/23 | M5: Current Year 2023/24 | N5: Current Year 2024/25 | O5: Current Year 2025/26 | R5: 3 | S5: 6 | Z5: Municipal Systems Improvement | AA5: Sport and Recreation | AB5: Regional Bulk Infrastructure | AC5: Housing and Local Government
A6: ='Template names'!C6 -> Year in which budget is being prepared | B6: =B1-1&"/"&RIGHT(B1,2) -> 2012/13 | C6: 2013/14 | D6: 2014/15 | E6: 2015/16 | F6: 2016/17 | G6: 2017/18 | H6: 2018/19 | I6: 2019/20 | J6: =J1-1&"/"&RIGHT(J1,2) -> 2020/21 | K6: 2021/22 | L6: 2022/23 | M6: 2023/24 | N6: 2024/25 | O6: 2025/26 | R6: 4 | S6: 6-10 | Z6: Water Services Operating Subsidy | AB6: Rural Households Infrastructure | AC6: Other Departments
A7: ='Template names'!C7 -> MTREF name | B7: =B1&"/"&RIGHT(B1,2)+1&" Medium Term Revenue & Expenditure Framework" -> 2013/14 Medium Term Revenue & Expenditure Framework | C7: 2014/15 Medium Term Revenue & Expenditure Framework | D7: 2015/16 Medium Term Revenue & Expenditure Framework | E7: 2016/17 Medium Term Revenue & Expenditure Framework | F7: 2017/18 Medium Term Revenue & Expenditure Framework | G7: 2018/19 Medium Term Revenue & Expenditure Framework | H7: 2019/20 Medium Term Revenue & Expenditure Framework | I7: 2020/21 Medium Term Revenue & Expenditure Framework | J7: =J1&"/"&RIGHT(J1,2)+1&" Medium Term Revenue & Expenditure Framework" -> 2021/22 Medium Term Revenue & Expenditure Framework | K7: 2022/23 Medium Term Revenue & Expenditure Framework | L7: 2023/24 Medium Term Revenue & Expenditure Framework | M7: 2024/25 Medium Term Revenue & Expenditure Framework | N7: 2025/26 Medium Term Revenue & Expenditure Framework | O7: 2026/27 Medium Term Revenue & Expenditure Framework | R7: 5 | S7: >10 | Z7: Energy Efficiency and Demand Management | AB7: Neighbourhood Development Partnership | AC7: Public Works, Roads, Transport
A8: ='Template names'!C15 -> 1st year of MTREF | B8: ="Budget Year "&B1&"/"&RIGHT(B1,2)+1 -> Budget Year 2013/14 | C8: Budget Year 2014/15 | D8: Budget Year 2015/16 | E8: Budget Year 2016/17 | F8: Budget Year 2017/18 | G8: Budget Year 2018/19 | H8: Budget Year 2019/20 | I8: Budget Year 2020/21 | J8: ="Budget Year "&J1&"/"&RIGHT(J1,2)+1 -> Budget Year 2021/22 | K8: Budget Year 2022/23 | L8: Budget Year 2023/24 | M8: Budget Year 2024/25 | N8: Budget Year 2025/26 | O8: Budget Year 2026/27 | R8: >5 | Z8: Integrated National Electrification Programme | AB8: 2010 FIFA World Cup Stadiums Development | AC8: Sport and Recreation
A9: ='Template names'!C16 -> 2nd year of MTREF | B9: ="Budget Year +1 "&B1+1&"/"&RIGHT(B1,2)+2 -> Budget Year +1 2014/15 | C9: Budget Year +1 2015/16 | D9: Budget Year +1 2016/17 | E9: Budget Year +1 2017/18 | F9: Budget Year +1 2018/19 | G9: Budget Year +1 2019/20 | H9: Budget Year +1 2020/21 | I9: Budget Year +1 2021/22 | J9: ="Budget Year +1 "&J1+1&"/"&RIGHT(J1,2)+2 -> Budget Year +1 2022/23 | K9: Budget Year +1 2023/24 | L9: Budget Year +1 2024/25 | M9: Budget Year +1 2025/26 | N9: Budget Year +1 2026/27 | O9: Budget Year +1 2027/28 | Z9: Municipal Drought Relief
A10: ='Template names'!C17 -> 3rd year of MTREF | B10: ="Budget Year +2 "&B1+2&"/"&RIGHT(B1,2)+3 -> Budget Year +2 2015/16 | C10: Budget Year +2 2016/17 | D10: Budget Year +2 2017/18 | E10: Budget Year +2 2018/19 | F10: Budget Year +2 2019/20 | G10: Budget Year +2 2020/21 | H10: Budget Year +2 2021/22 | I10: Budget Year +2 2022/23 | J10: ="Budget Year +2 "&J1+2&"/"&RIGHT(J1,2)+3 -> Budget Year +2 2023/24 | K10: Budget Year +2 2024/25 | L10: Budget Year +2 2025/26 | M10: Budget Year +2 2026/27 | N10: Budget Year +2 2027/28 | O10: Budget Year +2 2028/29 | Z10: 2010 FIFA World Cup Operating
A11: ='Template names'!C18 -> 1st yr of long term forecast | B11: ="Forecast "&B1+3&"/"&RIGHT(B1,2)+4 -> Forecast 2016/17 | C11: Forecast 2017/18 | D11: Forecast 2018/19 | E11: Forecast 2019/20 | F11: Forecast 2020/21 | G11: Forecast 2021/22 | H11: Forecast 2022/23 | I11: Forecast 2023/24 | J11: ="Forecast "&J1+3&"/"&RIGHT(J1,2)+4 -> Forecast 2024/25 | K11: Forecast 2025/26 | L11: Forecast 2026/27 | M11: Forecast 2027/28 | N11: Forecast 2028/29 | O11: Forecast 2029/30 | Z11: Electricity Demand Side Management
A12: ='Template names'!C19 -> Next yr of long term forecast | B12: ="Forecast "&B1+4&"/"&RIGHT(B1,2)+5 -> Forecast 2017/18 | C12: Forecast 2018/19 | D12: Forecast 2019/20 | E12: Forecast 2020/21 | F12: Forecast 2021/22 | G12: Forecast 2022/23 | H12: Forecast 2023/24 | I12: Forecast 2024/25 | J12: ="Forecast "&J1+4&"/"&RIGHT(J1,2)+5 -> Forecast 2025/26 | K12: Forecast 2026/27 | L12: Forecast 2027/28 | M12: Forecast 2028/29 | N12: Forecast 2029/30 | O12: Forecast 2030/31 | Z12: EPWP Incentive
A13: ='Template names'!C20 -> Next yr of long term forecast | B13: ="Forecast "&B1+5&"/"&RIGHT(B1,2)+6 -> Forecast 2018/19 | C13: Forecast 2019/20 | D13: Forecast 2020/21 | E13: Forecast 2021/22 | F13: Forecast 2022/23 | G13: Forecast 2023/24 | H13: Forecast 2024/25 | I13: Forecast 2025/26 | J13: ="Forecast "&J1+5&"/"&RIGHT(J1,2)+6 -> Forecast 2026/27 | K13: Forecast 2027/28 | L13: Forecast 2028/29 | M13: Forecast 2029/30 | N13: Forecast 2030/31 | O13: Forecast 2031/32
A14: ='Template names'!C21 -> Next yr of long term forecast | B14: ="Forecast "&B1+6&"/"&RIGHT(B1,2)+7 -> Forecast 2019/20 | C14: Forecast 2020/21 | D14: Forecast 2021/22 | E14: Forecast 2022/23 | F14: Forecast 2023/24 | G14: Forecast 2024/25 | H14: Forecast 2025/26 | I14: Forecast 2026/27 | J14: ="Forecast "&J1+6&"/"&RIGHT(J1,2)+7 -> Forecast 2027/28 | K14: Forecast 2028/29 | L14: Forecast 2029/30 | M14: Forecast 2030/31 | N14: Forecast 2031/32 | O14: Forecast 2032/33 | Z14: Asset Class | AA14: Asset sub-class old | AB14: Asset sub-class | AC14: IUDF | AD14: MTSF
A15: ='Template names'!C22 -> Next yr of long term forecast | B15: ="Forecast "&B1+7&"/"&RIGHT(B1,2)+8 -> Forecast 2020/21 | C15: Forecast 2021/22 | D15: Forecast 2022/23 | E15: Forecast 2023/24 | F15: Forecast 2024/25 | G15: Forecast 2025/26 | H15: Forecast 2026/27 | I15: Forecast 2027/28 | J15: ="Forecast "&J1+7&"/"&RIGHT(J1,2)+8 -> Forecast 2028/29 | K15: Forecast 2029/30 | L15: Forecast 2030/31 | M15: Forecast 2031/32 | N15: Forecast 2032/33 | O15: Forecast 2033/34
A16: ='Template names'!C23 -> Next yr of long term forecast | B16: ="Forecast "&B1+8&"/"&RIGHT(B1,2)+9 -> Forecast 2021/22 | C16: Forecast 2022/23 | D16: Forecast 2023/24 | E16: Forecast 2024/25 | F16: Forecast 2025/26 | G16: Forecast 2026/27 | H16: Forecast 2027/28 | I16: Forecast 2028/29 | J16: ="Forecast "&J1+8&"/"&RIGHT(J1,2)+9 -> Forecast 2029/30 | K16: Forecast 2030/31 | L16: Forecast 2031/32 | M16: Forecast 2032/33 | N16: Forecast 2033/34 | O16: Forecast 2034/35 | Z16: Roads Infrastructure | AA16: Roads, Pavements & Bridges | AB16: Roads | AC16: Spatial integration | AD16: Quality basic education
A17: ='Template names'!C24 -> Next yr of long term forecast | B17: ="Forecast "&B1+9&"/"&RIGHT(B1,2)+10 -> Forecast 2022/23 | C17: Forecast 2023/24 | D17: Forecast 2024/25 | E17: Forecast 2025/26 | F17: Forecast 2026/27 | G17: Forecast 2027/28 | H17: Forecast 2028/29 | I17: Forecast 2029/30 | J17: ="Forecast "&J1+9&"/"&RIGHT(J1,2)+10 -> Forecast 2030/31 | K17: Forecast 2031/32 | L17: Forecast 2032/33 | M17: Forecast 2033/34 | N17: Forecast 2034/35 | O17: Forecast 2035/36 | Z17: Storm water Infrastructure | AA17: Storm water | AB17: Road Structures | AC17: Inclusion and access | AD17: A long and healthy life for all South Africans
A18: ='Template names'!C25 -> Next yr of long term forecast | B18: ="Forecast "&B1+10&"/"&RIGHT(B1,2)+11 -> Forecast 2023/24 | C18: Forecast 2024/25 | D18: Forecast 2025/26 | E18: Forecast 2026/27 | F18: Forecast 2027/28 | G18: Forecast 2028/29 | H18: Forecast 2029/30 | I18: Forecast 2030/31 | J18: ="Forecast "&J1+10&"/"&RIGHT(J1,2)+11 -> Forecast 2031/32 | K18: Forecast 2032/33 | L18: Forecast 2033/34 | M18: Forecast 2034/35 | N18: Forecast 2035/36 | O18: Forecast 2036/37 | Z18: Electrical Infrastructure | AA18: Generation | AB18: Road Furniture | AC18: Growth | AD18: All people in South Africa are and feel safe
A19: ='Template names'!C26 -> Next yr of long term forecast | B19: ="Forecast "&B1+11&"/"&RIGHT(B1,2)+12 -> Forecast 2024/25 | C19: Forecast 2025/26 | D19: Forecast 2026/27 | E19: Forecast 2027/28 | F19: Forecast 2028/29 | G19: Forecast 2029/30 | H19: Forecast 2030/31 | I19: Forecast 2031/32 | J19: ="Forecast "&J1+11&"/"&RIGHT(J1,2)+12 -> Forecast 2032/33 | K19: Forecast 2033/34 | L19: Forecast 2034/35 | M19: Forecast 2035/36 | N19: Forecast 2036/37 | O19: Forecast 2037/38 | Z19: Water Supply Infrastructure | AA19: Transmission & Reticulation | AB19: Capital Spares | AC19: Governance | AD19: Decent employment through inclusive growth
A20: ='Template names'!C27 -> Next yr of long term forecast | B20: ="Forecast "&B1+12&"/"&RIGHT(B1,2)+13 -> Forecast 2025/26 | C20: Forecast 2026/27 | D20: Forecast 2027/28 | E20: Forecast 2028/29 | F20: Forecast 2029/30 | G20: Forecast 2030/31 | H20: Forecast 2031/32 | I20: Forecast 2032/33 | J20: ="Forecast "&J1+12&"/"&RIGHT(J1,2)+13 -> Forecast 2033/34 | K20: Forecast 2034/35 | L20: Forecast 2035/36 | M20: Forecast 2036/37 | N20: Forecast 2037/38 | O20: Forecast 2038/39 | Z20: Sanitation Infrastructure | AA20: Street Lighting | AB20: Drainage Collection | AD20: A skilled and capable workforce to support an inclusive growth path
A21: ='Template names'!C28 -> Next yr of long term forecast | B21: ="Forecast "&B1+13&"/"&RIGHT(B1,2)+14 -> Forecast 2026/27 | C21: Forecast 2027/28 | D21: Forecast 2028/29 | E21: Forecast 2029/30 | F21: Forecast 2030/31 | G21: Forecast 2031/32 | H21: Forecast 2032/33 | I21: Forecast 2033/34 | J21: ="Forecast "&J1+13&"/"&RIGHT(J1,2)+14 -> Forecast 2034/35 | K21: Forecast 2035/36 | L21: Forecast 2036/37 | M21: Forecast 2037/38 | N21: Forecast 2038/39 | O21: Forecast 2039/40 | Z21: Solid Waste Infrastructure | AA21: Dams & Reservoirs | AB21: Storm water Conveyance | AD21: An efficient, competitive and responsive economic infrastructure network
A22: ='Template names'!C29 -> Next yr of long term forecast | B22: ="Forecast "&B1+14&"/"&RIGHT(B1,2)+15 -> Forecast 2027/28 | C22: Forecast 2028/29 | D22: Forecast 2029/30 | E22: Forecast 2030/31 | F22: Forecast 2031/32 | G22: Forecast 2032/33 | H22: Forecast 2033/34 | I22: Forecast 2034/35 | J22: ="Forecast "&J1+14&"/"&RIGHT(J1,2)+15 -> Forecast 2035/36 | K22: Forecast 2036/37 | L22: Forecast 2037/38 | M22: Forecast 2038/39 | N22: Forecast 2039/40 | O22: Forecast 2040/41 | Z22: Rail Infrastructure | AA22: Water purification | AB22: Attenuation | AD22: Vibrant, equitable, sustainable rural communities contributing towards food security for all
A23: Adjustments Budget | B23: ="Annual target " & B1&"/"&RIGHT(B1,2)+1 -> Annual target 2013/14 | C23: Annual target 2014/15 | D23: Annual target 2015/16 | E23: Annual target 2016/17 | F23: Annual target 2017/18 | G23: Annual target 2018/19 | H23: Annual target 2019/20 | I23: Annual target 2020/21 | J23: ="Annual target " & J1&"/"&RIGHT(J1,2)+1 -> Annual target 2021/22 | K23: Annual target 2022/23 | L23: Annual target 2023/24 | M23: Annual target 2024/25 | N23: Annual target 2025/26 | O23: Annual target 2026/27 | Z23: Coastal Infrastructure | AA23: Reticulation | AB23: Power Plants | AD23: Sustainable human settlements and improved quality of household life
A24: =A23 -> Adjustments Budget | B24: ="Revised target "& B1&"/"&RIGHT(B1,2)+1 -> Revised target 2013/14 | C24: Revised target 2014/15 | D24: Revised target 2015/16 | E24: Revised target 2016/17 | F24: Revised target 2017/18 | G24: Revised target 2018/19 | H24: Revised target 2019/20 | I24: Revised target 2020/21 | J24: ="Revised target "& J1&"/"&RIGHT(J1,2)+1 -> Revised target 2021/22 | K24: Revised target 2022/23 | L24: Revised target 2023/24 | M24: Revised target 2024/25 | N24: Revised target 2025/26 | O24: Revised target 2026/27 | Z24: Information and Communication Infrastructure | AA24: Sewerage purification | AB24: HV Substations | AD24: Responsive, accountable, effective and efficient local government
A25: NOTE: This sheet should not be directly amended - select headings from sheet 'S' | Z25: Community Facilities | AA25: Waste Management | AB25: HV Switching Station | AD25: Protect and enhance our environmental assets and natural resources
Z26: Sport and Recreation Facilities | AA26: Transportation | AB26: HV Transmission Conductors | AD26: Create a better South Africa and contribute to a better Africa and a better world
A27: Name link | B27: 273 | Z27: Heritage assets | AA27: Gas | AB27: MV Substations | AD27: An efficient, effective and development-oriented public service
A28: Name of Muni | B28: =INDEX(B29:B307,B27,1) -> 0 | Z28: Revenue Generating | AA28: Parks & gardens | AB28: MV Switching Stations | AD28: A comprehensive, responsive and sustainable social protection system
B29: Choose name from list | C29: Set name on 'Instructions' sheet | Z29: Non-revenue Generating | AA29: Sportsfields & stadia | AB29: MV Networks | AD29: A diverse, socially cohesive society with a common national identity
B30: BUF Buffalo City | C30: EC EASTERN CAPE | Z30: Operational Buildings | AA30: Swimming pools | AB30: LV Networks
B31: NMA Nelson Mandela Bay | C31: EC EASTERN CAPE | Z31: Housing | AA31: Community halls | AB31: Capital Spares
B32: EC101 Dr Beyers Naude | C32: EC EASTERN CAPE | Z32: Biological or Cultivated Assets | AA32: Libraries | AB32: Dams and Weirs
B33: EC102 Blue Crane Route | C33: EC EASTERN CAPE | Z33: Servitudes | AA33: Recreational facilities | AB33: Boreholes
B34: EC104 Makana | C34: EC EASTERN CAPE | Z34: Licences and Rights | AA34: Fire, safety & emergency | AB34: Reservoirs
B35: EC105 Ndlambe | C35: EC EASTERN CAPE | Z35: Computer Equipment | AA35: Security and policing | AB35: Pump Stations
B36: EC106 Sundays River Valley | C36: EC EASTERN CAPE | Z36: Furniture and Office Equipment | AA36: Buses | AB36: Water Treatment Works
B37: EC108 Kouga | C37: EC EASTERN CAPE | Z37: Machinery and Equipment | AA37: Clinics | AB37: Bulk Mains
B38: EC109 Kou-Kamma | C38: EC EASTERN CAPE | Z38: Transport Assets | AA38: Museums & Art Galleries | AB38: Distribution
B39: DC10 Sarah Baartman | C39: EC EASTERN CAPE | Z39: Land | AA39: Cemeteries | AB39: Distribution Points
B40: EC121 Mbhashe | C40: EC EASTERN CAPE | Z40: Zoo's, Marine and Non-biological Animals | AA40: Social rental housing | AB40: PRV Stations
B41: EC122 Mnquma | C41: EC EASTERN CAPE | AA41: Buildings | AB41: Capital Spares
B42: EC123 Great Kei | C42: EC EASTERN CAPE | AA42: Housing development | AB42: Pump Station
B43: EC124 Amahlathi | C43: EC EASTERN CAPE | AA43: General vehicles | AB43: Reticulation
B44: EC126 Ngqushwa | C44: EC EASTERN CAPE | AA44: Specialised vehicles - Refuse | AB44: Waste Water Treatment Works
B45: EC129 Raymond Mhlaba | C45: EC EASTERN CAPE | AA45: Specialised vehicles - Fire | AB45: Outfall Sewers
B46: DC12 Amathole | C46: EC EASTERN CAPE | AA46: Specialised vehicles - Conservancy | AB46: Toilet Facilities
B47: EC131 Inxuba Yethemba | C47: EC EASTERN CAPE | AA47: Specialised vehicles - Ambulances | AB47: Capital Spares
B48: EC135 Intsika Yethu | C48: EC EASTERN CAPE | AA48: Plant & equipment | AB48: Landfill Sites
B49: EC136 Emalahleni (Ec) | C49: EC EASTERN CAPE | AA49: Computers - hardware/equipment | AB49: Waste Transfer Stations
B50: EC137 Engcobo | C50: EC EASTERN CAPE | AA50: Furniture and other office equipment | AB50: Waste Processing Facilities
B51: EC138 Sakhisizwe | C51: EC EASTERN CAPE | AA51: Abattoirs | AB51: Waste Drop-off Points
B52: EC139 Enoch Mgijima | C52: EC EASTERN CAPE | AA52: Markets | AB52: Waste Separation Facilities
B53: DC13 Chris Hani | C53: EC EASTERN CAPE | AA53: Civic Land and Buildings | AB53: Electricity Generation Facilities
B54: EC141 Elundini | C54: EC EASTERN CAPE | AA54: Other Buildings | AB54: Capital Spares
B55: EC142 Senqu | C55: EC EASTERN CAPE | AA55: Other Land | AB55: Rail Lines
B56: EC145 Walter Sisulu | C56: EC EASTERN CAPE | AA56: Surplus Assets - (Investment or Inventory) | AB56: Rail Structures
B57: DC14 Joe Gqabi | C57: EC EASTERN CAPE | AA57: Computers - software & programming | AB57: Rail Furniture
B58: EC153 Ngquza Hills | C58: EC EASTERN CAPE | AA58: Other | AB58: Drainage Collection
B59: EC154 Port St Johns | C59: EC EASTERN CAPE | AB59: Storm water Conveyance
B60: EC155 Nyandeni | C60: EC EASTERN CAPE | Z60: SA16 - Investments | AB60: Attenuation
B61: EC156 Mhlontlo | C61: EC EASTERN CAPE | Z61: Security | AA61: Interest rate | AB61: MV Substations
B62: EC157 King Sabata Dalindyebo | C62: EC EASTERN CAPE | Z62: Yes | AA62: Fixed | AB62: LV Networks
B63: DC15 O .R. Tambo | C63: EC EASTERN CAPE | Z63: No | AA63: Variable | AB63: Capital Spares
B64: EC441 Matatiele | C64: EC EASTERN CAPE | AB64: Sand Pumps
B65: EC442 Umzimvubu | C65: EC EASTERN CAPE | AB65: Piers
B66: EC443 Winnie Madikizela Mandela | C66: EC EASTERN CAPE | Z66: SA36, SA37 - Capital projects | AB66: Revetments
B67: EC444 Ntabankulu | C67: EC EASTERN CAPE | Z67: Yes | AB67: Promenades
B68: DC44 Alfred Nzo | C68: EC EASTERN CAPE | Z68: No | AB68: Capital Spares
B69: MAN Mangaung | C69: FS FREE STATE | AB69: Data Centres
B70: FS161 Letsemeng | C70: FS FREE STATE | AB70: Core Layers
B71: FS162 Kopanong | C71: FS FREE STATE | AB71: Distribution Layers
B72: FS163 Mohokare | C72: FS FREE STATE | AB72: Capital Spares
B73: DC16 Xhariep | C73: FS FREE STATE | AB73: Halls
B74: FS181 Masilonyana | C74: FS FREE STATE | AB74: Centres
B75: FS182 Tokologo | C75: FS FREE STATE | AB75: Crèches
B76: FS183 Tswelopele | C76: FS FREE STATE | AB76: Clinics/Care Centres
B77: FS184 Matjhabeng | C77: FS FREE STATE | AB77: Fire/Ambulance Stations
B78: FS185 Nala | C78: FS FREE STATE | AB78: Testing Stations
B79: DC18 Lejweleputswa | C79: FS FREE STATE | AB79: Museums
B80: FS191 Setsoto | C80: FS FREE STATE | AB80: Galleries
B81: FS192 Dihlabeng | C81: FS FREE STATE | AB81: Theatres
B82: FS193 Nketoana | C82: FS FREE STATE | AB82: Libraries
B83: FS194 Maluti-a-Phofung | C83: FS FREE STATE | AB83: Cemeteries/Crematoria
B84: FS195 Phumelela | C84: FS FREE STATE | AB84: Police
B85: FS196 Mantsopa | C85: FS FREE STATE | AB85: Purls
B86: DC19 Thabo Mofutsanyana | C86: FS FREE STATE | AB86: Public Open Space
B87: FS201 Moqhaka | C87: FS FREE STATE | AB87: Nature Reserves
B88: FS203 Ngwathe | C88: FS FREE STATE | AB88: Public Ablution Facilities
B89: FS204 Metsimaholo | C89: FS FREE STATE | AB89: Markets
B90: FS205 Mafube | C90: FS FREE STATE | AB90: Stalls
B91: DC20 Fezile Dabi | C91: FS FREE STATE | AB91: Abattoirs
B92: EKU City of Ekurhuleni | C92: GT GAUTENG | AB92: Airports
B93: JHB City Of Johannesburg | C93: GT GAUTENG | AB93: Taxi Ranks/Bus Terminals
B94: TSH City Of Tshwane | C94: GT GAUTENG | AB94: Capital Spares
B95: GT421 Emfuleni | C95: GT GAUTENG | AB95: Indoor Facilities
B96: GT422 Midvaal | C96: GT GAUTENG | AB96: Outdoor Facilities
B97: GT423 Lesedi | C97: GT GAUTENG | AB97: Capital Spares
B98: DC42 Sedibeng | C98: GT GAUTENG | AB98: Monuments
B99: GT481 Mogale City | C99: GT GAUTENG | AB99: Historic Buildings
B100: GT484 Merafong City | C100: GT GAUTENG | AB100: Works of Art
B101: GT485 Rand West City | C101: GT GAUTENG | AB101: Conservation Areas
B102: DC48 West Rand | C102: GT GAUTENG | AB102: Other Heritage
B103: ETH eThekwini | C103: KZN KWAZULU-NATAL | AB103: Improved Property
B104: KZN212 Umdoni | C104: KZN KWAZULU-NATAL | AB104: Unimproved Property
B105: KZN213 Umzumbe | C105: KZN KWAZULU-NATAL | AB105: Municipal Offices
B106: KZN214 uMuziwabantu | C106: KZN KWAZULU-NATAL | AB106: Pay/Enquiry Points
B107: KZN216 Ray Nkonyeni | C107: KZN KWAZULU-NATAL | AB107: Building Plan Offices
B108: DC21 Ugu | C108: KZN KWAZULU-NATAL | AB108: Workshops
B109: KZN221 uMshwathi | C109: KZN KWAZULU-NATAL | AB109: Yards
B110: KZN222 uMngeni | C110: KZN KWAZULU-NATAL | AB110: Stores
B111: KZN223 Mpofana | C111: KZN KWAZULU-NATAL | AB111: Laboratories
B112: KZN224 Impendle | C112: KZN KWAZULU-NATAL | AB112: Training Centres
B113: KZN225 Msunduzi | C113: KZN KWAZULU-NATAL | AB113: Manufacturing Plant
B114: KZN226 Mkhambathini | C114: KZN KWAZULU-NATAL | AB114: Depots
B115: KZN227 Richmond | C115: KZN KWAZULU-NATAL | AB115: Capital Spares
B116: DC22 uMgungundlovu | C116: KZN KWAZULU-NATAL | AB116: Staff Housing
B117: KZN235 Okhahlamba | C117: KZN KWAZULU-NATAL | AB117: Social Housing
B118: KZN237 Inkosi Langalibalele | C118: KZN KWAZULU-NATAL | AB118: Capital Spares
B119: KZN238 Alfred Duma | C119: KZN KWAZULU-NATAL | AB119: Water Rights
B120: DC23 Uthukela | C120: KZN KWAZULU-NATAL | AB120: Effluent Licenses
B121: KZN241 Endumeni | C121: KZN KWAZULU-NATAL | AB121: Solid Waste Licenses
B122: KZN242 Nquthu | C122: KZN KWAZULU-NATAL | AB122: Computer Software and Applications
B123: KZN244 Msinga | C123: KZN KWAZULU-NATAL | AB123: Load Settlement Software Applications
B124: KZN245 Umvoti | C124: KZN KWAZULU-NATAL | AB124: Unspecified
B125: DC24 Umzinyathi | C125: KZN KWAZULU-NATAL
B126: KZN252 Newcastle | C126: KZN KWAZULU-NATAL
B127: KZN253 Emadlangeni | C127: KZN KWAZULU-NATAL
B128: KZN254 Dannhauser | C128: KZN KWAZULU-NATAL
B129: DC25 Amajuba | C129: KZN KWAZULU-NATAL
B130: KZN261 eDumbe | C130: KZN KWAZULU-NATAL
B131: KZN262 uPhongolo | C131: KZN KWAZULU-NATAL
B132: KZN263 Abaqulusi | C132: KZN KWAZULU-NATAL
B133: KZN265 Nongoma | C133: KZN KWAZULU-NATAL
B134: KZN266 Ulundi | C134: KZN KWAZULU-NATAL
B135: DC26 Zululand | C135: KZN KWAZULU-NATAL
B136: KZN271 Umhlabuyalingana | C136: KZN KWAZULU-NATAL
B137: KZN272 Jozini | C137: KZN KWAZULU-NATAL
B138: KZN275 Mtubatuba | C138: KZN KWAZULU-NATAL
B139: KZN276 Hlabisa Big Five | C139: KZN KWAZULU-NATAL
B140: DC27 Umkhanyakude | C140: KZN KWAZULU-NATAL
B141: KZN281 Mfolozi | C141: KZN KWAZULU-NATAL
B142: KZN282 uMhlathuze | C142: KZN KWAZULU-NATAL
B143: KZN284 uMlalazi | C143: KZN KWAZULU-NATAL
B144: KZN285 Mthonjaneni | C144: KZN KWAZULU-NATAL
B145: KZN286 Nkandla | C145: KZN KWAZULU-NATAL
B146: DC28 King Cetshwayo | C146: KZN KWAZULU-NATAL
B147: KZN291 Mandeni | C147: KZN KWAZULU-NATAL
B148: KZN292 KwaDukuza | C148: KZN KWAZULU-NATAL
B149: KZN293 Ndwedwe | C149: KZN KWAZULU-NATAL
B150: KZN294 Maphumulo | C150: KZN KWAZULU-NATAL
B151: DC29 iLembe | C151: KZN KWAZULU-NATAL
B152: KZN433 Greater Kokstad | C152: KZN KWAZULU-NATAL
B153: KZN434 Ubuhlebezwe | C153: KZN KWAZULU-NATAL
B154: KZN435 Umzimkhulu | C154: KZN KWAZULU-NATAL
B155: KZN436 Dr Nkosazana Dlamini Zuma | C155: KZN KWAZULU-NATAL
B156: DC43 Harry Gwala | C156: KZN KWAZULU-NATAL
B157: LIM331 Greater Giyani | C157: LIM LIMPOPO
B158: LIM332 Greater Letaba | C158: LIM LIMPOPO
B159: LIM333 Greater Tzaneen | C159: LIM LIMPOPO
B160: LIM334 Ba-Phalaborwa | C160: LIM LIMPOPO
B161: LIM335 Maruleng | C161: LIM LIMPOPO
B162: DC33 Mopani | C162: LIM LIMPOPO
B163: LIM341 Musina | C163: LIM LIMPOPO
B164: LIM343 Thulamela | C164: LIM LIMPOPO
B165: LIM344 Makhado | C165: LIM LIMPOPO
B166: LIM345 Collins Chabane | C166: LIM LIMPOPO
B167: DC34 Vhembe | C167: LIM LIMPOPO
B168: LIM351 Blouberg | C168: LIM LIMPOPO
B169: LIM353 Molemole | C169: LIM LIMPOPO
B170: LIM354 Polokwane | C170: LIM LIMPOPO
B171: LIM355 Lepelle-Nkumpi | C171: LIM LIMPOPO
B172: DC35 Capricorn | C172: LIM LIMPOPO
B173: LIM361 Thabazimbi | C173: LIM LIMPOPO
B174: LIM362 Lephalale | C174: LIM LIMPOPO
B175: LIM366 Bela Bela | C175: LIM LIMPOPO
B176: LIM367 Mogalakwena | C176: LIM LIMPOPO
B177: LIM368 Modimolle-Mookgopong | C177: LIM LIMPOPO
B178: DC36 Waterberg | C178: LIM LIMPOPO
B179: LIM471 Ephraim Mogale | C179: LIM LIMPOPO
B180: LIM472 Elias Motsoaledi | C180: LIM LIMPOPO
B181: LIM473 Makhuduthamaga | C181: LIM LIMPOPO
B182: LIM476 Tubatse Fetakgomo | C182: LIM LIMPOPO
B183: DC47 Sekhukhune | C183: LIM LIMPOPO
B184: MP301 Albert Luthuli | C184: MP MPUMALANGA
B185: MP302 Msukaligwa | C185: MP MPUMALANGA
B186: MP303 Mkhondo | C186: MP MPUMALANGA
B187: MP304 Pixley Ka Seme (MP) | C187: MP MPUMALANGA
B188: MP305 Lekwa | C188: MP MPUMALANGA
B189: MP306 Dipaleseng | C189: MP MPUMALANGA
B190: MP307 Govan Mbeki | C190: MP MPUMALANGA
B191: DC30 Gert Sibande | C191: MP MPUMALANGA
B192: MP311 Victor Khanye | C192: MP MPUMALANGA
B193: MP312 Emalahleni (Mp) | C193: MP MPUMALANGA
B194: MP313 Steve Tshwete | C194: MP MPUMALANGA
B195: MP314 Emakhazeni | C195: MP MPUMALANGA
B196: MP315 Thembisile Hani | C196: MP MPUMALANGA
B197: MP316 Dr J.S. Moroka | C197: MP MPUMALANGA
B198: DC31 Nkangala | C198: MP MPUMALANGA
B199: MP321 Thaba Chweu | C199: MP MPUMALANGA
B200: MP324 Nkomazi | C200: MP MPUMALANGA
... 87 more rows

Sheet Org structure
A1: Organisational Structure Votes | C1: Organisational Structure Sub-Votes | E1: Display Sub-Votes
A2: =B2&" - "&C2 -> Vote 1 - Executive & Council | B2: Vote 1 | C2: Executive & Council
A3: =B13&" - "& C13 -> Vote 2 - Municipal Manager | B3: 1.1 | C3: [Name of sub-vote] | D3: =CONCATENATE(B3, " - ", C3) -> 1,1 - [Name of sub-vote] | E3: 1.1 - [Name of sub-vote]
A4: =B24&" - "&C24 -> Vote 3 - Finance Services | B4: 1.2 | C4: [Name of sub-vote] | D4: 1.2 - [Name of sub-vote]
A5: =B35&" - "&C35 -> Vote 4 - Corporate Services | B5: 1.3 | C5: [Name of sub-vote] | D5: 1.3 - [Name of sub-vote]
A6: =B46&" - "&C46 -> Vote 5 - Community Services | B6: 1.4 | C6: [Name of sub-vote] | D6: 1.4 - [Name of sub-vote]
A7: =B57&" - "&C57 -> Vote 6 - Technical Services | B7: 1.5 | C7: [Name of sub-vote] | D7: 1.5 - [Name of sub-vote]
A8: =B68&" - "&C68 -> Vote 7 - COMMUNITY & SOCIAL SERVICES | B8: 1.6 | C8: [Name of sub-vote] | D8: 1.6 - [Name of sub-vote]
A9: =B79&" - "&C79 -> Vote 8 - [NAME OF VOTE 8] | B9: 1.7 | C9: [Name of sub-vote] | D9: 1.7 - [Name of sub-vote]
A10: =B90&" - "&C90 -> Vote 9 - [NAME OF VOTE 9] | B10: 1.8 | C10: [Name of sub-vote] | D10: 1.8 - [Name of sub-vote]
A11: =B101&" - "&C101 -> Vote 10 - [NAME OF VOTE 10] | B11: 1.9 | C11: [Name of sub-vote] | D11: 1.9 - [Name of sub-vote]
A12: =B112&" - "&C112 -> Vote 11 - [NAME OF VOTE 11] | B12: 1.10 | C12: [Name of sub-vote] | D12: 1.10 - [Name of sub-vote]
A13: =B123&" - "&C123 -> Vote 12 - [NAME OF VOTE 12] | B13: Vote 2 | C13: Municipal Manager
A14: =B134&" - "&C134 -> Vote 13 - [NAME OF VOTE 13] | B14: 2.1 | C14: [Name of sub-vote] | D14: =CONCATENATE(B14, " - ", C14) -> 2.1 - [Name of sub-vote] | E14: 2.1 - [Name of sub-vote]
A15: =B145&" - "&C145 -> Vote 14 - [NAME OF VOTE 14] | B15: 2.2 | C15: [Name of sub-vote] | D15: 2.2 - [Name of sub-vote]
A16: =B156&" - "&C156 -> Vote 15 - [NAME OF VOTE 15] | B16: 2.3 | C16: [Name of sub-vote] | D16: 2.3 - [Name of sub-vote]
B17: 2.4 | C17: [Name of sub-vote] | D17: 2.4 - [Name of sub-vote]
B18: 2.5 | C18: [Name of sub-vote] | D18: 2.5 - [Name of sub-vote]
B19: 2.6 | C19: [Name of sub-vote] | D19: 2.6 - [Name of sub-vote]
B20: 2.7 | C20: [Name of sub-vote] | D20: 2.7 - [Name of sub-vote]
B21: 2.8 | C21: [Name of sub-vote] | D21: 2.8 - [Name of sub-vote]
B22: 2.9 | C22: [Name of sub-vote] | D22: 2.9 - [Name of sub-vote]
B23: 2.10 | C23: [Name of sub-vote] | D23: 2.10 - [Name of sub-vote]
B24: Vote 3 | C24: Finance Services
B25: 3.1 | C25: [Name of sub-vote] | D25: =CONCATENATE(B25, " - ", C25) -> 3.1 - [Name of sub-vote] | E25: 3.1 - [Name of sub-vote]
B26: 3.2 | C26: [Name of sub-vote] | D26: 3.2 - [Name of sub-vote]
B27: 3.3 | C27: [Name of sub-vote] | D27: 3.3 - [Name of sub-vote]
B28: 3.4 | C28: [Name of sub-vote] | D28: 3.4 - [Name of sub-vote]
B29: 3.5 | C29: [Name of sub-vote] | D29: 3.5 - [Name of sub-vote]
B30: 3.6 | C30: [Name of sub-vote] | D30: 3.6 - [Name of sub-vote]
B31: 3.7 | C31: [Name of sub-vote] | D31: 3.7 - [Name of sub-vote]
B32: 3.8 | C32: [Name of sub-vote] | D32: 3.8 - [Name of sub-vote]
B33: 3.9 | C33: [Name of sub-vote] | D33: 3.9 - [Name of sub-vote]
B34: 3.10 | C34: [Name of sub-vote] | D34: 3.10 - [Name of sub-vote]
B35: Vote 4 | C35: Corporate Services
B36: 4.1 | C36: [Name of sub-vote] | D36: =CONCATENATE(B36, " - ", C36) -> 4.1 - [Name of sub-vote] | E36: 4.1 - [Name of sub-vote]
B37: 4.2 | C37: [Name of sub-vote] | D37: 4.2 - [Name of sub-vote]
B38: 4.3 | C38: [Name of sub-vote] | D38: 4.3 - [Name of sub-vote]
B39: 4.4 | C39: [Name of sub-vote] | D39: 4.4 - [Name of sub-vote]
B40: 4.5 | C40: [Name of sub-vote] | D40: 4.5 - [Name of sub-vote]
B41: 4.6 | C41: [Name of sub-vote] | D41: 4.6 - [Name of sub-vote]
B42: 4.7 | C42: [Name of sub-vote] | D42: 4.7 - [Name of sub-vote]
B43: 4.8 | C43: [Name of sub-vote] | D43: 4.8 - [Name of sub-vote]
B44: 4.9 | C44: [Name of sub-vote] | D44: 4.9 - [Name of sub-vote]
B45: 4.10 | C45: [Name of sub-vote] | D45: 4.10 - [Name of sub-vote]
B46: Vote 5 | C46: Community Services
B47: 5.1 | C47: [Name of sub-vote] | D47: =CONCATENATE(B47, " - ", C47) -> 5.1 - [Name of sub-vote] | E47: 5.1 - [Name of sub-vote]
B48: 5.2 | C48: [Name of sub-vote] | D48: 5.2 - [Name of sub-vote]
B49: 5.3 | C49: [Name of sub-vote] | D49: 5.3 - [Name of sub-vote]
B50: 5.4 | C50: [Name of sub-vote] | D50: 5.4 - [Name of sub-vote]
B51: 5.5 | C51: [Name of sub-vote] | D51: 5.5 - [Name of sub-vote]
B52: 5.6 | C52: [Name of sub-vote] | D52: 5.6 - [Name of sub-vote]
B53: 5.7 | C53: [Name of sub-vote] | D53: 5.7 - [Name of sub-vote]
B54: 5.8 | C54: [Name of sub-vote] | D54: 5.8 - [Name of sub-vote]
B55: 5.9 | C55: [Name of sub-vote] | D55: 5.9 - [Name of sub-vote]
B56: 5.10 | C56: [Name of sub-vote] | D56: 5.10 - [Name of sub-vote]
B57: Vote 6 | C57: Technical Services
B58: 6.1 | C58: [Name of sub-vote] | D58: =CONCATENATE(B58, " - ", C58) -> 6.1 - [Name of sub-vote] | E58: 6.1 - [Name of sub-vote]
B59: 6.2 | C59: [Name of sub-vote] | D59: 6.2 - [Name of sub-vote]
B60: 6.3 | C60: [Name of sub-vote] | D60: 6.3 - [Name of sub-vote]
B61: 6.4 | C61: [Name of sub-vote] | D61: 6.4 - [Name of sub-vote]
B62: 6.5 | C62: [Name of sub-vote] | D62: 6.5 - [Name of sub-vote]
B63: 6.6 | C63: [Name of sub-vote] | D63: 6.6 - [Name of sub-vote]
B64: 6.7 | C64: [Name of sub-vote] | D64: 6.7 - [Name of sub-vote]
B65: 6.8 | C65: [Name of sub-vote] | D65: 6.8 - [Name of sub-vote]
B66: 6.9 | C66: [Name of sub-vote] | D66: 6.9 - [Name of sub-vote]
B67: 6.10 | C67: [Name of sub-vote] | D67: 6.10 - [Name of sub-vote]
B68: Vote 7 | C68: COMMUNITY & SOCIAL SERVICES
B69: 7.1 | C69: [Name of sub-vote] | D69: =CONCATENATE(B69, " - ", C69) -> 7.1 - [Name of sub-vote] | E69: 7.1 - [Name of sub-vote]
B70: 7.2 | C70: [Name of sub-vote] | D70: 7.2 - [Name of sub-vote]
B71: 7.3 | C71: [Name of sub-vote] | D71: 7.3 - [Name of sub-vote]
B72: 7.4 | C72: [Name of sub-vote] | D72: 7.4 - [Name of sub-vote]
B73: 7.5 | C73: [Name of sub-vote] | D73: 7.5 - [Name of sub-vote]
B74: 7.6 | C74: [Name of sub-vote] | D74: 7.6 - [Name of sub-vote]
B75: 7.7 | C75: [Name of sub-vote] | D75: 7.7 - [Name of sub-vote]
B76: 7.8 | C76: [Name of sub-vote] | D76: 7.8 - [Name of sub-vote]
B77: 7.9 | C77: [Name of sub-vote] | D77: 7.9 - [Name of sub-vote]
B78: 7.10 | C78: [Name of sub-vote] | D78: 7.10 - [Name of sub-vote]
B79: Vote 8 | C79: [NAME OF VOTE 8]
B80: 8.1 | C80: [Name of sub-vote] | D80: =CONCATENATE(B80, " - ", C80) -> 8.1 - [Name of sub-vote] | E80: 8.1 - [Name of sub-vote]
B81: 8.2 | C81: [Name of sub-vote] | D81: 8.2 - [Name of sub-vote]
B82: 8.3 | C82: [Name of sub-vote] | D82: 8.3 - [Name of sub-vote]
B83: 8.4 | C83: [Name of sub-vote] | D83: 8.4 - [Name of sub-vote]
B84: 8.5 | C84: [Name of sub-vote] | D84: 8.5 - [Name of sub-vote]
B85: 8.6 | C85: [Name of sub-vote] | D85: 8.6 - [Name of sub-vote]
B86: 8.7 | C86: [Name of sub-vote] | D86: 8.7 - [Name of sub-vote]
B87: 8.8 | C87: [Name of sub-vote] | D87: 8.8 - [Name of sub-vote]
B88: 8.9 | C88: [Name of sub-vote] | D88: 8.9 - [Name of sub-vote]
B89: 8.10 | C89: [Name of sub-vote] | D89: 8.10 - [Name of sub-vote]
B90: Vote 9 | C90: [NAME OF VOTE 9]
B91: 9.1 | C91: [Name of sub-vote] | D91: =CONCATENATE(B91, " - ", C91) -> 9.1 - [Name of sub-vote] | E91: 9.1 - [Name of sub-vote]
B92: 9.2 | C92: [Name of sub-vote] | D92: 9.2 - [Name of sub-vote]
B93: 9.3 | C93: [Name of sub-vote] | D93: 9.3 - [Name of sub-vote]
B94: 9.4 | C94: [Name of sub-vote] | D94: 9.4 - [Name of sub-vote]
B95: 9.5 | C95: [Name of sub-vote] | D95: 9.5 - [Name of sub-vote]
B96: 9.6 | C96: [Name of sub-vote] | D96: 9.6 - [Name of sub-vote]
B97: 9.7 | C97: [Name of sub-vote] | D97: 9.7 - [Name of sub-vote]
B98: 9.8 | C98: [Name of sub-vote] | D98: 9.8 - [Name of sub-vote]
B99: 9.9 | C99: [Name of sub-vote] | D99: 9.9 - [Name of sub-vote]
B100: 9.10 | C100: [Name of sub-vote] | D100: 9.10 - [Name of sub-vote]
B101: Vote 10 | C101: [NAME OF VOTE 10]
B102: 10.1 | C102: [Name of sub-vote] | D102: =CONCATENATE(B102, " - ", C102) -> 10.1 - [Name of sub-vote] | E102: 10.1 - [Name of sub-vote]
B103: 10.2 | C103: [Name of sub-vote] | D103: 10.2 - [Name of sub-vote]
B104: 10.3 | C104: [Name of sub-vote] | D104: 10.3 - [Name of sub-vote]
B105: 10.4 | C105: [Name of sub-vote] | D105: 10.4 - [Name of sub-vote]
B106: 10.5 | C106: [Name of sub-vote] | D106: 10.5 - [Name of sub-vote]
B107: 10.6 | C107: [Name of sub-vote] | D107: 10.6 - [Name of sub-vote]
B108: 10.7 | C108: [Name of sub-vote] | D108: 10.7 - [Name of sub-vote]
B109: 10.8 | C109: [Name of sub-vote] | D109: 10.8 - [Name of sub-vote]
B110: 10.9 | C110: [Name of sub-vote] | D110: 10.9 - [Name of sub-vote]
B111: 10.10 | C111: [Name of sub-vote] | D111: 10.10 - [Name of sub-vote]
B112: Vote 11 | C112: [NAME OF VOTE 11]
B113: 11.1 | C113: [Name of sub-vote] | D113: =CONCATENATE(B113, " - ", C113) -> 11.1 - [Name of sub-vote] | E113: 11.1 - [Name of sub-vote]
B114: 11.2 | C114: [Name of sub-vote] | D114: 11.2 - [Name of sub-vote]
B115: 11.3 | C115: [Name of sub-vote] | D115: 11.3 - [Name of sub-vote]
B116: 11.4 | C116: [Name of sub-vote] | D116: 11.4 - [Name of sub-vote]
B117: 11.5 | C117: [Name of sub-vote] | D117: 11.5 - [Name of sub-vote]
B118: 11.6 | C118: [Name of sub-vote] | D118: 11.6 - [Name of sub-vote]
B119: 11.7 | C119: [Name of sub-vote] | D119: 11.7 - [Name of sub-vote]
B120: 11.8 | C120: [Name of sub-vote] | D120: 11.8 - [Name of sub-vote]
B121: 11.9 | C121: [Name of sub-vote] | D121: 11.9 - [Name of sub-vote]
B122: 11.10 | C122: [Name of sub-vote] | D122: 11.10 - [Name of sub-vote]
B123: Vote 12 | C123: [NAME OF VOTE 12]
B124: 12.1 | C124: [Name of sub-vote] | D124: =CONCATENATE(B124, " - ", C124) -> 12.1 - [Name of sub-vote] | E124: 12.1 - [Name of sub-vote]
B125: 12.2 | C125: [Name of sub-vote] | D125: 12.2 - [Name of sub-vote]
B126: 12.3 | C126: [Name of sub-vote] | D126: 12.3 - [Name of sub-vote]
B127: 12.4 | C127: [Name of sub-vote] | D127: 12.4 - [Name of sub-vote]
B128: 12.5 | C128: [Name of sub-vote] | D128: 12.5 - [Name of sub-vote]
B129: 12.6 | C129: [Name of sub-vote] | D129: 12.6 - [Name of sub-vote]
B130: 12.7 | C130: [Name of sub-vote] | D130: 12.7 - [Name of sub-vote]
B131: 12.8 | C131: [Name of sub-vote] | D131: 12.8 - [Name of sub-vote]
B132: 12.9 | C132: [Name of sub-vote] | D132: 12.9 - [Name of sub-vote]
B133: 12.10 | C133: [Name of sub-vote] | D133: 12.10 - [Name of sub-vote]
B134: Vote 13 | C134: [NAME OF VOTE 13]
B135: 13.1 | C135: [Name of sub-vote] | D135: =CONCATENATE(B135, " - ", C135) -> 13.1 - [Name of sub-vote] | E135: 13.1 - [Name of sub-vote]
B136: 13.2 | C136: [Name of sub-vote] | D136: 13.2 - [Name of sub-vote]
B137: 13.3 | C137: [Name of sub-vote] | D137: 13.3 - [Name of sub-vote]
B138: 13.4 | C138: [Name of sub-vote] | D138: 13.4 - [Name of sub-vote]
B139: 13.5 | C139: [Name of sub-vote] | D139: 13.5 - [Name of sub-vote]
B140: 13.6 | C140: [Name of sub-vote] | D140: 13.6 - [Name of sub-vote]
B141: 13.7 | C141: [Name of sub-vote] | D141: 13.7 - [Name of sub-vote]
B142: 13.8 | C142: [Name of sub-vote] | D142: 13.8 - [Name of sub-vote]
B143: 13.9 | C143: [Name of sub-vote] | D143: 13.9 - [Name of sub-vote]
B144: 13.10 | C144: [Name of sub-vote] | D144: 13.10 - [Name of sub-vote]
B145: Vote 14 | C145: [NAME OF VOTE 14]
B146: 14.1 | C146: [Name of sub-vote] | D146: =CONCATENATE(B146, " - ", C146) -> 14.1 - [Name of sub-vote] | E146: 14.1 - [Name of sub-vote]
B147: 14.2 | C147: [Name of sub-vote] | D147: 14.2 - [Name of sub-vote]
B148: 14.3 | C148: [Name of sub-vote] | D148: 14.3 - [Name of sub-vote]
B149: 14.4 | C149: [Name of sub-vote] | D149: 14.4 - [Name of sub-vote]
B150: 14.5 | C150: [Name of sub-vote] | D150: 14.5 - [Name of sub-vote]
B151: 14.6 | C151: [Name of sub-vote] | D151: 14.6 - [Name of sub-vote]
B152: 14.7 | C152: [Name of sub-vote] | D152: 14.7 - [Name of sub-vote]
B153: 14.8 | C153: [Name of sub-vote] | D153: 14.8 - [Name of sub-vote]
B154: 14.9 | C154: [Name of sub-vote] | D154: 14.9 - [Name of sub-vote]
B155: 14.10 | C155: [Name of sub-vote] | D155: 14.10 - [Name of sub-vote]
B156: Vote 15 | C156: [NAME OF VOTE 15]
B157: 15.1 | C157: [Name of sub-vote] | D157: =CONCATENATE(B157, " - ", C157) -> 15.1 - [Name of sub-vote] | E157: 15.1 - [Name of sub-vote]
B158: 15.2 | C158: [Name of sub-vote] | D158: 15.2 - [Name of sub-vote]
B159: 15.3 | C159: [Name of sub-vote] | D159: 15.3 - [Name of sub-vote]
B160: 15.4 | C160: [Name of sub-vote] | D160: 15.4 - [Name of sub-vote]
B161: 15.5 | C161: [Name of sub-vote] | D161: 15.5 - [Name of sub-vote]
B162: 15.6 | C162: [Name of sub-vote] | D162: 15.6 - [Name of sub-vote]
B163: 15.7 | C163: [Name of sub-vote] | D163: 15.7 - [Name of sub-vote]
B164: 15.8 | C164: [Name of sub-vote] | D164: 15.8 - [Name of sub-vote]
B165: 15.9 | C165: [Name of sub-vote] | D165: 15.9 - [Name of sub-vote]
B166: 15.10 | C166: [Name of sub-vote] | D166: 15.10 - [Name of sub-vote]

Sheet Contacts
A1: =muni&" - "&" Contact Information" -> 0 - Contact Information
A3: A. GENERAL INFORMATION
A4: Municipality | B4: =muni -> 0 | C4: =IF(B4="Choose name from List","Set name on 'Instructions' sheet", "") -> 
A6: Grade | C6: 1 Grade in terms of the Remuneration of Public Office Bearers Act.
A8: Province | B8: =IF(B4>" ",VLOOKUP(B4,'Lookup and lists'!B29:C307,2, FALSE)," ") -> 
A10: Web Address
A12: e-mail Address
A14: B. CONTACT INFORMATION
A15: Postal address:
A16: P.O. Box
A17: City / Town
A18: Postal Code
A20: Street address
A21: Building
A22: Street No. & Name
A23: City / Town
A24: Postal Code
A26: General Contacts
A27: Telephone number
A28: Fax number
A30: C. POLITICAL LEADERSHIP
A31: Speaker: | C31: Secretary/PA to the Speaker:
A32: ID Number | C32: ID Number
A33: Title | C33: Title
A34: Name | C34: Name
A35: Telephone number | C35: Telephone number
A36: Cell number | C36: Cell number
A37: Fax number | C37: Fax number
A38: E-mail address | C38: E-mail address
A40: Mayor/Executive Mayor: | C40: Secretary/PA to the Mayor/Executive Mayor:
A41: ID Number | C41: ID Number
A42: Title | C42: Title
A43: Name | C43: Name
A44: Telephone number | C44: Telephone number
A45: Cell number | C45: Cell number
A46: Fax number | C46: Fax number
A47: E-mail address | C47: E-mail address
A49: Deputy Mayor/Executive Mayor: | C49: Secretary/PA to the Deputy Mayor/Executive Mayor:
A50: ID Number | C50: ID Number
A51: Title | C51: Title
A52: Name | C52: Name
A53: Telephone number | C53: Telephone number
A54: Cell number | C54: Cell number
A55: Fax number | C55: Fax number
A56: E-mail address | C56: E-mail address
A58: D. MANAGEMENT LEADERSHIP
A59: Municipal Manager: | C59: Secretary/PA to the Municipal Manager:
A60: ID Number | C60: ID Number
A61: Title | C61: Title
A62: Name | C62: Name
A63: Telephone number | C63: Telephone number
A64: Cell number | C64: Cell number
A65: Fax number | C65: Fax number
A66: E-mail address | C66: E-mail address
A68: Chief Financial Officer | C68: Secretary/PA to the Chief Financial Officer
A69: ID Number | C69: ID Number
A70: Title | C70: Title
A71: Name | C71: Name
A72: Telephone number | C72: Telephone number
A73: Cell number | C73: Cell number
A74: Fax number | C74: Fax number
A75: E-mail address | C75: E-mail address
A77: Official responsible for submitting financial information | C77: Official responsible for submitting financial information
A78: ID Number | C78: ID Number
A79: Title | C79: Title
A80: Name | C80: Name
A81: Telephone number | C81: Telephone number
A82: Cell number | C82: Cell number
A83: Fax number | C83: Fax number
A84: E-mail address | C84: E-mail address
A85: Official responsible for submitting financial information | C85: Official responsible for submitting financial information
A86: ID Number | C86: ID Number
A87: Title | C87: Title
A88: Name | C88: Name
A89: Telephone number | C89: Telephone number
A90: Cell number | C90: Cell number
A91: Fax number | C91: Fax number
A92: E-mail address | C92: E-mail address
A93: Official responsible for submitting financial information | C93: Official responsible for submitting financial information
A94: ID Number | C94: ID Number
A95: Title | C95: Title
A96: Name | C96: Name
A97: Telephone number | C97: Telephone number
A98: Cell number | C98: Cell number
A99: Fax number | C99: Fax number
A100: E-mail address | C100: E-mail address
A101: Official responsible for submitting financial information | C101: Official responsible for submitting financial information
A102: ID Number | C102: ID Number
A103: Title | C103: Title
A104: Name | C104: Name
A105: Telephone number | C105: Telephone number
A106: Cell number | C106: Cell number
A107: Fax number | C107: Fax number
A108: E-mail address | C108: E-mail address
A109: Official responsible for submitting financial information | C109: Official responsible for submitting financial information
A110: ID Number | C110: ID Number
A111: Title | C111: Title
A112: Name | C112: Name
A113: Telephone number | C113: Telephone number
A114: Cell number | C114: Cell number
A115: Fax number | C115: Fax number
A116: E-mail address | C116: E-mail address
A117: Official responsible for submitting financial information | C117: Official responsible for submitting financial information
A118: ID Number | C118: ID Number
A119: Title | C119: Title
A120: Name | C120: Name
A121: Telephone number | C121: Telephone number
A122: Cell number | C122: Cell number
A123: Fax number | C123: Fax number
A124: E-mail address | C124: E-mail address
A125: Official responsible for submitting financial information | C125: Official responsible for submitting financial information
A126: ID Number | C126: ID Number
A127: Title | C127: Title
A128: Name | C128: Name
A129: Telephone number | C129: Telephone number
A130: Cell number | C130: Cell number
A131: Fax number | C131: Fax number
A132: E-mail address | C132: E-mail address
A133: Official responsible for submitting financial information
A134: ID Number
A135: Title
A136: Name
A137: Telephone number
A138: Cell number
A139: Fax number
A140: E-mail address

Sheet A1-Sum
A1: =muni&" - "&Approve1 -> 0 - Table A1 Budget Summary
A2: =desc -> Description | B2: =head1b -> 2019/20 | C2: =head1A -> 2020/21 | D2: =Head1 -> 2021/22 | E2: =Head2 -> Current Year 2022/23 | I2: =Head3 -> 2023/24 Medium Term Revenue & Expenditure Framework
A3: R thousands | B3: =Head5 -> Audited Outcome | C3: =Head5 -> Audited Outcome | D3: =Head5 -> Audited Outcome | E3: =Head6 -> Original Budget | F3: =Head7 -> Adjusted Budget | G3: =Head8 -> Full Year Forecast | H3: =Head5b -> Pre-audit outcome | I3: =Head9 -> Budget Year 2023/24 | J3: =Head10 -> Budget Year +1 2024/25 | K3: =Head11 -> Budget Year +2 2025/26
A4: Financial Performance
A5: Property rates | B5: ='A4-FinPerf RE'!C21 -> 20176912.05 | C5: ='A4-FinPerf RE'!D21 -> 18630928.98 | D5: ='A4-FinPerf RE'!E21 -> 20069121.4 | E5: ='A4-FinPerf RE'!F21 -> 24132992 | F5: ='A4-FinPerf RE'!G21 -> 21300000 | G5: ='A4-FinPerf RE'!H21 -> 21300000 | H5: ='A4-FinPerf RE'!I21 -> 21300000 | I5: ='A4-FinPerf RE'!J21 -> 23832623 | J5: ='A4-FinPerf RE'!K21 -> 25381744 | K5: ='A4-FinPerf RE'!L21 -> 27031557
A6: Service charges | B6: =SUM('A4-FinPerf RE'!C6:C9) -> 112918237 | C6: =SUM('A4-FinPerf RE'!D6:D9) -> 122195528.5 | D6: =SUM('A4-FinPerf RE'!E6:E9) -> 117958674.8 | E6: =SUM('A4-FinPerf RE'!F6:F9) -> 149045298 | F6: =SUM('A4-FinPerf RE'!G6:G9) -> 121300002 | G6: =SUM('A4-FinPerf RE'!H6:H9) -> 121300002 | H6: =SUM('A4-FinPerf RE'!I6:I9) -> 125300002 | I6: =SUM('A4-FinPerf RE'!J6:J9) -> 178533914 | J6: =SUM('A4-FinPerf RE'!K6:K9) -> 190244900 | K6: =SUM('A4-FinPerf RE'!L6:L9) -> 199604476
A7: Investment revenue | B7: ='A4-FinPerf RE'!C14 -> 237735.51 | C7: ='A4-FinPerf RE'!D14 -> 155154.76 | D7: ='A4-FinPerf RE'!E14 -> 43953.02 | E7: ='A4-FinPerf RE'!F14 -> 239660 | F7: ='A4-FinPerf RE'!G14 -> 479320 | G7: ='A4-FinPerf RE'!H14 -> 479320 | H7: ='A4-FinPerf RE'!I14 -> 479320 | I7: ='A4-FinPerf RE'!J14 -> 270205 | J7: ='A4-FinPerf RE'!K14 -> 282664 | K7: ='A4-FinPerf RE'!L14 -> 283936
A8: Transfer and subsidies - Operational | B8: ='A4-FinPerf RE'!C25 -> 100525796.3 | C8: ='A4-FinPerf RE'!D25 -> 111900277.8 | D8: ='A4-FinPerf RE'!E25 -> 96081999.77 | E8: ='A4-FinPerf RE'!F25 -> 106863009 | F8: ='A4-FinPerf RE'!G25 -> 106585351 | G8: ='A4-FinPerf RE'!H25 -> 106585351 | H8: ='A4-FinPerf RE'!I25 -> 106585351 | I8: ='A4-FinPerf RE'!J25 -> 115573958 | J8: ='A4-FinPerf RE'!K25 -> 120941675 | K8: ='A4-FinPerf RE'!L25 -> 127517907
A9: Other own revenue | B9: ='A4-FinPerf RE'!C32-SUM(B5:B8) -> 27651710.11 | C9: ='A4-FinPerf RE'!D32-SUM(C5:C8) -> 57689503 | D9: ='A4-FinPerf RE'!E32-SUM(D5:D8) -> 36189290.68 | E9: ='A4-FinPerf RE'!F32-SUM(E5:E8) -> 62389480 | F9: ='A4-FinPerf RE'!G32-SUM(F5:F8) -> 100618694 | G9: ='A4-FinPerf RE'!H32-SUM(G5:G8) -> 100618694 | H9: ='A4-FinPerf RE'!I32-SUM(H5:H8) -> 100618694 | I9: ='A4-FinPerf RE'!J32-SUM(I5:I8) -> 106364930 | J9: ='A4-FinPerf RE'!K32-SUM(J5:J8) -> 109546536 | K9: ='A4-FinPerf RE'!L32-SUM(K5:K8) -> 115594791
A10: ='A4-FinPerf RE'!A32 -> Total Revenue (excluding capital transfers and contributions) | B10: =SUM(B5:B9) -> 261510391 | C10: =SUM(C5:C9) -> 310571393.1 | D10: 270343039.7 | E10: 342670439 | F10: 350283367 | G10: 350283367 | H10: 354283367 | I10: 424575630 | J10: 446397519 | K10: 470032667
A11: Employee costs | B11: ='A4-FinPerf RE'!C34 -> 100917651.5 | C11: ='A4-FinPerf RE'!D34 -> 104849569.2 | D11: ='A4-FinPerf RE'!E34 -> 111097592.5 | E11: ='A4-FinPerf RE'!F34 -> 111243576 | F11: ='A4-FinPerf RE'!G34 -> 111244811 | G11: ='A4-FinPerf RE'!H34 -> 111244811 | H11: ='A4-FinPerf RE'!I34 -> 111244811 | I11: ='A4-FinPerf RE'!J34 -> 114544998 | J11: ='A4-FinPerf RE'!K34 -> 121061287 | K11: ='A4-FinPerf RE'!L34 -> 126559436
A12: Remuneration of councillors | B12: ='A4-FinPerf RE'!C35 -> 7196977.53 | C12: ='A4-FinPerf RE'!D35 -> 8489338.91 | D12: ='A4-FinPerf RE'!E35 -> 7721907.07 | E12: ='A4-FinPerf RE'!F35 -> 6221546 | F12: ='A4-FinPerf RE'!G35 -> 6221549 | G12: ='A4-FinPerf RE'!H35 -> 6221549 | H12: ='A4-FinPerf RE'!I35 -> 6221549 | I12: ='A4-FinPerf RE'!J35 -> 7731598 | J12: ='A4-FinPerf RE'!K35 -> 8145000 | K12: ='A4-FinPerf RE'!L35 -> 8460006
A13: Depreciation and amortisation | B13: ='A4-FinPerf RE'!C39 -> 71504834.31 | C13: ='A4-FinPerf RE'!D39 -> 36167530.25 | D13: ='A4-FinPerf RE'!E39 -> 30354131.94 | E13: ='A4-FinPerf RE'!F39 -> 35780275 | F13: ='A4-FinPerf RE'!G39 -> 97085318 | G13: ='A4-FinPerf RE'!H39 -> 97085318 | H13: ='A4-FinPerf RE'!I39 -> 97085318 | I13: ='A4-FinPerf RE'!J39 -> 40675000 | J13: ='A4-FinPerf RE'!K39 -> 39777400 | K13: ='A4-FinPerf RE'!L39 -> 39948256
A14: Interest | B14: ='A4-FinPerf RE'!C40 -> 23136801.9 | C14: ='A4-FinPerf RE'!D40 -> 8659780.66 | D14: ='A4-FinPerf RE'!E40 -> 17038144.37 | E14: ='A4-FinPerf RE'!F40 -> 8899288 | F14: ='A4-FinPerf RE'!G40 -> 19884000 | G14: ='A4-FinPerf RE'!H40 -> 19884000 | H14: ='A4-FinPerf RE'!I40 -> 19884000 | I14: ='A4-FinPerf RE'!J40 -> 3722000 | J14: ='A4-FinPerf RE'!K40 -> 3833930 | K14: ='A4-FinPerf RE'!L40 -> 3953135
A15: Inventory consumed and bulk purchases | B15: ='A4-FinPerf RE'!C36+'A4-FinPerf RE'!C37 -> 56492975.11 | C15: ='A4-FinPerf RE'!D36+'A4-FinPerf RE'!D37 -> 71878621.42 | D15: ='A4-FinPerf RE'!E36+'A4-FinPerf RE'!E37 -> 69375264.4 | E15: ='A4-FinPerf RE'!F36+'A4-FinPerf RE'!F37 -> 70641383 | F15: ='A4-FinPerf RE'!G36+'A4-FinPerf RE'!G37 -> 71093376 | G15: ='A4-FinPerf RE'!H36+'A4-FinPerf RE'!H37 -> 71093376 | H15: ='A4-FinPerf RE'!I36+'A4-FinPerf RE'!I37 -> 71093376 | I15: ='A4-FinPerf RE'!J36+'A4-FinPerf RE'!J37 -> 86555406 | J15: ='A4-FinPerf RE'!K36+'A4-FinPerf RE'!K37 -> 94068880 | K15: ='A4-FinPerf RE'!L36+'A4-FinPerf RE'!L37 -> 98738503
A16: Transfers and subsidies | B16: ='A4-FinPerf RE'!C42 -> 0 | C16: ='A4-FinPerf RE'!D42 -> 717394 | D16: ='A4-FinPerf RE'!E42 -> 0 | E16: ='A4-FinPerf RE'!F42 -> 0 | F16: ='A4-FinPerf RE'!G42 -> 0 | G16: ='A4-FinPerf RE'!H42 -> 0 | H16: ='A4-FinPerf RE'!I42 -> 0 | I16: ='A4-FinPerf RE'!J42 -> 1722000 | J16: ='A4-FinPerf RE'!K42 -> 1833930 | K16: ='A4-FinPerf RE'!L42 -> 1953135
A17: Other expenditure | B17: ='A4-FinPerf RE'!C47-SUM(B11:B16) -> 206305543.9 | C17: ='A4-FinPerf RE'!D47-SUM(C11:C16) -> 144365818.7 | D17: ='A4-FinPerf RE'!E47-SUM(D11:D16) -> 139741756.1 | E17: ='A4-FinPerf RE'!F47-SUM(E11:E16) -> 105393821 | F17: ='A4-FinPerf RE'!G47-SUM(F11:F16) -> 134068871 | G17: ='A4-FinPerf RE'!H47-SUM(G11:G16) -> 134068871 | H17: ='A4-FinPerf RE'!I47-SUM(H11:H16) -> 134068871 | I17: ='A4-FinPerf RE'!J47-SUM(I11:I16) -> 134292561 | J17: ='A4-FinPerf RE'!K47-SUM(J11:J16) -> 142144500 | K17: ='A4-FinPerf RE'!L47-SUM(K11:K16) -> 150599291
A18: ='A4-FinPerf RE'!A47 -> Total Expenditure | B18: =SUM(B11:B17) -> 465554784.3 | C18: =SUM(C11:C17) -> 375128053.1 | D18: 375328796.3 | E18: 338179889 | F18: 439597925 | G18: 439597925 | H18: 439597925 | I18: 389243563 | J18: 410864927 | K18: 430211762
A19: ='A4-FinPerf RE'!A48 -> Surplus/(Deficit) | B19: =B10-B18 -> -204044393.2 | C19: =C10-C18 -> -64556660.08 | D19: -104985756.6 | E19: 4490550 | F19: -89314558 | G19: -89314558 | H19: -85314558 | I19: 35332067 | J19: 35532592 | K19: 39820905
A20: ='A4-FinPerf RE'!A49 -> Transfers and subsidies - capital (monetary allocations) | B20: ='A4-FinPerf RE'!C49 -> 11576166.47 | C20: ='A4-FinPerf RE'!D49 -> 52378915.2 | D20: ='A4-FinPerf RE'!E49 -> 28404865.21 | E20: ='A4-FinPerf RE'!F49 -> 54015000 | F20: ='A4-FinPerf RE'!G49 -> 55515000 | G20: ='A4-FinPerf RE'!H49 -> 55515000 | H20: ='A4-FinPerf RE'!I49 -> 55515000 | I20: ='A4-FinPerf RE'!J49 -> 41195518 | J20: ='A4-FinPerf RE'!K49 -> 9540183 | K20: ='A4-FinPerf RE'!L49 -> 10117871
A21: ='A4-FinPerf RE'!A50 -> Transfers and subsidies - capital (in-kind) | B21: ='A4-FinPerf RE'!C50 -> 0 | C21: ='A4-FinPerf RE'!D50 -> 0 | D21: ='A4-FinPerf RE'!E50 -> 0 | E21: ='A4-FinPerf RE'!F50 -> 0 | F21: ='A4-FinPerf RE'!G50 -> 0 | G21: ='A4-FinPerf RE'!H50 -> 0 | H21: ='A4-FinPerf RE'!I50 -> 0 | I21: ='A4-FinPerf RE'!J50 -> 0 | J21: ='A4-FinPerf RE'!K50 -> 0 | K21: ='A4-FinPerf RE'!L50 -> 0
A22: ='A4-FinPerf RE'!A51 -> Surplus/(Deficit) after capital transfers & contributions | B22: =B19+SUM(B20:B21) -> -192468226.8 | C22: =C19+SUM(C20:C21) -> -12177744.88 | D22: -76580891.43 | E22: 58505550 | F22: -33799558 | G22: -33799558 | H22: -29799558 | I22: 76527585 | J22: 45072775 | K22: 49938776
A23: ='A4-FinPerf RE'!A57 -> Share of Surplus/Deficit attributable to Associate | B23: ='A4-FinPerf RE'!C57 -> 0 | C23: ='A4-FinPerf RE'!D57 -> 0 | D23: ='A4-FinPerf RE'!E57 -> 0 | E23: ='A4-FinPerf RE'!F57 -> 0 | F23: ='A4-FinPerf RE'!G57 -> 0 | G23: ='A4-FinPerf RE'!H57 -> 0 | H23: ='A4-FinPerf RE'!I57 -> 0 | I23: ='A4-FinPerf RE'!J57 -> 0 | J23: ='A4-FinPerf RE'!K57 -> 0 | K23: ='A4-FinPerf RE'!L57 -> 0
A24: ='A4-FinPerf RE'!A59 -> Surplus/(Deficit) for the year | B24: =B22+B23 -> -192468226.8 | C24: =C22+C23 -> -12177744.88 | D24: -76580891.43 | E24: 58505550 | F24: -33799558 | G24: -33799558 | H24: -29799558 | I24: 76527585 | J24: 45072775 | K24: 49938776
A25: Capital expenditure & funds sources
A26: Capital expenditure | B26: ='A5-Capex'!C63 -> 14039687.86 | C26: ='A5-Capex'!D63 -> -6241078.4 | D26: ='A5-Capex'!E63 -> 43740371.48 | E26: ='A5-Capex'!F63 -> 52395001 | F26: ='A5-Capex'!G63 -> 47295003 | G26: ='A5-Capex'!H63 -> 47295003 | H26: ='A5-Capex'!I63 -> 47295003 | I26: ='A5-Capex'!J63 -> 41195520 | J26: ='A5-Capex'!K63 -> 34874000 | K26: ='A5-Capex'!L63 -> 36276999
A27: Transfers recognised - capital | B27: ='A5-Capex'!C70 -> 14039687.86 | C27: ='A5-Capex'!D70 -> -6241078.08 | D27: ='A5-Capex'!E70 -> 32281411.44 | E27: ='A5-Capex'!F70 -> 46795001 | F27: ='A5-Capex'!G70 -> 46795001 | G27: ='A5-Capex'!H70 -> 46795001 | H27: ='A5-Capex'!I70 -> 46795001 | I27: ='A5-Capex'!J70 -> 41195520 | J27: ='A5-Capex'!K70 -> 34874000 | K27: ='A5-Capex'!L70 -> 36276999
A29: ='A5-Capex'!A72 -> Borrowing | B29: ='A5-Capex'!C72 -> 0 | C29: ='A5-Capex'!D72 -> 0 | D29: ='A5-Capex'!E72 -> 0 | E29: ='A5-Capex'!F72 -> 0 | F29: ='A5-Capex'!G72 -> 0 | G29: ='A5-Capex'!H72 -> 0 | H29: ='A5-Capex'!I72 -> 0 | I29: ='A5-Capex'!J72 -> 0 | J29: ='A5-Capex'!K72 -> 0 | K29: ='A5-Capex'!L72 -> 0
A30: ='A5-Capex'!A73 -> Internally generated funds | B30: ='A5-Capex'!C73 -> 0 | C30: ='A5-Capex'!D73 -> 0 | D30: ='A5-Capex'!E73 -> 11458960.04 | E30: ='A5-Capex'!F73 -> 5600000 | F30: ='A5-Capex'!G73 -> 500002 | G30: ='A5-Capex'!H73 -> 500002 | H30: ='A5-Capex'!I73 -> 500002 | I30: ='A5-Capex'!J73 -> 0 | J30: ='A5-Capex'!K73 -> 0 | K30: ='A5-Capex'!L73 -> 0
A31: Total sources of capital funds | B31: =+B27+B29+B30 -> 14039687.86 | C31: =+C27+C29+C30 -> -6241078.08 | D31: 43740371.48 | E31: 52395001 | F31: 47295003 | G31: 47295003 | H31: 47295003 | I31: 41195520 | J31: 34874000 | K31: 36276999
A32: Financial position
A33: ='A6-FinPos'!A13 -> Total current assets | B33: ='A6-FinPos'!C13 -> 110903739.9 | C33: ='A6-FinPos'!D13 -> 420115371.6 | D33: ='A6-FinPos'!E13 -> 437449173.9 | E33: ='A6-FinPos'!F13 -> 275700507 | F33: ='A6-FinPos'!G13 -> 351307810 | G33: ='A6-FinPos'!H13 -> 351307810 | H33: ='A6-FinPos'!I13 -> 351307810 | I33: ='A6-FinPos'!J13 -> 1612945101 | J33: ='A6-FinPos'!K13 -> 1623803321 | K33: ='A6-FinPos'!L13 -> 1669284024
A34: ='A6-FinPos'!A25 -> Total non current assets | B34: ='A6-FinPos'!C25 -> 998153741 | C34: ='A6-FinPos'!D25 -> 681746014.3 | D34: ='A6-FinPos'!E25 -> 683832730.8 | E34: ='A6-FinPos'!F25 -> 1156202024 | F34: ='A6-FinPos'!G25 -> 1151102026 | G34: ='A6-FinPos'!H25 -> 1151102026 | H34: ='A6-FinPos'!I25 -> 1151102026 | I34: ='A6-FinPos'!J25 -> 2196272440 | J34: ='A6-FinPos'!K25 -> 2290521846 | K34: ='A6-FinPos'!L25 -> 2852791707
A35: ='A6-FinPos'!A37 -> Total current liabilities | B35: ='A6-FinPos'!C37 -> 359424668 | C35: ='A6-FinPos'!D37 -> 398653567.7 | D35: ='A6-FinPos'!E37 -> 465419276.4 | E35: ='A6-FinPos'!F37 -> 118948802 | F35: ='A6-FinPos'!G37 -> 118948604 | G35: ='A6-FinPos'!H37 -> 118948604 | H35: ='A6-FinPos'!I37 -> 118948604 | I35: ='A6-FinPos'!J37 -> 267285735 | J35: ='A6-FinPos'!K37 -> 250590974 | K35: ='A6-FinPos'!L37 -> 233446394
A36: ='A6-FinPos'!A43 -> Total non current liabilities | B36: ='A6-FinPos'!C43 -> 50695748 | C36: ='A6-FinPos'!D43 -> 36694325 | D36: ='A6-FinPos'!E43 -> 89682812 | E36: ='A6-FinPos'!F43 -> 65894576 | F36: ='A6-FinPos'!G43 -> 65894576 | G36: ='A6-FinPos'!H43 -> 65894576 | H36: ='A6-FinPos'!I43 -> 65894576 | I36: ='A6-FinPos'!J43 -> 30503080 | J36: ='A6-FinPos'!K43 -> 30503080 | K36: ='A6-FinPos'!L43 -> 30503080
A37: Community wealth/Equity | B37: ='A6-FinPos'!C50 -> 690919446.2 | C37: ='A6-FinPos'!D50 -> 667054922.2 | D37: ='A6-FinPos'!E50 -> 566332557.9 | E37: ='A6-FinPos'!F50 -> 929923421 | F37: ='A6-FinPos'!G50 -> 837618313 | G37: ='A6-FinPos'!H50 -> 837618313 | H37: ='A6-FinPos'!I50 -> 837618313 | I37: ='A6-FinPos'!J50 -> 947945456 | J37: ='A6-FinPos'!K50 -> 916490646 | K37: ='A6-FinPos'!L50 -> 921356647
A38: Cash flows
A39: Net cash from (used) operating | B39: ='A7-CFlow'!C17 -> -89273147.45 | C39: ='A7-CFlow'!D17 -> -114024024.5 | D39: ='A7-CFlow'!E17 -> -81168654.68 | E39: ='A7-CFlow'!F17 -> -187264165 | F39: ='A7-CFlow'!G17 -> -111657027 | G39: ='A7-CFlow'!H17 -> -111657027 | H39: ='A7-CFlow'!I17 -> -111657027 | I39: ='A7-CFlow'!J17 -> 146651510 | J39: ='A7-CFlow'!K17 -> 155594599 | K39: ='A7-CFlow'!L17 -> 155758595
A40: Net cash from (used) investing | B40: ='A7-CFlow'!C26 -> 52976 | C40: ='A7-CFlow'!D26 -> 52976 | D40: ='A7-CFlow'!E26 -> 0 | E40: ='A7-CFlow'!F26 -> 0 | F40: ='A7-CFlow'!G26 -> 0 | G40: ='A7-CFlow'!H26 -> 0 | H40: ='A7-CFlow'!I26 -> 0 | I40: ='A7-CFlow'!J26 -> -41166002 | J40: ='A7-CFlow'!K26 -> 0 | K40: ='A7-CFlow'!L26 -> 0
A41: Net cash from (used) financing | B41: ='A7-CFlow'!C35 -> 0 | C41: ='A7-CFlow'!D35 -> 0 | D41: ='A7-CFlow'!E35 -> 0 | E41: ='A7-CFlow'!F35 -> 0 | F41: ='A7-CFlow'!G35 -> 0 | G41: ='A7-CFlow'!H35 -> 0 | H41: ='A7-CFlow'!I35 -> 0 | I41: ='A7-CFlow'!J35 -> -800190 | J41: ='A7-CFlow'!K35 -> -836999 | K41: ='A7-CFlow'!L35 -> -836999
A42: =LEFT('A7-CFlow'!A39,37) -> Cash/cash equivalents at the year end | B42: ='A7-CFlow'!C39 -> -89220171.45 | C42: ='A7-CFlow'!D39 -> -113971048.5 | D42: ='A7-CFlow'!E39 -> -81168654.68 | E42: ='A7-CFlow'!F39 -> -187264165 | F42: ='A7-CFlow'!G39 -> -111657027 | G42: ='A7-CFlow'!H39 -> -111657027 | H42: ='A7-CFlow'!I39 -> -111657027 | I42: ='A7-CFlow'!J39 -> 104685318 | J42: ='A7-CFlow'!K39 -> 259442918 | K42: ='A7-CFlow'!L39 -> 414364514
A44: Cash backing/surplus reconciliation
A45: ='A8-ResRecon'!A4 -> Cash and investments available | B45: ='A8-ResRecon'!C8 -> 1781676.59 | C45: ='A8-ResRecon'!D8 -> 6415314.27 | D45: ='A8-ResRecon'!E8 -> 1458812.89 | E45: ='A8-ResRecon'!F8 -> 121631841 | F45: ='A8-ResRecon'!G8 -> 197239078 | G45: ='A8-ResRecon'!H8 -> 197239078 | H45: ='A8-ResRecon'!I8 -> 197239078 | I45: ='A8-ResRecon'!J8 -> 398036174 | J45: ='A8-ResRecon'!K8 -> 379231410 | K45: ='A8-ResRecon'!L8 -> 393121103
A46: ='A8-ResRecon'!A10 -> Application of cash and investments | B46: ='A8-ResRecon'!C18 -> 403765449.8 | C46: ='A8-ResRecon'!D18 -> 449436145.2 | D46: ='A8-ResRecon'!E18 -> 491106233.5 | E46: ='A8-ResRecon'!F18 -> 150546905.9 | F46: ='A8-ResRecon'!G18 -> 150543707.9 | G46: ='A8-ResRecon'!H18 -> 150543707.9 | H46: ='A8-ResRecon'!I18 -> 150543707.9 | I46: ='A8-ResRecon'!J18 -> -735619123 | J46: ='A8-ResRecon'!K18 -> -775055075 | K46: ='A8-ResRecon'!L18 -> -830308655
A47: Balance - surplus (shortfall) | B47: =B45-B46 -> -401983773.2 | C47: =C45-C46 -> -443020831 | D47: -489647420.6 | E47: -28915064.93 | F47: 46695370.07 | G47: 46695370.07 | H47: 46695370.07 | I47: 1133655297 | J47: 1154286485 | K47: 1223429758
A48: Asset management
A49: Asset register summary (WDV) | B49: ='A9-Asset'!C180 -> 976480018 | C49: ='A9-Asset'!D180 -> 680632446.1 | D49: ='A9-Asset'!E180 -> 682680139.4 | E49: ='A9-Asset'!F180 -> 1156202024 | F49: ='A9-Asset'!G180 -> 1151102026 | G49: ='A9-Asset'!H180 -> 1151102026 | I49: ='A9-Asset'!I180 -> 2154968033 | J49: ='A9-Asset'!J180 -> 2249217439 | K49: ='A9-Asset'!K180 -> 2811487300
A50: ='A9-Asset'!A183 -> Depreciation | B50: ='A9-Asset'!C183 -> 31536120.46 | C50: ='A9-Asset'!D183 -> 38633012.91 | D50: ='A9-Asset'!E183 -> 37272334.59 | E50: ='A9-Asset'!F183 -> 35780275 | F50: ='A9-Asset'!G183 -> 97085318 | G50: ='A9-Asset'!H183 -> 97085318 | I50: ='A9-Asset'!I183 -> 40675000 | J50: ='A9-Asset'!J183 -> 39777400 | K50: ='A9-Asset'!K183 -> 39948256
A51: Renewal and Upgrading of Existing Assets | B51: ='A9-Asset'!C40+'A9-Asset'!C75 -> 3875486.32 | C51: ='A9-Asset'!D40+'A9-Asset'!D75 -> 8161826.48 | D51: ='A9-Asset'!E40+'A9-Asset'!E75 -> 19479013.32 | E51: ='A9-Asset'!F40+'A9-Asset'!F75 -> 30881943 | F51: ='A9-Asset'!G40+'A9-Asset'!G75 -> 28681944 | G51: ='A9-Asset'!H40+'A9-Asset'!H75 -> 28681944 | I51: ='A9-Asset'!I40+'A9-Asset'!I75 -> 8995498 | J51: ='A9-Asset'!J40+'A9-Asset'!J75 -> 11301708 | K51: ='A9-Asset'!K40+'A9-Asset'!K75 -> 11732980
A52: Repairs and Maintenance | B52: ='A9-Asset'!C184 -> 0 | C52: ='A9-Asset'!D184 -> 0 | D52: ='A9-Asset'!E184 -> 0 | E52: ='A9-Asset'!F184 -> 0 | F52: ='A9-Asset'!G184 -> 0 | G52: ='A9-Asset'!H184 -> 0 | I52: ='A9-Asset'!J184 -> 10304945 | J52: ='A9-Asset'!K184 -> 10646766 | K52: ='A9-Asset'!L184 -> 0
I53: ='A9-Asset'!I184 -> 10050710
A54: Free services
A55: Cost of Free Basic Services provided | B55: ='A10-SerDel'!C60 -> 0 | C55: ='A10-SerDel'!D60 -> 0 | D55: ='A10-SerDel'!E60 -> 0 | E55: ='A10-SerDel'!F60 -> 0 | F55: ='A10-SerDel'!G60 -> 0 | G55: ='A10-SerDel'!H60 -> 0 | I55: ='A10-SerDel'!I60 -> 0 | J55: ='A10-SerDel'!J60 -> 0 | K55: ='A10-SerDel'!K60 -> 0
A56: Revenue cost of free services provided | B56: ='A10-SerDel'!C79 -> 0 | C56: ='A10-SerDel'!D79 -> 0 | D56: ='A10-SerDel'!E79 -> 0 | E56: ='A10-SerDel'!F79 -> 0 | F56: ='A10-SerDel'!G79 -> 0 | G56: ='A10-SerDel'!H79 -> 0 | I56: ='A10-SerDel'!I79 -> 0 | J56: ='A10-SerDel'!J79 -> 0 | K56: ='A10-SerDel'!K79 -> 0
A57: Households below minimum service level
A58: ='A10-SerDel'!A5 -> Water: | B58: ='A10-SerDel'!C14 -> 54000 | C58: ='A10-SerDel'!D14 -> 16404144 | D58: ='A10-SerDel'!E14 -> 21014400 | E58: ='A10-SerDel'!F14 -> 21634353.09 | F58: ='A10-SerDel'!G14 -> 21634353.09 | G58: ='A10-SerDel'!H14 -> 21634353.09 | I58: ='A10-SerDel'!I14 -> 2800000.134 | J58: ='A10-SerDel'!J14 -> 2928799.74 | K58: ='A10-SerDel'!K14 -> 3063525.286
A59: ='A10-SerDel'!A16 -> Sanitation/sewerage: | B59: ='A10-SerDel'!C26 -> 54000 | C59: ='A10-SerDel'!D26 -> 16404144 | D59: ='A10-SerDel'!E26 -> 21014400 | E59: ='A10-SerDel'!F26 -> 21634353.09 | F59: ='A10-SerDel'!G26 -> 21634353.09 | G59: ='A10-SerDel'!H26 -> 21634353.09 | I59: ='A10-SerDel'!I26 -> 2800000.134 | J59: ='A10-SerDel'!J26 -> 2928799.74 | K59: ='A10-SerDel'!K26 -> 3063525.286
A60: ='A10-SerDel'!A28 -> Energy: | B60: ='A10-SerDel'!C35 -> 54000 | C60: ='A10-SerDel'!D35 -> 16404144 | D60: ='A10-SerDel'!E35 -> 21014400 | E60: ='A10-SerDel'!F35 -> 21634353.09 | F60: ='A10-SerDel'!G35 -> 21634353.09 | G60: ='A10-SerDel'!H35 -> 21634353.09 | I60: ='A10-SerDel'!I35 -> 2800000.134 | J60: ='A10-SerDel'!J35 -> 2928799.74 | K60: ='A10-SerDel'!K35 -> 3063525.286
A61: ='A10-SerDel'!A37 -> Refuse: | B61: ='A10-SerDel'!C45 -> 54000 | C61: ='A10-SerDel'!D45 -> 16404144 | D61: ='A10-SerDel'!E45 -> 21014400 | E61: ='A10-SerDel'!F45 -> 21634353.09 | F61: ='A10-SerDel'!G45 -> 21634353.09 | G61: ='A10-SerDel'!H45 -> 21634353.09 | I61: ='A10-SerDel'!I45 -> 2800000.134 | J61: ='A10-SerDel'!J45 -> 2928799.74 | K61: ='A10-SerDel'!K45 -> 3063525.286

Sheet A2-FinPerf SC
A1: =muni&" - "&Approve3 -> 0 - Table A2 Budgeted Financial Performance (revenue and expenditure by functional classification)
A2: ="Functional Classification "&desc -> Functional Classification Description | B2: =head27 -> Ref | C2: =head1b -> 2019/20 | D2: =head1A -> 2020/21 | E2: =Head1 -> 2021/22 | F2: =Head2 -> Current Year 2022/23 | I2: =Head3 -> 2023/24 Medium Term Revenue & Expenditure Framework
A3: R thousand | B3: 1 | C3: =Head5 -> Audited Outcome | D3: =Head5 -> Audited Outcome | E3: =Head5 -> Audited Outcome | F3: =Head6 -> Original Budget | G3: =Head7 -> Adjusted Budget | H3: =Head8 -> Full Year Forecast | I3: =Head9 -> Budget Year 2023/24 | J3: =Head10 -> Budget Year +1 2024/25 | K3: =Head11 -> Budget Year +2 2025/26
A4: Revenue - Functional
A5: Governance and administration | C5: =SUM(C6:C8) -> 91977632.45 | D5: =SUM(D6:D8) -> 181225552.8 | E5: 121019671.5 | F5: 121457421 | G5: 170164993 | H5: 170164993 | I5: 207921626 | J5: 215810138 | K5: 228036214
A6: Executive and council | C6: =A2A!C6 -> -156010.03 | D6: =A2A!D6 -> 9824.79 | E6: =A2A!E6 -> 304.92 | F6: =A2A!F6 -> 18543724 | G6: =A2A!G6 -> 24940991 | H6: =A2A!H6 -> 24940991 | I6: =A2A!I6 -> 27736259 | J6: =A2A!J6 -> 29461537 | K6: =A2A!K6 -> 31294304
A7: Finance and administration | C7: =A2A!C9 -> 92133642.48 | D7: =A2A!D9 -> 181215728 | E7: =A2A!E9 -> 121019366.6 | F7: =A2A!F9 -> 101239281 | G7: =A2A!G9 -> 142991230 | H7: =A2A!H9 -> 142991230 | I7: =A2A!I9 -> 177847036 | J7: =A2A!J9 -> 183858279 | K7: =A2A!K9 -> 194089717
A8: Internal audit | C8: =A2A!C23 -> 0 | D8: =A2A!D23 -> 0 | E8: =A2A!E23 -> 0 | F8: =A2A!F23 -> 1674416 | G8: =A2A!G23 -> 2232772 | H8: =A2A!H23 -> 2232772 | I8: =A2A!I23 -> 2338331 | J8: =A2A!J23 -> 2490322 | K8: =A2A!K23 -> 2652193
A9: Community and public safety | C9: =SUM(C10:C14) -> 377006.15 | D9: =SUM(D10:D14) -> 220544.2 | E9: 223237.23 | F9: 36063960 | G9: 35921445 | H9: 35921445 | I9: 15335458 | J9: 16562538 | K9: 17336812
A10: Community and social services | C10: =A2A!C26 -> 179000 | D10: =A2A!D26 -> 0 | E10: =A2A!E26 -> 0 | F10: =A2A!F26 -> 0 | G10: =A2A!G26 -> 0 | H10: =A2A!H26 -> 0 | I10: =A2A!I26 -> 4446319 | J10: =A2A!J26 -> 4735330 | K10: =A2A!K26 -> 5043126
A11: Sport and recreation | C11: =A2A!C48 -> 198006.15 | D11: =A2A!D48 -> 220544.2 | E11: =A2A!E48 -> 223237.23 | F11: =A2A!F48 -> 32467887 | G11: =A2A!G48 -> 32390000 | H11: =A2A!H48 -> 32390000 | I11: =A2A!I48 -> 6889139 | J11: =A2A!J48 -> 7327208 | K11: =A2A!K48 -> 7793686
A12: Public safety | C12: =A2A!C54 -> 0 | D12: =A2A!D54 -> 0 | E12: =A2A!E54 -> 0 | F12: =A2A!F54 -> 0 | G12: =A2A!G54 -> 0 | H12: =A2A!H54 -> 0 | I12: =A2A!I54 -> 0 | J12: =A2A!J54 -> 0 | K12: =A2A!K54 -> 0
A13: Housing | C13: =A2A!C63 -> 0 | D13: =A2A!D63 -> 0 | E13: =A2A!E63 -> 0 | F13: =A2A!F63 -> 3596073 | G13: =A2A!G63 -> 3531445 | H13: =A2A!H63 -> 3531445 | I13: =A2A!I63 -> 4000000 | J13: =A2A!J63 -> 4500000 | K13: =A2A!K63 -> 4500000
A14: Health | C14: =A2A!C66 -> 0 | D14: =A2A!D66 -> 0 | E14: =A2A!E66 -> 0 | F14: =A2A!F66 -> 0 | G14: =A2A!G66 -> 0 | H14: =A2A!H66 -> 0 | I14: =A2A!I66 -> 0 | J14: =A2A!J66 -> 0 | K14: =A2A!K66 -> 0
A15: Economic and environmental services | C15: =SUM(C16:C18) -> 13237946.34 | D15: =SUM(D16:D18) -> 26600754.94 | E15: 18584370.23 | F15: 9182375 | G15: 9555674 | H15: 9555674 | I15: 14274931 | J15: 15131426 | K15: 16039311
A16: Planning and development | C16: =A2A!C75 -> 13229796.34 | D16: =A2A!D75 -> 4208240 | E16: =A2A!E75 -> 0 | F16: =A2A!F75 -> 7151927 | G16: =A2A!G75 -> 6609381 | H16: =A2A!H75 -> 6609381 | I16: =A2A!I75 -> 3465530 | J16: =A2A!J75 -> 3673462 | K16: =A2A!K75 -> 3893869
A17: Road transport | C17: =A2A!C86 -> 8150 | D17: =A2A!D86 -> 22392514.94 | E17: =A2A!E86 -> 18584370.23 | F17: =A2A!F86 -> 2030448 | G17: =A2A!G86 -> 2946293 | H17: =A2A!H86 -> 2946293 | I17: =A2A!I86 -> 10809401 | J17: =A2A!J86 -> 11457964 | K17: =A2A!K86 -> 12145442
A18: Environmental protection | C18: =A2A!C91 -> 0 | D18: =A2A!D91 -> 0 | E18: =A2A!E91 -> 0 | F18: =A2A!F91 -> 0 | G18: =A2A!G91 -> 0 | H18: =A2A!H91 -> 0 | I18: =A2A!I91 -> 0 | J18: =A2A!J91 -> 0 | K18: =A2A!K91 -> 0
A19: Trading services | C19: =SUM(C20:C23) -> 147317060.5 | D19: =SUM(D20:D23) -> 136272527.4 | E19: 138851504.5 | F19: 229981683 | G19: 190156255 | H19: 190156255 | I19: 228239133 | J19: =SUM(J20:J23) -> 208433600 | K19: 218738201
A20: Energy sources | C20: =A2A!C99 -> 46969769.93 | D20: =A2A!D99 -> 1170244.24 | E20: =A2A!E99 -> 49808302.49 | F20: =A2A!F99 -> 63825530 | G20: =A2A!G99 -> 47838163 | H20: =A2A!H99 -> 47838163 | I20: =A2A!I99 -> 81537634 | J20: =A2A!J99 -> 89400000 | K20: =A2A!K99 -> 94500000
A21: Water management | C21: =A2A!C103 -> 50867072.5 | D21: =A2A!D103 -> 70459649 | E21: =A2A!E103 -> 30302842.88 | F21: =A2A!F103 -> 60165296 | G21: =A2A!G103 -> 40500361 | H21: =A2A!H103 -> 40500361 | I21: =A2A!I103 -> 61884927 | J21: =A2A!J103 -> 39100000 | K21: =A2A!K103 -> 41300000
A22: Waste water management | C22: =A2A!C107 -> 28712306.59 | D22: =A2A!D107 -> 38150279.35 | E22: =A2A!E107 -> 40418642.13 | F22: =A2A!F107 -> 63128350 | G22: =A2A!G107 -> 60561736 | H22: =A2A!H107 -> 60561736 | I22: =A2A!I107 -> 43097789 | J22: =A2A!J107 -> 39930040 | K22: =A2A!K107 -> 40350182
A23: Waste management | C23: =A2A!C112 -> 20767911.49 | D23: =A2A!D112 -> 26492354.79 | E23: =A2A!E112 -> 18321717.01 | F23: =A2A!F112 -> 42862507 | G23: =A2A!G112 -> 41255995 | H23: =A2A!H112 -> 41255995 | I23: =A2A!I112 -> 41718783 | J23: =A2A!J112 -> 40003560 | K23: =A2A!K112 -> 42588019
A24: Other | B24: 4 | C24: =A2A!C117 -> 0 | D24: =A2A!D117 -> 0 | E24: =A2A!E117 -> 0 | F24: =A2A!F117 -> 0 | G24: =A2A!G117 -> 0 | H24: =A2A!H117 -> 0 | I24: =A2A!I117 -> 0 | J24: =A2A!J117 -> 0 | K24: =A2A!K117 -> 0
A25: ="Total "&A4 -> Total Revenue - Functional | B25: 2 | C25: =C5+C9+C15+C19+C24 -> 252909645.5 | D25: =D5+D9+D15+D19+D24 -> 344319379.3 | E25: =E5+E9+E15+E19+E24 -> 278678783.5 | F25: 396685439 | G25: 405798367 | H25: 405798367 | I25: =I5+I9+I15+I19+I24 -> 465771148 | J25: 455937702 | K25: 480150538
A27: Expenditure - Functional
A28: Governance and administration | C28: =SUM(C29:C31) -> 173154557.7 | D28: =SUM(D29:D31) -> 126255225 | E28: 221104360.2 | F28: 150942968 | G28: 108126052 | H28: 108126052 | I28: 108440874 | J28: 114668673 | K28: 120270598
A29: Executive and council | C29: =A2A!C128 -> 17009231.16 | D29: =A2A!D128 -> 17811385.83 | E29: =A2A!E128 -> 20334956.82 | F29: =A2A!F128 -> 17300651 | G29: =A2A!G128 -> 18514611 | H29: =A2A!H128 -> 18514611 | I29: =A2A!I128 -> 28107475 | J29: =A2A!J128 -> 30055862 | K29: =A2A!K128 -> 31382390
A30: Finance and administration | C30: =A2A!C131 -> 152443244.2 | D30: =A2A!D131 -> 104817600.6 | E30: =A2A!E131 -> 199003535.5 | F30: =A2A!F131 -> 131745687 | G30: =A2A!G131 -> 87714811 | H30: =A2A!H131 -> 87714811 | I30: =A2A!I131 -> 76973131 | J30: =A2A!J131 -> 81124455 | K30: =A2A!K131 -> 85250224
A31: Internal audit | C31: =A2A!C145 -> 3702082.31 | D31: =A2A!D145 -> 3626238.5 | E31: =A2A!E145 -> 1765867.88 | F31: =A2A!F145 -> 1896630 | G31: =A2A!G145 -> 1896630 | H31: =A2A!H145 -> 1896630 | I31: =A2A!I145 -> 3360268 | J31: =A2A!J145 -> 3488356 | K31: =A2A!K145 -> 3637984
A32: Community and public safety | C32: =SUM(C33:C37) -> 15326791 | D32: =SUM(D33:D37) -> 19617838.12 | E32: 19730947.72 | F32: 18639032 | G32: 32157157 | H32: 32157157 | I32: 26108219 | J32: 26428744 | K32: 27491647
A33: Community and social services | C33: =A2A!C148 -> 649158.6 | D33: =A2A!D148 -> 0 | E33: =A2A!E148 -> 0 | F33: =A2A!F148 -> 0 | G33: =A2A!G148 -> 16714167 | H33: =A2A!H148 -> 16714167 | I33: =A2A!I148 -> 9649660 | J33: =A2A!J148 -> 9191342 | K33: =A2A!K148 -> 9306159
A34: Sport and recreation | C34: =A2A!C170 -> 328755.2 | D34: =A2A!D170 -> 484279.54 | E34: =A2A!E170 -> 6449366.93 | F34: =A2A!F170 -> 6849957 | G34: =A2A!G170 -> 5115709 | H34: =A2A!H170 -> 5115709 | I34: =A2A!I170 -> 6197874 | J34: =A2A!J170 -> 6573059 | K34: =A2A!K170 -> 6971152
A35: Public safety | C35: =A2A!C176 -> 5721287.27 | D35: =A2A!D176 -> 10289838.7 | E35: =A2A!E176 -> 10156146.2 | F35: =A2A!F176 -> 6786200 | G35: =A2A!G176 -> 6715185 | H35: =A2A!H176 -> 6715185 | I35: =A2A!I176 -> 6700840 | J35: =A2A!J176 -> 6887976 | K35: =A2A!K176 -> 7208257
A36: Housing | C36: =A2A!C185 -> 8627589.93 | D36: =A2A!D185 -> 8843719.88 | E36: =A2A!E185 -> 3125434.59 | F36: =A2A!F185 -> 5002875 | G36: =A2A!G185 -> 3612096 | H36: =A2A!H185 -> 3612096 | I36: =A2A!I185 -> 3559845 | J36: =A2A!J185 -> 3776367 | K36: =A2A!K185 -> 4006079
A37: Health | C37: =A2A!C188 -> 0 | D37: =A2A!D188 -> 0 | E37: =A2A!E188 -> 0 | F37: =A2A!F188 -> 0 | G37: =A2A!G188 -> 0 | H37: =A2A!H188 -> 0 | I37: =A2A!I188 -> 0 | J37: =A2A!J188 -> 0 | K37: =A2A!K188 -> 0
A38: Economic and environmental services | C38: =SUM(C39:C41) -> 19669737.71 | D38: =SUM(D39:D41) -> 9691284.57 | E38: 19100938.7 | F38: 18725174 | G38: 33931185 | H38: 33931185 | I38: 74750065 | J38: 78301640 | K38: 82224509
A39: Planning and development | C39: =A2A!C197 -> 436756.5 | D39: =A2A!D197 -> 48886.08 | E39: =A2A!E197 -> 7103345.3 | F39: =A2A!F197 -> 6130594 | G39: =A2A!G197 -> 5292389 | H39: =A2A!H197 -> 5292389 | I39: =A2A!I197 -> 6353562 | J39: =A2A!J197 -> 6702271 | K39: =A2A!K197 -> 7067098
A40: Road transport | C40: =A2A!C208 -> 19232981.21 | D40: =A2A!D208 -> 9642398.49 | E40: =A2A!E208 -> 11997593.4 | F40: =A2A!F208 -> 12594580 | G40: =A2A!G208 -> 28638796 | H40: =A2A!H208 -> 28638796 | I40: =A2A!I208 -> 68396503 | J40: =A2A!J208 -> 71599369 | K40: =A2A!K208 -> 75157411
A41: Environmental protection | C41: =A2A!C213 -> 0 | D41: =A2A!D213 -> 0 | E41: =A2A!E213 -> 0 | F41: =A2A!F213 -> 0 | G41: =A2A!G213 -> 0 | H41: =A2A!H213 -> 0 | I41: =A2A!I213 -> 0 | J41: =A2A!J213 -> 0 | K41: =A2A!K213 -> 0
A42: Trading services | C42: =SUM(C43:C46) -> 257403697.9 | D42: =SUM(D43:D46) -> 219563705.5 | E42: 115392549.7 | F42: =SUM(F43:F46) -> 149872715 | G42: 265383531 | H42: 265383531 | I42: 179944405 | J42: 191465870 | K42: =SUM(K43:K46) -> 200225008
A43: Energy sources | C43: =A2A!C221 -> 56549074.16 | D43: =A2A!D221 -> 72458070.17 | E43: =A2A!E221 -> 59503540.63 | F43: =A2A!F221 -> 71850310 | G43: =A2A!G221 -> 110327967 | H43: =A2A!H221 -> 110327967 | I43: =A2A!I221 -> 90574560 | J43: =A2A!J221 -> 97765808 | K43: =A2A!K221 -> 102188368
A44: Water management | C44: =A2A!C225 -> 161718542.3 | D44: =A2A!D225 -> 114023463.8 | E44: =A2A!E225 -> 24621080.91 | F44: =A2A!F225 -> 34499954 | G44: =A2A!G225 -> 71484006 | H44: =A2A!H225 -> 71484006 | I44: =A2A!I225 -> 35299365 | J44: =A2A!J225 -> 37248215 | K44: =A2A!K225 -> 39093638
A45: Waste water management | C45: =A2A!C229 -> 33243732.57 | D45: =A2A!D229 -> 30579697.21 | E45: =A2A!E229 -> 13476284.33 | F45: =A2A!F229 -> 25843145 | G45: =A2A!G229 -> 56749069 | H45: =A2A!H229 -> 56749069 | I45: =A2A!I229 -> 29412205 | J45: =A2A!J229 -> 30483894 | K45: =A2A!K229 -> 31784400
A46: Waste management | C46: =A2A!C234 -> 5892348.81 | D46: =A2A!D234 -> 2502474.26 | E46: =A2A!E234 -> 17791643.82 | F46: =A2A!F234 -> 17679306 | G46: =A2A!G234 -> 26822489 | H46: =A2A!H234 -> 26822489 | I46: =A2A!I234 -> 24658275 | J46: =A2A!J234 -> 25967953 | K46: =A2A!K234 -> 27158602
A47: Other | B47: 4 | C47: =A2A!C239 -> 0 | D47: =A2A!D239 -> 0 | E47: =A2A!E239 -> 0 | F47: =A2A!F239 -> 0 | G47: =A2A!G239 -> 0 | H47: =A2A!H239 -> 0 | I47: =A2A!I239 -> 0 | J47: =A2A!J239 -> 0 | K47: =A2A!K239 -> 0
A48: ="Total "&A27 -> Total Expenditure - Functional | B48: 3 | C48: =C28+C32+C38+C42+C47 -> 465554784.3 | D48: =D28+D32+D38+D42+D47 -> 375128053.1 | E48: =E28+E32+E38+E42+E47 -> 375328796.3 | F48: =F28+F32+F38+F42+F47 -> 338179889 | G48: 439597925 | H48: 439597925 | I48: 389243563 | J48: 410864927 | K48: 430211762
A49: =result -> Surplus/(Deficit) for the year | C49: =C25-C48 -> -212645138.8 | D49: =D25-D48 -> -30808673.86 | E49: -96650012.83 | F49: 58505550 | G49: -33799558 | H49: -33799558 | I49: 76527585 | J49: 45072775 | K49: 49938776
A50: =head27a -> References
A51: 1. Government Finance Statistics Functions and Sub-functions are standardised to assist the compilation of national and international accounts for comparison purposes
A52: 2. Total Revenue by functional classification must reconcile to Total Operating Revenue shown in Budgeted Financial Performance (revenue and expenditure)
A53: 3. Total Expenditure by Functional Classification must reconcile to Total Operating Expenditure shown in Budgeted Financial Performance (revenue and expenditure)
A54: 4. All amounts must be classified under a functional classification . The GFS function 'Other' is only for Abbatoirs, Air Transport, Forestry, Licensing and Regulation, Markets and Tourism - and if used must be supported by footnotes. Nothing else may be placed under 'Other'. Assign associate share to relevant classification.

Sheet A2A
A1: =muni&" - "&Approve3 -> 0 - Table A2 Budgeted Financial Performance (revenue and expenditure by functional classification)
A2: ="Functional Classification "&desc -> Functional Classification Description | B2: =head27 -> Ref | C2: =head1b -> 2019/20 | D2: =head1A -> 2020/21 | E2: =Head1 -> 2021/22 | F2: =Head2 -> Current Year 2022/23 | I2: =Head3 -> 2023/24 Medium Term Revenue & Expenditure Framework
A3: R thousand | B3: 1 | C3: =Head5 -> Audited Outcome | D3: =Head5 -> Audited Outcome | E3: =Head5 -> Audited Outcome | F3: =Head6 -> Original Budget | G3: =Head7 -> Adjusted Budget | H3: =Head8 -> Full Year Forecast | I3: =Head9 -> Budget Year 2023/24 | J3: =Head10 -> Budget Year +1 2024/25 | K3: =Head11 -> Budget Year +2 2025/26
A4: Revenue - Functional
A5: Municipal governance and administration | C5: =C6+C9+C23 -> 91977632.45 | D5: 181225552.8 | E5: 121019671.5 | F5: 121457421 | G5: 170164993 | H5: 170164993 | I5: 207921626 | J5: 215810138 | K5: 228036214
A6: Executive and council | C6: =SUM(C7:C8) -> -156010.03 | D6: =SUM(D7:D8) -> 9824.79 | E6: 304.92 | F6: 18543724 | G6: 24940991 | H6: 24940991 | I6: 27736259 | J6: 29461537 | K6: 31294304
A7: Mayor and Council | C7: -156010.03 | D7: 9824.79 | E7: 304.92 | F7: 7272218 | G7: 10316425 | H7: 10316425 | I7: 12963599 | J7: 13741414 | K7: 14565899
A8: Municipal Manager, Town Secretary and Chief Executive | C8: 0 | D8: 0 | E8: 0 | F8: 11271506 | G8: 14624566 | H8: 14624566 | I8: 14772660 | J8: 15720123 | K8: 16728405
A9: Finance and administration | C9: =SUM(C10:C22) -> 92133642.48 | D9: 181215728 | E9: 121019366.6 | F9: 101239281 | G9: 142991230 | H9: 142991230 | I9: 177847036 | J9: 183858279 | K9: 194089717
A10: Administrative and Corporate Support | C10: 84859.66 | D10: 102778203.7 | E10: 91973299.14 | F10: 22018894 | G10: 21579944 | H10: 21579944 | I10: 10488977 | J10: 11119076 | K10: 11785921
A11: Asset Management | C11: 0 | D11: 0 | E11: 0 | F11: 0 | G11: 0 | H11: 0 | I11: 0 | J11: 0 | K11: 0
A12: Finance | C12: 89078816.44 | D12: 73663760.05 | E12: 26237105.74 | F12: 74613671 | G12: 117876169 | H12: 117876169 | I12: 163455991 | J12: 168551573 | K12: 177954730
A13: Fleet Management | C13: 0 | D13: 0 | E13: 0 | F13: 0 | G13: 0 | H13: 0 | I13: 0 | J13: 0 | K13: 0
A14: Human Resources | C14: 0 | D14: 0 | E14: 0 | F14: 1246970 | G14: 1296179 | H14: 1296179 | I14: 1349302 | J14: 1430260 | K14: 1516075
A15: Information Technology | C15: 0 | D15: 0 | E15: 0 | F15: 0 | G15: 0 | H15: 0 | I15: 0 | J15: 0 | K15: 0
A16: Legal Services | C16: 0 | D16: 0 | E16: 0 | F16: 0 | G16: 0 | H16: 0 | I16: 0 | J16: 0 | K16: 0
A17: Marketing, Customer Relations, Publicity and Media Co-ordination | C17: 0 | D17: 0 | E17: 0 | F17: 0 | G17: 0 | H17: 0 | I17: 0 | J17: 0 | K17: 0
A18: Property Services | C18: 2969966.38 | D18: 4773764.23 | E18: 2808961.71 | F18: 3359746 | G18: 2238938 | H18: 2238938 | I18: 2552766 | J18: 2757370 | K18: 2832991
A19: Risk Management | C19: 0 | D19: 0 | E19: 0 | F19: 0 | G19: 0 | H19: 0 | I19: 0 | J19: 0 | K19: 0
A20: Security Services | C20: 0 | D20: 0 | E20: 0 | F20: 0 | G20: 0 | H20: 0 | I20: 0 | J20: 0 | K20: 0
A21: Supply Chain Management | C21: 0 | D21: 0 | E21: 0 | F21: 0 | G21: 0 | H21: 0 | I21: 0 | J21: 0 | K21: 0
A22: Valuation Service | C22: 0 | D22: 0 | E22: 0 | F22: 0 | G22: 0 | H22: 0 | I22: 0 | J22: 0 | K22: 0
A23: Internal audit | C23: =SUM(C24:C24) -> 0 | D23: 0 | E23: 0 | F23: 1674416 | G23: 2232772 | H23: 2232772 | I23: 2338331 | J23: 2490322 | K23: 2652193
A24: Governance Function | C24: 0 | D24: 0 | E24: 0 | F24: 1674416 | G24: 2232772 | H24: 2232772 | I24: 2338331 | J24: 2490322 | K24: 2652193
A25: Community and public safety | C25: =C26+C48+C54+C63+C66 -> 377006.15 | D25: 220544.2 | E25: 223237.23 | F25: 36063960 | G25: 35921445 | H25: 35921445 | I25: 15335458 | J25: 16562538 | K25: 17336812
A26: Community and social services | C26: =SUM(C27:C47) -> 179000 | D26: =SUM(D27:D47) -> 0 | E26: 0 | F26: 0 | G26: 0 | H26: 0 | I26: 4446319 | J26: 4735330 | K26: 5043126
A27: Aged Care | C27: 0 | D27: 0 | E27: 0 | F27: 0 | G27: 0 | H27: 0 | I27: 0 | J27: 0 | K27: 0
A28: Agricultural | C28: 0 | D28: 0 | E28: 0 | F28: 0 | G28: 0 | H28: 0 | I28: 0 | J28: 0 | K28: 0
A29: Animal Care and Diseases | C29: 0 | D29: 0 | E29: 0 | F29: 0 | G29: 0 | H29: 0 | I29: 0 | J29: 0 | K29: 0
A30: Cemeteries, Funeral Parlours and Crematoriums | C30: 0 | D30: 0 | E30: 0 | F30: 0 | G30: 0 | H30: 0 | I30: 0 | J30: 0 | K30: 0
A31: Child Care Facilities | C31: 0 | D31: 0 | E31: 0 | F31: 0 | G31: 0 | H31: 0 | I31: 0 | J31: 0 | K31: 0
A32: Community Halls and Facilities | C32: 0 | D32: 0 | E32: 0 | F32: 0 | G32: 0 | H32: 0 | I32: 4446319 | J32: 4735330 | K32: 5043126
A33: Consumer Protection | C33: 0 | D33: 0 | E33: 0 | F33: 0 | G33: 0 | H33: 0 | I33: 0 | J33: 0 | K33: 0
A34: Cultural Matters | C34: 0 | D34: 0 | E34: 0 | F34: 0 | G34: 0 | H34: 0 | I34: 0 | J34: 0 | K34: 0
A35: Disaster Management | C35: 179000 | D35: 0 | E35: 0 | F35: 0 | G35: 0 | H35: 0 | I35: 0 | J35: 0 | K35: 0
A36: Education | C36: 0 | D36: 0 | E36: 0 | F36: 0 | G36: 0 | H36: 0 | I36: 0 | J36: 0 | K36: 0
A37: Indigenous and Customary Law | C37: 0 | D37: 0 | E37: 0 | F37: 0 | G37: 0 | H37: 0 | I37: 0 | J37: 0 | K37: 0
A38: Industrial Promotion | C38: 0 | D38: 0 | E38: 0 | F38: 0 | G38: 0 | H38: 0 | I38: 0 | J38: 0 | K38: 0
A39: Language Policy | C39: 0 | D39: 0 | E39: 0 | F39: 0 | G39: 0 | H39: 0 | I39: 0 | J39: 0 | K39: 0
A40: Libraries and Archives | C40: 0 | D40: 0 | E40: 0 | F40: 0 | G40: 0 | H40: 0 | I40: 0 | J40: 0 | K40: 0
A41: Literacy Programmes | C41: 0 | D41: 0 | E41: 0 | F41: 0 | G41: 0 | H41: 0 | I41: 0 | J41: 0 | K41: 0
A42: Media Services | C42: 0 | D42: 0 | E42: 0 | F42: 0 | G42: 0 | H42: 0 | I42: 0 | J42: 0 | K42: 0
A43: Museums and Art Galleries | C43: 0 | D43: 0 | E43: 0 | F43: 0 | G43: 0 | H43: 0 | I43: 0 | J43: 0 | K43: 0
A44: Population Development | C44: 0 | D44: 0 | E44: 0 | F44: 0 | G44: 0 | H44: 0 | I44: 0 | J44: 0 | K44: 0
A45: Provincial Cultural Matters | C45: 0 | D45: 0 | E45: 0 | F45: 0 | G45: 0 | H45: 0 | I45: 0 | J45: 0 | K45: 0
A46: Theatres | C46: 0 | D46: 0 | E46: 0 | F46: 0 | G46: 0 | H46: 0 | I46: 0 | J46: 0 | K46: 0
A47: Zoo's | C47: 0 | D47: 0 | E47: 0 | F47: 0 | G47: 0 | H47: 0 | I47: 0 | J47: 0 | K47: 0
A48: Sport and recreation | C48: =SUM(C49:C53) -> 198006.15 | D48: =SUM(D49:D53) -> 220544.2 | E48: 223237.23 | F48: 32467887 | G48: 32390000 | H48: 32390000 | I48: 6889139 | J48: 7327208 | K48: 7793686
A49: Beaches and Jetties | C49: 0 | D49: 0 | E49: 0 | F49: 0 | G49: 0 | H49: 0 | I49: 0 | J49: 0 | K49: 0
A50: Casinos, Racing, Gambling, Wagering | C50: 0 | D50: 0 | E50: 0 | F50: 0 | G50: 0 | H50: 0 | I50: 0 | J50: 0 | K50: 0
A51: Community Parks (including Nurseries) | C51: 198006.15 | D51: 220544.2 | E51: 223237.23 | F51: 32467887 | G51: 32390000 | H51: 32390000 | I51: 6889139 | J51: 7327208 | K51: 7793686
A52: Recreational Facilities | C52: 0 | D52: 0 | E52: 0 | F52: 0 | G52: 0 | H52: 0 | I52: 0 | J52: 0 | K52: 0
A53: Sports Grounds and Stadiums | C53: 0 | D53: 0 | E53: 0 | F53: 0 | G53: 0 | H53: 0 | I53: 0 | J53: 0 | K53: 0
A54: Public safety | C54: =SUM(C55:C62) -> 0 | D54: 0 | E54: 0 | F54: 0 | G54: 0 | H54: 0 | I54: 0 | J54: 0 | K54: 0
A55: Civil Defence | C55: 0 | D55: 0 | E55: 0 | F55: 0 | G55: 0 | H55: 0 | I55: 0 | J55: 0 | K55: 0
A56: Cleansing | C56: 0 | D56: 0 | E56: 0 | F56: 0 | G56: 0 | H56: 0 | I56: 0 | J56: 0 | K56: 0
A57: Control of Public Nuisances | C57: 0 | D57: 0 | E57: 0 | F57: 0 | G57: 0 | H57: 0 | I57: 0 | J57: 0 | K57: 0
A58: Fencing and Fences | C58: 0 | D58: 0 | E58: 0 | F58: 0 | G58: 0 | H58: 0 | I58: 0 | J58: 0 | K58: 0
A59: Fire Fighting and Protection | C59: 0 | D59: 0 | E59: 0 | F59: 0 | G59: 0 | H59: 0 | I59: 0 | J59: 0 | K59: 0
A60: Licensing and Control of Animals | C60: 0 | D60: 0 | E60: 0 | F60: 0 | G60: 0 | H60: 0 | I60: 0 | J60: 0 | K60: 0
A61: Police Forces, Traffic and Street Parking Control | C61: 0 | D61: 0 | E61: 0 | F61: 0 | G61: 0 | H61: 0 | I61: 0 | J61: 0 | K61: 0
A62: Pounds | C62: 0 | D62: 0 | E62: 0 | F62: 0 | G62: 0 | H62: 0 | I62: 0 | J62: 0 | K62: 0
A63: Housing | C63: =SUM(C64:C65) -> 0 | D63: =SUM(D64:D65) -> 0 | E63: 0 | F63: 3596073 | G63: 3531445 | H63: 3531445 | I63: 4000000 | J63: 4500000 | K63: 4500000
A64: Housing | C64: 0 | D64: 0 | E64: 0 | F64: 3596073 | G64: 3531445 | H64: 3531445 | I64: 4000000 | J64: 4500000 | K64: 4500000
A65: Informal Settlements | C65: 0 | D65: 0 | E65: 0 | F65: 0 | G65: 0 | H65: 0 | I65: 0 | J65: 0 | K65: 0
A66: Health | C66: =SUM(C67:C73) -> 0 | D66: =SUM(D67:D73) -> 0 | E66: 0 | F66: 0 | G66: 0 | H66: 0 | I66: 0 | J66: 0 | K66: 0
A67: Ambulance | C67: 0 | D67: 0 | E67: 0 | F67: 0 | G67: 0 | H67: 0 | I67: 0 | J67: 0 | K67: 0
A68: Health Services | C68: 0 | D68: 0 | E68: 0 | F68: 0 | G68: 0 | H68: 0 | I68: 0 | J68: 0 | K68: 0
A69: Laboratory Services | C69: 0 | D69: 0 | E69: 0 | F69: 0 | G69: 0 | H69: 0 | I69: 0 | J69: 0 | K69: 0
A70: Food Control | C70: 0 | D70: 0 | E70: 0 | F70: 0 | G70: 0 | H70: 0 | I70: 0 | J70: 0 | K70: 0
A71: Health Surveillance and Prevention of Communicable Diseases including immunizations | C71: 0 | D71: 0 | E71: 0 | F71: 0 | G71: 0 | H71: 0 | I71: 0 | J71: 0 | K71: 0
A72: Vector Control | C72: 0 | D72: 0 | E72: 0 | F72: 0 | G72: 0 | H72: 0 | I72: 0 | J72: 0 | K72: 0
A73: Chemical Safety | C73: 0 | D73: 0 | E73: 0 | F73: 0 | G73: 0 | H73: 0 | I73: 0 | J73: 0 | K73: 0
A74: Economic and environmental services | C74: =C75+C86+C91 -> 13237946.34 | D74: 26600754.94 | E74: 18584370.23 | F74: 9182375 | G74: 9555674 | H74: 9555674 | I74: 14274931 | J74: 15131426 | K74: 16039311
A75: Planning and development | C75: =SUM(C76:C85) -> 13229796.34 | D75: =SUM(D76:D85) -> 4208240 | E75: 0 | F75: 7151927 | G75: 6609381 | H75: 6609381 | I75: 3465530 | J75: 3673462 | K75: 3893869
A76: Billboards | C76: 0 | D76: 0 | E76: 0 | F76: 0 | G76: 0 | H76: 0 | I76: 0 | J76: 0 | K76: 0
A77: Corporate Wide Strategic Planning (IDPs, LEDs) | C77: 0 | D77: 0 | E77: 0 | F77: 1204064 | G77: 1221634 | H77: 1221634 | I77: 1041044 | J77: 1103507 | K77: 1169717
A78: Central City Improvement District | C78: 0 | D78: 0 | E78: 0 | F78: 0 | G78: 0 | H78: 0 | I78: 0 | J78: 0 | K78: 0
A79: Development Facilitation | C79: 0 | D79: 0 | E79: 0 | F79: 0 | G79: 0 | H79: 0 | I79: 0 | J79: 0 | K79: 0
A80: Economic Development/Planning | C80: 0 | D80: 0 | E80: 0 | F80: 2847863 | G80: 2287747 | H80: 2287747 | I80: 2424486 | J80: 2569955 | K80: 2724152
A81: Regional Planning and Development | C81: 0 | D81: 0 | E81: 0 | F81: 0 | G81: 0 | H81: 0 | I81: 0 | J81: 0 | K81: 0
A82: Town Planning, Building Regulations and Enforcement, and City Engineer | C82: 0 | D82: 0 | E82: 0 | F82: 0 | G82: 0 | H82: 0 | I82: 0 | J82: 0 | K82: 0
A83: Project Management Unit | C83: 13229796.34 | D83: 4208240 | E83: 0 | F83: 3100000 | G83: 3100000 | H83: 3100000 | I83: 0 | J83: 0 | K83: 0
A84: Provincial Planning | C84: 0 | D84: 0 | E84: 0 | F84: 0 | G84: 0 | H84: 0 | I84: 0 | J84: 0 | K84: 0
A85: Support to Local Municipalities | C85: 0 | D85: 0 | E85: 0 | F85: 0 | G85: 0 | H85: 0 | I85: 0 | J85: 0 | K85: 0
A86: Road transport | C86: =SUM(C87:C90) -> 8150 | D86: 22392514.94 | E86: 18584370.23 | F86: 2030448 | G86: 2946293 | H86: 2946293 | I86: 10809401 | J86: 11457964 | K86: 12145442
A87: Public Transport | C87: 0 | D87: 0 | E87: 0 | F87: 0 | G87: 0 | H87: 0 | I87: 0 | J87: 0 | K87: 0
A88: Road and Traffic Regulation | C88: 0 | D88: 0 | E88: 0 | F88: 0 | G88: 0 | H88: 0 | I88: 0 | J88: 0 | K88: 0
A89: Roads | C89: 8150 | D89: 22392514.94 | E89: 18584370.23 | F89: 2030448 | G89: 2946293 | H89: 2946293 | I89: 10809401 | J89: 11457964 | K89: 12145442
A90: Taxi Ranks | C90: 0 | D90: 0 | E90: 0 | F90: 0 | G90: 0 | H90: 0 | I90: 0 | J90: 0 | K90: 0
A91: Environmental protection | C91: =SUM(C92:C97) -> 0 | D91: =SUM(D92:D97) -> 0 | E91: 0 | F91: 0 | G91: 0 | H91: 0 | I91: 0 | J91: 0 | K91: 0
A92: Biodiversity and Landscape | C92: 0 | D92: 0 | E92: 0 | F92: 0 | G92: 0 | H92: 0 | I92: 0 | J92: 0 | K92: 0
A93: Coastal Protection | C93: 0 | D93: 0 | E93: 0 | F93: 0 | G93: 0 | H93: 0 | I93: 0 | J93: 0 | K93: 0
A94: Indigenous Forests | C94: 0 | D94: 0 | E94: 0 | F94: 0 | G94: 0 | H94: 0 | I94: 0 | J94: 0 | K94: 0
A95: Nature Conservation | C95: 0 | D95: 0 | E95: 0 | F95: 0 | G95: 0 | H95: 0 | I95: 0 | J95: 0 | K95: 0
A96: Pollution Control | C96: 0 | D96: 0 | E96: 0 | F96: 0 | G96: 0 | H96: 0 | I96: 0 | J96: 0 | K96: 0
A97: Soil Conservation | C97: 0 | D97: 0 | E97: 0 | F97: 0 | G97: 0 | H97: 0 | I97: 0 | J97: 0 | K97: 0
A98: Trading services | C98: =C99+C103+C107+C112 -> 147317060.5 | D98: =D99+D103+D107+D112 -> 136272527.4 | E98: 138851504.5 | F98: 229981683 | G98: 190156255 | H98: 190156255 | I98: 228239133 | J98: 208433600 | K98: =K99+K103+K107+K112 -> 218738201
A99: Energy sources | C99: =SUM(C100:C102) -> 46969769.93 | D99: =SUM(D100:D102) -> 1170244.24 | E99: 49808302.49 | F99: 63825530 | G99: 47838163 | H99: 47838163 | I99: 81537634 | J99: 89400000 | K99: 94500000
A100: Electricity | C100: 46969769.93 | D100: 1170244.24 | E100: 49808302.49 | F100: 63825530 | G100: 47838163 | H100: 47838163 | I100: 81537634 | J100: 89400000 | K100: 94500000
A101: Street Lighting and Signal Systems | C101: 0 | D101: 0 | E101: 0 | F101: 0 | G101: 0 | H101: 0 | I101: 0 | J101: 0 | K101: 0
A102: Nonelectric Energy | C102: 0 | D102: 0 | E102: 0 | F102: 0 | G102: 0 | H102: 0 | I102: 0 | J102: 0 | K102: 0
A103: Water management | C103: =SUM(C104:C106) -> 50867072.5 | D103: =SUM(D104:D106) -> 70459649 | E103: 30302842.88 | F103: 60165296 | G103: 40500361 | H103: 40500361 | I103: 61884927 | J103: 39100000 | K103: 41300000
A104: Water Treatment | C104: 27119000.15 | D104: 32154581.99 | E104: 14636611.97 | F104: 60165294 | G104: 40500359 | H104: 40500359 | I104: 28636127 | J104: 4200000 | K104: 4500000
A105: Water Distribution | C105: 23748072.35 | D105: 38305067.01 | E105: 15666230.91 | F105: 2 | G105: 2 | H105: 2 | I105: 33248800 | J105: 34900000 | K105: 36800000
A106: Water Storage | C106: 0 | D106: 0 | E106: 0 | F106: 0 | G106: 0 | H106: 0 | I106: 0 | J106: 0 | K106: 0
A107: Waste water management | C107: =SUM(C108:C111) -> 28712306.59 | D107: =SUM(D108:D111) -> 38150279.35 | E107: 40418642.13 | F107: 63128350 | G107: 60561736 | H107: 60561736 | I107: 43097789 | J107: 39930040 | K107: 40350182
A108: Public Toilets | C108: 0 | D108: 0 | E108: 0 | F108: 0 | G108: 0 | H108: 0 | I108: 0 | J108: 0 | K108: 0
A109: Sewerage | C109: 28712306.59 | D109: 38150279.35 | E109: 40418642.13 | F109: 64128350 | G109: 61561736 | H109: 61561736 | I109: 47513789 | J109: 44611000 | K109: 45312000
A110: Storm Water Management | C110: 0 | D110: 0 | E110: 0 | F110: 0 | G110: 0 | H110: 0 | I110: 0 | J110: 0 | K110: 0
A111: Waste Water Treatment | C111: 0 | D111: 0 | E111: 0 | F111: -1000000 | G111: -1000000 | H111: -1000000 | I111: -4416000 | J111: -4680960 | K111: -4961818
A112: Waste management | C112: =SUM(C113:C116) -> 20767911.49 | D112: =SUM(D113:D116) -> 26492354.79 | E112: 18321717.01 | F112: 42862507 | G112: 41255995 | H112: 41255995 | I112: 41718783 | J112: 40003560 | K112: 42588019
A113: Recycling | C113: 0 | D113: 0 | E113: 0 | F113: 0 | G113: 0 | H113: 0 | I113: 0 | J113: 0 | K113: 0
A114: Solid Waste Disposal (Landfill Sites) | C114: 0 | D114: 0 | E114: 0 | F114: 0 | G114: 0 | H114: 0 | I114: 4142783 | J114: 0 | K114: 0
A115: Solid Waste Removal | C115: 20767911.49 | D115: 26492354.79 | E115: 18321717.01 | F115: 42862507 | G115: 41255995 | H115: 41255995 | I115: 37576000 | J115: 40003560 | K115: 42588019
A116: Street Cleaning | C116: 0 | D116: 0 | E116: 0 | F116: 0 | G116: 0 | H116: 0 | I116: 0 | J116: 0 | K116: 0
A117: Other | C117: =SUM(C118:C123) -> 0 | D117: =SUM(D118:D123) -> 0 | E117: 0 | F117: 0 | G117: 0 | H117: 0 | I117: 0 | J117: 0 | K117: 0
A118: Abattoirs | C118: 0 | D118: 0 | E118: 0 | F118: 0 | G118: 0 | H118: 0 | I118: 0 | J118: 0 | K118: 0
A119: Air Transport | C119: 0 | D119: 0 | E119: 0 | F119: 0 | G119: 0 | H119: 0 | I119: 0 | J119: 0 | K119: 0
A120: Forestry | C120: 0 | D120: 0 | E120: 0 | F120: 0 | G120: 0 | H120: 0 | I120: 0 | J120: 0 | K120: 0
A121: Licensing and Regulation | C121: 0 | D121: 0 | E121: 0 | F121: 0 | G121: 0 | H121: 0 | I121: 0 | J121: 0 | K121: 0
A122: Markets | C122: 0 | D122: 0 | E122: 0 | F122: 0 | G122: 0 | H122: 0 | I122: 0 | J122: 0 | K122: 0
A123: Tourism | C123: 0 | D123: 0 | E123: 0 | F123: 0 | G123: 0 | H123: 0 | I123: 0 | J123: 0 | K123: 0
A124: ="Total "&A4 -> Total Revenue - Functional | B124: 2 | C124: =C5+C25+C74+C98+C117 -> 252909645.5 | D124: 344319379.3 | E124: 278678783.5 | F124: 396685439 | G124: 405798367 | H124: 405798367 | I124: 465771148 | J124: 455937702 | K124: 480150538
A126: Expenditure - Functional
A127: =A5 -> Municipal governance and administration | C127: =C128+C131+C145 -> 173154557.7 | D127: 126255225 | E127: 221104360.2 | F127: 150942968 | G127: 108126052 | H127: 108126052 | I127: 108440874 | J127: 114668673 | K127: 120270598
A128: Executive and council | C128: =SUM(C129:C130) -> 17009231.16 | D128: 17811385.83 | E128: 20334956.82 | F128: 17300651 | G128: 18514611 | H128: 18514611 | I128: 28107475 | J128: 30055862 | K128: 31382390
A129: Mayor and Council | C129: 13367141.5 | D129: 13800577.65 | E129: 18704988.54 | F129: 13391279 | G129: 13391288 | H129: 13391288 | I129: 16804521 | J129: 17745061 | K129: 18514670
A130: Municipal Manager, Town Secretary and Chief Executive | C130: 3642089.66 | D130: 4010808.18 | E130: 1629968.28 | F130: 3909372 | G130: 5123323 | H130: 5123323 | I130: 11302954 | J130: 12310801 | K130: 12867720
A131: Finance and administration | C131: =SUM(C132:C144) -> 152443244.2 | D131: 104817600.6 | E131: 199003535.5 | F131: 131745687 | G131: 87714811 | H131: 87714811 | I131: 76973131 | J131: 81124455 | K131: 85250224
A132: Administrative and Corporate Support | C132: 11772714.53 | D132: 13861617.67 | E132: 13422893.15 | F132: 13778817 | G132: 8906626 | H132: 8906626 | I132: 10194107 | J132: 10755782 | K132: 11369281
A133: Asset Management | C133: 0 | D133: 0 | E133: 0 | F133: 0 | G133: 293564 | H133: 293564 | I133: 289000 | J133: 278000 | K133: 278000
A134: Finance | C134: 136613608.8 | D134: 86320818.82 | E134: 179131569.6 | F134: 112189682 | G134: 58979763 | H134: 58979763 | I134: 62859001 | J134: 66429931 | K134: 69805973
A135: Fleet Management | C135: 0 | D135: 0 | E135: 0 | F135: 0 | G135: 1234731 | H135: 1234731 | I135: 1200000 | J135: 1100000 | K135: 1100000
A136: Human Resources | C136: 2338856.08 | D136: 2481273.12 | E136: 1390780.1 | F136: 1347760 | G136: 1336300 | H136: 1336300 | I136: 82500 | J136: 85730 | K136: 90215
A137: Information Technology | C137: 1315555.37 | D137: 1502824.37 | E137: 1546052.75 | F137: 1754801 | G137: 1937759 | H137: 1937759 | I137: 268553 | J137: 272196 | K137: 275377
A138: Legal Services | C138: 0 | D138: 0 | E138: 0 | F138: 0 | G138: 0 | H138: 0 | I138: 0 | J138: 0 | K138: 0
A139: Marketing, Customer Relations, Publicity and Media Co-ordination | C139: 0 | D139: 0 | E139: 0 | F139: 0 | G139: 0 | H139: 0 | I139: 0 | J139: 0 | K139: 0
A140: Property Services | C140: 402509.47 | D140: 650002.7 | E140: 3050329.28 | F140: 2199198 | G140: 2550639 | H140: 2550639 | I140: 2043198 | J140: 2164387 | K140: 2292949
A141: Risk Management | C141: 0 | D141: 1063.94 | E141: 461910.67 | F141: 475429 | G141: 475429 | H141: 475429 | I141: 36772 | J141: 38429 | K141: 38429
A142: Security Services | C142: 0 | D142: 0 | E142: 0 | F142: 0 | G142: 0 | H142: 0 | I142: 0 | J142: 0 | K142: 0
A143: Supply Chain Management | C143: 0 | D143: 0 | E143: 0 | F143: 0 | G143: 0 | H143: 0 | I143: 0 | J143: 0 | K143: 0
A144: Valuation Service | C144: 0 | D144: 0 | E144: 0 | F144: 0 | G144: 12000000 | H144: 12000000 | I144: 0 | J144: 0 | K144: 0
A145: Internal audit | C145: =SUM(C146:C146) -> 3702082.31 | D145: 3626238.5 | E145: 1765867.88 | F145: 1896630 | G145: 1896630 | H145: 1896630 | I145: 3360268 | J145: 3488356 | K145: 3637984
A146: Governance Function | C146: 3702082.31 | D146: 3626238.5 | E146: 1765867.88 | F146: 1896630 | G146: 1896630 | H146: 1896630 | I146: 3360268 | J146: 3488356 | K146: 3637984
A147: Community and public safety | C147: =C148+C170+C176+C185+C188 -> 15326791 | D147: 19617838.12 | E147: 19730947.72 | F147: 18639032 | G147: 32157157 | H147: 32157157 | I147: 26108219 | J147: 26428744 | K147: 27491647
A148: Community and social services | C148: =SUM(C149:C169) -> 649158.6 | D148: =SUM(D149:D169) -> 0 | E148: 0 | F148: 0 | G148: 16714167 | H148: 16714167 | I148: 9649660 | J148: 9191342 | K148: 9306159
A149: Aged Care | C149: 0 | D149: 0 | E149: 0 | F149: 0 | G149: 0 | H149: 0 | I149: 0 | J149: 0 | K149: 0
A150: Agricultural | C150: 0 | D150: 0 | E150: 0 | F150: 0 | G150: 0 | H150: 0 | I150: 0 | J150: 0 | K150: 0
A151: Animal Care and Diseases | C151: 0 | D151: 0 | E151: 0 | F151: 0 | G151: 0 | H151: 0 | I151: 0 | J151: 0 | K151: 0
A152: Cemeteries, Funeral Parlours and Crematoriums | C152: 0 | D152: 0 | E152: 0 | F152: 0 | G152: 5355000 | H152: 5355000 | I152: 1187425 | J152: 1193107 | K152: 1199159
A153: Child Care Facilities | C153: 0 | D153: 0 | E153: 0 | F153: 0 | G153: 0 | H153: 0 | I153: 0 | J153: 0 | K153: 0
A154: Community Halls and Facilities | C154: 0 | D154: 0 | E154: 0 | F154: 0 | G154: 11359167 | H154: 11359167 | I154: 8462235 | J154: 7998235 | K154: 8107000
A155: Consumer Protection | C155: 0 | D155: 0 | E155: 0 | F155: 0 | G155: 0 | H155: 0 | I155: 0 | J155: 0 | K155: 0
A156: Cultural Matters | C156: 0 | D156: 0 | E156: 0 | F156: 0 | G156: 0 | H156: 0 | I156: 0 | J156: 0 | K156: 0
A157: Disaster Management | C157: 649158.6 | D157: 0 | E157: 0 | F157: 0 | G157: 0 | H157: 0 | I157: 0 | J157: 0 | K157: 0
A158: Education | C158: 0 | D158: 0 | E158: 0 | F158: 0 | G158: 0 | H158: 0 | I158: 0 | J158: 0 | K158: 0
A159: =A37 -> Indigenous and Customary Law | C159: 0 | D159: 0 | E159: 0 | F159: 0 | G159: 0 | H159: 0 | I159: 0 | J159: 0 | K159: 0
A160: Industrial Promotion | C160: 0 | D160: 0 | E160: 0 | F160: 0 | G160: 0 | H160: 0 | I160: 0 | J160: 0 | K160: 0
A161: Language Policy | C161: 0 | D161: 0 | E161: 0 | F161: 0 | G161: 0 | H161: 0 | I161: 0 | J161: 0 | K161: 0
A162: Libraries and Archives | C162: 0 | D162: 0 | E162: 0 | F162: 0 | G162: 0 | H162: 0 | I162: 0 | J162: 0 | K162: 0
A163: Literacy Programmes | C163: 0 | D163: 0 | E163: 0 | F163: 0 | G163: 0 | H163: 0 | I163: 0 | J163: 0 | K163: 0
A164: Media Services | C164: 0 | D164: 0 | E164: 0 | F164: 0 | G164: 0 | H164: 0 | I164: 0 | J164: 0 | K164: 0
A165: Museums and Art Galleries | C165: 0 | D165: 0 | E165: 0 | F165: 0 | G165: 0 | H165: 0 | I165: 0 | J165: 0 | K165: 0
A166: Population Development | C166: 0 | D166: 0 | E166: 0 | F166: 0 | G166: 0 | H166: 0 | I166: 0 | J166: 0 | K166: 0
A167: Provincial Cultural Matters | C167: 0 | D167: 0 | E167: 0 | F167: 0 | G167: 0 | H167: 0 | I167: 0 | J167: 0 | K167: 0
A168: Theatres | C168: 0 | D168: 0 | E168: 0 | F168: 0 | G168: 0 | H168: 0 | I168: 0 | J168: 0 | K168: 0
A169: Zoo's | C169: 0 | D169: 0 | E169: 0 | F169: 0 | G169: 0 | H169: 0 | I169: 0 | J169: 0 | K169: 0
A170: Sport and recreation | C170: =SUM(C171:C175) -> 328755.2 | D170: 484279.54 | E170: 6449366.93 | F170: 6849957 | G170: 5115709 | H170: 5115709 | I170: 6197874 | J170: 6573059 | K170: 6971152
A171: Beaches and Jetties | C171: 0 | D171: 0 | E171: 0 | F171: 0 | G171: 0 | H171: 0 | I171: 0 | J171: 0 | K171: 0
A172: Casinos, Racing, Gambling, Wagering | C172: 0 | D172: 0 | E172: 0 | F172: 0 | G172: 0 | H172: 0 | I172: 0 | J172: 0 | K172: 0
A173: Community Parks (including Nurseries) | C173: 328755.2 | D173: 484279.54 | E173: 6449366.93 | F173: 6849957 | G173: 5115709 | H173: 5115709 | I173: 6197874 | J173: 6573059 | K173: 6971152
A174: Recreational Facilities | C174: 0 | D174: 0 | E174: 0 | F174: 0 | G174: 0 | H174: 0 | I174: 0 | J174: 0 | K174: 0
A175: Sports Grounds and Stadiums | C175: 0 | D175: 0 | E175: 0 | F175: 0 | G175: 0 | H175: 0 | I175: 0 | J175: 0 | K175: 0
A176: Public safety | C176: =SUM(C177:C184) -> 5721287.27 | D176: 10289838.7 | E176: 10156146.2 | F176: 6786200 | G176: 6715185 | H176: 6715185 | I176: 6700840 | J176: 6887976 | K176: 7208257
A177: Civil Defence | C177: 0 | D177: 0 | E177: 0 | F177: 0 | G177: 0 | H177: 0 | I177: 0 | J177: 0 | K177: 0
A178: Cleansing | C178: 0 | D178: 0 | E178: 0 | F178: 0 | G178: 0 | H178: 0 | I178: 0 | J178: 0 | K178: 0
A179: =A57 -> Control of Public Nuisances | C179: 0 | D179: 0 | E179: 0 | F179: 0 | G179: 0 | H179: 0 | I179: 0 | J179: 0 | K179: 0
A180: Fencing and Fences | C180: 0 | D180: 0 | E180: 0 | F180: 0 | G180: 0 | H180: 0 | I180: 0 | J180: 0 | K180: 0
A181: Fire Fighting and Protection | C181: 5721287.27 | D181: 10289838.7 | E181: 10156146.2 | F181: 6786200 | G181: 6715185 | H181: 6715185 | I181: 6700840 | J181: 6887976 | K181: 7208257
A182: Licensing and Control of Animals | C182: 0 | D182: 0 | E182: 0 | F182: 0 | G182: 0 | H182: 0 | I182: 0 | J182: 0 | K182: 0
A183: Police Forces, Traffic and Street Parking Control | C183: 0 | D183: 0 | E183: 0 | F183: 0 | G183: 0 | H183: 0 | I183: 0 | J183: 0 | K183: 0
A184: Pounds | C184: 0 | D184: 0 | E184: 0 | F184: 0 | G184: 0 | H184: 0 | I184: 0 | J184: 0 | K184: 0
A185: =A63 -> Housing | C185: =SUM(C186:C187) -> 8627589.93 | D185: 8843719.88 | E185: 3125434.59 | F185: 5002875 | G185: 3612096 | H185: 3612096 | I185: 3559845 | J185: 3776367 | K185: 4006079
A186: Housing | C186: 8627589.93 | D186: 8843719.88 | E186: 3125434.59 | F186: 5002875 | G186: 3612096 | H186: 3612096 | I186: 3559845 | J186: 3776367 | K186: 4006079
A187: Informal Settlements | C187: 0 | D187: 0 | E187: 0 | F187: 0 | G187: 0 | H187: 0 | I187: 0 | J187: 0 | K187: 0
A188: Health | C188: =SUM(C189:C195) -> 0 | D188: =SUM(D189:D195) -> 0 | E188: 0 | F188: 0 | G188: 0 | H188: 0 | I188: 0 | J188: 0 | K188: 0
A189: Ambulance | C189: 0 | D189: 0 | E189: 0 | F189: 0 | G189: 0 | H189: 0 | I189: 0 | J189: 0 | K189: 0
A190: Health Services | C190: 0 | D190: 0 | E190: 0 | F190: 0 | G190: 0 | H190: 0 | I190: 0 | J190: 0 | K190: 0
A191: Laboratory Services | C191: 0 | D191: 0 | E191: 0 | F191: 0 | G191: 0 | H191: 0 | I191: 0 | J191: 0 | K191: 0
A192: Food Control | C192: 0 | D192: 0 | E192: 0 | F192: 0 | G192: 0 | H192: 0 | I192: 0 | J192: 0 | K192: 0
A193: Health Surveillance and Prevention of Communicable Diseases including immunizations | C193: 0 | D193: 0 | E193: 0 | F193: 0 | G193: 0 | H193: 0 | I193: 0 | J193: 0 | K193: 0
A194: Vector Control | C194: 0 | D194: 0 | E194: 0 | F194: 0 | G194: 0 | H194: 0 | I194: 0 | J194: 0 | K194: 0
A195: Chemical Safety | C195: 0 | D195: 0 | E195: 0 | F195: 0 | G195: 0 | H195: 0 | I195: 0 | J195: 0 | K195: 0
A196: Economic and environmental services | C196: =C197+C208+C213 -> 19669737.71 | D196: 9691284.57 | E196: 19100938.7 | F196: 18725174 | G196: 33931185 | H196: 33931185 | I196: 74750065 | J196: 78301640 | K196: 82224509
A197: Planning and development | C197: =SUM(C198:C207) -> 436756.5 | D197: =SUM(D198:D207) -> 48886.08 | E197: 7103345.3 | F197: 6130594 | G197: 5292389 | H197: 5292389 | I197: 6353562 | J197: 6702271 | K197: 7067098
A198: Billboards | C198: 0 | D198: 0 | E198: 0 | F198: 0 | G198: 0 | H198: 0 | I198: 0 | J198: 0 | K198: 0
A199: Corporate Wide Strategic Planning (IDPs, LEDs) | C199: 292161.52 | D199: 48886.08 | E199: 752251.27 | F199: 1394076 | G199: 1394076 | H199: 1394076 | I199: 1041046 | J199: 1102361 | K199: 1163277
A200: Central City Improvement District | C200: 0 | D200: 0 | E200: 0 | F200: 0 | G200: 0 | H200: 0 | I200: 0 | J200: 0 | K200: 0
A201: Development Facilitation | C201: 0 | D201: 0 | E201: 0 | F201: 0 | G201: 0 | H201: 0 | I201: 0 | J201: 0 | K201: 0
... 51 more rows

Sheet A3-FinPerf V
A1: =muni&" - "&Approve2 -> 0 - Table A3 Budgeted Financial Performance (revenue and expenditure by municipal vote)
A2: =Vdesc -> Vote Description | B2: =head27 -> Ref | C2: =head1b -> 2019/20 | D2: =head1A -> 2020/21 | E2: =Head1 -> 2021/22 | F2: =Head2 -> Current Year 2022/23 | I2: =Head3 -> 2023/24 Medium Term Revenue & Expenditure Framework | L2: =Head4 -> LTFS
A3: R thousand | C3: =Head5 -> Audited Outcome | D3: =Head5 -> Audited Outcome | E3: =Head5 -> Audited Outcome | F3: =Head6 -> Original Budget | G3: =Head7 -> Adjusted Budget | H3: =Head8 -> Full Year Forecast | I3: =Head9 -> Budget Year 2023/24 | J3: =Head10 -> Budget Year +1 2024/25 | K3: =Head11 -> Budget Year +2 2025/26 | L3: =Head12 -> Forecast 2026/27 | M3: =Head13 -> Forecast 2027/28 | N3: =Head14 -> Forecast 2028/29 | O3: =Head15 -> Forecast 2029/30 | P3: =Head16 -> Forecast 2030/31 | Q3: =Head17 -> Forecast 2031/32 | R3: =Head18 -> Forecast 2032/33 | S3: =Head19 -> Forecast 2033/34 | T3: =Head20 -> Forecast 2034/35 | U3: =Head21 -> Forecast 2035/36 | V3: =Head22 -> Forecast 2036/37 | W3: =Head23 -> Forecast 2037/38
A4: Revenue by Vote | B4: 1
A5: =A3A!A5 -> Vote 1 - Executive & Council | C5: =A3A!C5 -> 0 | D5: =A3A!D5 -> 0 | E5: =A3A!E5 -> 0 | F5: =A3A!F5 -> 11271504 | G5: =A3A!G5 -> 14624566 | H5: =A3A!H5 -> 14624566 | I5: =A3A!I5 -> 14772660 | J5: =A3A!J5 -> 15720123 | K5: =A3A!K5 -> 16728405
A6: =A3A!A16 -> Vote 2 - Municipal Manager | C6: =A3A!C16 -> 0 | D6: =A3A!D16 -> 0 | E6: =A3A!E16 -> 0 | F6: =A3A!F16 -> 8285175 | G6: =A3A!G16 -> 11628195 | H6: =A3A!H16 -> 11628195 | I6: =A3A!I16 -> 13544929 | J6: =A3A!J16 -> 14369315 | K6: =A3A!K16 -> 15243925
A7: =A3A!A27 -> Vote 3 - Finance Services | C7: =A3A!C27 -> 88297338.77 | D7: =A3A!D27 -> 74467316.19 | E7: =A3A!E27 -> 26252141.3 | F7: =A3A!F27 -> 67364165 | G7: =A3A!G27 -> 112676169 | H7: =A3A!H27 -> 112676169 | I7: =A3A!I27 -> 163505991 | J7: =A3A!J27 -> 168601573 | K7: =A3A!K27 -> 178004730
A8: =A3A!A38 -> Vote 4 - Corporate Services | C8: =A3A!C38 -> 84859.66 | D8: =A3A!D38 -> 102778203.7 | E8: =A3A!E38 -> 91973299.14 | F8: =A3A!F38 -> 22018894 | G8: =A3A!G38 -> 21579944 | H8: =A3A!H38 -> 21579944 | I8: =A3A!I38 -> 10488977 | J8: =A3A!J38 -> 11119076 | K8: =A3A!K38 -> 11785921
A9: =A3A!A49 -> Vote 5 - Community Services | C9: =A3A!C49 -> 25975871.93 | D9: =A3A!D49 -> 52641225.51 | E9: =A3A!E49 -> 3299681.09 | F9: =A3A!F49 -> 53664018 | G9: =A3A!G49 -> 51033238 | H9: =A3A!H49 -> 51033238 | I9: =A3A!I49 -> 20490807 | J9: =A3A!J49 -> 22048025 | K9: =A3A!K49 -> 23028801
A10: =A3A!A60 -> Vote 6 - Technical Services | C10: =A3A!C60 -> 138372575.1 | D10: =A3A!D60 -> 114432633.9 | E10: =A3A!E60 -> 157153661.9 | F10: =A3A!F60 -> 234081683 | G10: =A3A!G60 -> 194256255 | H10: =A3A!H60 -> 194256255 | I10: =A3A!I60 -> 236243645 | J10: =A3A!J60 -> 216918382 | K10: =A3A!K60 -> 227732070
A11: =A3A!A71 -> Vote 7 - COMMUNITY & SOCIAL SERVICES | C11: =A3A!C71 -> 179000 | D11: =A3A!D71 -> 0 | E11: =A3A!E71 -> 0 | F11: =A3A!F71 -> 0 | G11: =A3A!G71 -> 0 | H11: =A3A!H71 -> 0 | I11: =A3A!I71 -> 6724139 | J11: =A3A!J71 -> 7161208 | K11: =A3A!K71 -> 7626686
A12: =A3A!A82 -> Vote 8 - [NAME OF VOTE 8] | C12: =A3A!C82 -> 0 | D12: =A3A!D82 -> 0 | E12: =A3A!E82 -> 0 | F12: =A3A!F82 -> 0 | G12: =A3A!G82 -> 0 | H12: =A3A!H82 -> 0 | I12: =A3A!I82 -> 0 | J12: =A3A!J82 -> 0 | K12: =A3A!K82 -> 0
A13: =A3A!A93 -> Vote 9 - [NAME OF VOTE 9] | C13: =A3A!C93 -> 0 | D13: =A3A!D93 -> 0 | E13: =A3A!E93 -> 0 | F13: =A3A!F93 -> 0 | G13: =A3A!G93 -> 0 | H13: =A3A!H93 -> 0 | I13: =A3A!I93 -> 0 | J13: =A3A!J93 -> 0 | K13: =A3A!K93 -> 0
A14: =A3A!A104 -> Vote 10 - [NAME OF VOTE 10] | C14: =A3A!C104 -> 0 | D14: =A3A!D104 -> 0 | E14: =A3A!E104 -> 0 | F14: =A3A!F104 -> 0 | G14: =A3A!G104 -> 0 | H14: =A3A!H104 -> 0 | I14: =A3A!I104 -> 0 | J14: =A3A!J104 -> 0 | K14: =A3A!K104 -> 0
A15: =A3A!A115 -> Vote 11 - [NAME OF VOTE 11] | C15: =A3A!C115 -> 0 | D15: =A3A!D115 -> 0 | E15: =A3A!E115 -> 0 | F15: =A3A!F115 -> 0 | G15: =A3A!G115 -> 0 | H15: =A3A!H115 -> 0 | I15: =A3A!I115 -> 0 | J15: =A3A!J115 -> 0 | K15: =A3A!K115 -> 0 | L15: =A5A!L115 -> 0
A16: =A3A!A126 -> Vote 12 - [NAME OF VOTE 12] | C16: =A3A!C126 -> 0 | D16: =A3A!D126 -> 0 | E16: =A3A!E126 -> 0 | F16: =A3A!F126 -> 0 | G16: =A3A!G126 -> 0 | H16: =A3A!H126 -> 0 | I16: =A3A!I126 -> 0 | J16: =A3A!J126 -> 0 | K16: =A3A!K126 -> 0 | L16: =A5A!L126 -> 0
A17: =A3A!A137 -> Vote 13 - [NAME OF VOTE 13] | C17: =A3A!C137 -> 0 | D17: =A3A!D137 -> 0 | E17: =A3A!E137 -> 0 | F17: =A3A!F137 -> 0 | G17: =A3A!G137 -> 0 | H17: =A3A!H137 -> 0 | I17: =A3A!I137 -> 0 | J17: =A3A!J137 -> 0 | K17: =A3A!K137 -> 0 | L17: =A5A!L137 -> 0
A18: =A3A!A148 -> Vote 14 - [NAME OF VOTE 14] | C18: =A3A!C148 -> 0 | D18: =A3A!D148 -> 0 | E18: =A3A!E148 -> 0 | F18: =A3A!F148 -> 0 | G18: =A3A!G148 -> 0 | H18: =A3A!H148 -> 0 | I18: =A3A!I148 -> 0 | J18: =A3A!J148 -> 0 | K18: =A3A!K148 -> 0 | L18: =A5A!L148 -> 0
A19: =A3A!A159 -> Vote 15 - [NAME OF VOTE 15] | C19: =A3A!C159 -> 0 | D19: =A3A!D159 -> 0 | E19: =A3A!E159 -> 0 | F19: =A3A!F159 -> 0 | G19: =A3A!G159 -> 0 | H19: =A3A!H159 -> 0 | I19: =A3A!I159 -> 0 | J19: =A3A!J159 -> 0 | K19: =A3A!K159 -> 0 | L19: =A5A!L159 -> 0
A20: Total Revenue by Vote | B20: 2 | C20: =SUM(C5:C19) -> 252909645.4 | D20: =SUM(D5:D19) -> 344319379.3 | E20: 278678783.5 | F20: 396685439 | G20: 405798367 | H20: 405798367 | I20: 465771148 | J20: 455937702 | K20: 480150538
A22: Expenditure by Vote to be appropriated | B22: 1
A23: =A3A!A173 -> Vote 1 - Executive & Council | C23: =A3A!C173 -> 13367141.5 | D23: =A3A!D173 -> 13800577.65 | E23: =A3A!E173 -> 18704988.54 | F23: =A3A!F173 -> 13391279 | G23: =A3A!G173 -> 13391288 | H23: =A3A!H173 -> 13391288 | I23: =A3A!I173 -> 16804521 | J23: =A3A!J173 -> 17745061 | K23: =A3A!K173 -> 18514670
A24: =A3A!A184 -> Vote 2 - Municipal Manager | C24: =A3A!C184 -> 11398416.98 | D24: =A3A!D184 -> 11671094.19 | E24: =A3A!E184 -> 9380203.5 | F24: =A3A!F184 -> 13172136 | G24: =A3A!G184 -> 14378573 | H24: =A3A!H184 -> 14378573 | I24: =A3A!I184 -> 16392323 | J24: =A3A!J184 -> 17566973 | K24: =A3A!K184 -> 18367919
A25: =A3A!A195 -> Vote 3 - Finance Services | C25: =A3A!C195 -> 136613608.8 | D25: =A3A!D195 -> 99778360.82 | E25: =A3A!E195 -> 70919960.43 | F25: =A3A!F195 -> 112189682 | G25: =A3A!G195 -> 72508058 | H25: =A3A!H195 -> 72508058 | I25: =A3A!I195 -> 41118262 | J25: =A3A!J195 -> 43076228 | K25: =A3A!K195 -> 44822415
A26: =A3A!A206 -> Vote 4 - Corporate Services | C26: =A3A!C206 -> 11772714.53 | D26: =A3A!D206 -> 13861617.67 | E26: =A3A!E206 -> 13422893.15 | F26: =A3A!F206 -> 13778817 | G26: =A3A!G206 -> 8906626 | H26: =A3A!H206 -> 8906626 | I26: =A3A!I206 -> 11259864 | J26: =A3A!J206 -> 11898782 | K26: =A3A!K206 -> 12564281
A27: =A3A!A217 -> Vote 5 - Community Services | C27: =A3A!C217 -> 170297713.7 | D27: =A3A!D217 -> 127180856.2 | E27: =A3A!E217 -> 133676583.8 | F27: =A3A!F217 -> 24074947 | G27: =A3A!G217 -> 37106817 | H27: =A3A!H217 -> 37106817 | I27: =A3A!I217 -> 95571407 | J27: =A3A!J217 -> 100383717 | K27: =A3A!K217 -> 106229251
A28: =A3A!A228 -> Vote 6 - Technical Services | C28: =A3A!C228 -> 122105188.8 | D28: =A3A!D228 -> 108835546.5 | E28: =A3A!E228 -> 129224166.9 | F28: =A3A!F228 -> 161573028 | G28: =A3A!G228 -> 276424655 | H28: =A3A!H228 -> 276424655 | I28: =A3A!I228 -> 190607038 | J28: =A3A!J228 -> 202774874 | K28: =A3A!K228 -> 212220984
A29: =A3A!A239 -> Vote 7 - COMMUNITY & SOCIAL SERVICES | C29: =A3A!C239 -> 0 | D29: =A3A!D239 -> 0 | E29: =A3A!E239 -> 0 | F29: =A3A!F239 -> 0 | G29: =A3A!G239 -> 0 | H29: =A3A!H239 -> 0 | I29: =A3A!I239 -> 725000 | J29: =A3A!J239 -> 772475 | K29: =A3A!K239 -> 822971
A30: =A3A!A250 -> Vote 8 - [NAME OF VOTE 8] | C30: =A3A!C250 -> 0 | D30: =A3A!D250 -> 0 | E30: =A3A!E250 -> 0 | F30: =A3A!F250 -> 0 | G30: =A3A!G250 -> 0 | H30: =A3A!H250 -> 0 | I30: =A3A!I250 -> 0 | J30: =A3A!J250 -> 0 | K30: =A3A!K250 -> 0
A31: =A3A!A261 -> Vote 9 - [NAME OF VOTE 9] | C31: =A3A!C261 -> 0 | D31: =A3A!D261 -> 0 | E31: =A3A!E261 -> 0 | F31: =A3A!F261 -> 0 | G31: =A3A!G261 -> 0 | H31: =A3A!H261 -> 0 | I31: =A3A!I261 -> 0 | J31: =A3A!J261 -> 0 | K31: =A3A!K261 -> 0
A32: =A3A!A272 -> Vote 10 - [NAME OF VOTE 10] | C32: =A3A!C272 -> 0 | D32: =A3A!D272 -> 0 | E32: =A3A!E272 -> 0 | F32: =A3A!F272 -> 0 | G32: =A3A!G272 -> 0 | H32: =A3A!H272 -> 0 | I32: =A3A!I272 -> 0 | J32: =A3A!J272 -> 0 | K32: =A3A!K272 -> 0
A33: =A3A!A283 -> Vote 11 - [NAME OF VOTE 11] | C33: =A3A!C283 -> 0 | D33: =A3A!D283 -> 0 | E33: =A3A!E283 -> 0 | F33: =A3A!F283 -> 0 | G33: =A3A!G283 -> 0 | H33: =A3A!H283 -> 0 | I33: =A3A!I283 -> 0 | J33: =A3A!J283 -> 0 | K33: =A3A!K283 -> 0 | L33: =A3A!L284 -> 0
A34: =A3A!A294 -> Vote 12 - [NAME OF VOTE 12] | C34: =A3A!C294 -> 0 | D34: =A3A!D294 -> 0 | E34: =A3A!E294 -> 0 | F34: =A3A!F294 -> 0 | G34: =A3A!G294 -> 0 | H34: =A3A!H294 -> 0 | I34: =A3A!I294 -> 0 | J34: =A3A!J294 -> 0 | K34: =A3A!K294 -> 0 | L34: =A3A!L295 -> 0
A35: =A3A!A305 -> Vote 13 - [NAME OF VOTE 13] | C35: =A3A!C305 -> 0 | D35: =A3A!D305 -> 0 | E35: =A3A!E305 -> 0 | F35: =A3A!F305 -> 0 | G35: =A3A!G305 -> 0 | H35: =A3A!H305 -> 0 | I35: =A3A!I305 -> 0 | J35: =A3A!J305 -> 0 | K35: =A3A!K305 -> 0 | L35: =A3A!L306 -> 0
A36: =A3A!A316 -> Vote 14 - [NAME OF VOTE 14] | C36: =A3A!C316 -> 0 | D36: =A3A!D316 -> 0 | E36: =A3A!E316 -> 0 | F36: =A3A!F316 -> 0 | G36: =A3A!G316 -> 0 | H36: =A3A!H316 -> 0 | I36: =A3A!I316 -> 0 | J36: =A3A!J316 -> 0 | K36: =A3A!K316 -> 0 | L36: =A3A!L317 -> 0
A37: =A3A!A327 -> Vote 15 - [NAME OF VOTE 15] | C37: =A3A!C327 -> 0 | D37: =A3A!D327 -> 0 | E37: =A3A!E327 -> 0 | F37: =A3A!F327 -> 0 | G37: =A3A!G327 -> 0 | H37: =A3A!H327 -> 0 | I37: =A3A!I327 -> 0 | J37: =A3A!J327 -> 0 | K37: =A3A!K327 -> 0 | L37: =A3A!L328 -> 0
A38: Total Expenditure by Vote | B38: 2 | C38: =SUM(C23:C37) -> 465554784.3 | D38: =SUM(D23:D37) -> 375128053.1 | E38: 375328796.3 | F38: 338179889 | G38: 422716017 | H38: 422716017 | I38: 372478415 | J38: 394218110 | K38: 413542491 | L38: =SUM(L23:L29) -> 0 | M38: 0 | N38: 0 | O38: 0 | P38: 0 | Q38: 0 | R38: 0 | S38: 0 | T38: 0 | U38: 0 | V38: 0 | W38: 0
A39: =result -> Surplus/(Deficit) for the year | B39: 2 | C39: =C20-C38 -> -212645138.8 | D39: -30808673.86 | E39: -96650012.83 | F39: 58505550 | G39: -16917650 | H39: -16917650 | I39: 93292733 | J39: 61719592 | K39: 66608047 | L39: 0 | M39: 0 | N39: 0 | O39: 0 | P39: 0 | Q39: 0 | R39: 0 | S39: 0 | T39: 0 | U39: 0 | V39: 0 | W39: 0
A40: =head27a -> References
A41: 1. Insert 'Vote'; e.g. department, if different to functional classification structure
A42: 2. Must reconcile to Budgeted Financial Performance (revenue and expenditure)
A43: 3. Assign share in 'associate' to relevant Vote

Sheet A3A
A1: =muni&" - "&Approve2&"A" -> 0 - Table A3 Budgeted Financial Performance (revenue and expenditure by municipal vote)A
A2: =Vdesc -> Vote Description | B2: =head27 -> Ref | C2: =head1b -> 2019/20 | D2: =head1A -> 2020/21 | E2: =Head1 -> 2021/22 | F2: =Head2 -> Current Year 2022/23 | I2: =Head3 -> 2023/24 Medium Term Revenue & Expenditure Framework | L2: =Head4 -> LTFS
A3: R thousand | C3: =Head5 -> Audited Outcome | D3: =Head5 -> Audited Outcome | E3: =Head5 -> Audited Outcome | F3: =Head6 -> Original Budget | G3: =Head7 -> Adjusted Budget | H3: =Head8 -> Full Year Forecast | I3: =Head9 -> Budget Year 2023/24 | J3: =Head10 -> Budget Year +1 2024/25 | K3: =Head11 -> Budget Year +2 2025/26 | L3: =Head12 -> Forecast 2026/27 | M3: =Head13 -> Forecast 2027/28 | N3: =Head14 -> Forecast 2028/29 | O3: =Head15 -> Forecast 2029/30 | P3: =Head16 -> Forecast 2030/31 | Q3: =Head17 -> Forecast 2031/32 | R3: =Head18 -> Forecast 2032/33 | S3: =Head19 -> Forecast 2033/34 | T3: =Head20 -> Forecast 2034/35 | U3: =Head21 -> Forecast 2035/36 | V3: =Head22 -> Forecast 2036/37 | W3: =Head23 -> Forecast 2037/38
A4: Revenue by Vote | B4: 1
A5: ='Org structure'!A2 -> Vote 1 - Executive & Council | C5: 0 | D5: 0 | E5: 0 | F5: 11271504 | G5: 14624566 | H5: 14624566 | I5: 14772660 | J5: 15720123 | K5: 16728405
A6: ='Org structure'!E3 -> 1.1 - [Name of sub-vote]
A7: ='Org structure'!E4 -> 0
A8: ='Org structure'!E5 -> 0
A9: ='Org structure'!E6 -> 0
A10: ='Org structure'!E7 -> 0
A11: ='Org structure'!E8 -> 0
A12: ='Org structure'!E9 -> 0
A13: ='Org structure'!E10 -> 0
A14: ='Org structure'!E11 -> 0
A15: ='Org structure'!E12 -> 0
A16: ='Org structure'!A3 -> Vote 2 - Municipal Manager | C16: 0 | D16: 0 | E16: 0 | F16: 8285175 | G16: 11628195 | H16: 11628195 | I16: 13544929 | J16: 14369315 | K16: 15243925
A17: ='Org structure'!E14 -> 2.1 - [Name of sub-vote]
A18: ='Org structure'!E15 -> 0
A19: ='Org structure'!E16 -> 0
A20: ='Org structure'!E17 -> 0
A21: ='Org structure'!E18 -> 0
A22: ='Org structure'!E19 -> 0
A23: ='Org structure'!E20 -> 0
A24: ='Org structure'!E21 -> 0
A25: ='Org structure'!E22 -> 0
A26: ='Org structure'!E23 -> 0
A27: ='Org structure'!A4 -> Vote 3 - Finance Services | C27: 88297338.77 | D27: 74467316.19 | E27: 26252141.3 | F27: 67364165 | G27: 112676169 | H27: 112676169 | I27: 163505991 | J27: 168601573 | K27: 178004730
A28: ='Org structure'!E25 -> 3.1 - [Name of sub-vote]
A29: ='Org structure'!E26 -> 0
A30: ='Org structure'!E27 -> 0
A31: ='Org structure'!E28 -> 0
A32: ='Org structure'!E29 -> 0
A33: ='Org structure'!E30 -> 0
A34: ='Org structure'!E31 -> 0
A35: ='Org structure'!E32 -> 0
A36: ='Org structure'!E33 -> 0
A37: ='Org structure'!E34 -> 0
A38: ='Org structure'!A5 -> Vote 4 - Corporate Services | C38: 84859.66 | D38: 102778203.7 | E38: 91973299.14 | F38: 22018894 | G38: 21579944 | H38: 21579944 | I38: 10488977 | J38: 11119076 | K38: 11785921
A39: ='Org structure'!E36 -> 4.1 - [Name of sub-vote]
A40: ='Org structure'!E37 -> 0
A41: ='Org structure'!E38 -> 0
A42: ='Org structure'!E39 -> 0
A43: ='Org structure'!E40 -> 0
A44: ='Org structure'!E41 -> 0
A45: ='Org structure'!E42 -> 0
A46: ='Org structure'!E43 -> 0
A47: ='Org structure'!E44 -> 0
A48: ='Org structure'!E45 -> 0
A49: ='Org structure'!A6 -> Vote 5 - Community Services | C49: 25975871.93 | D49: 52641225.51 | E49: 3299681.09 | F49: 53664018 | G49: 51033238 | H49: 51033238 | I49: 20490807 | J49: 22048025 | K49: 23028801
A50: ='Org structure'!E47 -> 5.1 - [Name of sub-vote]
A51: ='Org structure'!E48 -> 0
A52: ='Org structure'!E49 -> 0
A53: ='Org structure'!E50 -> 0
A54: ='Org structure'!E51 -> 0
A55: ='Org structure'!E52 -> 0
A56: ='Org structure'!E53 -> 0
A57: ='Org structure'!E54 -> 0
A58: ='Org structure'!E55 -> 0
A59: ='Org structure'!E56 -> 0
A60: ='Org structure'!A7 -> Vote 6 - Technical Services | C60: 138372575.1 | D60: 114432633.9 | E60: 157153661.9 | F60: 234081683 | G60: 194256255 | H60: 194256255 | I60: 236243645 | J60: 216918382 | K60: 227732070
A61: ='Org structure'!E58 -> 6.1 - [Name of sub-vote]
A62: ='Org structure'!E59 -> 0
A63: ='Org structure'!E60 -> 0
A64: ='Org structure'!E61 -> 0
A65: ='Org structure'!E62 -> 0
A66: ='Org structure'!E63 -> 0
A67: ='Org structure'!E64 -> 0
A68: ='Org structure'!E65 -> 0
A69: ='Org structure'!E66 -> 0
A70: ='Org structure'!E67 -> 0
A71: ='Org structure'!A8 -> Vote 7 - COMMUNITY & SOCIAL SERVICES | C71: 179000 | D71: 0 | E71: 0 | F71: 0 | G71: 0 | H71: 0 | I71: 6724139 | J71: 7161208 | K71: 7626686
A72: ='Org structure'!E69 -> 7.1 - [Name of sub-vote]
A73: ='Org structure'!E70 -> 0
A74: ='Org structure'!E71 -> 0
A75: ='Org structure'!E72 -> 0
A76: ='Org structure'!E73 -> 0
A77: ='Org structure'!E74 -> 0
A78: ='Org structure'!E75 -> 0
A79: ='Org structure'!E76 -> 0
A80: ='Org structure'!E77 -> 0
A81: ='Org structure'!E78 -> 0
A82: ='Org structure'!A9 -> Vote 8 - [NAME OF VOTE 8] | C82: =SUM(C83:C92) -> 0 | D82: =SUM(D83:D92) -> 0 | E82: 0 | F82: 0 | G82: 0 | H82: 0 | I82: 0 | J82: 0 | K82: 0
A83: ='Org structure'!E80 -> 8.1 - [Name of sub-vote]
A84: ='Org structure'!E81 -> 0
A85: ='Org structure'!E82 -> 0
A86: ='Org structure'!E83 -> 0
A87: ='Org structure'!E84 -> 0
A88: ='Org structure'!E85 -> 0
A89: ='Org structure'!E86 -> 0
A90: ='Org structure'!E87 -> 0
A91: ='Org structure'!E88 -> 0
A92: ='Org structure'!E89 -> 0
A93: ='Org structure'!A10 -> Vote 9 - [NAME OF VOTE 9] | C93: =SUM(C94:C103) -> 0 | D93: =SUM(D94:D103) -> 0 | E93: 0 | F93: 0 | G93: 0 | H93: 0 | I93: 0 | J93: 0 | K93: 0
A94: ='Org structure'!E91 -> 9.1 - [Name of sub-vote]
A95: ='Org structure'!E92 -> 0
A96: ='Org structure'!E93 -> 0
A97: ='Org structure'!E94 -> 0
A98: ='Org structure'!E95 -> 0
A99: ='Org structure'!E96 -> 0
A100: ='Org structure'!E97 -> 0
A101: ='Org structure'!E98 -> 0
A102: ='Org structure'!E99 -> 0
A103: ='Org structure'!E100 -> 0
A104: ='Org structure'!A11 -> Vote 10 - [NAME OF VOTE 10] | C104: =SUM(C105:C114) -> 0 | D104: =SUM(D105:D114) -> 0 | E104: 0 | F104: 0 | G104: 0 | H104: 0 | I104: 0 | J104: 0 | K104: 0
A105: ='Org structure'!E102 -> 10.1 - [Name of sub-vote]
A106: ='Org structure'!E103 -> 0
A107: ='Org structure'!E104 -> 0
A108: ='Org structure'!E105 -> 0
A109: ='Org structure'!E106 -> 0
A110: ='Org structure'!E107 -> 0
A111: ='Org structure'!E108 -> 0
A112: ='Org structure'!E109 -> 0
A113: ='Org structure'!E110 -> 0
A114: ='Org structure'!E111 -> 0
A115: ='Org structure'!A12 -> Vote 11 - [NAME OF VOTE 11] | C115: =SUM(C116:C125) -> 0 | D115: =SUM(D116:D125) -> 0 | E115: 0 | F115: 0 | G115: 0 | H115: 0 | I115: 0 | J115: 0 | K115: 0
A116: ='Org structure'!E113 -> 11.1 - [Name of sub-vote]
A117: ='Org structure'!E114 -> 0
A118: ='Org structure'!E115 -> 0
A119: ='Org structure'!E116 -> 0
A120: ='Org structure'!E117 -> 0
A121: ='Org structure'!E118 -> 0
A122: ='Org structure'!E119 -> 0
A123: ='Org structure'!E120 -> 0
A124: ='Org structure'!E121 -> 0
A125: ='Org structure'!E122 -> 0
A126: ='Org structure'!A13 -> Vote 12 - [NAME OF VOTE 12] | C126: =SUM(C127:C136) -> 0 | D126: =SUM(D127:D136) -> 0 | E126: 0 | F126: 0 | G126: 0 | H126: 0 | I126: 0 | J126: 0 | K126: 0
A127: ='Org structure'!E124 -> 12.1 - [Name of sub-vote]
A128: ='Org structure'!E125 -> 0
A129: ='Org structure'!E126 -> 0
A130: ='Org structure'!E127 -> 0
A131: ='Org structure'!E128 -> 0
A132: ='Org structure'!E129 -> 0
A133: ='Org structure'!E130 -> 0
A134: ='Org structure'!E131 -> 0
A135: ='Org structure'!E132 -> 0
A136: ='Org structure'!E133 -> 0
A137: ='Org structure'!A14 -> Vote 13 - [NAME OF VOTE 13] | C137: =SUM(C138:C147) -> 0 | D137: =SUM(D138:D147) -> 0 | E137: 0 | F137: 0 | G137: 0 | H137: 0 | I137: 0 | J137: 0 | K137: 0
A138: ='Org structure'!E135 -> 13.1 - [Name of sub-vote]
A139: ='Org structure'!E136 -> 0
A140: ='Org structure'!E137 -> 0
A141: ='Org structure'!E138 -> 0
A142: ='Org structure'!E139 -> 0
A143: ='Org structure'!E140 -> 0
A144: ='Org structure'!E141 -> 0
A145: ='Org structure'!E142 -> 0
A146: ='Org structure'!E143 -> 0
A147: ='Org structure'!E144 -> 0
A148: ='Org structure'!A15 -> Vote 14 - [NAME OF VOTE 14] | C148: =SUM(C149:C158) -> 0 | D148: =SUM(D149:D158) -> 0 | E148: 0 | F148: 0 | G148: 0 | H148: 0 | I148: 0 | J148: 0 | K148: 0
A149: ='Org structure'!E146 -> 14.1 - [Name of sub-vote]
A150: ='Org structure'!E147 -> 0
A151: ='Org structure'!E148 -> 0
A152: ='Org structure'!E149 -> 0
A153: ='Org structure'!E150 -> 0
A154: ='Org structure'!E151 -> 0
A155: ='Org structure'!E152 -> 0
A156: ='Org structure'!E153 -> 0
A157: ='Org structure'!E154 -> 0
A158: ='Org structure'!E155 -> 0
A159: ='Org structure'!A16 -> Vote 15 - [NAME OF VOTE 15] | C159: =SUM(C160:C169) -> 0 | D159: =SUM(D160:D169) -> 0 | E159: 0 | F159: 0 | G159: 0 | H159: 0 | I159: 0 | J159: 0 | K159: 0
A160: ='Org structure'!E157 -> 15.1 - [Name of sub-vote]
A161: ='Org structure'!E158 -> 0
A162: ='Org structure'!E159 -> 0
A163: ='Org structure'!E160 -> 0
A164: ='Org structure'!E161 -> 0
A165: ='Org structure'!E162 -> 0
A166: ='Org structure'!E163 -> 0
A167: ='Org structure'!E164 -> 0
A168: ='Org structure'!E165 -> 0
A169: ='Org structure'!E166 -> 0
A170: Total Revenue by Vote | B170: 2 | C170: =C5+C16+C27+C38+C49+C60+C71+C82+C93+C104+C115+C126+C137+C148+C159 -> 252909645.4 | D170: =D5+D16+D27+D38+D49+D60+D71+D82+D93+D104+D115+D126+D137+D148+D159 -> 344319379.3 | E170: =E5+E16+E27+E38+E49+E60+E71+E82+E93+E104+E115+E126+E137+E148+E159 -> 278678783.5 | F170: 396685439 | G170: 405798367 | H170: 405798367 | I170: =I5+I16+I27+I38+I49+I60+I71+I82+I93+I104+I115+I126+I137+I148+I159 -> 465771148 | J170: 455937702 | K170: 480150538 | L170: =SUM(L78:L81) -> 0 | M170: 0 | N170: 0 | O170: 0 | P170: 0 | Q170: 0 | R170: 0 | S170: 0 | T170: 0 | U170: 0 | V170: 0 | W170: 0
A172: Expenditure by Vote | B172: 1
A173: =A5 -> Vote 1 - Executive & Council | C173: 13367141.5 | D173: 13800577.65 | E173: 18704988.54 | F173: 13391279 | G173: 13391288 | H173: 13391288 | I173: 16804521 | J173: 17745061 | K173: 18514670
A174: =A6 -> 1.1 - [Name of sub-vote]
A175: 0
A176: 0
A177: 0
A178: 0
A179: 0
A180: 0
A181: 0
A182: 0
A183: 0
A184: =A16 -> Vote 2 - Municipal Manager | C184: 11398416.98 | D184: 11671094.19 | E184: 9380203.5 | F184: 13172136 | G184: 14378573 | H184: 14378573 | I184: 16392323 | J184: 17566973 | K184: 18367919
A185: =A17 -> 2.1 - [Name of sub-vote]
A186: 0
A187: 0
A188: 0
A189: 0
A190: 0
A191: 0
A192: 0
A193: 0
A194: 0
A195: =A27 -> Vote 3 - Finance Services | C195: 136613608.8 | D195: 99778360.82 | E195: 70919960.43 | F195: 112189682 | G195: 72508058 | H195: 72508058 | I195: 41118262 | J195: 43076228 | K195: 44822415
A196: 3.1 - [Name of sub-vote]
A197: 0
A198: 0
A199: 0
A200: 0
A201: 0
... 142 more rows

Sheet A4-FinPerf RE
A1: =muni&" - "&Approve4 -> 0 - Table A4 Budgeted Financial Performance (revenue and expenditure)
A2: =desc -> Description | B2: =head27 -> Ref | C2: =head1b -> 2019/20 | D2: =head1A -> 2020/21 | E2: =Head1 -> 2021/22 | F2: =Head2 -> Current Year 2022/23 | J2: =Head3 -> 2023/24 Medium Term Revenue & Expenditure Framework | M2: =Head4 -> LTFS
A3: R thousand | B3: 1 | C3: =Head5 -> Audited Outcome | D3: =Head5 -> Audited Outcome | E3: =Head5 -> Audited Outcome | F3: =Head6 -> Original Budget | G3: =Head7 -> Adjusted Budget | H3: =Head8 -> Full Year Forecast | I3: =Head5b -> Pre-audit outcome | J3: =Head9 -> Budget Year 2023/24 | K3: =Head10 -> Budget Year +1 2024/25 | L3: =Head11 -> Budget Year +2 2025/26 | M3: =Head12 -> Forecast 2026/27 | N3: =Head13 -> Forecast 2027/28 | O3: =Head14 -> Forecast 2028/29 | P3: =Head15 -> Forecast 2029/30 | Q3: =Head16 -> Forecast 2030/31 | R3: =Head17 -> Forecast 2031/32 | S3: =Head18 -> Forecast 2032/33 | T3: =Head19 -> Forecast 2033/34 | U3: =Head20 -> Forecast 2034/35 | V3: =Head21 -> Forecast 2035/36 | W3: =Head22 -> Forecast 2036/37 | X3: =Head23 -> Forecast 2037/38
A4: Revenue
A5: Exchange Revenue
A6: Service charges - Electricity | B6: 2 | C6: ='SA1'!C17 -> 44127504.52 | D6: ='SA1'!D17 -> 61296992.82 | E6: ='SA1'!E17 -> 48840534.08 | F6: ='SA1'!F17 -> 61938315 | G6: ='SA1'!G17 -> 47000000 | H6: ='SA1'!H17 -> 47000000 | I6: ='SA1'!I17 -> 48000000 | J6: ='SA1'!J17 -> 79175634 | K6: ='SA1'!K17 -> 87006360 | L6: ='SA1'!L17 -> 92006742
A7: Service charges - Water | B7: 2 | C7: ='SA1'!C23 -> 30460404.96 | D7: ='SA1'!D23 -> 21109232.32 | E7: ='SA1'!E23 -> 24573113.96 | F7: ='SA1'!F23 -> 32133857 | G7: ='SA1'!G23 -> 23500002 | H7: ='SA1'!H23 -> 23500002 | I7: ='SA1'!I23 -> 24500002 | J7: ='SA1'!J23 -> 33248800 | K7: ='SA1'!K23 -> 34900000 | L7: ='SA1'!L23 -> 36800000
A8: Service charges - Waste Water Management | B8: 2 | C8: ='SA1'!C29 -> 22035368.28 | D8: ='SA1'!D29 -> 23322802.45 | E8: ='SA1'!E29 -> 26223309.75 | F8: ='SA1'!F29 -> 32766614 | G8: ='SA1'!G29 -> 30200000 | H8: ='SA1'!H29 -> 30200000 | I8: ='SA1'!I29 -> 31200000 | J8: ='SA1'!J29 -> 35209480 | K8: ='SA1'!K29 -> 35430040 | L8: ='SA1'!L29 -> 35750182
A9: Service charges - Waste Management | B9: 2 | C9: ='SA1'!C36 -> 16294959.26 | D9: ='SA1'!D36 -> 16466500.89 | E9: ='SA1'!E36 -> 18321717.01 | F9: ='SA1'!F36 -> 22206512 | G9: ='SA1'!G36 -> 20600000 | H9: ='SA1'!H36 -> 20600000 | I9: ='SA1'!I36 -> 21600000 | J9: ='SA1'!J36 -> 30900000 | K9: ='SA1'!K36 -> 32908500 | L9: ='SA1'!L36 -> 35047552
A10: Sale of Goods and Rendering of Services | C10: 641354.99 | D10: 713197.3 | E10: 480748.27 | F10: 831657 | G10: 415521 | H10: 415521 | I10: 415521 | J10: 651000 | K10: 676580 | L10: 693035
A11: Agency services | C11: 0 | D11: 0 | E11: 0 | F11: 0 | G11: 0 | H11: 0 | I11: 0 | J11: 0 | K11: 0 | L11: 0
A12: Interest | C12: 0 | D12: 0 | E12: 0 | F12: 0 | G12: 0 | H12: 0 | I12: 0 | J12: 0 | K12: 0 | L12: 0
A13: Interest earned from Receivables | C13: 22640652.41 | D13: 46081467.89 | E13: 53597043.07 | F13: 57646001 | G13: 57646001 | H13: 57646001 | I13: 57646001 | J13: 93000000 | K13: 95000000 | L13: 100000000
A14: Interest earned from Current and Non Current Assets | C14: 237735.51 | D14: 155154.76 | E14: 43953.02 | F14: 239660 | G14: 479320 | H14: 479320 | I14: 479320 | J14: 270205 | K14: 282664 | L14: 283936
A15: Dividends | C15: 11358.88 | D15: 59106.27 | E15: 69508.12 | F15: 37512 | G15: 45012 | H15: 45012 | I15: 45012 | J15: 39163 | K15: 40925 | L15: 40925
A16: Rent on Land | C16: 0 | D16: 173.92 | E16: 1992.21 | F16: 0 | G16: 0 | H16: 0 | I16: 0 | J16: 100000 | K16: 100000 | L16: 100000
A17: Rental from Fixed Assets | C17: 1267919.53 | D17: 1704916.78 | E17: 1641307.75 | F17: 1750433 | G17: 966625 | H17: 966625 | I17: 966625 | J17: 1080000 | K17: 1200000 | L17: 1200000
A18: Licence and permits | C18: 10081.13 | D18: 25380.2 | E18: 0 | F18: 0 | G18: 0 | H18: 0 | I18: 0 | J18: 100000 | K18: 100000 | L18: 100000
A19: Operational Revenue | C19: 796015.11 | D19: 702560.11 | E19: 562737.91 | F19: 1977997 | G19: 949535 | H19: 949535 | I19: 949535 | J19: 894767 | K19: 899031 | L19: 899031
A20: Non-Exchange Revenue
A21: Property rates | B21: 2 | C21: ='SA1'!C10 -> 20176912.05 | D21: ='SA1'!D10 -> 18630928.98 | E21: ='SA1'!E10 -> 20069121.4 | F21: ='SA1'!F10 -> 24132992 | G21: ='SA1'!G10 -> 21300000 | H21: ='SA1'!H10 -> 21300000 | I21: ='SA1'!I10 -> 21300000 | J21: ='SA1'!J10 -> 23832623 | K21: ='SA1'!K10 -> 25381744 | L21: ='SA1'!L10 -> 27031557
A22: Surcharges and Taxes | C22: 0 | D22: 0 | E22: 0 | F22: 0 | G22: 0 | H22: 0 | I22: 0 | J22: 0 | K22: 0 | L22: 0
A23: Fines, penalties and forfeits | C23: 309449.5 | D23: 210490 | E23: 282212.79 | F23: 145880 | G23: 1000000 | H23: 1000000 | I23: 1000000 | J23: 500000 | K23: 530000 | L23: 561800
A24: Licences or permits | C24: 0 | D24: 0 | E24: 0 | F24: 0 | G24: 0 | H24: 0 | I24: 0 | J24: 0 | K24: 0 | L24: 0
A25: Transfer and subsidies - Operational | C25: 100525796.3 | D25: 111900277.8 | E25: 96081999.77 | F25: 106863009 | G25: 106585351 | H25: 106585351 | I25: 106585351 | J25: 115573958 | K25: 120941675 | L25: 127517907
A26: Interest | C26: 1974878.56 | D26: 4615885.93 | E26: 5390235.73 | F26: 0 | G26: 39596000 | H26: 39596000 | I26: 39596000 | J26: 10000000 | K26: 11000000 | L26: 12000000
A27: Fuel Levy | C27: 0 | D27: 0 | E27: 0 | F27: 0 | G27: 0 | H27: 0 | I27: 0 | J27: 0 | K27: 0 | L27: 0
A28: Operational Revenue | C28: 0 | D28: 0 | E28: 0 | F28: 0 | G28: 0 | H28: 0 | I28: 0 | J28: 0 | K28: 0 | L28: 0
A29: Gains on disposal of Assets | C29: 0 | D29: -410330.54 | E29: -8949390.6 | F29: 0 | G29: 0 | H29: 0 | I29: 0 | J29: 0 | K29: 0 | L29: 0
A30: Other Gains | C30: 0 | D30: 3986655.14 | E30: -16887104.57 | F30: 0 | G30: 0 | H30: 0 | I30: 0 | J30: 0 | K30: 0 | L30: 0
A31: Discontinued Operations
A32: Total Revenue (excluding capital transfers and contributions) | C32: =SUM(C6:C19)+SUM(C21:C31) -> 261510391 | D32: =SUM(D6:D19)+SUM(D21:D31) -> 310571393.1 | E32: 270343039.7 | F32: 342670439 | G32: 350283367 | H32: 350283367 | I32: 354283367 | J32: 424575630 | K32: 446397519 | L32: 470032667
A33: Expenditure
A34: Employee related costs | B34: 2 | C34: ='SA1'!C71 -> 100917651.5 | D34: ='SA1'!D71 -> 104849569.2 | E34: ='SA1'!E71 -> 111097592.5 | F34: ='SA1'!F71 -> 111243576 | G34: ='SA1'!G71 -> 111244811 | H34: ='SA1'!H71 -> 111244811 | I34: ='SA1'!I71 -> 111244811 | J34: ='SA1'!J71 -> 114544998 | K34: ='SA1'!K71 -> 121061287 | L34: ='SA1'!L71 -> 126559436 | M34: ='SA1'!M71 -> 0 | N34: ='SA1'!N71 -> 0 | O34: ='SA1'!O71 -> 0 | P34: ='SA1'!P71 -> 0 | Q34: ='SA1'!Q71 -> 0 | R34: ='SA1'!R71 -> 0 | S34: ='SA1'!S71 -> 0 | T34: ='SA1'!T71 -> 0
A35: Remuneration of councillors | C35: 7196977.53 | D35: 8489338.91 | E35: 7721907.07 | F35: 6221546 | G35: 6221549 | H35: 6221549 | I35: 6221549 | J35: 7731598 | K35: 8145000 | L35: 8460006
A36: Bulk purchases - electricity | B36: 2 | C36: ='SA1'!C88 -> 47925156.55 | D36: ='SA1'!D88 -> 63537990.31 | E36: ='SA1'!E88 -> 55678159.45 | F36: ='SA1'!F88 -> 62814188 | G36: ='SA1'!G88 -> 60000000 | H36: ='SA1'!H88 -> 60000000 | I36: ='SA1'!I88 -> 60000000 | J36: ='SA1'!J88 -> 76000000 | K36: ='SA1'!K88 -> 83000000 | L36: ='SA1'!L88 -> 87000000
A37: Inventory consumed | B37: 8 | C37: ='SA1'!C169 -> 8567818.56 | D37: ='SA1'!D169 -> 8340631.11 | E37: ='SA1'!E169 -> 13697104.95 | F37: ='SA1'!F169 -> 7827195 | G37: ='SA1'!G169 -> 11093376 | H37: ='SA1'!H169 -> 11093376 | I37: ='SA1'!I169 -> 11093376 | J37: ='SA1'!J169 -> 10555406 | K37: ='SA1'!K169 -> 11068880 | L37: ='SA1'!L169 -> 11738503
A38: Debt impairment | B38: 3 | C38: 208655.86 | D38: 0 | E38: 0 | F38: 48756225 | G38: 42583771 | H38: 42583771 | I38: 42583771 | J38: 72886487 | K38: 77624109 | L38: 82669676
A39: Depreciation and amortisation | C39: ='SA1'!C83 -> 71504834.31 | D39: ='SA1'!D83 -> 36167530.25 | E39: ='SA1'!E83 -> 30354131.94 | F39: ='SA1'!F83 -> 35780275 | G39: ='SA1'!G83 -> 97085318 | H39: ='SA1'!H83 -> 97085318 | I39: ='SA1'!I83 -> 97085318 | J39: ='SA1'!J83 -> 40675000 | K39: ='SA1'!K83 -> 39777400 | L39: ='SA1'!L83 -> 39948256
A40: Interest | C40: 23136801.9 | D40: 8659780.66 | E40: 17038144.37 | F40: 8899288 | G40: 19884000 | H40: 19884000 | I40: 19884000 | J40: 3722000 | K40: 3833930 | L40: 3953135
A41: Contracted services | C41: ='SA1'!C127 -> 20444432.94 | D41: ='SA1'!D127 -> 17616183.16 | E41: ='SA1'!E127 -> 10393845.48 | F41: ='SA1'!F127 -> 19287952 | G41: ='SA1'!G127 -> 11273977 | H41: ='SA1'!H127 -> 11273977 | I41: ='SA1'!I127 -> 11273977 | J41: ='SA1'!J127 -> 19155574 | K41: ='SA1'!K127 -> 19929458 | L41: ='SA1'!L127 -> 20759979
A42: Transfers and subsidies | C42: ='SA1'!C93 -> 0 | D42: ='SA1'!D93 -> 717394 | E42: ='SA1'!E93 -> 0 | F42: ='SA1'!F93 -> 0 | G42: ='SA1'!G93 -> 0 | H42: ='SA1'!H93 -> 0 | I42: ='SA1'!I93 -> 0 | J42: ='SA1'!J93 -> 1722000 | K42: ='SA1'!K93 -> 1833930 | L42: ='SA1'!L93 -> 1953135
A43: Irrecoverable debts written off | C43: 152783592.9 | D43: 106487876.2 | E43: 108211609.1 | F43: 5215625 | G43: 59215625 | H43: 59215625 | I43: 59215625 | J43: 24295496 | K43: 25874703 | L43: 27556558
A44: Operational costs | C44: 31876979.98 | D44: 20261759.38 | E44: 21136301.47 | F44: 32134019 | G44: 20995498 | H44: 20995498 | I44: 20995498 | J44: 17955004 | K44: 18716230 | L44: 19613078
A45: Losses on disposal of Assets | C45: 958116.04 | D45: 0 | E45: 0 | F45: 0 | G45: 0 | H45: 0 | I45: 0 | J45: 0 | K45: 0 | L45: 0
A46: Other Losses | C46: 33766.19 | D46: 0 | E46: 0 | F46: 0 | G46: 0 | H46: 0 | I46: 0 | J46: 0 | K46: 0 | L46: 0
A47: Total Expenditure | C47: =SUM(C34:C46) -> 465554784.3 | D47: =SUM(D34:D46) -> 375128053.1 | E47: 375328796.3 | F47: 338179889 | G47: 439597925 | H47: 439597925 | I47: 439597925 | J47: 389243563 | K47: 410864927 | L47: 430211762 | M47: =SUM(M34:M46) -> 0 | N47: 0 | O47: 0 | P47: 0 | Q47: 0 | R47: 0 | S47: 0 | T47: 0 | U47: 0 | V47: 0 | W47: 0 | X47: 0
A48: Surplus/(Deficit) | C48: =C32-C47 -> -204044393.2 | D48: -64556660.08 | E48: -104985756.6 | F48: 4490550 | G48: -89314558 | H48: -89314558 | I48: -85314558 | J48: 35332067 | K48: 35532592 | L48: 39820905 | M48: =M32+M47 -> 0 | N48: 0 | O48: 0 | P48: 0 | Q48: 0 | R48: 0 | S48: 0 | T48: 0 | U48: 0 | V48: 0 | W48: 0 | X48: 0
A49: Transfers and subsidies - capital (monetary allocations) | B49: 6 | C49: 11576166.47 | D49: 52378915.2 | E49: 28404865.21 | F49: 54015000 | G49: 55515000 | H49: 55515000 | I49: 55515000 | J49: 41195518 | K49: 9540183 | L49: 10117871
A50: Transfers and subsidies - capital (in-kind) | B50: 6 | C50: 0 | D50: 0 | E50: 0 | F50: 0 | G50: 0 | H50: 0 | I50: 0 | J50: 0 | K50: 0 | L50: 0
A51: Surplus/(Deficit) after capital transfers & contributions | C51: =SUM(C48:C50) -> -192468226.8 | D51: -12177744.88 | E51: -76580891.43 | F51: 58505550 | G51: -33799558 | H51: -33799558 | I51: -29799558 | J51: 76527585 | K51: 45072775 | L51: 49938776
A52: Income Tax | C52: 0 | D52: 0 | E52: 0 | F52: 0 | G52: 0 | H52: 0 | I52: 0 | J52: 0 | K52: 0 | L52: 0
A53: Surplus/(Deficit) after income tax | C53: =+C51-C52 -> -192468226.8 | D53: =+D51-D52 -> -12177744.88 | E53: -76580891.43 | F53: 58505550 | G53: -33799558 | H53: -33799558 | I53: -29799558 | J53: 76527585 | K53: 45072775 | L53: 49938776 | M53: 0 | N53: 0 | O53: 0 | P53: 0 | Q53: 0
A54: Share of Surplus/Deficit attributable to Joint Venture | C54: 0 | D54: 0 | E54: 0 | F54: 0 | G54: 0 | H54: 0 | I54: 0 | J54: 0 | K54: 0 | L54: 0
A55: Share of Surplus/Deficit attributable to Minorities | C55: 0 | D55: 0 | E55: 0 | F55: 0 | G55: 0 | H55: 0 | I55: 0 | J55: 0 | K55: 0 | L55: 0
A56: Surplus/(Deficit) attributable to municipality | C56: =SUM(C53:C55) -> -192468226.8 | D56: =SUM(D53:D55) -> -12177744.88 | E56: -76580891.43 | F56: 58505550 | G56: -33799558 | H56: -33799558 | I56: -29799558 | J56: 76527585 | K56: 45072775 | L56: 49938776 | M56: 0 | N56: 0 | O56: 0 | P56: 0 | Q56: 0
A57: Share of Surplus/Deficit attributable to Associate | B57: 7 | C57: 0 | D57: 0 | E57: 0 | F57: 0 | G57: 0 | H57: 0 | I57: 0 | J57: 0 | K57: 0 | L57: 0
A58: Intercompany/Parent subsidiary transactions | C58: 0 | D58: 0 | E58: 0 | F58: 0 | G58: 0 | H58: 0 | I58: 0 | J58: 0 | K58: 0 | L58: 0
A59: =result -> Surplus/(Deficit) for the year | B59: 1 | C59: =SUM(C56:C58) -> -192468226.8 | D59: =SUM(D56:D58) -> -12177744.88 | E59: -76580891.43 | F59: 58505550 | G59: -33799558 | H59: -33799558 | I59: -29799558 | J59: 76527585 | K59: 45072775 | L59: 49938776 | M59: 0 | N59: 0 | O59: 0 | P59: 0 | Q59: 0 | R59: =R35+R58 -> 0 | S59: 0 | T59: 0 | U59: 0 | V59: 0 | W59: 0 | X59: 0
A60: References
A61: 1. Classifications are revenue sources and expenditure type
A62: 2. Detail to be provided in Table SA1 | O62: =O59-'A4-FinPerf RE'!J59 -> -76527585 | P62: =P59-'A4-FinPerf RE'!K59 -> -45072775 | Q62: =Q59-'A4-FinPerf RE'!L59 -> -49938776
A63: 3. Debt impairment includes Impairment and Reversal of Impairment Losses
A64: 4. Expenditure type components previously shown under repairs and maintenance should be allocated back to the originating expenditure group/item; e.g. employee costs
A65: 5. Repairs & maintenance detailed in Table A9 and Table SA34c
A66: 6. Contributions are funds provided by external organisations to assist with infrastructure development; e.g. developer contributions (detail to be provided in Table SA1)
A67: 7. Equity method ( Includes Joint Ventures)
A68: 8. All materials consumed including water consumed and materials used in operations.

Sheet A5-Capex
A2: =Vdesc -> Vote Description | B2: =head27 -> Ref | C2: =head1b -> 2019/20 | D2: =head1A -> 2020/21 | E2: =Head1 -> 2021/22 | F2: =Head2 -> Current Year 2022/23 | J2: =Head3 -> 2023/24 Medium Term Revenue & Expenditure Framework
A3: R thousand | B3: 1 | C3: =Head5 -> Audited Outcome | D3: =Head5 -> Audited Outcome | E3: =Head5 -> Audited Outcome | F3: =Head6 -> Original Budget | G3: =Head7 -> Adjusted Budget | H3: =Head8 -> Full Year Forecast | I3: =Head5b -> Pre-audit outcome | J3: =Head9 -> Budget Year 2023/24 | K3: =Head10 -> Budget Year +1 2024/25 | L3: =Head11 -> Budget Year +2 2025/26
A4: Capital expenditure - Vote
A5: Multi-year expenditure to be appropriated | B5: 2
A6: =A5A!A6 -> Vote 1 - Executive & Council | C6: =A5A!C6 -> 0 | D6: =A5A!D6 -> 0 | E6: =A5A!E6 -> 0 | F6: =A5A!F6 -> 0 | G6: =A5A!G6 -> 0 | H6: =A5A!H6 -> 0 | I6: =A5A!I6 -> 0 | J6: =A5A!J6 -> 0 | K6: =A5A!K6 -> 0 | L6: =A5A!L6 -> 0
A7: =A5A!A17 -> Vote 2 - Municipal Manager | C7: =A5A!C17 -> 0 | D7: =A5A!D17 -> 0 | E7: =A5A!E17 -> 2111409.5 | F7: =A5A!F17 -> 400000 | G7: =A5A!G17 -> 500000 | H7: =A5A!H17 -> 500000 | I7: =A5A!I17 -> 500000 | J7: =A5A!J17 -> 0 | K7: =A5A!K17 -> 0 | L7: =A5A!L17 -> 0
A8: =A5A!A28 -> Vote 3 - Finance Services | C8: =A5A!C28 -> 0 | D8: =A5A!D28 -> 1922528.01 | E8: =A5A!E28 -> 13303974.44 | F8: =A5A!F28 -> 5998872 | G8: =A5A!G28 -> 5998872 | H8: =A5A!H28 -> 5998872 | I8: =A5A!I28 -> 5998872 | J8: =A5A!J28 -> 990987 | K8: =A5A!K28 -> 1245050 | L8: =A5A!L28 -> 1292561
A9: =A5A!A39 -> Vote 4 - Corporate Services | C9: =A5A!C39 -> 0 | D9: =A5A!D39 -> 0 | E9: =A5A!E39 -> 0 | F9: =A5A!F39 -> 0 | G9: =A5A!G39 -> 0 | H9: =A5A!H39 -> 0 | I9: =A5A!I39 -> 0 | J9: =A5A!J39 -> 0 | K9: =A5A!K39 -> 0 | L9: =A5A!L39 -> 0
A10: =A5A!A50 -> Vote 5 - Community Services | C10: =A5A!C50 -> 4593221.63 | D10: =A5A!D50 -> 8628419.8 | E10: =A5A!E50 -> 0 | F10: =A5A!F50 -> 10000000 | G10: =A5A!G50 -> 10000000 | H10: =A5A!H50 -> 10000000 | I10: =A5A!I50 -> 10000000 | J10: =A5A!J50 -> 0 | K10: =A5A!K50 -> 0 | L10: =A5A!L50 -> 0
A11: =A5A!A61 -> Vote 6 - Technical Services | C11: =A5A!C61 -> 9446466.23 | D11: =A5A!D61 -> -16792025.89 | E11: =A5A!E61 -> 25772177.12 | F11: =A5A!F61 -> 35996129 | G11: =A5A!G61 -> 30796131 | H11: =A5A!H61 -> 30796131 | I11: =A5A!I61 -> 30796131 | J11: =A5A!J61 -> 26253219 | K11: =A5A!K61 -> 16100885 | L11: =A5A!L61 -> 16787503
A12: =A5A!A72 -> Vote 7 - COMMUNITY & SOCIAL SERVICES | C12: =A5A!C72 -> 0 | D12: =A5A!D72 -> 0 | E12: =A5A!E72 -> 0 | F12: =A5A!F72 -> 0 | G12: =A5A!G72 -> 0 | H12: =A5A!H72 -> 0 | I12: =A5A!I72 -> 0 | J12: =A5A!J72 -> 0 | K12: =A5A!K72 -> 0 | L12: =A5A!L72 -> 0
A13: =A5A!A83 -> Vote 8 - [NAME OF VOTE 8] | C13: =A5A!C83 -> 0 | D13: =A5A!D83 -> 0 | E13: =A5A!E83 -> 0 | F13: =A5A!F83 -> 0 | G13: =A5A!G83 -> 0 | H13: =A5A!H83 -> 0 | I13: =A5A!I83 -> 0 | J13: =A5A!J83 -> 0 | K13: =A5A!K83 -> 0 | L13: =A5A!L83 -> 0
A14: =A5A!A94 -> Vote 9 - [NAME OF VOTE 9] | C14: =A5A!C94 -> 0 | D14: =A5A!D94 -> 0 | E14: =A5A!E94 -> 0 | F14: =A5A!F94 -> 0 | G14: =A5A!G94 -> 0 | H14: =A5A!H94 -> 0 | I14: =A5A!I94 -> 0 | J14: =A5A!J94 -> 0 | K14: =A5A!K94 -> 0 | L14: =A5A!L94 -> 0
A15: =A5A!A105 -> Vote 10 - [NAME OF VOTE 10] | C15: =A5A!C105 -> 0 | D15: =A5A!D105 -> 0 | E15: =A5A!E105 -> 0 | F15: =A5A!F105 -> 0 | G15: =A5A!G105 -> 0 | H15: =A5A!H105 -> 0 | I15: =A5A!I105 -> 0 | J15: =A5A!J105 -> 0 | K15: =A5A!K105 -> 0 | L15: =A5A!L105 -> 0
A16: =A5A!A116 -> Vote 11 - [NAME OF VOTE 11] | C16: =A5A!C116 -> 0 | D16: =A5A!D116 -> 0 | E16: =A5A!E116 -> 0 | F16: =A5A!F116 -> 0 | G16: =A5A!G116 -> 0 | H16: =A5A!H116 -> 0 | I16: =A5A!I116 -> 0 | J16: =A5A!J116 -> 0 | K16: =A5A!K116 -> 0 | L16: =A5A!L116 -> 0
A17: =A5A!A127 -> Vote 12 - [NAME OF VOTE 12] | C17: =A5A!C127 -> 0 | D17: =A5A!D127 -> 0 | E17: =A5A!E127 -> 0 | F17: =A5A!F127 -> 0 | G17: =A5A!G127 -> 0 | H17: =A5A!H127 -> 0 | I17: =A5A!I127 -> 0 | J17: =A5A!J127 -> 0 | K17: =A5A!K127 -> 0 | L17: =A5A!L127 -> 0
A18: =A5A!A138 -> Vote 13 - [NAME OF VOTE 13] | C18: =A5A!C138 -> 0 | D18: =A5A!D138 -> 0 | E18: =A5A!E138 -> 0 | F18: =A5A!F138 -> 0 | G18: =A5A!G138 -> 0 | H18: =A5A!H138 -> 0 | I18: =A5A!I138 -> 0 | J18: =A5A!J138 -> 0 | K18: =A5A!K138 -> 0 | L18: =A5A!L138 -> 0
A19: =A5A!A149 -> Vote 14 - [NAME OF VOTE 14] | C19: =A5A!C149 -> 0 | D19: =A5A!D149 -> 0 | E19: =A5A!E149 -> 0 | F19: =A5A!F149 -> 0 | G19: =A5A!G149 -> 0 | H19: =A5A!H149 -> 0 | I19: =A5A!I149 -> 0 | J19: =A5A!J149 -> 0 | K19: =A5A!K149 -> 0 | L19: =A5A!L149 -> 0
A20: =A5A!A160 -> Vote 15 - [NAME OF VOTE 15] | C20: =A5A!C160 -> 0 | D20: =A5A!D160 -> 0 | E20: =A5A!E160 -> 0 | F20: =A5A!F160 -> 0 | G20: =A5A!G160 -> 0 | H20: =A5A!H160 -> 0 | I20: =A5A!I160 -> 0 | J20: =A5A!J160 -> 0 | K20: =A5A!K160 -> 0 | L20: =A5A!L160 -> 0
A21: Capital multi-year expenditure sub-total | B21: 7 | C21: =SUM(C6:C20) -> 14039687.86 | D21: =SUM(D6:D20) -> -6241078.08 | E21: 41187561.06 | F21: 52395001 | G21: 47295003 | H21: =SUM(H6:H20) -> 47295003 | I21: 47295003 | J21: 27244206 | K21: 17345935 | L21: 18080064
A23: Single-year expenditure to be appropriated | B23: 2
A24: =A6 -> Vote 1 - Executive & Council | C24: =A5A!C175 -> 0 | D24: =A5A!D175 -> 0 | E24: =A5A!E175 -> 0 | F24: =A5A!F175 -> 0 | G24: =A5A!G175 -> 0 | H24: =A5A!H175 -> 0 | I24: =A5A!I175 -> 0 | J24: =A5A!J175 -> 0 | K24: =A5A!K175 -> 0 | L24: =A5A!L175 -> 0
A25: =A7 -> Vote 2 - Municipal Manager | C25: =A5A!C186 -> 0 | D25: =A5A!D186 -> 0 | E25: =A5A!E186 -> 0 | F25: =A5A!F186 -> 0 | G25: =A5A!G186 -> 0 | H25: =A5A!H186 -> 0 | I25: =A5A!I186 -> 0 | J25: =A5A!J186 -> 0 | K25: =A5A!K186 -> 0 | L25: =A5A!L186 -> 0
A26: Vote 3 - Finance Services | C26: =A5A!C197 -> 0 | D26: =A5A!D197 -> -0.32 | E26: =A5A!E197 -> 0 | F26: =A5A!F197 -> 0 | G26: =A5A!G197 -> 0 | H26: =A5A!H197 -> 0 | I26: =A5A!I197 -> 0 | J26: =A5A!J197 -> 0 | K26: =A5A!K197 -> 0 | L26: =A5A!L197 -> 0
A27: Vote 4 - Corporate Services | C27: =A5A!C208 -> 0 | D27: =A5A!D208 -> 0 | E27: =A5A!E208 -> 0 | F27: =A5A!F208 -> 0 | G27: =A5A!G208 -> 0 | H27: =A5A!H208 -> 0 | I27: =A5A!I208 -> 0 | J27: =A5A!J208 -> 0 | K27: =A5A!K208 -> 0 | L27: =A5A!L208 -> 0
A28: Vote 5 - Community Services | C28: =A5A!C219 -> 0 | D28: =A5A!D219 -> 0 | E28: =A5A!E219 -> 0 | F28: =A5A!F219 -> 0 | G28: =A5A!G219 -> 0 | H28: =A5A!H219 -> 0 | I28: =A5A!I219 -> 0 | J28: =A5A!J219 -> 0 | K28: =A5A!K219 -> 0 | L28: =A5A!L219 -> 0
A29: Vote 6 - Technical Services | C29: =A5A!C230 -> 0 | D29: =A5A!D230 -> 0 | E29: =A5A!E230 -> 2552810.42 | F29: =A5A!F230 -> 0 | G29: =A5A!G230 -> 0 | H29: =A5A!H230 -> 0 | I29: =A5A!I230 -> 0 | J29: =A5A!J230 -> 5946803 | K29: =A5A!K230 -> 7471407 | L29: =A5A!L230 -> 7756516
A30: Vote 7 - COMMUNITY & SOCIAL SERVICES | C30: =A5A!C241 -> 0 | D30: =A5A!D241 -> 0 | E30: =A5A!E241 -> 0 | F30: =A5A!F241 -> 0 | G30: =A5A!G241 -> 0 | H30: =A5A!H241 -> 0 | I30: =A5A!I241 -> 0 | J30: =A5A!J241 -> 0 | K30: =A5A!K241 -> 0 | L30: =A5A!L241 -> 0
A31: Vote 8 - [NAME OF VOTE 8] | C31: =A5A!C252 -> 0 | D31: =A5A!D252 -> 0 | E31: =A5A!E252 -> 0 | F31: =A5A!F252 -> 0 | G31: =A5A!G252 -> 0 | H31: =A5A!H252 -> 0 | I31: =A5A!I252 -> 0 | J31: =A5A!J252 -> 0 | K31: =A5A!K252 -> 0 | L31: =A5A!L252 -> 0
A32: Vote 9 - [NAME OF VOTE 9] | C32: =A5A!C263 -> 0 | D32: =A5A!D263 -> 0 | E32: =A5A!E263 -> 0 | F32: =A5A!F263 -> 0 | G32: =A5A!G263 -> 0 | H32: =A5A!H263 -> 0 | I32: =A5A!I263 -> 0 | J32: =A5A!J263 -> 0 | K32: =A5A!K263 -> 0 | L32: =A5A!L263 -> 0
A33: Vote 10 - [NAME OF VOTE 10] | C33: =A5A!C274 -> 0 | D33: =A5A!D274 -> 0 | E33: =A5A!E274 -> 0 | F33: =A5A!F274 -> 0 | G33: =A5A!G274 -> 0 | H33: =A5A!H274 -> 0 | I33: =A5A!I274 -> 0 | J33: =A5A!J274 -> 0 | K33: =A5A!K274 -> 0 | L33: =A5A!L274 -> 0
A34: Vote 11 - [NAME OF VOTE 11] | C34: =A5A!C285 -> 0 | D34: =A5A!D285 -> 0 | E34: =A5A!E285 -> 0 | F34: =A5A!F285 -> 0 | G34: =A5A!G285 -> 0 | H34: =A5A!H285 -> 0 | I34: =A5A!I285 -> 0 | J34: =A5A!J285 -> 0 | K34: =A5A!K285 -> 0 | L34: =A5A!L285 -> 0
A35: Vote 12 - [NAME OF VOTE 12] | C35: =A5A!C296 -> 0 | D35: =A5A!D296 -> 0 | E35: =A5A!E296 -> 0 | F35: =A5A!F296 -> 0 | G35: =A5A!G296 -> 0 | H35: =A5A!H296 -> 0 | I35: =A5A!I296 -> 0 | J35: =A5A!J296 -> 0 | K35: =A5A!K296 -> 0 | L35: =A5A!L296 -> 0
A36: Vote 13 - [NAME OF VOTE 13] | C36: =A5A!C307 -> 0 | D36: =A5A!D307 -> 0 | E36: =A5A!E307 -> 0 | F36: =A5A!F307 -> 0 | G36: =A5A!G307 -> 0 | H36: =A5A!H307 -> 0 | I36: =A5A!I307 -> 0 | J36: =A5A!J307 -> 0 | K36: =A5A!K307 -> 0 | L36: =A5A!L307 -> 0
A37: Vote 14 - [NAME OF VOTE 14] | C37: =A5A!C318 -> 0 | D37: =A5A!D318 -> 0 | E37: =A5A!E318 -> 0 | F37: =A5A!F318 -> 0 | G37: =A5A!G318 -> 0 | H37: =A5A!H318 -> 0 | I37: =A5A!I318 -> 0 | J37: =A5A!J318 -> 0 | K37: =A5A!K318 -> 0 | L37: =A5A!L318 -> 0
A38: =A20 -> Vote 15 - [NAME OF VOTE 15] | C38: =A5A!C329 -> 0 | D38: =A5A!D329 -> 0 | E38: =A5A!E329 -> 0 | F38: =A5A!F329 -> 0 | G38: =A5A!G329 -> 0 | H38: =A5A!H329 -> 0 | I38: =A5A!I329 -> 0 | J38: =A5A!J329 -> 0 | K38: =A5A!K329 -> 0 | L38: =A5A!L329 -> 0
A39: Capital single-year expenditure sub-total | C39: =SUM(C24:C38) -> 0 | D39: =SUM(D24:D38) -> -0.32 | E39: 2552810.42 | F39: 0 | G39: 0 | H39: 0 | I39: 0 | J39: 5946803 | K39: 7471407 | L39: 7756516
A40: Total Capital Expenditure - Vote | C40: =C39+C21 -> 14039687.86 | D40: =D39+D21 -> -6241078.4 | E40: 43740371.48 | F40: 52395001 | G40: 47295003 | H40: 47295003 | I40: 47295003 | J40: 33191009 | K40: 24817342 | L40: 25836580
A42: Capital Expenditure - Functional
A43: Governance and administration | C43: =SUM(C44:C46) -> 0 | D43: =SUM(D44:D46) -> -0.32 | E43: 2111409.5 | F43: 400000 | G43: 500000 | H43: 500000 | I43: 500000 | J43: 0 | K43: 0 | L43: 0
A44: Executive and council | C44: 0 | D44: 0 | E44: 0 | F44: 0 | G44: 0 | H44: 0 | I44: 0 | J44: 0 | K44: 0 | L44: 0
A45: Finance and administration | C45: 0 | D45: -0.32 | E45: 2111409.5 | F45: 400000 | G45: 500000 | H45: 500000 | I45: 500000 | J45: 0 | K45: 0 | L45: 0
A46: Internal audit | C46: 0 | D46: 0 | E46: 0 | F46: 0 | G46: 0 | H46: 0 | I46: 0 | J46: 0 | K46: 0 | L46: 0
A47: Community and public safety | C47: =SUM(C48:C52) -> 4593221.63 | D47: =SUM(D48:D52) -> 8628419.8 | E47: 501576.32 | F47: 11035327 | G47: 11035327 | H47: 11035327 | I47: 11035327 | J47: 990987 | K47: 1245050 | L47: 1292561
A48: Community and social services | C48: 809199.37 | D48: 8284619.8 | E48: 501576.32 | F48: 0 | G48: 0 | H48: 0 | I48: 0 | J48: 0 | K48: 0 | L48: 0
A49: Sport and recreation | C49: 3784022.26 | D49: 343800 | E49: 0 | F49: 11035327 | G49: 11035327 | H49: 11035327 | I49: 11035327 | J49: 990987 | K49: 1245050 | L49: 1292561
A50: Public safety | C50: 0 | D50: 0 | E50: 0 | F50: 0 | G50: 0 | H50: 0 | I50: 0 | J50: 0 | K50: 0 | L50: 0
A51: Housing | C51: 0 | D51: 0 | E51: 0 | F51: 0 | G51: 0 | H51: 0 | I51: 0 | J51: 0 | K51: 0 | L51: 0
A52: Health | C52: 0 | D52: 0 | E52: 0 | F52: 0 | G52: 0 | H52: 0 | I52: 0 | J52: 0 | K52: 0 | L52: 0
A53: Economic and environmental services | C53: =SUM(C54:C56) -> 5642577.16 | D53: =SUM(D54:D56) -> -14501716.52 | E53: 9701824.07 | F53: 9077295 | G53: 6077296 | H53: 6077296 | I53: 6077296 | J53: 8004511 | K53: 10056658 | L53: 10440419
A54: Planning and development | C54: 0 | D54: 0 | E54: 0 | F54: 1113750 | G54: 1113750 | H54: 1113750 | I54: 1113750 | J54: 0 | K54: 0 | L54: 0
A55: Road transport | C55: 5642577.16 | D55: -14501716.52 | E55: 9701824.07 | F55: 7963545 | G55: 4963546 | H55: 4963546 | I55: 4963546 | J55: 8004511 | K55: 10056658 | L55: 10440419
A56: Environmental protection | C56: 0 | D56: 0 | E56: 0 | F56: 0 | G56: 0 | H56: 0 | I56: 0 | J56: 0 | K56: 0 | L56: 0
A57: Trading services | C57: =SUM(C58:C61) -> 3803889.07 | D57: =SUM(D58:D61) -> -367781.36 | E57: 31425561.59 | F57: 31882379 | G57: 29682380 | H57: 29682380 | I57: 29682380 | J57: 32200022 | K57: 23572292 | L57: 24544019
A58: Energy sources | C58: 0 | D58: 0 | E58: 6543468.19 | F58: 2800000 | G58: 2800000 | H58: 2800000 | I58: 2800000 | J58: 0 | K58: 0 | L58: 0
A59: Water management | C59: 3772388.78 | D59: -8765383.82 | E59: 16267904.58 | F59: 14846616 | G59: 14846616 | H59: 14846616 | I59: 14846616 | J59: 24584928 | K59: 14004888 | L59: 14611523
A60: Waste water management | C60: 31500.29 | D60: 7525814.86 | E60: 6887867.07 | F60: 11958846 | G60: 9758847 | H60: 9758847 | I60: 9758847 | J60: 3472310 | K60: 4362519 | L60: 4528993
A61: Waste management | C61: 0 | D61: 871787.6 | E61: 1726321.75 | F61: 2276917 | G61: 2276917 | H61: 2276917 | I61: 2276917 | J61: 4142784 | K61: 5204885 | L61: 5403503
A62: Other | C62: 0 | D62: 0 | E62: 0 | F62: 0 | G62: 0 | H62: 0 | I62: 0 | J62: 0 | K62: 0 | L62: 0
A63: Total Capital Expenditure - Functional | B63: 3 | C63: =C43+C47+C53+C57+C62 -> 14039687.86 | D63: =D43+D47+D53+D57+D62 -> -6241078.4 | E63: 43740371.48 | F63: 52395001 | G63: 47295003 | H63: 47295003 | I63: 47295003 | J63: 41195520 | K63: 34874000 | L63: =L43+L47+L53+L57+L62 -> 36276999
A65: Funded by:
A66: National Government | C66: 14039687.86 | D66: -6241078.08 | E66: 32281411.44 | F66: 46795001 | G66: 46795001 | H66: 46795001 | I66: 46795001 | J66: 41195520 | K66: 34874000 | L66: 36276999
A67: Provincial Government | C67: 0 | D67: 0 | E67: 0 | F67: 0 | G67: 0 | H67: 0 | I67: 0 | J67: 0 | K67: 0 | L67: 0
A68: District Municipality | C68: 0 | D68: 0 | E68: 0 | F68: 0 | G68: 0 | H68: 0 | I68: 0 | J68: 0 | K68: 0 | L68: 0
A69: Transfers and subsidies - capital (monetary allocations) (Nat / Prov Departm Agencies, Households, Non-profit Institutions, Private Enterprises, Public Corporatons, Higher Educ Institutions) | C69: 0 | D69: 0 | E69: 0 | F69: 0 | G69: 0 | H69: 0 | I69: 0 | J69: 0 | K69: 0 | L69: 0
A70: Transfers recognised - capital | B70: 4 | C70: =SUM(C66:C69) -> 14039687.86 | D70: -6241078.08 | E70: 32281411.44 | F70: 46795001 | G70: 46795001 | H70: 46795001 | I70: 46795001 | J70: 41195520 | K70: 34874000 | L70: 36276999
A72: Borrowing | B72: 6 | C72: 0 | D72: 0 | E72: 0 | F72: 0 | G72: 0 | H72: 0 | I72: 0 | J72: 0 | K72: 0 | L72: 0
A73: Internally generated funds | C73: 0 | D73: 0 | E73: 11458960.04 | F73: 5600000 | G73: 500002 | H73: 500002 | I73: 500002 | J73: 0 | K73: 0 | L73: 0
A74: Total Capital Funding | B74: 7 | C74: =+C70+C72+C73 -> 14039687.86 | D74: =+D70+D72+D73 -> -6241078.08 | E74: 43740371.48 | F74: 52395001 | G74: 47295003 | H74: 47295003 | I74: 47295003 | J74: 41195520 | K74: 34874000 | L74: 36276999
A75: =head27a -> References
A76: 1. Municipalities may choose to appropriate for capital expenditure for three years or for one year (if one year appropriation projected expenditure required for yr2 and yr3).
A77: 2. Include capital component of PPP unitary payment. Note that capital transfers are only appropriated to municipalities for the budget year
A78: 3. Capital expenditure by functional classification must reconcile to the appropriations by vote
A79: 4. Must reconcile to supporting table SA20 and to Budgeted Financial Performance (revenue and expenditure)
A81: 6. Include finance leases and PPP capital funding component of unitary payment - total borrowing/repayments to reconcile to changes in Table SA17
A82: 7. Total Capital Funding must balance with Total Capital Expenditure
A83: 8. Include any capitalised interest (MFMA section 46) as part of relevant capital budget

Sheet A5A
A1: =muni&" - "&Approve5 -> 0 - Table A5 Budgeted Capital Expenditure by vote, functional classification and funding
A2: =Vdesc -> Vote Description | B2: =head27 -> Ref | C2: =head1b -> 2019/20 | D2: =head1A -> 2020/21 | E2: =Head1 -> 2021/22 | F2: =Head2 -> Current Year 2022/23 | J2: =Head3 -> 2023/24 Medium Term Revenue & Expenditure Framework | N2: ="Multi-year appropriation for "&Head9& " in the "&Head2A&" Annual Budget" -> Multi-year appropriation for Budget Year 2023/24 in the 2022/23 Annual Budget | R2: ="Multi-year appropriation for "&RIGHT(Head10,7)& " in the "&Head2A&" Annual Budget" -> Multi-year appropriation for 2024/25 in the 2022/23 Annual Budget | V2: New multi-year appropriations (funds for new and existing projects)
A3: R thousand | B3: 1 | C3: =Head5 -> Audited Outcome | D3: =Head5 -> Audited Outcome | E3: =Head5 -> Audited Outcome | F3: =Head6 -> Original Budget | G3: =Head7 -> Adjusted Budget | H3: =Head8 -> Full Year Forecast | I3: =Head5b -> Pre-audit outcome | J3: =Head9 -> Budget Year 2023/24 | K3: =Head10 -> Budget Year +1 2024/25 | L3: =Head11 -> Budget Year +2 2025/26 | N3: ="Appropriation for "&RIGHT(Head9,7) -> Appropriation for 2023/24 | O3: ="Adjustments in "&Head2A -> Adjustments in 2022/23 | P3: ="Downward adjustments for "&RIGHT(Head9,7) -> Downward adjustments for 2023/24 | Q3: Appropriation carried forward | R3: ="Appropriation for "&RIGHT(Head9,7) -> Appropriation for 2023/24 | S3: ="Adjustments in "&Head2A -> Adjustments in 2022/23 | T3: ="Downward adjustments for "&RIGHT(Head9,7) -> Downward adjustments for 2023/24 | U3: Appropriation carried forward | V3: =Head9 -> Budget Year 2023/24 | W3: =Head10 -> Budget Year +1 2024/25 | X3: =Head11 -> Budget Year +2 2025/26
A4: Capital expenditure - Municipal Vote
A5: Multi-year expenditure appropriation | B5: 2
A6: ='Org structure'!A2 -> Vote 1 - Executive & Council | C6: 0 | D6: 0 | E6: 0 | F6: 0 | G6: 0 | H6: 0 | I6: 0 | J6: 0 | K6: 0 | L6: 0 | N6: =SUM(N7:N16) -> 0 | O6: 0 | P6: 0 | Q6: 0 | R6: 0 | S6: 0 | T6: 0 | U6: 0 | V6: =SUM(V7:V16) -> 0 | W6: =SUM(W7:W16) -> 0 | X6: =SUM(X7:X16) -> 0
A7: ='Org structure'!E3 -> 1.1 - [Name of sub-vote] | J7: =Q7+V7 -> 0 | K7: =U7+W7 -> 0 | L7: =X7 -> 0 | Q7: =SUM(N7:P7) -> 0 | U7: =SUM(R7:T7) -> 0
A8: ='Org structure'!E4 -> 0 | J8: =Q8+V8 -> 0 | K8: =U8+W8 -> 0 | L8: =X8 -> 0 | Q8: =SUM(N8:P8) -> 0 | U8: =SUM(R8:T8) -> 0
A9: ='Org structure'!E5 -> 0 | J9: =Q9+V9 -> 0 | K9: =U9+W9 -> 0 | L9: 0 | Q9: 0 | U9: 0
A10: ='Org structure'!E6 -> 0 | J10: 0 | K10: 0 | L10: 0 | Q10: 0 | U10: 0
A11: ='Org structure'!E7 -> 0 | J11: 0 | K11: 0 | L11: =X11 -> 0 | Q11: 0 | U11: 0
A12: ='Org structure'!E8 -> 0 | J12: 0 | K12: 0 | L12: 0 | Q12: 0 | U12: 0
A13: ='Org structure'!E9 -> 0 | J13: 0 | K13: 0 | L13: 0 | Q13: 0 | U13: 0
A14: ='Org structure'!E10 -> 0 | J14: 0 | K14: 0 | L14: 0 | Q14: 0 | U14: 0
A15: ='Org structure'!E11 -> 0 | J15: 0 | K15: 0 | L15: 0 | Q15: 0 | U15: 0
A16: ='Org structure'!E12 -> 0 | J16: 0 | K16: 0 | L16: 0 | Q16: 0 | U16: 0
A17: ='Org structure'!A3 -> Vote 2 - Municipal Manager | C17: 0 | D17: 0 | E17: 2111409.5 | F17: 400000 | G17: 500000 | H17: 500000 | I17: 500000 | J17: 0 | K17: 0 | L17: 0 | N17: =SUM(N18:N27) -> 0 | O17: 0 | P17: 0 | Q17: 0 | R17: 0 | S17: 0 | T17: 0 | U17: 0 | V17: 0 | W17: 0 | X17: 0
A18: ='Org structure'!E14 -> 2.1 - [Name of sub-vote] | J18: =Q18+V18 -> 0 | K18: =U18+W18 -> 0 | L18: =X18 -> 0 | Q18: =SUM(N18:P18) -> 0 | U18: 0
A19: ='Org structure'!E15 -> 0 | J19: =Q19+V19 -> 0 | K19: =U19+W19 -> 0 | L19: 0 | Q19: 0 | U19: 0
A20: ='Org structure'!E16 -> 0 | J20: 0 | K20: 0 | L20: 0 | Q20: 0 | U20: 0
A21: ='Org structure'!E17 -> 0 | J21: 0 | K21: =U21+W21 -> 0 | L21: 0 | Q21: 0 | U21: 0
A22: ='Org structure'!E18 -> 0 | J22: 0 | K22: 0 | L22: 0 | Q22: 0 | U22: 0
A23: ='Org structure'!E19 -> 0 | J23: 0 | K23: 0 | L23: 0 | Q23: 0 | U23: 0
A24: ='Org structure'!E20 -> 0 | J24: 0 | K24: 0 | L24: 0 | Q24: 0 | U24: 0
A25: ='Org structure'!E21 -> 0 | J25: 0 | K25: 0 | L25: 0 | Q25: 0 | U25: 0
A26: ='Org structure'!E22 -> 0 | J26: 0 | K26: 0 | L26: 0 | Q26: 0 | U26: 0
A27: ='Org structure'!E23 -> 0 | J27: 0 | K27: 0 | L27: 0 | Q27: 0 | U27: 0
A28: ='Org structure'!A4 -> Vote 3 - Finance Services | C28: 0 | D28: 1922528.01 | E28: 13303974.44 | F28: 5998872 | G28: 5998872 | H28: 5998872 | I28: 5998872 | J28: 990987 | K28: 1245050 | L28: 1292561 | N28: =SUM(N29:N38) -> 0 | O28: 0 | P28: 0 | Q28: 0 | R28: 0 | S28: 0 | T28: 0 | U28: 0 | V28: 0 | W28: 0 | X28: 0
A29: ='Org structure'!E25 -> 3.1 - [Name of sub-vote] | J29: =Q29+V29 -> 0 | K29: =U29+W29 -> 0 | L29: =X29 -> 0 | Q29: =SUM(N29:P29) -> 0 | U29: 0
A30: ='Org structure'!E26 -> 0 | J30: 0 | K30: 0 | L30: 0 | Q30: 0 | U30: 0
A31: ='Org structure'!E27 -> 0 | J31: 0 | K31: 0 | L31: 0 | Q31: 0 | U31: =SUM(R31:T31) -> 0
A32: ='Org structure'!E28 -> 0 | J32: 0 | K32: =U32+W32 -> 0 | L32: 0 | Q32: 0 | U32: 0
A33: ='Org structure'!E29 -> 0 | J33: =Q33+V33 -> 0 | K33: 0 | L33: 0 | Q33: 0 | U33: 0
A34: ='Org structure'!E30 -> 0 | J34: 0 | K34: 0 | L34: 0 | Q34: 0 | U34: 0
A35: ='Org structure'!E31 -> 0 | J35: 0 | K35: 0 | L35: 0 | Q35: 0 | U35: 0
A36: ='Org structure'!E32 -> 0 | J36: 0 | K36: 0 | L36: 0 | Q36: 0 | U36: 0
A37: ='Org structure'!E33 -> 0 | J37: 0 | K37: 0 | L37: 0 | Q37: 0 | U37: 0
A38: ='Org structure'!E34 -> 0 | J38: 0 | K38: 0 | L38: 0 | Q38: 0 | U38: 0
A39: ='Org structure'!A5 -> Vote 4 - Corporate Services | C39: 0 | D39: 0 | E39: 0 | F39: 0 | G39: 0 | H39: 0 | I39: 0 | J39: 0 | K39: 0 | L39: 0 | N39: =SUM(N40:N49) -> 0 | O39: 0 | P39: 0 | Q39: 0 | R39: 0 | S39: 0 | T39: 0 | U39: 0 | V39: 0 | W39: 0 | X39: 0
A40: ='Org structure'!E36 -> 4.1 - [Name of sub-vote] | J40: =Q40+V40 -> 0 | K40: =U40+W40 -> 0 | L40: =X40 -> 0 | Q40: =SUM(N40:P40) -> 0 | U40: 0
A41: ='Org structure'!E37 -> 0 | J41: 0 | K41: 0 | L41: 0 | Q41: 0 | U41: 0
A42: ='Org structure'!E38 -> 0 | J42: 0 | K42: 0 | L42: 0 | Q42: 0 | U42: 0
A43: ='Org structure'!E39 -> 0 | J43: 0 | K43: 0 | L43: 0 | Q43: 0 | U43: 0
A44: ='Org structure'!E40 -> 0 | J44: 0 | K44: 0 | L44: 0 | Q44: 0 | U44: 0
A45: ='Org structure'!E41 -> 0 | J45: 0 | K45: 0 | L45: 0 | Q45: 0 | U45: 0
A46: ='Org structure'!E42 -> 0 | J46: 0 | K46: 0 | L46: 0 | Q46: 0 | U46: 0
A47: ='Org structure'!E43 -> 0 | J47: 0 | K47: 0 | L47: 0 | Q47: 0 | U47: 0
A48: ='Org structure'!E44 -> 0 | J48: 0 | K48: 0 | L48: 0 | Q48: 0 | U48: 0
A49: ='Org structure'!E45 -> 0 | J49: 0 | K49: 0 | L49: 0 | Q49: 0 | U49: 0
A50: ='Org structure'!A6 -> Vote 5 - Community Services | C50: 4593221.63 | D50: 8628419.8 | E50: 0 | F50: 10000000 | G50: 10000000 | H50: 10000000 | I50: 10000000 | J50: 0 | K50: 0 | L50: 0 | N50: =SUM(N51:N60) -> 0 | O50: 0 | P50: 0 | Q50: 0 | R50: 0 | S50: 0 | T50: 0 | U50: 0 | V50: 0 | W50: 0 | X50: 0
A51: ='Org structure'!E47 -> 5.1 - [Name of sub-vote] | J51: =Q51+V51 -> 0 | K51: =U51+W51 -> 0 | L51: =X51 -> 0 | Q51: =SUM(N51:P51) -> 0 | U51: 0
A52: ='Org structure'!E48 -> 0 | J52: 0 | K52: 0 | L52: 0 | Q52: 0 | U52: 0
A53: ='Org structure'!E49 -> 0 | J53: 0 | K53: 0 | L53: 0 | Q53: 0 | U53: 0
A54: ='Org structure'!E50 -> 0 | J54: 0 | K54: 0 | L54: 0 | Q54: 0 | U54: 0
A55: ='Org structure'!E51 -> 0 | J55: 0 | K55: 0 | L55: 0 | Q55: 0 | U55: 0
A56: ='Org structure'!E52 -> 0 | J56: 0 | K56: 0 | L56: 0 | Q56: 0 | U56: 0
A57: ='Org structure'!E53 -> 0 | J57: 0 | K57: 0 | L57: 0 | Q57: 0 | U57: 0
A58: ='Org structure'!E54 -> 0 | J58: 0 | K58: 0 | L58: 0 | Q58: 0 | U58: 0
A59: ='Org structure'!E55 -> 0 | J59: 0 | K59: 0 | L59: 0 | Q59: 0 | U59: 0
A60: ='Org structure'!E56 -> 0 | J60: 0 | K60: 0 | L60: 0 | Q60: 0 | U60: 0
A61: ='Org structure'!A7 -> Vote 6 - Technical Services | C61: 9446466.23 | D61: -16792025.89 | E61: 25772177.12 | F61: 35996129 | G61: 30796131 | H61: 30796131 | I61: 30796131 | J61: 26253219 | K61: 16100885 | L61: 16787503 | N61: =SUM(N62:N71) -> 0 | O61: 0 | P61: 0 | Q61: 0 | R61: 0 | S61: 0 | T61: 0 | U61: 0 | V61: 0 | W61: 0 | X61: 0
A62: ='Org structure'!E58 -> 6.1 - [Name of sub-vote] | J62: =Q62+V62 -> 0 | K62: =U62+W62 -> 0 | L62: =X62 -> 0 | Q62: =SUM(N62:P62) -> 0 | U62: 0
A63: ='Org structure'!E59 -> 0 | J63: 0 | K63: 0 | L63: 0 | Q63: 0 | U63: 0
A64: ='Org structure'!E60 -> 0 | J64: 0 | K64: 0 | L64: 0 | Q64: 0 | U64: 0
A65: ='Org structure'!E61 -> 0 | J65: 0 | K65: 0 | L65: 0 | Q65: 0 | U65: 0
A66: ='Org structure'!E62 -> 0 | J66: 0 | K66: 0 | L66: 0 | Q66: 0 | U66: 0
A67: ='Org structure'!E63 -> 0 | J67: 0 | K67: 0 | L67: 0 | Q67: 0 | U67: 0
A68: ='Org structure'!E64 -> 0 | J68: 0 | K68: 0 | L68: 0 | Q68: 0 | U68: 0
A69: ='Org structure'!E65 -> 0 | J69: 0 | K69: 0 | L69: 0 | Q69: 0 | U69: 0
A70: ='Org structure'!E66 -> 0 | J70: 0 | K70: 0 | L70: 0 | Q70: 0 | U70: 0
A71: ='Org structure'!E67 -> 0 | J71: 0 | K71: 0 | L71: 0 | Q71: 0 | U71: 0
A72: ='Org structure'!A8 -> Vote 7 - COMMUNITY & SOCIAL SERVICES | C72: 0 | D72: 0 | E72: 0 | F72: 0 | G72: 0 | H72: 0 | I72: 0 | J72: 0 | K72: 0 | L72: 0 | N72: =SUM(N73:N82) -> 0 | O72: 0 | P72: 0 | Q72: 0 | R72: 0 | S72: 0 | T72: 0 | U72: 0 | V72: 0 | W72: 0 | X72: 0
A73: ='Org structure'!E69 -> 7.1 - [Name of sub-vote] | J73: =Q73+V73 -> 0 | K73: =U73+W73 -> 0 | L73: =X73 -> 0 | Q73: =SUM(N73:P73) -> 0 | U73: =SUM(R73:T73) -> 0
A74: ='Org structure'!E70 -> 0 | J74: 0 | K74: 0 | L74: 0 | Q74: 0 | U74: 0
A75: ='Org structure'!E71 -> 0 | J75: 0 | K75: 0 | L75: 0 | Q75: 0 | U75: 0
A76: ='Org structure'!E72 -> 0 | J76: 0 | K76: 0 | L76: 0 | Q76: 0 | U76: 0
A77: ='Org structure'!E73 -> 0 | J77: 0 | K77: 0 | L77: 0 | Q77: 0 | U77: 0
A78: ='Org structure'!E74 -> 0 | J78: 0 | K78: 0 | L78: 0 | Q78: 0 | U78: 0
A79: ='Org structure'!E75 -> 0 | J79: 0 | K79: 0 | L79: 0 | Q79: 0 | U79: 0
A80: ='Org structure'!E76 -> 0 | J80: 0 | K80: 0 | L80: 0 | Q80: 0 | U80: 0
A81: ='Org structure'!E77 -> 0 | J81: 0 | K81: 0 | L81: 0 | Q81: 0 | U81: 0
A82: ='Org structure'!E78 -> 0 | J82: 0 | K82: 0 | L82: 0 | Q82: 0 | U82: 0
A83: ='Org structure'!A9 -> Vote 8 - [NAME OF VOTE 8] | C83: =SUM(C84:C93) -> 0 | D83: 0 | E83: 0 | F83: 0 | G83: 0 | H83: 0 | I83: 0 | J83: 0 | K83: 0 | L83: 0 | N83: =SUM(N84:N93) -> 0 | O83: 0 | P83: 0 | Q83: 0 | R83: 0 | S83: 0 | T83: 0 | U83: 0 | V83: 0 | W83: 0 | X83: 0
A84: ='Org structure'!E80 -> 8.1 - [Name of sub-vote] | J84: =Q84+V84 -> 0 | K84: =U84+W84 -> 0 | L84: =X84 -> 0 | Q84: =SUM(N84:P84) -> 0 | U84: 0
A85: ='Org structure'!E81 -> 0 | J85: 0 | K85: 0 | L85: 0 | Q85: 0 | U85: 0
A86: ='Org structure'!E82 -> 0 | J86: 0 | K86: 0 | L86: 0 | Q86: 0 | U86: 0
A87: ='Org structure'!E83 -> 0 | J87: 0 | K87: 0 | L87: 0 | Q87: 0 | U87: 0
A88: ='Org structure'!E84 -> 0 | J88: 0 | K88: 0 | L88: 0 | Q88: 0 | U88: 0
A89: ='Org structure'!E85 -> 0 | J89: 0 | K89: 0 | L89: 0 | Q89: 0 | U89: 0
A90: ='Org structure'!E86 -> 0 | J90: 0 | K90: 0 | L90: 0 | Q90: 0 | U90: 0
A91: ='Org structure'!E87 -> 0 | J91: 0 | K91: 0 | L91: 0 | Q91: 0 | U91: 0
A92: ='Org structure'!E88 -> 0 | J92: 0 | K92: 0 | L92: 0 | Q92: 0 | U92: 0
A93: ='Org structure'!E89 -> 0 | J93: 0 | K93: 0 | L93: 0 | Q93: 0 | U93: 0
A94: ='Org structure'!A10 -> Vote 9 - [NAME OF VOTE 9] | C94: =SUM(C95:C104) -> 0 | D94: =SUM(D95:D104) -> 0 | E94: 0 | F94: 0 | G94: 0 | H94: 0 | I94: 0 | J94: 0 | K94: 0 | L94: 0 | N94: =SUM(N95:N104) -> 0 | O94: 0 | P94: 0 | Q94: 0 | R94: 0 | S94: 0 | T94: 0 | U94: 0 | V94: 0 | W94: 0 | X94: 0
A95: ='Org structure'!E91 -> 9.1 - [Name of sub-vote] | J95: =Q95+V95 -> 0 | K95: =U95+W95 -> 0 | L95: =X95 -> 0 | Q95: =SUM(N95:P95) -> 0 | U95: 0
A96: ='Org structure'!E92 -> 0 | J96: 0 | K96: 0 | L96: 0 | Q96: 0 | U96: 0
A97: ='Org structure'!E93 -> 0 | J97: 0 | K97: 0 | L97: 0 | Q97: 0 | U97: 0
A98: ='Org structure'!E94 -> 0 | J98: 0 | K98: 0 | L98: 0 | Q98: 0 | U98: 0
A99: ='Org structure'!E95 -> 0 | J99: 0 | K99: 0 | L99: 0 | Q99: 0 | U99: 0
A100: ='Org structure'!E96 -> 0 | J100: 0 | K100: 0 | L100: 0 | Q100: 0 | U100: 0
A101: ='Org structure'!E97 -> 0 | J101: 0 | K101: 0 | L101: 0 | Q101: 0 | U101: 0
A102: ='Org structure'!E98 -> 0 | J102: 0 | K102: 0 | L102: 0 | Q102: 0 | U102: 0
A103: ='Org structure'!E99 -> 0 | J103: 0 | K103: 0 | L103: 0 | Q103: 0 | U103: 0
A104: ='Org structure'!E100 -> 0 | J104: 0 | K104: 0 | L104: 0 | Q104: 0 | U104: 0
A105: ='Org structure'!A11 -> Vote 10 - [NAME OF VOTE 10] | C105: =SUM(C106:C115) -> 0 | D105: =SUM(D106:D115) -> 0 | E105: 0 | F105: 0 | G105: 0 | H105: 0 | I105: 0 | J105: 0 | K105: 0 | L105: 0 | N105: =SUM(N106:N115) -> 0 | O105: 0 | P105: 0 | Q105: 0 | R105: 0 | S105: 0 | T105: 0 | U105: 0 | V105: 0 | W105: 0 | X105: 0
A106: ='Org structure'!E102 -> 10.1 - [Name of sub-vote] | J106: =Q106+V106 -> 0 | K106: =U106+W106 -> 0 | L106: =X106 -> 0 | Q106: =SUM(N106:P106) -> 0 | U106: 0
A107: ='Org structure'!E103 -> 0 | J107: 0 | K107: 0 | L107: 0 | Q107: 0 | U107: 0
A108: ='Org structure'!E104 -> 0 | J108: 0 | K108: 0 | L108: 0 | Q108: 0 | U108: 0
A109: ='Org structure'!E105 -> 0 | J109: 0 | K109: 0 | L109: 0 | Q109: 0 | U109: 0
A110: ='Org structure'!E106 -> 0 | J110: 0 | K110: 0 | L110: 0 | Q110: 0 | U110: 0
A111: ='Org structure'!E107 -> 0 | J111: 0 | K111: 0 | L111: 0 | Q111: 0 | U111: 0
A112: ='Org structure'!E108 -> 0 | J112: 0 | K112: 0 | L112: 0 | Q112: 0 | U112: 0
A113: ='Org structure'!E109 -> 0 | J113: 0 | K113: 0 | L113: 0 | Q113: 0 | U113: 0
A114: ='Org structure'!E110 -> 0 | J114: 0 | K114: 0 | L114: 0 | Q114: 0 | U114: 0
A115: ='Org structure'!E111 -> 0 | J115: 0 | K115: 0 | L115: 0 | Q115: 0 | U115: 0
A116: ='Org structure'!A12 -> Vote 11 - [NAME OF VOTE 11] | C116: =SUM(C117:C126) -> 0 | D116: 0 | E116: 0 | F116: 0 | G116: 0 | H116: 0 | I116: 0 | J116: 0 | K116: 0 | L116: 0 | N116: =SUM(N117:N126) -> 0 | O116: 0 | P116: 0 | Q116: 0 | R116: 0 | S116: 0 | T116: 0 | U116: 0 | V116: 0 | W116: 0 | X116: 0
A117: ='Org structure'!E113 -> 11.1 - [Name of sub-vote] | J117: =Q117+V117 -> 0 | K117: =U117+W117 -> 0 | L117: =X117 -> 0 | Q117: =SUM(N117:P117) -> 0 | U117: 0
A118: ='Org structure'!E114 -> 0 | J118: 0 | K118: 0 | L118: 0 | Q118: 0 | U118: 0
A119: ='Org structure'!E115 -> 0 | J119: 0 | K119: 0 | L119: 0 | Q119: 0 | U119: 0
A120: ='Org structure'!E116 -> 0 | J120: 0 | K120: 0 | L120: 0 | Q120: 0 | U120: 0
A121: ='Org structure'!E117 -> 0 | J121: 0 | K121: 0 | L121: 0 | Q121: 0 | U121: 0
A122: ='Org structure'!E118 -> 0 | J122: 0 | K122: 0 | L122: 0 | Q122: 0 | U122: 0
A123: ='Org structure'!E119 -> 0 | J123: 0 | K123: 0 | L123: 0 | Q123: 0 | U123: 0
A124: ='Org structure'!E120 -> 0 | J124: 0 | K124: 0 | L124: 0 | Q124: 0 | U124: 0
A125: ='Org structure'!E121 -> 0 | J125: 0 | K125: 0 | L125: 0 | Q125: 0 | U125: 0
A126: ='Org structure'!E122 -> 0 | J126: 0 | K126: 0 | L126: 0 | Q126: 0 | U126: 0
A127: ='Org structure'!A13 -> Vote 12 - [NAME OF VOTE 12] | C127: =SUM(C128:C137) -> 0 | D127: 0 | E127: 0 | F127: 0 | G127: 0 | H127: 0 | I127: 0 | J127: 0 | K127: 0 | L127: 0 | N127: =SUM(N128:N137) -> 0 | O127: 0 | P127: 0 | Q127: 0 | R127: 0 | S127: 0 | T127: 0 | U127: 0 | V127: 0 | W127: 0 | X127: 0
A128: ='Org structure'!E124 -> 12.1 - [Name of sub-vote] | J128: =Q128+V128 -> 0 | K128: =U128+W128 -> 0 | L128: =X128 -> 0 | Q128: =SUM(N128:P128) -> 0 | U128: 0
A129: ='Org structure'!E125 -> 0 | J129: 0 | K129: 0 | L129: 0 | Q129: 0 | U129: 0
A130: ='Org structure'!E126 -> 0 | J130: 0 | K130: 0 | L130: 0 | Q130: 0 | U130: 0
A131: ='Org structure'!E127 -> 0 | J131: 0 | K131: 0 | L131: 0 | Q131: 0 | U131: 0
A132: ='Org structure'!E128 -> 0 | J132: 0 | K132: 0 | L132: 0 | Q132: 0 | U132: 0
A133: ='Org structure'!E129 -> 0 | J133: =Q133+V133 -> 0 | K133: 0 | L133: 0 | Q133: 0 | U133: 0
A134: ='Org structure'!E130 -> 0 | J134: 0 | K134: 0 | L134: 0 | Q134: 0 | U134: 0
A135: ='Org structure'!E131 -> 0 | J135: 0 | K135: 0 | L135: 0 | Q135: 0 | U135: 0
A136: ='Org structure'!E132 -> 0 | J136: 0 | K136: 0 | L136: 0 | Q136: 0 | U136: =SUM(R136:T136) -> 0
A137: ='Org structure'!E133 -> 0 | J137: 0 | K137: 0 | L137: 0 | Q137: 0 | U137: 0
A138: ='Org structure'!A14 -> Vote 13 - [NAME OF VOTE 13] | C138: =SUM(C139:C148) -> 0 | D138: 0 | E138: 0 | F138: 0 | G138: 0 | H138: 0 | I138: 0 | J138: 0 | K138: 0 | L138: 0 | N138: =SUM(N139:N148) -> 0 | O138: 0 | P138: 0 | Q138: 0 | R138: 0 | S138: 0 | T138: 0 | U138: 0 | V138: 0 | W138: 0 | X138: 0
A139: ='Org structure'!E135 -> 13.1 - [Name of sub-vote] | J139: =Q139+V139 -> 0 | K139: =U139+W139 -> 0 | L139: =X139 -> 0 | Q139: =SUM(N139:P139) -> 0 | U139: 0
A140: ='Org structure'!E136 -> 0 | J140: 0 | K140: 0 | L140: 0 | Q140: 0 | U140: 0
A141: ='Org structure'!E137 -> 0 | J141: 0 | K141: 0 | L141: 0 | Q141: 0 | U141: 0
A142: ='Org structure'!E138 -> 0 | J142: 0 | K142: 0 | L142: 0 | Q142: 0 | U142: 0
A143: ='Org structure'!E139 -> 0 | J143: 0 | K143: 0 | L143: 0 | Q143: 0 | U143: 0
A144: ='Org structure'!E140 -> 0 | J144: 0 | K144: 0 | L144: 0 | Q144: 0 | U144: 0
A145: ='Org structure'!E141 -> 0 | J145: 0 | K145: 0 | L145: 0 | Q145: 0 | U145: 0
A146: ='Org structure'!E142 -> 0 | J146: 0 | K146: 0 | L146: 0 | Q146: 0 | U146: 0
A147: ='Org structure'!E143 -> 0 | J147: 0 | K147: 0 | L147: 0 | Q147: 0 | U147: 0
A148: ='Org structure'!E144 -> 0 | J148: 0 | K148: 0 | L148: 0 | Q148: 0 | U148: 0
A149: ='Org structure'!A15 -> Vote 14 - [NAME OF VOTE 14] | C149: =SUM(C150:C159) -> 0 | D149: 0 | E149: 0 | F149: 0 | G149: 0 | H149: 0 | I149: 0 | J149: 0 | K149: 0 | L149: 0 | N149: =SUM(N150:N159) -> 0 | O149: 0 | P149: 0 | Q149: 0 | R149: 0 | S149: 0 | T149: 0 | U149: 0 | V149: 0 | W149: 0 | X149: 0
A150: ='Org structure'!E146 -> 14.1 - [Name of sub-vote] | J150: =Q150+V150 -> 0 | K150: =U150+W150 -> 0 | L150: =X150 -> 0 | Q150: =SUM(N150:P150) -> 0 | U150: 0
A151: ='Org structure'!E147 -> 0 | J151: 0 | K151: 0 | L151: 0 | Q151: 0 | U151: 0
A152: ='Org structure'!E148 -> 0 | J152: 0 | K152: 0 | L152: 0 | Q152: 0 | U152: 0
A153: ='Org structure'!E149 -> 0 | J153: 0 | K153: 0 | L153: 0 | Q153: 0 | U153: 0
A154: ='Org structure'!E150 -> 0 | J154: 0 | K154: 0 | L154: 0 | Q154: 0 | U154: 0
A155: ='Org structure'!E151 -> 0 | J155: 0 | K155: 0 | L155: 0 | Q155: 0 | U155: 0
A156: ='Org structure'!E152 -> 0 | J156: 0 | K156: 0 | L156: 0 | Q156: 0 | U156: 0
A157: ='Org structure'!E153 -> 0 | J157: 0 | K157: 0 | L157: 0 | Q157: 0 | U157: 0
A158: ='Org structure'!E154 -> 0 | J158: 0 | K158: 0 | L158: 0 | Q158: 0 | U158: 0
A159: ='Org structure'!E155 -> 0 | J159: 0 | K159: 0 | L159: 0 | Q159: 0 | U159: 0
A160: ='Org structure'!A16 -> Vote 15 - [NAME OF VOTE 15] | C160: =SUM(C161:C170) -> 0 | D160: 0 | E160: 0 | F160: 0 | G160: 0 | H160: 0 | I160: 0 | J160: 0 | K160: 0 | L160: 0 | N160: =SUM(N161:N170) -> 0 | O160: 0 | P160: 0 | Q160: 0 | R160: 0 | S160: 0 | T160: 0 | U160: 0 | V160: 0 | W160: 0 | X160: 0
A161: ='Org structure'!E157 -> 15.1 - [Name of sub-vote] | J161: =Q161+V161 -> 0 | K161: =U161+W161 -> 0 | L161: =X161 -> 0 | Q161: =SUM(N161:P161) -> 0 | U161: 0
A162: ='Org structure'!E158 -> 0 | J162: 0 | K162: 0 | L162: 0 | Q162: 0 | U162: 0
A163: ='Org structure'!E159 -> 0 | J163: 0 | K163: 0 | L163: 0 | Q163: 0 | U163: 0
A164: ='Org structure'!E160 -> 0 | J164: 0 | K164: 0 | L164: 0 | Q164: 0 | U164: 0
A165: ='Org structure'!E161 -> 0 | J165: 0 | K165: 0 | L165: 0 | Q165: 0 | U165: 0
A166: ='Org structure'!E162 -> 0 | J166: 0 | K166: 0 | L166: 0 | Q166: 0 | U166: 0
A167: ='Org structure'!E163 -> 0 | J167: 0 | K167: 0 | L167: 0 | Q167: 0 | U167: 0
A168: ='Org structure'!E164 -> 0 | J168: 0 | K168: 0 | L168: 0 | Q168: 0 | U168: 0
A169: ='Org structure'!E165 -> 0 | J169: 0 | K169: 0 | L169: 0 | Q169: 0 | U169: 0
A170: ='Org structure'!E166 -> 0 | J170: 0 | K170: 0 | L170: 0 | Q170: 0 | U170: 0
A171: Capital multi-year expenditure sub-total | C171: =C6+C17+C28+C39+C50+C61+C72+C83+C94+C105+C116+C127+C138+C149+C160 -> 14039687.86 | D171: =D6+D17+D28+D39+D50+D61+D72+D83+D94+D105+D116+D127+D138+D149+D160 -> -6241078.08 | E171: 41187561.06 | F171: 52395001 | G171: 47295003 | H171: 47295003 | I171: 47295003 | J171: 27244206 | K171: 17345935 | L171: 18080064 | N171: =N6+N17+N28+N39+N50+N61+N72+N83+N94+N105+N116+N127+N138+N149+N160 -> 0 | O171: 0 | P171: 0 | Q171: 0 | R171: 0 | S171: 0 | U171: 0 | V171: =V6+V17+V28+V39+V50+V61+V72+V83+V94+V105+V116+V127+V138+V149+V160 -> 0 | W171: =W6+W17+W28+W39+W50+W61+W72+W83+W94+W105+W116+W127+W138+W149+W160 -> 0
A173: Capital expenditure - Municipal Vote
A174: Single-year expenditure appropriation | B174: 2
A175: =A6 -> Vote 1 - Executive & Council | C175: 0 | D175: 0 | E175: 0 | F175: 0 | G175: 0 | H175: 0 | I175: 0 | J175: 0 | K175: 0 | L175: 0
A176: =A7 -> 1.1 - [Name of sub-vote]
A177: 0
A178: 0
A179: 0
A180: 0
A181: 0
A182: 0
A183: 0
A184: 0
A185: 0
A186: Vote 2 - Municipal Manager | C186: 0 | D186: 0 | E186: 0 | F186: 0 | G186: 0 | H186: 0 | I186: 0 | J186: 0 | K186: 0 | L186: 0
A187: 2.1 - [Name of sub-vote]
A188: 0
A189: 0
A190: 0
A191: 0
A192: 0
A193: 0
A194: 0
A195: 0
A196: 0
A197: Vote 3 - Finance Services | C197: 0 | D197: -0.32 | E197: 0 | F197: 0 | G197: 0 | H197: 0 | I197: 0 | J197: 0 | K197: 0 | L197: 0
A198: 3.1 - [Name of sub-vote]
A199: 0
A200: 0
A201: 0
... 140 more rows

Sheet A6-FinPos
A1: =muni&" - "&Approve6 -> 0 - Table A6 Budgeted Financial Position
A2: =desc -> Description | B2: =head27 -> Ref | C2: =head1b -> 2019/20 | D2: =head1A -> 2020/21 | E2: =Head1 -> 2021/22 | F2: =Head2 -> Current Year 2022/23 | J2: =Head3 -> 2023/24 Medium Term Revenue & Expenditure Framework
A3: R thousand | C3: =Head5 -> Audited Outcome | D3: =Head5 -> Audited Outcome | E3: =Head5 -> Audited Outcome | F3: =Head6 -> Original Budget | G3: =Head7 -> Adjusted Budget | H3: =Head8 -> Full Year Forecast | I3: =Head5b -> Pre-audit outcome | J3: =Head9 -> Budget Year 2023/24 | K3: =Head10 -> Budget Year +1 2024/25 | L3: =Head11 -> Budget Year +2 2025/26
A4: ASSETS
A5: Current assets
A6: Cash and cash equivalents | C6: 897473.78 | D6: 5498972.03 | E6: 503447.51 | F6: 121883488 | G6: 197490725 | H6: 197490725 | I6: 197490725 | J6: 398287821 | K6: 379483057 | L6: 393372750
A7: Trade and other receivables from exchange transactions | B7: 1 | C7: ='SA3'!C19 -> 0 | D7: ='SA3'!D19 -> 0 | E7: ='SA3'!E19 -> 0 | F7: ='SA3'!F19 -> 0 | G7: ='SA3'!G19 -> 0 | H7: ='SA3'!H19 -> 0 | I7: ='SA3'!I19 -> 0 | J7: ='SA3'!J19 -> 1027414363 | K7: ='SA3'!K19 -> 1053338709 | L7: ='SA3'!L19 -> 1080948139
A8: Receivables from non-exchange transactions | B8: 1 | C8: ='SA3'!C28 -> 0 | D8: ='SA3'!D28 -> 0 | E8: ='SA3'!E28 -> 0 | F8: ='SA3'!F28 -> 0 | G8: ='SA3'!G28 -> 0 | H8: ='SA3'!H28 -> 0 | I8: ='SA3'!I28 -> 0 | J8: ='SA3'!J28 -> 187235260 | K8: ='SA3'!K28 -> 190973832 | L8: ='SA3'!L28 -> 194955412
A9: Current portion of non-current receivables | C9: 6323.64 | D9: 6324 | E9: 6451.02 | F9: 7657 | G9: 7657 | H9: 7657 | I9: 7657 | J9: 7657 | K9: 7657 | L9: 7657
A10: Inventory | B10: 2 | C10: 5181955.53 | D10: 287498587.7 | E10: 292044891 | F10: 0 | G10: 0 | H10: 0 | I10: 0 | J10: 0 | K10: 0 | L10: 0
A11: VAT | C11: 0 | D11: 0 | E11: 0 | F11: 0 | G11: 0 | H11: 0 | I11: 0 | J11: 0 | K11: 0 | L11: 0
A12: Other current assets | C12: 104817987 | D12: 127111487.8 | E12: 144894384.3 | F12: 153809362 | G12: 153809428 | H12: 153809428 | I12: 153809428 | J12: 0 | K12: 66 | L12: 66
A13: Total current assets | C13: =SUM(C6:C12) -> 110903739.9 | D13: 420115371.6 | E13: 437449173.9 | F13: 275700507 | G13: 351307810 | H13: 351307810 | I13: 351307810 | J13: 1612945101 | K13: 1623803321 | L13: 1669284024
A14: Non current assets
A15: Investments | C15: 1081428.81 | D15: 1113568.24 | E15: 1152591.38 | F15: 0 | G15: 0 | H15: 0 | I15: 0 | J15: 0 | K15: 0 | L15: 0
A16: Investment property | C16: 63655336.25 | D16: 68873267.87 | E16: 55304161.79 | F16: 222720965 | G16: 222720965 | H16: 222720965 | I16: 222720965 | J16: 277930178 | K16: 277930178 | L16: 277930178
A17: Property, plant and equipment | B17: 3 | C17: ='SA3'!C129 -> 933416975.9 | D17: ='SA3'!D129 -> 611759178.2 | E17: ='SA3'!E129 -> 627375977.6 | F17: ='SA3'!F129 -> 933081059 | G17: ='SA3'!G129 -> 927881061 | H17: ='SA3'!H129 -> 927881061 | I17: ='SA3'!I129 -> 927881061 | J17: ='SA3'!J129 -> 1877037855 | K17: ='SA3'!K129 -> 1971287261 | L17: ='SA3'!L129 -> 2533557122
A18: Biological assets | C18: 0 | D18: 0 | E18: 0 | F18: 0 | G18: 0 | H18: 0 | I18: 0 | J18: 0 | K18: 0 | L18: 0
A19: Living and non-living resources | C19: 0 | D19: 0 | E19: 0 | F19: 0 | G19: 0 | H19: 0 | I19: 0 | J19: 0 | K19: 0 | L19: 0
A20: Heritage assets | C20: 0 | D20: 0 | E20: 0 | F20: 0 | G20: 0 | H20: 0 | I20: 0 | J20: 0 | K20: 0 | L20: 0
A21: Intangible assets | C21: 0 | D21: 0 | E21: 0 | F21: 400000 | G21: 500000 | H21: 500000 | I21: 500000 | J21: 0 | K21: 0 | L21: 0
A22: Trade and other receivables from exchange transactions | C22: 0 | D22: 0 | E22: 0 | F22: 0 | G22: 0 | H22: 0 | I22: 0 | J22: 40078783 | K22: 40078783 | L22: 40078783
A23: Non-current receivables from non-exchange transactions | C23: 0 | D23: 0 | E23: 0 | F23: 0 | G23: 0 | H23: 0 | I23: 0 | J23: 0 | K23: 0 | L23: 0
A24: Other non-current assets | C24: 0 | D24: 0 | E24: 0 | F24: 0 | G24: 0 | H24: 0 | I24: 0 | J24: 1225624 | K24: 1225624 | L24: 1225624
A25: Total non current assets | C25: =SUM(C15:C24) -> 998153741 | D25: =SUM(D15:D24) -> 681746014.3 | E25: 683832730.8 | F25: 1156202024 | G25: 1151102026 | H25: 1151102026 | I25: 1151102026 | J25: 2196272440 | K25: 2290521846 | L25: 2852791707
A26: TOTAL ASSETS | C26: =C13+C25 -> 1109057481 | D26: =D13+D25 -> 1101861386 | E26: =E13+E25 -> 1121281905 | F26: =F13+F25 -> 1431902531 | G26: 1502409836 | H26: 1502409836 | I26: 1502409836 | J26: 3809217541 | K26: 3914325167 | L26: 4522075731
A27: LIABILITIES
A28: Current liabilities
A29: Bank overdraft | C29: 197226 | D29: 197226 | E29: 197226 | F29: 251647 | G29: 251647 | H29: 251647 | I29: 251647 | J29: 251647 | K29: 251647 | L29: 251647
A30: Financial liabilities | C30: ='SA3'!C135 -> 7201799.16 | D30: ='SA3'!D135 -> 7841289.4 | E30: ='SA3'!E135 -> 8555595.06 | F30: ='SA3'!F135 -> 5857538 | G30: ='SA3'!G135 -> 5857538 | H30: ='SA3'!H135 -> 5857538 | I30: ='SA3'!I135 -> 5857538 | J30: ='SA3'!J135 -> 5822348 | K30: ='SA3'!K135 -> 5785539 | L30: ='SA3'!L135 -> 5785539
A31: Consumer deposits | C31: 2484927.35 | D31: 2420594.45 | E31: 2544815.9 | F31: 2237863 | G31: 2237863 | H31: 2237863 | I31: 2237863 | J31: 2237863 | K31: 2237863 | L31: 2237863
A32: Trade and other payables from exchange transactions | B32: 4 | C32: 349540715.5 | D32: 384123374.9 | E32: 451840216.4 | F32: 110601754 | G32: 110601556 | H32: 110601556 | I32: 110601556 | J32: 258973877 | K32: 242315925 | L32: 225171345
A33: Trade and other payables from non-exchange transactions | B33: 5 | C33: 0 | D33: 0 | E33: 0 | F33: 0 | G33: 0 | H33: 0 | I33: 0 | J33: 0 | K33: 0 | L33: 0
A34: Provision | C34: 0 | D34: 4071083 | E34: 2281423 | F34: 0 | G34: 0 | H34: 0 | I34: 0 | J34: 0 | K34: 0 | L34: 0
A35: VAT | C35: 0 | D35: 0 | E35: 0 | F35: 0 | G35: 0 | H35: 0 | I35: 0 | J35: 0 | K35: 0 | L35: 0
A36: Other current liabilities | C36: 0 | D36: 0 | E36: 0 | F36: 0 | G36: 0 | H36: 0 | I36: 0 | J36: 0 | K36: 0 | L36: 0
A37: Total current liabilities | C37: =SUM(C29:C36) -> 359424668 | D37: 398653567.7 | E37: 465419276.4 | F37: 118948802 | G37: 118948604 | H37: 118948604 | I37: 118948604 | J37: 267285735 | K37: 250590974 | L37: 233446394
A38: Non current liabilities
A39: Financial liabilities | B39: 6 | C39: ='SA3'!C147 -> 0 | D39: ='SA3'!D147 -> 0 | E39: ='SA3'!E147 -> 0 | F39: ='SA3'!F147 -> 30503080 | G39: ='SA3'!G147 -> 30503080 | H39: ='SA3'!H147 -> 30503080 | I39: ='SA3'!I147 -> 30503080 | J39: ='SA3'!J147 -> 30503080 | K39: ='SA3'!K147 -> 30503080 | L39: ='SA3'!L147 -> 30503080
A40: Provision | B40: 7 | C40: 50695748 | D40: 36694325 | E40: 89682812 | F40: 35391496 | G40: 35391496 | H40: 35391496 | I40: 35391496 | J40: 0 | K40: 0 | L40: 0
A41: Long term portion of trade payables | C41: 0 | D41: 0 | E41: 0 | F41: 0 | G41: 0 | H41: 0 | I41: 0 | J41: 0 | K41: 0 | L41: 0
A42: Other non-current liabilities | C42: 0 | D42: 0 | E42: 0 | F42: 0 | G42: 0 | H42: 0 | I42: 0 | J42: 0 | K42: 0 | L42: 0
A43: Total non current liabilities | C43: =SUM(C39:C42) -> 50695748 | D43: 36694325 | E43: 89682812 | F43: 65894576 | G43: 65894576 | H43: 65894576 | I43: 65894576 | J43: 30503080 | K43: 30503080 | L43: 30503080
A44: TOTAL LIABILITIES | C44: =C37+C43 -> 410120416 | D44: =D37+D43 -> 435347892.7 | E44: =E37+E43 -> 555102088.4 | F44: =F37+F43 -> 184843378 | G44: 184843180 | H44: 184843180 | I44: 184843180 | J44: 297788815 | K44: =K37+K43 -> 281094054 | L44: 263949474
A45: NET ASSETS | C45: =C26-C44 -> 698937064.9 | D45: 666513493.2 | E45: 566179816.3 | F45: 1247059153 | G45: 1317566656 | H45: 1317566656 | I45: 1317566656 | J45: 3511428726 | K45: 3633231113 | L45: 4258126257
A46: COMMUNITY WEALTH/EQUITY
A47: Accumulated surplus/(deficit) | B47: 8 | C47: 690850350.5 | D47: 667054922.2 | E47: 566332557.9 | F47: 929923421 | G47: 837618313 | H47: 837618313 | I47: 837618313 | J47: 947945456 | K47: 916490646 | L47: 921356647
A48: Reserves and funds | B48: 9 | C48: ='SA3'!C173 -> 69095.7 | D48: ='SA3'!D173 -> 0 | E48: ='SA3'!E173 -> 0 | F48: ='SA3'!F173 -> 0 | G48: ='SA3'!G173 -> 0 | H48: ='SA3'!H173 -> 0 | I48: ='SA3'!I173 -> 0 | J48: ='SA3'!J173 -> 0 | K48: ='SA3'!K173 -> 0 | L48: ='SA3'!L173 -> 0
A49: Other
A50: TOTAL COMMUNITY WEALTH/EQUITY | B50: 10 | C50: =SUM(C47:C49) -> 690919446.2 | D50: =SUM(D47:D49) -> 667054922.2 | E50: 566332557.9 | F50: 929923421 | G50: 837618313 | H50: 837618313 | I50: 837618313 | J50: 947945456 | K50: 916490646 | L50: 921356647
A51: =head27a -> References
A52: 1. Detail breakdown in Table SA3 for Trade receivables from Exchange and Non-exchange transactions
A53: 2. Include completed low cost housing to be transferred to beneficiaries within 12 months detail provided in Table SA3
A54: 3. Include 'Construction-work-in-progress' (disclosed separately in annual financial statements) detail in SA3
A55: 4. Detail breakdown in Table SA3.
A56: 5. Detail breakdown in Table SA3.
A57: 6. Detail breakdown in Table SA3.
A58: 7 Detail breakdown in Table SA3.
A59: 8. Detail breakdown in Table SA3.
A60: 9. Detail breakdown in Table SA3. Includes reserves to be funded by statute.
A61: 10. Net assets must balance with Total Community Wealth/Equity

Sheet A7-CFlow
A1: =muni&" - "&Approve7 -> 0 - Table A7 Budgeted Cash Flows
A2: =desc -> Description | B2: =head27 -> Ref | C2: =head1b -> 2019/20 | D2: =head1A -> 2020/21 | E2: =Head1 -> 2021/22 | F2: =Head2 -> Current Year 2022/23 | J2: =Head3 -> 2023/24 Medium Term Revenue & Expenditure Framework
A3: R thousand | C3: =Head5 -> Audited Outcome | D3: =Head5 -> Audited Outcome | E3: =Head5 -> Audited Outcome | F3: =Head6 -> Original Budget | G3: =Head7 -> Adjusted Budget | H3: =Head8 -> Full Year Forecast | I3: =Head5b -> Pre-audit outcome | J3: =Head9 -> Budget Year 2023/24 | K3: =Head10 -> Budget Year +1 2024/25 | L3: =Head11 -> Budget Year +2 2025/26
A4: CASH FLOW FROM OPERATING ACTIVITIES
A5: Receipts
A6: Property rates | C6: 0 | D6: 0 | E6: 0 | F6: 16892763 | G6: 20000000 | H6: 20000000 | I6: 20000000 | J6: ='SA30'!N5 -> 22848000 | K6: ='SA30'!O5 -> 24333120 | L6: ='SA30'!P5 -> 25914773
A7: Service charges | C7: 0 | D7: 0 | E7: 0 | F7: 0 | G7: 72500000 | H7: 72500000 | I7: 72500000 | J7: ='SA30'!N6+'SA30'!N7+'SA30'!N8+'SA30'!N9 -> 136602100 | K7: ='SA30'!O6+'SA30'!O7+'SA30'!O8+'SA30'!O9 -> 145481237 | L7: ='SA30'!P6+'SA30'!P7+'SA30'!P8+'SA30'!P9 -> 154937518
A8: Other revenue | C8: 0 | D8: 0 | E8: 0 | F8: 1500000 | G8: 1500000 | H8: 1500000 | I8: 1500000 | J8: ='SA30'!N11+'SA30'!N15+'SA30'!N16+'SA30'!N17+'SA30'!N19 -> 2519000 | K8: ='SA30'!O11+'SA30'!O15+'SA30'!O16+'SA30'!O17+'SA30'!O19 -> 2591174 | L8: ='SA30'!P11+'SA30'!P15+'SA30'!P16+'SA30'!P17+'SA30'!P19 -> 2591174
A9: Transfers and Subsidies - Operational | B9: 1 | C9: 0 | D9: 0 | E9: 0 | F9: 106863000 | G9: 106863000 | H9: 106863000 | I9: 106863000 | J9: ='SA30'!N18 -> 115574000 | K9: ='SA30'!O18 -> 123086310 | L9: ='SA30'!P18 -> 123086310
A10: Transfers and Subsidies - Capital | B10: 1 | C10: 0 | D10: 0 | E10: 0 | F10: 46795000 | G10: 46795000 | H10: 46795000 | I10: 46795000 | J10: ='SA30'!N23+'SA30'!N24 -> 41195518 | K10: ='SA30'!O23+'SA30'!O24 -> 43873227 | L10: ='SA30'!P23+'SA30'!P24 -> 46724986
A11: Interest | C11: 0 | D11: 0 | E11: 0 | F11: 36667072 | G11: 36667072 | H11: 36667072 | I11: 36667072 | J11: ='SA30'!N12+'SA30'!N13 -> 38353757 | K11: ='SA30'!O12+'SA30'!O13 -> 40118030 | L11: ='SA30'!P12+'SA30'!P13 -> 40118030
A12: Dividends | C12: 0 | D12: 0 | E12: 0 | F12: 0 | G12: 0 | H12: 0 | I12: 0 | J12: ='SA30'!N14 -> 0 | K12: ='SA30'!O14 -> 0 | L12: ='SA30'!P14 -> 0
A13: Payments
A14: Suppliers and employees | C14: -89273147.45 | D14: -114024024.5 | E14: -81168654.68 | F14: -395982000 | G14: -395982099 | H14: -395982099 | I14: -395982099 | J14: =-('SA30'!N35+'SA30'!N36+'SA30'!N38+'SA30'!N39+'SA30'!N40+'SA30'!N41+'SA30'!N44+'SA30'!N50) -> -198276599 | K14: =-('SA30'!O35+'SA30'!O36+'SA30'!O38+'SA30'!O39+'SA30'!O40+'SA30'!O41+'SA30'!O44+'SA30'!O50) -> -211164677 | L14: =-('SA30'!P35+'SA30'!P36+'SA30'!P38+'SA30'!P39+'SA30'!P40+'SA30'!P41+'SA30'!P44+'SA30'!P50) -> -224890374
A15: Interest | C15: 0 | D15: 0 | E15: 0 | F15: 0 | G15: 0 | H15: 0 | I15: 0 | J15: =-('SA30'!N37) -> -12164266 | K15: =-('SA30'!O37) -> -12723822 | L15: =-('SA30'!P37) -> -12723822
A16: Transfers and Subsidies | B16: 1 | C16: 0 | D16: 0 | E16: 0 | F16: 0 | G16: 0 | H16: 0 | I16: 0 | J16: =-('SA30'!N42+'SA30'!N43) -> 0 | K16: =-('SA30'!O42+'SA30'!O43) -> 0 | L16: =-('SA30'!P42+'SA30'!P43) -> 0
A17: NET CASH FROM/(USED) OPERATING ACTIVITIES | C17: =SUM(C6:C12)+SUM(C14:C16) -> -89273147.45 | D17: -114024024.5 | E17: -81168654.68 | F17: -187264165 | G17: -111657027 | H17: -111657027 | I17: -111657027 | J17: 146651510 | K17: 155594599 | L17: 155758595
A18: CASH FLOWS FROM INVESTING ACTIVITIES
A19: Receipts
A20: Proceeds on disposal of PPE | C20: 0 | D20: 0 | E20: 0 | F20: 0 | G20: 0 | H20: 0 | I20: 0 | J20: ='SA30'!N25 -> 0 | K20: ='SA30'!O25 -> 0 | L20: ='SA30'!P25 -> 0
A22: Decrease (increase) in non-current receivables | C22: 0 | D22: 0 | E22: 0 | F22: 0 | G22: 0 | H22: 0 | I22: 0 | J22: ='SA30'!N30 -> 29518 | K22: ='SA30'!O30 -> 0 | L22: ='SA30'!P30 -> 0
A23: Decrease (increase) in non-current investments | C23: 52976 | D23: 52976 | E23: 0 | F23: 0 | G23: 0 | H23: 0 | I23: 0 | J23: ='SA30'!N31 -> 0 | K23: ='SA30'!O31 -> 0 | L23: ='SA30'!P31 -> 0
A24: Payments
A25: Capital assets | C25: 0 | D25: 0 | E25: 0 | F25: 0 | G25: 0 | H25: 0 | I25: 0 | J25: =-('SA30'!N48) -> -41195520 | K25: =-('SA30'!O48) -> 0 | L25: =-('SA30'!P48) -> 0
A26: NET CASH FROM/(USED) INVESTING ACTIVITIES | C26: =+C20+C22+C23+C25 -> 52976 | D26: =+D20+D22+D23+D25 -> 52976 | E26: 0 | F26: 0 | G26: 0 | H26: 0 | I26: 0 | J26: -41166002 | K26: 0 | L26: 0
A28: CASH FLOWS FROM FINANCING ACTIVITIES
A29: Receipts
A30: Short term loans | C30: 0 | D30: 0 | E30: 0 | F30: 0 | G30: 0 | H30: 0 | I30: 0 | J30: ='SA30'!N26 -> 0 | K30: ='SA30'!O26 -> 0 | L30: ='SA30'!P26 -> 0
A31: Borrowing long term/refinancing | C31: 0 | D31: 0 | E31: 0 | F31: 0 | G31: 0 | H31: 0 | I31: 0 | J31: ='SA30'!N27 -> 0 | K31: ='SA30'!O27 -> 0 | L31: ='SA30'!P27 -> 0
A32: Increase (decrease) in consumer deposits | C32: 0 | D32: 0 | E32: 0 | F32: 0 | G32: 0 | H32: 0 | I32: 0 | J32: ='SA30'!N28 -> 0 | K32: ='SA30'!O28 -> 0 | L32: ='SA30'!P28 -> 0
A33: Payments
A34: Repayment of borrowing | C34: 0 | D34: 0 | E34: 0 | F34: 0 | G34: 0 | H34: 0 | I34: 0 | J34: =-('SA30'!N49) -> -800190 | K34: =-('SA30'!O49) -> -836999 | L34: =-('SA30'!P49) -> -836999
A35: NET CASH FROM/(USED) FINANCING ACTIVITIES | C35: =SUM(C30:C32)+C34 -> 0 | D35: =SUM(D30:D32)+D34 -> 0 | E35: 0 | F35: 0 | G35: 0 | H35: 0 | I35: 0 | J35: -800190 | K35: -836999 | L35: -836999
A37: NET INCREASE/ (DECREASE) IN CASH HELD | C37: =C17+C26+C35 -> -89220171.45 | D37: -113971048.5 | E37: -81168654.68 | F37: -187264165 | G37: -111657027 | H37: -111657027 | I37: -111657027 | J37: 104685318 | K37: 154757600 | L37: 154921596
A38: Cash/cash equivalents at the year begin: | B38: 2 | C38: 0 | D38: 0 | E38: 0 | F38: 0 | G38: 0 | H38: 0 | I38: 0 | J38: ='SA30'!N54 -> 0 | K38: =J39 -> 104685318 | L38: =K39 -> 259442918
A39: Cash/cash equivalents at the year end: | B39: 2 | C39: =C37+C38 -> -89220171.45 | D39: =D37+D38 -> -113971048.5 | E39: =E37+E38 -> -81168654.68 | F39: =F37+F38 -> -187264165 | G39: -111657027 | H39: -111657027 | I39: -111657027 | J39: 104685318 | K39: 259442918 | L39: 414364514
A40: =head27a -> References
A41: 1. Local/District municipalities to include transfers from/to District/Local Municipalities
A42: 2. Cash equivalents includes investments with maturities of 3 months or less
A43: 3. The MTREF is populated directly from SA30.
A44: Total receipts | C44: =SUM(C6:C12)+SUM(C20:C22) -> 0 | D44: 0 | E44: 0 | F44: 208717835 | G44: 284325072 | H44: 284325072 | I44: 284325072 | J44: 357121893 | K44: 379483098 | L44: 393372791
A45: Total payments | C45: =SUM(C14:C16)+C25 -> -89273147.45 | D45: -114024024.5 | E45: -81168654.68 | F45: -395982000 | G45: -395982099 | H45: -395982099 | I45: -395982099 | J45: -251636385 | K45: -223888499 | L45: -237614196
C46: =C44+C45 -> -89273147.45 | D46: =D44+D45 -> -114024024.5 | E46: -81168654.68 | F46: -187264165 | G46: -111657027 | H46: -111657027 | I46: -111657027 | J46: 105485508 | K46: 155594599 | L46: 155758595
A47: Borrowings & investments & c.deposits | C47: =C23+C31+C32 -> 52976 | D47: =D23+D31+D32 -> 52976 | E47: 0 | F47: 0 | G47: 0 | H47: 0 | I47: 0 | J47: 0 | K47: 0 | L47: 0
A48: =A34 -> Repayment of borrowing | C48: =C34 -> 0 | D48: =D34 -> 0 | E48: 0 | F48: 0 | G48: 0 | H48: 0 | I48: =I34 -> 0 | J48: -800190 | K48: -836999 | L48: -836999
C49: =C46+C47+C48 -> -89220171.45 | D49: =D46+D47+D48 -> -113971048.5 | E49: -81168654.68 | F49: -187264165 | G49: -111657027 | H49: -111657027 | I49: -111657027 | J49: 104685318 | K49: 154757600 | L49: 154921596
C50: =C37-C49 -> 0 | D50: 0 | E50: 0 | F50: 0 | G50: 0 | H50: 0 | I50: 0 | J50: 0 | K50: 0 | L50: 0

Sheet A8-ResRecon
A1: =muni&" - "&Approve8 -> 0 - Table A8 Cash backed reserves/accumulated surplus reconciliation
A2: =desc -> Description | B2: =head27 -> Ref | C2: =head1b -> 2019/20 | D2: =head1A -> 2020/21 | E2: =Head1 -> 2021/22 | F2: =Head2 -> Current Year 2022/23 | J2: =Head3 -> 2023/24 Medium Term Revenue & Expenditure Framework
A3: R thousand | C3: =Head5 -> Audited Outcome | D3: =Head5 -> Audited Outcome | E3: =Head5 -> Audited Outcome | F3: =Head6 -> Original Budget | G3: =Head7 -> Adjusted Budget | H3: =Head8 -> Full Year Forecast | I3: =Head5b -> Pre-audit outcome | J3: =Head9 -> Budget Year 2023/24 | K3: =Head10 -> Budget Year +1 2024/25 | L3: =Head11 -> Budget Year +2 2025/26
A4: Cash and investments available
A5: =LEFT('A7-CFlow'!A39,37) -> Cash/cash equivalents at the year end | B5: 1 | C5: ='A7-CFlow'!C39 -> -89220171.45 | D5: ='A7-CFlow'!D39 -> -113971048.5 | E5: ='A7-CFlow'!E39 -> -81168654.68 | F5: ='A7-CFlow'!F39 -> -187264165 | G5: ='A7-CFlow'!G39 -> -111657027 | H5: ='A7-CFlow'!H39 -> -111657027 | I5: ='A7-CFlow'!I39 -> -111657027 | J5: ='A7-CFlow'!J39 -> 104685318 | K5: ='A7-CFlow'!K39 -> 259442918 | L5: ='A7-CFlow'!L39 -> 414364514
A6: Other current investments > 90 days | C6: ='A6-FinPos'!C6-'A6-FinPos'!C29-'A8-ResRecon'!C5 -> 89920419.23 | D6: ='A6-FinPos'!D6-'A6-FinPos'!D29-'A8-ResRecon'!D5 -> 119272794.5 | E6: ='A6-FinPos'!E6-'A6-FinPos'!E29-'A8-ResRecon'!E5 -> 81474876.19 | F6: ='A6-FinPos'!F6-'A6-FinPos'!F29-'A8-ResRecon'!F5 -> 308896006 | G6: ='A6-FinPos'!G6-'A6-FinPos'!G29-'A8-ResRecon'!G5 -> 308896105 | H6: ='A6-FinPos'!H6-'A6-FinPos'!H29-'A8-ResRecon'!H5 -> 308896105 | I6: ='A6-FinPos'!I6-'A6-FinPos'!I29-'A8-ResRecon'!I5 -> 308896105 | J6: ='A6-FinPos'!J6-'A6-FinPos'!J29-'A8-ResRecon'!J5 -> 293350856 | K6: ='A6-FinPos'!K6-'A6-FinPos'!K29-'A8-ResRecon'!K5 -> 119788492 | L6: ='A6-FinPos'!L6-'A6-FinPos'!L29-'A8-ResRecon'!L5 -> -21243411
A7: Non current Investments | B7: 1 | C7: ='A6-FinPos'!C15 -> 1081428.81 | D7: ='A6-FinPos'!D15 -> 1113568.24 | E7: ='A6-FinPos'!E15 -> 1152591.38 | F7: ='A6-FinPos'!F15 -> 0 | G7: ='A6-FinPos'!G15 -> 0 | H7: ='A6-FinPos'!H15 -> 0 | I7: ='A6-FinPos'!I15 -> 0 | J7: ='A6-FinPos'!J15 -> 0 | K7: ='A6-FinPos'!K15 -> 0 | L7: ='A6-FinPos'!L15 -> 0
A8: Cash and investments available: | C8: =SUM(C5:C7) -> 1781676.59 | D8: =SUM(D5:D7) -> 6415314.27 | E8: 1458812.89 | F8: 121631841 | G8: 197239078 | H8: 197239078 | I8: 197239078 | J8: 398036174 | K8: 379231410 | L8: 393121103
A10: Application of cash and investments
A11: Unspent conditional transfers | C11: ='SA3'!C140 -> 8690037.19 | D11: ='SA3'!D140 -> 5755844.9 | E11: ='SA3'!E140 -> 13157553.73 | F11: ='SA3'!F140 -> 0 | G11: ='SA3'!G140 -> 0 | H11: ='SA3'!H140 -> 0 | I11: ='SA3'!I140 -> 0 | J11: ='SA3'!J140 -> 0 | K11: ='SA3'!K140 -> 0 | L11: ='SA3'!L140 -> 0
A12: Unspent borrowing | C12: 0 | D12: 0 | E12: 0 | F12: 0 | G12: 0 | H12: 0 | I12: 0 | J12: 0 | K12: 0 | L12: 0
A13: Statutory requirements | B13: 2 | C13: 30265176.17 | D13: 42460451.05 | E13: 34026768.33 | F13: 0 | G13: 0 | H13: 0 | I13: 0 | J13: 0 | K13: 0 | L13: 0
A14: Other working capital requirements | B14: 3 | C14: =-C32 -> 330931613.1 | D14: =-D32 -> 359067051.7 | E14: 401695336.5 | F14: =-F32 -> 110601754 | G14: 110598556 | H14: 110598556 | I14: 110598556 | J14: -735719123 | K14: -775205075 | L14: -830508655
A15: Other provisions | C15: 0 | D15: 4071083 | E15: 2281423 | F15: 0 | G15: 0 | H15: 0 | I15: 0 | J15: 0 | K15: 0 | L15: 0
A16: Long term investments committed | B16: 4 | C16: =C52 -> 33878623.32 | D16: =D52 -> 38081714.6 | E16: 39945151.93 | F16: 39945151.93 | G16: 39945151.93 | H16: 39945151.93 | I16: 39945151.93 | J16: 100000 | K16: 150000 | L16: 200000
A17: Reserves to be backed by cash/investments | B17: 5 | C17: 0 | D17: 0 | E17: 0 | F17: 0 | G17: 0 | H17: 0 | I17: 0 | J17: 0 | K17: 0 | L17: 0
A18: Total Application of cash and investments: | C18: =SUM(C11:C17) -> 403765449.8 | D18: =SUM(D11:D17) -> 449436145.2 | E18: 491106233.5 | F18: 150546905.9 | G18: 150543707.9 | H18: 150543707.9 | I18: 150543707.9 | J18: -735619123 | K18: -775055075 | L18: -830308655
A19: Surplus(shortfall) | C19: =C8-C18 -> -401983773.2 | D19: =D8-D18 -> -443020831 | E19: -489647420.6 | F19: -28915064.93 | G19: 46695370.07 | H19: 46695370.07 | I19: 46695370.07 | J19: 1133655297 | K19: 1154286485 | L19: 1223429758
A20: =head27a -> References
A21: 1. Must reconcile with Budgeted Cash Flows
A22: 2. For example: VAT, taxation
A23: 3. Council approval for policy required - include sufficient working capital (e.g. allowing for a % of current debtors > 90 days as uncollectable)
A24: 4. For example: sinking fund requirements for borrowing
A25: 5. Council approval required for each reserve created and basis of cash backing of reserves - Total Reserves to be backed by cash/investments excl Valuation reserve
A28: Other working capital requirements
A29: Debtors | C29: =IF(ISERROR(ROUND(C35*C36,-3)),0,(ROUND(C35*C36,-3))) -> 0 | D29: =IF(ISERROR(ROUND(D35*D36,-3)),0,(ROUND(D35*D36,-3))) -> 0 | E29: 0 | F29: 0 | G29: 3000 | H29: 3000 | I29: 3000 | J29: 994693000 | K29: 1017521000 | L29: 1055680000
A31: Creditors due | C31: ='SA3'!C138+'SA3'!C139 -> 330931613.1 | D31: ='SA3'!D138+'SA3'!D139 -> 359067051.7 | E31: ='SA3'!E138+'SA3'!E139 -> 401695336.5 | F31: ='SA3'!F138+'SA3'!F139 -> 110601754 | G31: ='SA3'!G138+'SA3'!G139 -> 110601556 | H31: ='SA3'!H138+'SA3'!H139 -> 110601556 | I31: ='SA3'!I138+'SA3'!I139 -> 110601556 | J31: ='SA3'!J138+'SA3'!J139 -> 258973877 | K31: ='SA3'!K138+'SA3'!K139 -> 242315925 | L31: ='SA3'!L138+'SA3'!L139 -> 225171345
A32: Total | C32: =C29-C31 -> -330931613.1 | D32: =D29-D31 -> -359067051.7 | E32: -401695336.5 | F32: -110601754 | G32: -110598556 | H32: -110598556 | I32: -110598556 | J32: 735719123 | K32: 775205075 | L32: 830508655
A34: Debtors collection assumptions
A35: Balance outstanding - debtors | C35: ='A6-FinPos'!C7+'A6-FinPos'!C8+'A6-FinPos'!C9+'A6-FinPos'!C22+'A6-FinPos'!C23+'A6-FinPos'!C24 -> 6323.64 | D35: ='A6-FinPos'!D7+'A6-FinPos'!D8+'A6-FinPos'!D9+'A6-FinPos'!D22+'A6-FinPos'!D23+'A6-FinPos'!D24 -> 6324 | E35: ='A6-FinPos'!E7+'A6-FinPos'!E8+'A6-FinPos'!E9+'A6-FinPos'!E22+'A6-FinPos'!E23+'A6-FinPos'!E24 -> 6451.02 | F35: ='A6-FinPos'!F7+'A6-FinPos'!F8+'A6-FinPos'!F9+'A6-FinPos'!F22+'A6-FinPos'!F23+'A6-FinPos'!F24 -> 7657 | G35: ='A6-FinPos'!G7+'A6-FinPos'!G8+'A6-FinPos'!G9+'A6-FinPos'!G22+'A6-FinPos'!G23+'A6-FinPos'!G24 -> 7657 | H35: ='A6-FinPos'!H7+'A6-FinPos'!H8+'A6-FinPos'!H9+'A6-FinPos'!H22+'A6-FinPos'!H23+'A6-FinPos'!H24 -> 7657 | I35: ='A6-FinPos'!I7+'A6-FinPos'!I8+'A6-FinPos'!I9+'A6-FinPos'!I22+'A6-FinPos'!I23+'A6-FinPos'!I24 -> 7657 | J35: ='A6-FinPos'!J7+'A6-FinPos'!J8+'A6-FinPos'!J9+'A6-FinPos'!J22+'A6-FinPos'!J23+'A6-FinPos'!J24 -> 1255961687 | K35: ='A6-FinPos'!K7+'A6-FinPos'!K8+'A6-FinPos'!K9+'A6-FinPos'!K22+'A6-FinPos'!K23+'A6-FinPos'!K24 -> 1285624605 | L35: ='A6-FinPos'!L7+'A6-FinPos'!L8+'A6-FinPos'!L9+'A6-FinPos'!L22+'A6-FinPos'!L23+'A6-FinPos'!L24 -> 1317215615
A36: Estimate of debtors collection rate | C36: =IF(ISERROR('SA10'!D10),0,('SA10'!D10)) -> 0 | D36: =IF(ISERROR('SA10'!E10),0,('SA10'!E10)) -> 0 | E36: =IF(ISERROR('SA10'!F10),0,('SA10'!F10)) -> 0 | F36: =IF(ISERROR('SA10'!G10),0,('SA10'!G10)) -> 0.05982978514 | G36: =IF(ISERROR('SA10'!H10),0,('SA10'!H10)) -> 0.359859946 | H36: =IF(ISERROR('SA10'!I10),0,('SA10'!I10)) -> 0.359859946 | I36: =IF(ISERROR('SA10'!J10),0,('SA10'!J10)) -> 0.3544324548 | J36: =IF(ISERROR('SA10'!K10),0,('SA10'!K10)) -> 0.7919772886 | K36: =IF(ISERROR('SA10'!L10),0,('SA10'!L10)) -> 0.7914600664 | L36: =IF(ISERROR('SA10'!M10),0,('SA10'!M10)) -> 0.8014484947
K39: `
A40: =A16 -> Long term investments committed
A41: Balance (Insert description; eg sinking fund) | C41: 33878623.32 | D41: 38081714.6 | E41: 39945151.93 | F41: 39945151.93 | G41: 39945151.93 | H41: 39945151.93 | I41: 39945151.93 | J41: 100000 | K41: 150000 | L41: 200000
C52: =SUM(C41:C51) -> 33878623.32 | D52: =SUM(D41:D51) -> 38081714.6 | E52: 39945151.93 | F52: 39945151.93 | G52: 39945151.93 | H52: 39945151.93 | I52: 39945151.93 | J52: 100000 | K52: 150000 | L52: 200000
A53: =A17 -> Reserves to be backed by cash/investments
A54: Housing Development Fund | C54: ='SA3'!C168 -> 0 | D54: ='SA3'!D168 -> 0 | E54: ='SA3'!E168 -> 0 | F54: ='SA3'!F168 -> 0 | G54: ='SA3'!G168 -> 0 | H54: ='SA3'!H168 -> 0 | I54: ='SA3'!I168 -> 0 | J54: ='SA3'!J168 -> 0 | K54: ='SA3'!K168 -> 0 | L54: ='SA3'!L168 -> 0
A55: Capital replacement | C55: ='SA3'!C169 -> 0 | D55: ='SA3'!D169 -> 0 | E55: ='SA3'!E169 -> 0 | F55: ='SA3'!F169 -> 0 | G55: ='SA3'!G169 -> 0 | H55: ='SA3'!H169 -> 0 | I55: ='SA3'!I169 -> 0 | J55: ='SA3'!J169 -> 0 | K55: ='SA3'!K169 -> 0 | L55: ='SA3'!L169 -> 0
A56: Self-insurance | C56: ='SA3'!C170 -> 0 | D56: ='SA3'!D170 -> 0 | E56: ='SA3'!E170 -> 0 | F56: ='SA3'!F170 -> 0 | G56: ='SA3'!G170 -> 0 | H56: ='SA3'!H170 -> 0 | I56: ='SA3'!I170 -> 0 | J56: ='SA3'!J170 -> 0 | K56: ='SA3'!K170 -> 0 | L56: ='SA3'!L170 -> 0
A57: Compensation for Occupational Injuries and Diseases
A58: Employee Benefit reserve
A59: Non-current Provisions reserve
A60: Valuation roll reserve
A61: Investment in associate account
A62: Capitalisation
B63: 6 | C63: =SUM(C54:C62) -> 0 | D63: 0 | E63: 0 | F63: 0 | G63: 0 | H63: 0 | I63: 0 | J63: 0 | K63: 0 | L63: 0
A64: Note:
A65: 6. Above reserves do not include Revaluation reserve. Revaluation reserve not required to be cash backed

Sheet A9-Asset
A1: =muni&" - "&Approve9 -> 0 - Table A9 Asset Management
A2: =desc -> Description | B2: =head27 -> Ref | C2: =head1b -> 2019/20 | D2: =head1A -> 2020/21 | E2: =Head1 -> 2021/22 | F2: =Head2 -> Current Year 2022/23 | I2: =Head3 -> 2023/24 Medium Term Revenue & Expenditure Framework
A3: R thousand | C3: =Head5 -> Audited Outcome | D3: =Head5 -> Audited Outcome | E3: =Head5 -> Audited Outcome | F3: =Head6 -> Original Budget | G3: =Head7 -> Adjusted Budget | H3: =Head8 -> Full Year Forecast | I3: =Head9 -> Budget Year 2023/24 | J3: =Head10 -> Budget Year +1 2024/25 | K3: =Head11 -> Budget Year +2 2025/26
A4: CAPITAL EXPENDITURE
A5: Total New Assets | B5: 1 | C5: =C15+C18+C19+C22+C25+C26+SUM(C29:C35)+C38 -> 10164201.54 | D5: =D15+D18+D19+D22+D25+D26+SUM(D29:D35)+D38 -> -14402904.88 | E5: 24261358.16 | F5: 21513058 | G5: 18613059 | H5: 18613059 | I5: 32200022 | J5: 23572292 | K5: 24544019
A6: Roads Infrastructure | C6: =SA34a!C7 -> 4022682.76 | D6: =SA34a!D7 -> 3801803.72 | E6: =SA34a!E7 -> 8365909.72 | F6: =SA34a!F7 -> 4963545 | G6: =SA34a!G7 -> 4963545 | H6: =SA34a!H7 -> 4963545 | I6: =SA34a!I7 -> 0 | J6: =SA34a!J7 -> 0 | K6: =SA34a!K7 -> 0
A7: Storm water Infrastructure | C7: =SA34a!C12 -> 0 | D7: =SA34a!D12 -> 0 | E7: =SA34a!E12 -> 0 | F7: =SA34a!F12 -> 0 | G7: =SA34a!G12 -> 0 | H7: =SA34a!H12 -> 0 | I7: =SA34a!I12 -> 0 | J7: =SA34a!J12 -> 0 | K7: =SA34a!K12 -> 0
A8: Electrical Infrastructure | C8: =SA34a!C16 -> 1619894.4 | D8: =SA34a!D16 -> -18303520.24 | E8: =SA34a!E16 -> 0 | F8: =SA34a!F16 -> 0 | G8: =SA34a!G16 -> 0 | H8: =SA34a!H16 -> 0 | I8: =SA34a!I16 -> 0 | J8: =SA34a!J16 -> 0 | K8: =SA34a!K16 -> 0
A9: Water Supply Infrastructure | C9: =SA34a!C26 -> 1053877.31 | D9: =SA34a!D26 -> -6531974.9 | E9: =SA34a!E26 -> 0 | F9: =SA34a!F26 -> 0 | G9: =SA34a!G26 -> 0 | H9: =SA34a!H26 -> 0 | I9: =SA34a!I26 -> 24584928 | J9: =SA34a!J26 -> 14004888 | K9: =SA34a!K26 -> 14611523
A10: Sanitation Infrastructure | C10: =SA34a!C37 -> 31500.29 | D10: =SA34a!D37 -> 5415198.94 | E10: =SA34a!E37 -> 4436488.4 | F10: =SA34a!F37 -> 0 | G10: =SA34a!G37 -> 0 | H10: =SA34a!H37 -> 0 | I10: =SA34a!I37 -> 3472310 | J10: =SA34a!J37 -> 4362519 | K10: =SA34a!K37 -> 4528993
A11: Solid Waste Infrastructure | C11: =SA34a!C44 -> 0 | D11: =SA34a!D44 -> 871787.6 | E11: =SA34a!E44 -> 0 | F11: =SA34a!F44 -> 0 | G11: =SA34a!G44 -> 0 | H11: =SA34a!H44 -> 0 | I11: =SA34a!I44 -> 0 | J11: =SA34a!J44 -> 0 | K11: =SA34a!K44 -> 0
A12: Rail Infrastructure | C12: =SA34a!C52 -> 0 | D12: =SA34a!D52 -> 0 | E12: =SA34a!E52 -> 0 | F12: =SA34a!F52 -> 0 | G12: =SA34a!G52 -> 0 | H12: =SA34a!H52 -> 0 | I12: =SA34a!I52 -> 0 | J12: =SA34a!J52 -> 0 | K12: =SA34a!K52 -> 0
A13: Coastal Infrastructure | C13: =SA34a!C62 -> 0 | D13: =SA34a!D62 -> 0 | E13: =SA34a!E62 -> 0 | F13: =SA34a!F62 -> 0 | G13: =SA34a!G62 -> 0 | H13: =SA34a!H62 -> 0 | I13: =SA34a!I62 -> 0 | J13: =SA34a!J62 -> 0 | K13: =SA34a!K62 -> 0
A14: Information and Communication Infrastructure | C14: =SA34a!C68 -> 0 | D14: =SA34a!D68 -> 0 | E14: =SA34a!E68 -> 0 | F14: =SA34a!F68 -> 0 | G14: =SA34a!G68 -> 0 | H14: =SA34a!H68 -> 0 | I14: =SA34a!I68 -> 0 | J14: =SA34a!J68 -> 0 | K14: =SA34a!K68 -> 0
A15: Infrastructure | C15: =SUM(C6:C14) -> 6727954.76 | D15: =SUM(D6:D14) -> -14746704.88 | E15: 12802398.12 | F15: 4963545 | G15: 4963545 | H15: 4963545 | I15: 28057238 | J15: 18367407 | K15: 19140516
A16: Community Facilities | C16: =SA34a!C75 -> 0 | D16: =SA34a!D75 -> 0 | E16: =SA34a!E75 -> 0 | F16: =SA34a!F75 -> 0 | G16: =SA34a!G75 -> 0 | H16: =SA34a!H75 -> 0 | I16: =SA34a!I75 -> 0 | J16: =SA34a!J75 -> 0 | K16: =SA34a!K75 -> 0
A17: Sport and Recreation Facilities | C17: =SA34a!C98 -> 3436246.78 | D17: =SA34a!D98 -> 343800 | E17: =SA34a!E98 -> 0 | F17: =SA34a!F98 -> 0 | G17: =SA34a!G98 -> 0 | H17: =SA34a!H98 -> 0 | I17: =SA34a!I98 -> 0 | J17: =SA34a!J98 -> 0 | K17: =SA34a!K98 -> 0
A18: Community Assets | C18: =SUM(C16:C17) -> 3436246.78 | D18: =SUM(D16:D17) -> 343800 | E18: 0 | F18: 0 | G18: 0 | H18: 0 | I18: 0 | J18: 0 | K18: 0
A19: Heritage Assets | C19: =SA34a!C103 -> 0 | D19: =SA34a!D103 -> 0 | E19: =SA34a!E103 -> 0 | F19: =SA34a!F103 -> 0 | G19: =SA34a!G103 -> 0 | H19: =SA34a!H103 -> 0 | I19: =SA34a!I103 -> 0 | J19: =SA34a!J103 -> 0 | K19: =SA34a!K103 -> 0
A20: Revenue Generating | C20: =SA34a!C111 -> 0 | D20: =SA34a!D111 -> 0 | E20: =SA34a!E111 -> 0 | F20: =SA34a!F111 -> 0 | G20: =SA34a!G111 -> 0 | H20: =SA34a!H111 -> 0 | I20: =SA34a!I111 -> 0 | J20: =SA34a!J111 -> 0 | K20: =SA34a!K111 -> 0
A21: Non-revenue Generating | C21: =SA34a!C114 -> 0 | D21: =SA34a!D114 -> 0 | E21: =SA34a!E114 -> 0 | F21: =SA34a!F114 -> 0 | G21: =SA34a!G114 -> 0 | H21: =SA34a!H114 -> 0 | I21: =SA34a!I114 -> 0 | J21: =SA34a!J114 -> 0 | K21: =SA34a!K114 -> 0
A22: Investment properties | C22: =SUM(C20:C21) -> 0 | D22: =SUM(D20:D21) -> 0 | E22: 0 | F22: 0 | G22: 0 | H22: 0 | I22: 0 | J22: 0 | K22: 0
A23: Operational Buildings | C23: =SA34a!C119 -> 0 | D23: =SA34a!D119 -> 0 | E23: =SA34a!E119 -> 0 | F23: =SA34a!F119 -> 0 | G23: =SA34a!G119 -> 0 | H23: =SA34a!H119 -> 0 | I23: =SA34a!I119 -> 0 | J23: =SA34a!J119 -> 0 | K23: =SA34a!K119 -> 0
A24: Housing | C24: =SA34a!C131 -> 0 | D24: =SA34a!D131 -> 0 | E24: =SA34a!E131 -> 0 | F24: =SA34a!F131 -> 0 | G24: =SA34a!G131 -> 0 | H24: =SA34a!H131 -> 0 | I24: =SA34a!I131 -> 0 | J24: =SA34a!J131 -> 0 | K24: =SA34a!K131 -> 0
A25: Other Assets | C25: =SUM(C23:C24) -> 0 | D25: =SUM(D23:D24) -> 0 | E25: 0 | F25: 0 | G25: 0 | H25: 0 | I25: 0 | J25: 0 | K25: 0
A26: Biological or Cultivated Assets | C26: =SA34a!C136 -> 0 | D26: =SA34a!D136 -> 0 | E26: =SA34a!E136 -> 0 | F26: =SA34a!F136 -> 0 | G26: =SA34a!G136 -> 0 | H26: =SA34a!H136 -> 0 | I26: =SA34a!I136 -> 0 | J26: =SA34a!J136 -> 0 | K26: =SA34a!K136 -> 0
A27: Servitudes | C27: =SA34a!C140 -> 0 | D27: =SA34a!D140 -> 0 | E27: =SA34a!E140 -> 0 | F27: =SA34a!F140 -> 0 | G27: =SA34a!G140 -> 0 | H27: =SA34a!H140 -> 0 | I27: =SA34a!I140 -> 0 | J27: =SA34a!J140 -> 0 | K27: =SA34a!K140 -> 0
A28: Licences and Rights | C28: =SA34a!C141 -> 0 | D28: =SA34a!D141 -> 0 | E28: =SA34a!E141 -> 2111409.5 | F28: =SA34a!F141 -> 400000 | G28: =SA34a!G141 -> 500000 | H28: =SA34a!H141 -> 500000 | I28: =SA34a!I141 -> 0 | J28: =SA34a!J141 -> 0 | K28: =SA34a!K141 -> 0
A29: Intangible Assets | C29: =SUM(C27:C28) -> 0 | D29: =SUM(D27:D28) -> 0 | E29: 2111409.5 | F29: 400000 | G29: 500000 | H29: 500000 | I29: 0 | J29: 0 | K29: 0
A30: Computer Equipment | C30: =SA34a!C149 -> 0 | D30: =SA34a!D149 -> 0 | E30: =SA34a!E149 -> 0 | F30: =SA34a!F149 -> 0 | G30: =SA34a!G149 -> 0 | H30: =SA34a!H149 -> 0 | I30: =SA34a!I149 -> 0 | J30: =SA34a!J149 -> 0 | K30: =SA34a!K149 -> 0
A31: Furniture and Office Equipment | C31: =SA34a!C152 -> 0 | D31: =SA34a!D152 -> 0 | E31: =SA34a!E152 -> 2700000.99 | F31: =SA34a!F152 -> 1113750 | G31: =SA34a!G152 -> 1113750 | H31: =SA34a!H152 -> 1113750 | I31: =SA34a!I152 -> 0 | J31: =SA34a!J152 -> 0 | K31: =SA34a!K152 -> 0
A32: Machinery and Equipment | C32: =SA34a!C155 -> 0 | D32: =SA34a!D155 -> 0 | E32: =SA34a!E155 -> 2469849.13 | F32: =SA34a!F155 -> 12758846 | G32: =SA34a!G155 -> 9758847 | H32: =SA34a!H155 -> 9758847 | I32: =SA34a!I155 -> 0 | J32: =SA34a!J155 -> 0 | K32: =SA34a!K155 -> 0
A33: Transport Assets | C33: =SA34a!C158 -> 0 | D33: =SA34a!D158 -> 0 | E33: =SA34a!E158 -> 4177700.42 | F33: =SA34a!F158 -> 2276917 | G33: =SA34a!G158 -> 2276917 | H33: =SA34a!H158 -> 2276917 | I33: =SA34a!I158 -> 4142784 | J33: =SA34a!J158 -> 5204885 | K33: =SA34a!K158 -> 5403503
A34: Land | C34: =SA34a!C161 -> 0 | D34: =SA34a!D161 -> 0 | E34: =SA34a!E161 -> 0 | F34: =SA34a!F161 -> 0 | G34: =SA34a!G161 -> 0 | H34: =SA34a!H161 -> 0 | I34: =SA34a!I161 -> 0 | J34: =SA34a!J161 -> 0 | K34: =SA34a!K161 -> 0
A35: Zoo's, Marine and Non-biological Animals | C35: =SA34a!C164 -> 0 | D35: =SA34a!D164 -> 0 | E35: =SA34a!E164 -> 0 | F35: =SA34a!F164 -> 0 | G35: =SA34a!G164 -> 0 | H35: =SA34a!H164 -> 0 | I35: =SA34a!I164 -> 0 | J35: =SA34a!J164 -> 0 | K35: =SA34a!K164 -> 0
A36: Mature | C36: =SA34a!C168 -> 0 | D36: =SA34a!D168 -> 0 | E36: =SA34a!E168 -> 0 | F36: =SA34a!F168 -> 0 | G36: =SA34a!G168 -> 0 | H36: =SA34a!H168 -> 0 | I36: =SA34a!I168 -> 0 | J36: =SA34a!J168 -> 0 | K36: =SA34a!K168 -> 0
A37: Immature | C37: =SA34a!C171 -> 0 | D37: =SA34a!D171 -> 0 | E37: =SA34a!E171 -> 0 | F37: =SA34a!F171 -> 0 | G37: =SA34a!G171 -> 0 | H37: =SA34a!H171 -> 0 | I37: =SA34a!I171 -> 0 | J37: =SA34a!J171 -> 0 | K37: =SA34a!K171 -> 0
A38: Living Resources | C38: =SUM(C36:C37) -> 0 | D38: 0 | E38: 0 | F38: 0 | G38: 0 | H38: 0 | I38: 0 | J38: 0 | K38: 0
A40: Total Renewal of Existing Assets | B40: 2 | C40: =C50+C53+C54+C57+C60+C61+SUM(C64:C70)+C73 -> 4305936.22 | D40: =D50+D53+D54+D57+D60+D61+SUM(D64:D70)+D73 -> 8284619.48 | E40: 16769480.9 | F40: 19846616 | G40: 17646617 | H40: 17646617 | I40: 8004511 | J40: 10056658 | K40: 10440419
A41: Roads Infrastructure | C41: =SA34b!C7 -> 0 | D41: =SA34b!D7 -> 0 | E41: =SA34b!E7 -> 0 | F41: =SA34b!F7 -> 0 | G41: =SA34b!G7 -> 0 | H41: =SA34b!H7 -> 0 | I41: =SA34b!I7 -> 8004511 | J41: =SA34b!J7 -> 10056658 | K41: =SA34b!K7 -> 10440419
A42: Storm water Infrastructure | C42: =SA34b!C12 -> 0 | D42: =SA34b!D12 -> 0 | E42: =SA34b!E12 -> 0 | F42: =SA34b!F12 -> 0 | G42: =SA34b!G12 -> 0 | H42: =SA34b!H12 -> 0 | I42: =SA34b!I12 -> 0 | J42: =SA34b!J12 -> 0 | K42: =SA34b!K12 -> 0
A43: Electrical Infrastructure | C43: =SA34b!C16 -> 0 | D43: =SA34b!D16 -> 0 | E43: =SA34b!E16 -> 0 | F43: =SA34b!F16 -> 2800000 | G43: =SA34b!G16 -> 2800000 | H43: =SA34b!H16 -> 2800000 | I43: =SA34b!I16 -> 0 | J43: =SA34b!J16 -> 0 | K43: =SA34b!K16 -> 0
A44: Water Supply Infrastructure | C44: =SA34b!C26 -> 3148961.37 | D44: =SA34b!D26 -> 0 | E44: =SA34b!E26 -> 16267904.58 | F44: =SA34b!F26 -> 17046616 | G44: =SA34b!G26 -> 14846617 | H44: =SA34b!H26 -> 14846617 | I44: =SA34b!I26 -> 0 | J44: =SA34b!J26 -> 0 | K44: =SA34b!K26 -> 0
A45: Sanitation Infrastructure | C45: =SA34b!C37 -> 0 | D45: =SA34b!D37 -> 0 | E45: =SA34b!E37 -> 0 | F45: =SA34b!F37 -> 0 | G45: =SA34b!G37 -> 0 | H45: =SA34b!H37 -> 0 | I45: =SA34b!I37 -> 0 | J45: =SA34b!J37 -> 0 | K45: =SA34b!K37 -> 0
A46: Solid Waste Infrastructure | C46: =SA34b!C44 -> 0 | D46: =SA34b!D44 -> 0 | E46: =SA34b!E44 -> 0 | F46: =SA34b!F44 -> 0 | G46: =SA34b!G44 -> 0 | H46: =SA34b!H44 -> 0 | I46: =SA34b!I44 -> 0 | J46: =SA34b!J44 -> 0 | K46: =SA34b!K44 -> 0
A47: Rail Infrastructure | C47: =SA34b!C52 -> 0 | D47: =SA34b!D52 -> -0.32 | E47: =SA34b!E52 -> 0 | F47: =SA34b!F52 -> 0 | G47: =SA34b!G52 -> 0 | H47: =SA34b!H52 -> 0 | I47: =SA34b!I52 -> 0 | J47: =SA34b!J52 -> 0 | K47: =SA34b!K52 -> 0
A48: Coastal Infrastructure | C48: =SA34b!C62 -> 0 | D48: =SA34b!D62 -> 0 | E48: =SA34b!E62 -> 0 | F48: =SA34b!F62 -> 0 | G48: =SA34b!G62 -> 0 | H48: =SA34b!H62 -> 0 | I48: =SA34b!I62 -> 0 | J48: =SA34b!J62 -> 0 | K48: =SA34b!K62 -> 0
A49: Information and Communication Infrastructure | C49: =SA34b!C68 -> 0 | D49: =SA34b!D68 -> 0 | E49: =SA34b!E68 -> 0 | F49: =SA34b!F68 -> 0 | G49: =SA34b!G68 -> 0 | H49: =SA34b!H68 -> 0 | I49: =SA34b!I68 -> 0 | J49: =SA34b!J68 -> 0 | K49: =SA34b!K68 -> 0
A50: Infrastructure | C50: =SUM(C41:C49) -> 3148961.37 | D50: =SUM(D41:D49) -> -0.32 | E50: 16267904.58 | F50: 19846616 | G50: 17646617 | H50: 17646617 | I50: 8004511 | J50: 10056658 | K50: 10440419
A51: Community Facilities | C51: =SA34b!C75 -> 401786.55 | D51: =SA34b!D75 -> 8284619.8 | E51: =SA34b!E75 -> 501576.32 | F51: =SA34b!F75 -> 0 | G51: =SA34b!G75 -> 0 | H51: =SA34b!H75 -> 0 | I51: =SA34b!I75 -> 0 | J51: =SA34b!J75 -> 0 | K51: =SA34b!K75 -> 0
A52: Sport and Recreation Facilities | C52: =SA34b!C98 -> 755188.3 | D52: =SA34b!D98 -> 0 | E52: =SA34b!E98 -> 0 | F52: =SA34b!F98 -> 0 | G52: =SA34b!G98 -> 0 | H52: =SA34b!H98 -> 0 | I52: =SA34b!I98 -> 0 | J52: =SA34b!J98 -> 0 | K52: =SA34b!K98 -> 0
A53: Community Assets | C53: =SUM(C51:C52) -> 1156974.85 | D53: =SUM(D51:D52) -> 8284619.8 | E53: 501576.32 | F53: 0 | G53: 0 | H53: 0 | I53: 0 | J53: 0 | K53: 0
A54: Heritage Assets | C54: =SA34b!C103 -> 0 | D54: =SA34b!D103 -> 0 | E54: =SA34b!E103 -> 0 | F54: =SA34b!F103 -> 0 | G54: =SA34b!G103 -> 0 | H54: =SA34b!H103 -> 0 | I54: =SA34b!I103 -> 0 | J54: =SA34b!J103 -> 0 | K54: =SA34b!K103 -> 0
A55: Revenue Generating | C55: =SA34b!C111 -> 0 | D55: =SA34b!D111 -> 0 | E55: =SA34b!E111 -> 0 | F55: =SA34b!F111 -> 0 | G55: =SA34b!G111 -> 0 | H55: =SA34b!H111 -> 0 | I55: =SA34b!I111 -> 0 | J55: =SA34b!J111 -> 0 | K55: =SA34b!K111 -> 0
A56: Non-revenue Generating | C56: =SA34b!C114 -> 0 | D56: =SA34b!D114 -> 0 | E56: =SA34b!E114 -> 0 | F56: =SA34b!F114 -> 0 | G56: =SA34b!G114 -> 0 | H56: =SA34b!H114 -> 0 | I56: =SA34b!I114 -> 0 | J56: =SA34b!J114 -> 0 | K56: =SA34b!K114 -> 0
A57: Investment properties | C57: =SUM(C55:C56) -> 0 | D57: =SUM(D55:D56) -> 0 | E57: 0 | F57: 0 | G57: 0 | H57: 0 | I57: 0 | J57: 0 | K57: 0
A58: Operational Buildings | C58: =SA34b!C119 -> 0 | D58: =SA34b!D119 -> 0 | E58: =SA34b!E119 -> 0 | F58: =SA34b!F119 -> 0 | G58: =SA34b!G119 -> 0 | H58: =SA34b!H119 -> 0 | I58: =SA34b!I119 -> 0 | J58: =SA34b!J119 -> 0 | K58: =SA34b!K119 -> 0
A59: Housing | C59: =SA34b!C131 -> 0 | D59: =SA34b!D131 -> 0 | E59: =SA34b!E131 -> 0 | F59: =SA34b!F131 -> 0 | G59: =SA34b!G131 -> 0 | H59: =SA34b!H131 -> 0 | I59: =SA34b!I131 -> 0 | J59: =SA34b!J131 -> 0 | K59: =SA34b!K131 -> 0
A60: Other Assets | C60: =SUM(C58:C59) -> 0 | D60: =SUM(D58:D59) -> 0 | E60: 0 | F60: 0 | G60: 0 | H60: 0 | I60: 0 | J60: 0 | K60: 0
A61: Biological or Cultivated Assets | C61: =SA34b!C136 -> 0 | D61: =SA34b!D136 -> 0 | E61: =SA34b!E136 -> 0 | F61: =SA34b!F136 -> 0 | G61: =SA34b!G136 -> 0 | H61: =SA34b!H136 -> 0 | I61: =SA34b!I136 -> 0 | J61: =SA34b!J136 -> 0 | K61: =SA34b!K136 -> 0
A62: Servitudes | C62: =SA34b!C140 -> 0 | D62: =SA34b!D140 -> 0 | E62: =SA34b!E140 -> 0 | F62: =SA34b!F140 -> 0 | G62: =SA34b!G140 -> 0 | H62: =SA34b!H140 -> 0 | I62: =SA34b!I140 -> 0 | J62: =SA34b!J140 -> 0 | K62: =SA34b!K140 -> 0
A63: Licences and Rights | C63: =SA34b!C141 -> 0 | D63: =SA34b!D141 -> 0 | E63: =SA34b!E141 -> 0 | F63: =SA34b!F141 -> 0 | G63: =SA34b!G141 -> 0 | H63: =SA34b!H141 -> 0 | I63: =SA34b!I141 -> 0 | J63: =SA34b!J141 -> 0 | K63: =SA34b!K141 -> 0
A64: Intangible Assets | C64: =SUM(C62:C63) -> 0 | D64: =SUM(D62:D63) -> 0 | E64: 0 | F64: 0 | G64: 0 | H64: 0 | I64: 0 | J64: 0 | K64: 0
A65: Computer Equipment | C65: =SA34b!C149 -> 0 | D65: =SA34b!D149 -> 0 | E65: =SA34b!E149 -> 0 | F65: =SA34b!F149 -> 0 | G65: =SA34b!G149 -> 0 | H65: =SA34b!H149 -> 0 | I65: =SA34b!I149 -> 0 | J65: =SA34b!J149 -> 0 | K65: =SA34b!K149 -> 0
A66: Furniture and Office Equipment | C66: =SA34b!C152 -> 0 | D66: =SA34b!D152 -> 0 | E66: =SA34b!E152 -> 0 | F66: =SA34b!F152 -> 0 | G66: =SA34b!G152 -> 0 | H66: =SA34b!H152 -> 0 | I66: =SA34b!I152 -> 0 | J66: =SA34b!J152 -> 0 | K66: =SA34b!K152 -> 0
A67: Machinery and Equipment | C67: =SA34b!C155 -> 0 | D67: =SA34b!D155 -> 0 | E67: =SA34b!E155 -> 0 | F67: =SA34b!F155 -> 0 | G67: =SA34b!G155 -> 0 | H67: =SA34b!H155 -> 0 | I67: =SA34b!I155 -> 0 | J67: =SA34b!J155 -> 0 | K67: =SA34b!K155 -> 0
A68: Transport Assets | C68: =SA34b!C158 -> 0 | D68: =SA34b!D158 -> 0 | E68: =SA34b!E158 -> 0 | F68: =SA34b!F158 -> 0 | G68: =SA34b!G158 -> 0 | H68: =SA34b!H158 -> 0 | I68: =SA34b!I158 -> 0 | J68: =SA34b!J158 -> 0 | K68: =SA34b!K158 -> 0
A69: Land | C69: =SA34b!C161 -> 0 | D69: =SA34b!D161 -> 0 | E69: =SA34b!E161 -> 0 | F69: =SA34b!F161 -> 0 | G69: =SA34b!G161 -> 0 | H69: =SA34b!H161 -> 0 | I69: =SA34b!I161 -> 0 | J69: =SA34b!J161 -> 0 | K69: =SA34b!K161 -> 0
A70: Zoo's, Marine and Non-biological Animals | C70: =SA34b!C164 -> 0 | D70: =SA34b!D164 -> 0 | E70: =SA34b!E164 -> 0 | F70: =SA34b!F164 -> 0 | G70: =SA34b!G164 -> 0 | H70: =SA34b!H164 -> 0 | I70: =SA34b!I164 -> 0 | J70: =SA34b!J164 -> 0 | K70: =SA34b!K164 -> 0
A71: Mature | C71: =SA34b!C168 -> 0 | D71: =SA34b!D168 -> 0 | E71: =SA34b!E168 -> 0 | F71: =SA34b!F168 -> 0 | G71: =SA34b!G168 -> 0 | H71: =SA34b!H168 -> 0 | I71: =SA34b!I168 -> 0 | J71: =SA34b!J168 -> 0 | K71: =SA34b!K168 -> 0
A72: Immature | C72: =SA34b!C171 -> 0 | D72: =SA34b!D171 -> 0 | E72: =SA34b!E171 -> 0 | F72: =SA34b!F171 -> 0 | G72: =SA34b!G171 -> 0 | H72: =SA34b!H171 -> 0 | I72: =SA34b!I171 -> 0 | J72: =SA34b!J171 -> 0 | K72: =SA34b!K171 -> 0
A73: Living Resources | C73: =SUM(C71:C72) -> 0 | D73: 0 | E73: 0 | F73: 0 | G73: 0 | H73: 0 | I73: 0 | J73: 0 | K73: 0
A75: Total Upgrading of Existing Assets | B75: 6 | C75: =C85+C88+C89+C92+C95+C96+SUM(C99:C105)+C108 -> -430449.9 | D75: =D85+D88+D89+D92+D95+D96+SUM(D99:D105)+D108 -> -122793 | E75: 2709532.42 | F75: 11035327 | G75: 11035327 | H75: 11035327 | I75: 990987 | J75: 1245050 | K75: 1292561
A76: Roads Infrastructure | C76: =SA34e!C7 -> 0 | D76: =SA34e!D7 -> 0 | E76: =SA34e!E7 -> 156722 | F76: =SA34e!F7 -> 0 | G76: =SA34e!G7 -> 0 | H76: =SA34e!H7 -> 0 | I76: =SA34e!I7 -> 0 | J76: =SA34e!J7 -> 0 | K76: =SA34e!K7 -> 0
A77: Storm water Infrastructure | C77: =SA34e!C12 -> 0 | D77: =SA34e!D12 -> 0 | E77: =SA34e!E12 -> 0 | F77: =SA34e!F12 -> 0 | G77: =SA34e!G12 -> 0 | H77: =SA34e!H12 -> 0 | I77: =SA34e!I12 -> 0 | J77: =SA34e!J12 -> 0 | K77: =SA34e!K12 -> 0
A78: Electrical Infrastructure | C78: =SA34e!C16 -> 0 | D78: =SA34e!D16 -> 0 | E78: =SA34e!E16 -> 2552810.42 | F78: =SA34e!F16 -> 0 | G78: =SA34e!G16 -> 0 | H78: =SA34e!H16 -> 0 | I78: =SA34e!I16 -> 0 | J78: =SA34e!J16 -> 0 | K78: =SA34e!K16 -> 0
A79: Water Supply Infrastructure | C79: =SA34e!C26 -> -430449.9 | D79: =SA34e!D26 -> -122793 | E79: =SA34e!E26 -> 0 | F79: =SA34e!F26 -> 0 | G79: =SA34e!G26 -> 0 | H79: =SA34e!H26 -> 0 | I79: =SA34e!I26 -> 0 | J79: =SA34e!J26 -> 0 | K79: =SA34e!K26 -> 0
A80: Sanitation Infrastructure | C80: =SA34e!C37 -> 0 | D80: =SA34e!D37 -> 0 | E80: =SA34e!E37 -> 0 | F80: =SA34e!F37 -> 0 | G80: =SA34e!G37 -> 0 | H80: =SA34e!H37 -> 0 | I80: =SA34e!I37 -> 0 | J80: =SA34e!J37 -> 0 | K80: =SA34e!K37 -> 0
A81: Solid Waste Infrastructure | C81: =SA34e!C44 -> 0 | D81: =SA34e!D44 -> 0 | E81: =SA34e!E44 -> 0 | F81: =SA34e!F44 -> 0 | G81: =SA34e!G44 -> 0 | H81: =SA34e!H44 -> 0 | I81: =SA34e!I44 -> 0 | J81: =SA34e!J44 -> 0 | K81: =SA34e!K44 -> 0
A82: Rail Infrastructure | C82: =SA34e!C52 -> 0 | D82: =SA34e!D52 -> 0 | E82: =SA34e!E52 -> 0 | F82: =SA34e!F52 -> 0 | G82: =SA34e!G52 -> 0 | H82: =SA34e!H52 -> 0 | I82: =SA34e!I52 -> 0 | J82: =SA34e!J52 -> 0 | K82: =SA34e!K52 -> 0
A83: Coastal Infrastructure | C83: =SA34e!C62 -> 0 | D83: =SA34e!D62 -> 0 | E83: =SA34e!E62 -> 0 | F83: =SA34e!F62 -> 0 | G83: =SA34e!G62 -> 0 | H83: =SA34e!H62 -> 0 | I83: =SA34e!I62 -> 0 | J83: =SA34e!J62 -> 0 | K83: =SA34e!K62 -> 0
A84: Information and Communication Infrastructure | C84: =SA34e!C68 -> 0 | D84: =SA34e!D68 -> 0 | E84: =SA34e!E68 -> 0 | F84: =SA34e!F68 -> 0 | G84: =SA34e!G68 -> 0 | H84: =SA34e!H68 -> 0 | I84: =SA34e!I68 -> 0 | J84: =SA34e!J68 -> 0 | K84: =SA34e!K68 -> 0
A85: Infrastructure | C85: =SUM(C76:C84) -> -430449.9 | D85: -122793 | E85: 2709532.42 | F85: 0 | G85: 0 | H85: 0 | I85: 0 | J85: 0 | K85: 0
A86: Community Facilities | C86: =SA34e!C75 -> 0 | D86: =SA34e!D75 -> 0 | E86: =SA34e!E75 -> 0 | F86: =SA34e!F75 -> 0 | G86: =SA34e!G75 -> 0 | H86: =SA34e!H75 -> 0 | I86: =SA34e!I75 -> 0 | J86: =SA34e!J75 -> 0 | K86: =SA34e!K75 -> 0
A87: Sport and Recreation Facilities | C87: =SA34e!C98 -> 0 | D87: =SA34e!D98 -> 0 | E87: =SA34e!E98 -> 0 | F87: =SA34e!F98 -> 11035327 | G87: =SA34e!G98 -> 11035327 | H87: =SA34e!H98 -> 11035327 | I87: =SA34e!I98 -> 990987 | J87: =SA34e!J98 -> 1245050 | K87: =SA34e!K98 -> 1292561
A88: Community Assets | C88: =SUM(C86:C87) -> 0 | D88: 0 | E88: 0 | F88: 11035327 | G88: 11035327 | H88: 11035327 | I88: 990987 | J88: 1245050 | K88: 1292561
A89: Heritage Assets | C89: =SA34e!C103 -> 0 | D89: =SA34e!D103 -> 0 | E89: =SA34e!E103 -> 0 | F89: =SA34e!F103 -> 0 | G89: =SA34e!G103 -> 0 | H89: =SA34e!H103 -> 0 | I89: =SA34e!I103 -> 0 | J89: =SA34e!J103 -> 0 | K89: =SA34e!K103 -> 0
A90: Revenue Generating | C90: =SA34e!C111 -> 0 | D90: =SA34e!D111 -> 0 | E90: =SA34e!E111 -> 0 | F90: =SA34e!F111 -> 0 | G90: =SA34e!G111 -> 0 | H90: =SA34e!H111 -> 0 | I90: =SA34e!I111 -> 0 | J90: =SA34e!J111 -> 0 | K90: =SA34e!K111 -> 0
A91: Non-revenue Generating | C91: =SA34e!C114 -> 0 | D91: =SA34e!D114 -> 0 | E91: =SA34e!E114 -> 0 | F91: =SA34e!F114 -> 0 | G91: =SA34e!G114 -> 0 | H91: =SA34e!H114 -> 0 | I91: =SA34e!I114 -> 0 | J91: =SA34e!J114 -> 0 | K91: =SA34e!K114 -> 0
A92: Investment properties | C92: =SUM(C90:C91) -> 0 | D92: 0 | E92: 0 | F92: 0 | G92: 0 | H92: 0 | I92: 0 | J92: 0 | K92: 0
A93: Operational Buildings | C93: =SA34e!C119 -> 0 | D93: =SA34e!D119 -> 0 | E93: =SA34e!E119 -> 0 | F93: =SA34e!F119 -> 0 | G93: =SA34e!G119 -> 0 | H93: =SA34e!H119 -> 0 | I93: =SA34e!I119 -> 0 | J93: =SA34e!J119 -> 0 | K93: =SA34e!K119 -> 0
A94: Housing | C94: =SA34e!C131 -> 0 | D94: =SA34e!D131 -> 0 | E94: =SA34e!E131 -> 0 | F94: =SA34e!F131 -> 0 | G94: =SA34e!G131 -> 0 | H94: =SA34e!H131 -> 0 | I94: =SA34e!I131 -> 0 | J94: =SA34e!J131 -> 0 | K94: =SA34e!K131 -> 0
A95: Other Assets | C95: =SUM(C93:C94) -> 0 | D95: 0 | E95: 0 | F95: 0 | G95: 0 | H95: 0 | I95: 0 | J95: 0 | K95: 0
A96: Biological or Cultivated Assets | C96: =SA34e!C136 -> 0 | D96: =SA34e!D136 -> 0 | E96: =SA34e!E136 -> 0 | F96: =SA34e!F136 -> 0 | G96: =SA34e!G136 -> 0 | H96: =SA34e!H136 -> 0 | I96: =SA34e!I136 -> 0 | J96: =SA34e!J136 -> 0 | K96: =SA34e!K136 -> 0
A97: Servitudes | C97: =SA34e!C140 -> 0 | D97: =SA34e!D140 -> 0 | E97: =SA34e!E140 -> 0 | F97: =SA34e!F140 -> 0 | G97: =SA34e!G140 -> 0 | H97: =SA34e!H140 -> 0 | I97: =SA34e!I140 -> 0 | J97: =SA34e!J140 -> 0 | K97: =SA34e!K140 -> 0
A98: Licences and Rights | C98: =SA34e!C141 -> 0 | D98: =SA34e!D141 -> 0 | E98: =SA34e!E141 -> 0 | F98: =SA34e!F141 -> 0 | G98: =SA34e!G141 -> 0 | H98: =SA34e!H141 -> 0 | I98: =SA34e!I141 -> 0 | J98: =SA34e!J141 -> 0 | K98: =SA34e!K141 -> 0
A99: Intangible Assets | C99: =SUM(C97:C98) -> 0 | D99: 0 | E99: 0 | F99: 0 | G99: 0 | H99: 0 | I99: 0 | J99: 0 | K99: 0
A100: Computer Equipment | C100: =SA34e!C149 -> 0 | D100: =SA34e!D149 -> 0 | E100: =SA34e!E149 -> 0 | F100: =SA34e!F149 -> 0 | G100: =SA34e!G149 -> 0 | H100: =SA34e!H149 -> 0 | I100: =SA34e!I149 -> 0 | J100: =SA34e!J149 -> 0 | K100: =SA34e!K149 -> 0
A101: Furniture and Office Equipment | C101: =SA34e!C152 -> 0 | D101: =SA34e!D152 -> 0 | E101: =SA34e!E152 -> 0 | F101: =SA34e!F152 -> 0 | G101: =SA34e!G152 -> 0 | H101: =SA34e!H152 -> 0 | I101: =SA34e!I152 -> 0 | J101: =SA34e!J152 -> 0 | K101: =SA34e!K152 -> 0
A102: Machinery and Equipment | C102: =SA34e!C155 -> 0 | D102: =SA34e!D155 -> 0 | E102: =SA34e!E155 -> 0 | F102: =SA34e!F155 -> 0 | G102: =SA34e!G155 -> 0 | H102: =SA34e!H155 -> 0 | I102: =SA34e!I155 -> 0 | J102: =SA34e!J155 -> 0 | K102: =SA34e!K155 -> 0
A103: Transport Assets | C103: =SA34e!C158 -> 0 | D103: =SA34e!D158 -> 0 | E103: =SA34e!E158 -> 0 | F103: =SA34e!F158 -> 0 | G103: =SA34e!G158 -> 0 | H103: =SA34e!H158 -> 0 | I103: =SA34e!I158 -> 0 | J103: =SA34e!J158 -> 0 | K103: =SA34e!K158 -> 0
A104: Land | C104: =SA34e!C161 -> 0 | D104: =SA34e!D161 -> 0 | E104: =SA34e!E161 -> 0 | F104: =SA34e!F161 -> 0 | G104: =SA34e!G161 -> 0 | H104: =SA34e!H161 -> 0 | I104: =SA34e!I161 -> 0 | J104: =SA34e!J161 -> 0 | K104: =SA34e!K161 -> 0
A105: Zoo's, Marine and Non-biological Animals | C105: =SA34e!C164 -> 0 | D105: =SA34e!D164 -> 0 | E105: =SA34e!E164 -> 0 | F105: =SA34e!F164 -> 0 | G105: =SA34e!G164 -> 0 | H105: =SA34e!H164 -> 0 | I105: =SA34e!I164 -> 0 | J105: =SA34e!J164 -> 0 | K105: =SA34e!K164 -> 0
A106: Mature | C106: =SA34e!C168 -> 0 | D106: =SA34e!D168 -> 0 | E106: =SA34e!E168 -> 0 | F106: =SA34e!F168 -> 0 | G106: =SA34e!G168 -> 0 | H106: =SA34e!H168 -> 0 | I106: =SA34e!I168 -> 0 | J106: =SA34e!J168 -> 0 | K106: =SA34e!K168 -> 0
A107: Immature | C107: =SA34b!C171 -> 0 | D107: =SA34b!D171 -> 0 | E107: =SA34b!E171 -> 0 | F107: =SA34b!F171 -> 0 | G107: =SA34b!G171 -> 0 | H107: =SA34b!H171 -> 0 | I107: =SA34b!I171 -> 0 | J107: =SA34b!J171 -> 0 | K107: =SA34b!K171 -> 0
A108: Living Resources | C108: =SUM(C106:C107) -> 0 | D108: 0 | E108: 0 | F108: 0 | G108: 0 | H108: 0 | I108: 0 | J108: 0 | K108: 0
A110: Total Capital Expenditure | B110: 4 | C110: =+C5+C40+C75 -> 14039687.86 | D110: -6241078.4 | E110: 43740371.48 | F110: 52395001 | G110: 47295003 | H110: 47295003 | I110: 41195520 | J110: 34874000 | K110: 36276999
A111: Roads Infrastructure | C111: =+C6+C41+C76 -> 4022682.76 | D111: 3801803.72 | E111: 8522631.72 | F111: 4963545 | G111: 4963545 | H111: 4963545 | I111: 8004511 | J111: 10056658 | K111: 10440419
A112: Storm water Infrastructure | C112: =+C7+C42+C77 -> 0 | D112: 0 | E112: 0 | F112: 0 | G112: 0 | H112: 0 | I112: 0 | J112: 0 | K112: 0
A113: Electrical Infrastructure | C113: =+C8+C43+C78 -> 1619894.4 | D113: -18303520.24 | E113: 2552810.42 | F113: 2800000 | G113: 2800000 | H113: 2800000 | I113: 0 | J113: 0 | K113: 0
A114: Water Supply Infrastructure | C114: =+C9+C44+C79 -> 3772388.78 | D114: -6654767.9 | E114: 16267904.58 | F114: 17046616 | G114: 14846617 | H114: 14846617 | I114: 24584928 | J114: 14004888 | K114: 14611523
A115: Sanitation Infrastructure | C115: =+C10+C45+C80 -> 31500.29 | D115: 5415198.94 | E115: 4436488.4 | F115: 0 | G115: 0 | H115: 0 | I115: 3472310 | J115: 4362519 | K115: 4528993
A116: Solid Waste Infrastructure | C116: =+C11+C46+C81 -> 0 | D116: 871787.6 | E116: 0 | F116: 0 | G116: 0 | H116: 0 | I116: 0 | J116: 0 | K116: 0
A117: Rail Infrastructure | C117: =+C12+C47+C82 -> 0 | D117: -0.32 | E117: 0 | F117: 0 | G117: 0 | H117: 0 | I117: 0 | J117: 0 | K117: 0
A118: Coastal Infrastructure | C118: =+C13+C48+C83 -> 0 | D118: 0 | E118: 0 | F118: 0 | G118: 0 | H118: 0 | I118: 0 | J118: 0 | K118: 0
A119: Information and Communication Infrastructure | C119: =+C14+C49+C84 -> 0 | D119: 0 | E119: 0 | F119: 0 | G119: 0 | H119: 0 | I119: 0 | J119: 0 | K119: 0
A120: Infrastructure | C120: =SUM(C111:C119) -> 9446466.23 | D120: =SUM(D111:D119) -> -14869498.2 | E120: 31779835.12 | F120: 24810161 | G120: 22610162 | H120: 22610162 | I120: 36061749 | J120: 28424065 | K120: 29580935
A121: Community Facilities | C121: =+C16+C51+C86 -> 401786.55 | D121: 8284619.8 | E121: 501576.32 | F121: 0 | G121: 0 | H121: 0 | I121: 0 | J121: 0 | K121: 0
A122: Sport and Recreation Facilities | C122: =+C17+C52+C87 -> 4191435.08 | D122: 343800 | E122: 0 | F122: 11035327 | G122: 11035327 | H122: 11035327 | I122: 990987 | J122: 1245050 | K122: 1292561
A123: Community Assets | C123: =SUM(C121:C122) -> 4593221.63 | D123: =SUM(D121:D122) -> 8628419.8 | E123: 501576.32 | F123: 11035327 | G123: 11035327 | H123: 11035327 | I123: 990987 | J123: 1245050 | K123: 1292561
A124: Heritage Assets | C124: =+C19+C54+C89 -> 0 | D124: 0 | E124: 0 | F124: 0 | G124: 0 | H124: 0 | I124: 0 | J124: 0 | K124: 0
A125: Revenue Generating | C125: =+C20+C55+C90 -> 0 | D125: 0 | E125: 0 | F125: 0 | G125: 0 | H125: 0 | I125: 0 | J125: 0 | K125: 0
A126: Non-revenue Generating | C126: =+C21+C56+C91 -> 0 | D126: 0 | E126: 0 | F126: 0 | G126: 0 | H126: 0 | I126: 0 | J126: 0 | K126: 0
A127: Investment properties | C127: =SUM(C125:C126) -> 0 | D127: =SUM(D125:D126) -> 0 | E127: 0 | F127: 0 | G127: 0 | H127: 0 | I127: 0 | J127: 0 | K127: 0
A128: Operational Buildings | C128: =+C23+C58+C93 -> 0 | D128: 0 | E128: 0 | F128: 0 | G128: 0 | H128: 0 | I128: 0 | J128: 0 | K128: 0
A129: Housing | C129: =+C24+C59+C94 -> 0 | D129: 0 | E129: 0 | F129: 0 | G129: 0 | H129: 0 | I129: 0 | J129: 0 | K129: 0
A130: Other Assets | C130: =SUM(C128:C129) -> 0 | D130: 0 | E130: 0 | F130: 0 | G130: 0 | H130: 0 | I130: 0 | J130: 0 | K130: 0
A131: Biological or Cultivated Assets | C131: =+C26+C61+C96 -> 0 | D131: 0 | E131: 0 | F131: 0 | G131: 0 | H131: 0 | I131: 0 | J131: 0 | K131: 0
A132: Servitudes | C132: =+C27+C62+C97 -> 0 | D132: 0 | E132: 0 | F132: 0 | G132: 0 | H132: 0 | I132: 0 | J132: 0 | K132: 0
A133: Licences and Rights | C133: =+C28+C63+C98 -> 0 | D133: 0 | E133: 2111409.5 | F133: 400000 | G133: 500000 | H133: 500000 | I133: 0 | J133: 0 | K133: 0
A134: Intangible Assets | C134: =SUM(C132:C133) -> 0 | D134: =SUM(D132:D133) -> 0 | E134: 2111409.5 | F134: 400000 | G134: 500000 | H134: 500000 | I134: 0 | J134: 0 | K134: 0
A135: Computer Equipment | C135: =+C30+C65+C100 -> 0 | D135: 0 | E135: 0 | F135: 0 | G135: 0 | H135: 0 | I135: 0 | J135: 0 | K135: 0
A136: Furniture and Office Equipment | C136: =+C31+C66+C101 -> 0 | D136: 0 | E136: 2700000.99 | F136: 1113750 | G136: 1113750 | H136: 1113750 | I136: 0 | J136: 0 | K136: 0
A137: Machinery and Equipment | C137: =+C32+C67+C102 -> 0 | D137: 0 | E137: 2469849.13 | F137: 12758846 | G137: 9758847 | H137: 9758847 | I137: 0 | J137: 0 | K137: 0
A138: Transport Assets | C138: =+C33+C68+C103 -> 0 | D138: 0 | E138: 4177700.42 | F138: 2276917 | G138: 2276917 | H138: 2276917 | I138: 4142784 | J138: 5204885 | K138: 5403503
A139: Land | C139: =+C34+C69+C104 -> 0 | D139: 0 | E139: 0 | F139: 0 | G139: 0 | H139: 0 | I139: 0 | J139: 0 | K139: 0
A140: Zoo's, Marine and Non-biological Animals | C140: =+C35+C70+C105 -> 0 | D140: 0 | E140: 0 | F140: 0 | G140: 0 | H140: 0 | I140: 0 | J140: 0 | K140: 0
A141: Mature | C141: =+C36+C71+C106 -> 0 | D141: =+D36+D71+D106 -> 0 | E141: 0 | F141: 0 | G141: 0 | H141: 0 | I141: 0 | J141: 0 | K141: 0
A142: Immature | C142: =+C37+C72+C107 -> 0 | D142: =+D37+D72+D107 -> 0 | E142: 0 | F142: 0 | G142: 0 | H142: 0 | I142: 0 | J142: 0 | K142: 0
A143: Living Resources | C143: =SUM(C141:C142) -> 0 | D143: 0 | E143: 0 | F143: 0 | G143: 0 | H143: 0 | I143: 0 | J143: 0 | K143: 0
A144: TOTAL CAPITAL EXPENDITURE - Asset class | C144: =+C5+C40+C75 -> 14039687.86 | D144: -6241078.4 | E144: 43740371.48 | F144: 52395001 | G144: 47295003 | H144: 47295003 | I144: 41195520 | J144: 34874000 | K144: 36276999
A146: ASSET REGISTER SUMMARY - PPE (WDV) | B146: 5 | C146: =C156+C159+C160+C163+C166+C167+C170+C171+C172+C173+C174+C175+C176 -> 976480018 | D146: =D156+D159+D160+D163+D166+D167+D170+D171+D172+D173+D174+D175+D176 -> 680632446.1 | E146: 682680139.4 | F146: 1156202024 | G146: 1151102026 | H146: 1151102026 | I146: 2154968033 | J146: 2249217439 | K146: 2811487300
A147: Roads Infrastructure | C147: 292238062.8 | D147: 301827496.3 | E147: 306264382.5 | F147: 4963545 | G147: 4963545 | H147: 4963545 | I147: 327327636 | J147: 348603932 | K147: 371263188
A148: Storm water Infrastructure | C148: 0 | D148: 0 | E148: 16267904.58 | F148: 3126616 | G148: 3126616 | H148: 3126616 | I148: 0 | J148: 0 | K148: 0
A149: Electrical Infrastructure | C149: 70190139.62 | D149: 141331797.6 | E149: 146750862 | F149: 2800000 | G149: 2800000 | H149: 2800000 | I149: 79877122 | J149: 85069135 | K149: 90598629
A150: Water Supply Infrastructure | C150: 198209948.3 | D150: -164973239.1 | E150: -189048677.9 | F150: 2200000 | G150: 1 | H150: 1 | I150: 414279629 | J150: 429029745 | K150: 456612995
A151: Sanitation Infrastructure | C151: 193298619.1 | D151: 188419194.8 | E151: 183934530.9 | F151: 9758846 | G151: 9758846 | H151: 9758846 | I151: 3472310 | J151: 4362519 | K151: 4528993
A152: Solid Waste Infrastructure | C152: 0 | D152: 871787.6 | E152: 5308276 | F152: 0 | G152: 0 | H152: 0 | I152: 0 | J152: 0 | K152: 0
A153: Rail Infrastructure | C153: 0 | D153: 2911863.31 | E153: 2871569.56 | F153: 0 | G153: 0 | H153: 0 | I153: 0 | J153: 0 | K153: 0
A154: Coastal Infrastructure | C154: 0 | D154: 0 | E154: 0 | F154: 0 | G154: 0 | H154: 0 | I154: 0 | J154: 0 | K154: 0
A155: Information and Communication Infrastructure | C155: 0 | D155: 0 | E155: 0 | F155: 0 | G155: 0 | H155: 0 | I155: 0 | J155: 0 | K155: 0
A156: Infrastructure | C156: =SUM(C147:C155) -> 753936769.9 | D156: =SUM(D147:D155) -> 470388900.5 | E156: 472348847.7 | F156: 22849007 | G156: 20649008 | H156: 20649008 | I156: 824956697 | J156: 867065331 | K156: 923003805
A159: Community Assets | C159: 112353138.1 | D159: 97821323.44 | E159: 80464214.48 | F159: 892121385 | G159: 892121385 | H159: 892121385 | I159: 1039933863 | J159: 1088960387 | K159: 1594709395
A160: Heritage Assets | C160: 0 | D160: 0 | E160: 0 | F160: 0 | G160: 0 | H160: 0 | I160: 0 | J160: 0 | K160: 0
A163: Investment properties | C163: 63655336.25 | D163: 68873267.87 | E163: 55304161.79 | F163: 222720965 | G163: 222720965 | H163: 222720965 | I163: 277930178 | J163: 277930178 | K163: 277930178
A166: Other Assets | C166: 4022682.76 | D166: 1955358.27 | E166: -1579711.48 | F166: 14720000 | G166: 11720001 | H166: 11720001 | I166: 8004511 | J166: 10056658 | K166: 10440419
A167: Biological or Cultivated Assets | C167: 0 | D167: 0 | E167: 0 | F167: 0 | G167: 0 | H167: 0 | I167: 0 | J167: 0 | K167: 0
A170: Intangible Assets | C170: 0 | D170: 0 | E170: 0 | F170: 400000 | G170: 500000 | H170: 500000 | I170: 0 | J170: 0 | K170: 0
A171: Computer Equipment | C171: 300691.68 | D171: 488623.09 | E171: 3086334.18 | F171: 0 | G171: 0 | H171: 0 | I171: 0 | J171: 0 | K171: 0
A172: Furniture and Office Equipment | C172: 614745.57 | D172: 848641.35 | E172: 794794.81 | F172: 1113750 | G172: 1113750 | H172: 1113750 | I172: 0 | J172: 0 | K172: 0
A173: Machinery and Equipment | C173: 321071.68 | D173: 377091.31 | E173: 1021026.27 | F173: 0 | G173: 0 | H173: 0 | I173: 0 | J173: 0 | K173: 0
A174: Transport Assets | C174: 4090690.73 | D174: 2948091.66 | E174: 12271649.08 | F174: 2276917 | G174: 2276917 | H174: 2276917 | I174: 4142784 | J174: 5204885 | K174: 5403503
A175: Land | C175: 37184891.37 | D175: 23458430.63 | E175: 23458430.63 | F175: 0 | G175: 0 | H175: 0 | I175: 0 | J175: 0 | K175: 0
A176: Zoo's, Marine and Non-biological Animals | C176: 0 | D176: 13472717.98 | E176: 35510391.98 | F176: 0 | G176: 0 | H176: 0 | I176: 0 | J176: 0 | K176: 0
A179: Living Resources | C179: 0 | D179: 0 | E179: 0 | F179: 0 | G179: 0 | H179: 0 | I179: 0 | J179: 0 | K179: 0
A180: TOTAL ASSET REGISTER SUMMARY - PPE (WDV) | B180: 5 | C180: =C156+C159+C160+C163+C166+C167+C170+C171+C172+C173+C174+C175+C176+C179 -> 976480018 | D180: 680632446.1 | E180: 682680139.4 | F180: =F156+F159+F160+F163+F166+F167+F170+F171+F172+F173+F174+F175+F176+F179 -> 1156202024 | G180: =G156+G159+G160+G163+G166+G167+G170+G171+G172+G173+G174+G175+G176+G179 -> 1151102026 | H180: 1151102026 | I180: 2154968033 | J180: 2249217439 | K180: 2811487300
A182: EXPENDITURE OTHER ITEMS | C182: =SUM(C183:C184) -> 31536120.46 | D182: =SUM(D183:D184) -> 38633012.91 | E182: 37272334.59 | F182: 35780275 | G182: 97085318 | H182: 97085318 | I182: 50725710 | J182: 50082345 | K182: 50595022
A183: Depreciation | B183: 7 | C183: =SA34d!C175 -> 31536120.46 | D183: =SA34d!D175 -> 38633012.91 | E183: =SA34d!E175 -> 37272334.59 | F183: =SA34d!F175 -> 35780275 | G183: =SA34d!G175 -> 97085318 | H183: =SA34d!H175 -> 97085318 | I183: =SA34d!I175 -> 40675000 | J183: =SA34d!J175 -> 39777400 | K183: =SA34d!K175 -> 39948256
A184: Repairs and Maintenance by Asset Class | B184: 3 | C184: =C194+C197+C198+C201+C204+C205+SUM(C208:C214)+C217 -> 0 | D184: 0 | E184: 0 | F184: 0 | G184: 0 | H184: 0 | I184: 10050710 | J184: 10304945 | K184: 10646766
A185: Roads Infrastructure | C185: =SA34c!C7 -> 0 | D185: =SA34c!D7 -> 0 | E185: =SA34c!E7 -> 0 | F185: =SA34c!F7 -> 0 | G185: =SA34c!G7 -> 0 | H185: =SA34c!H7 -> 0 | I185: =SA34c!I7 -> 0 | J185: =SA34c!J7 -> 0 | K185: =SA34c!K7 -> 0
A186: Storm water Infrastructure | C186: =SA34c!C12 -> 0 | D186: =SA34c!D12 -> 0 | E186: =SA34c!E12 -> 0 | F186: =SA34c!F12 -> 0 | G186: =SA34c!G12 -> 0 | H186: =SA34c!H12 -> 0 | I186: =SA34c!I12 -> 0 | J186: =SA34c!J12 -> 0 | K186: =SA34c!K12 -> 0
A187: Electrical Infrastructure | C187: =SA34c!C16 -> 0 | D187: =SA34c!D16 -> 0 | E187: =SA34c!E16 -> 0 | F187: =SA34c!F16 -> 0 | G187: =SA34c!G16 -> 0 | H187: =SA34c!H16 -> 0 | I187: =SA34c!I16 -> 0 | J187: =SA34c!J16 -> 0 | K187: =SA34c!K16 -> 0
A188: Water Supply Infrastructure | C188: =SA34c!C26 -> 0 | D188: =SA34c!D26 -> 0 | E188: =SA34c!E26 -> 0 | F188: =SA34c!F26 -> 0 | G188: =SA34c!G26 -> 0 | H188: =SA34c!H26 -> 0 | I188: =SA34c!I26 -> 0 | J188: =SA34c!J26 -> 0 | K188: =SA34c!K26 -> 0
A189: Sanitation Infrastructure | C189: =SA34c!C37 -> 0 | D189: =SA34c!D37 -> 0 | E189: =SA34c!E37 -> 0 | F189: =SA34c!F37 -> 0 | G189: =SA34c!G37 -> 0 | H189: =SA34c!H37 -> 0 | I189: =SA34c!I37 -> 10050710 | J189: =SA34c!J37 -> 10304945 | K189: =SA34c!K37 -> 10646766
A190: Solid Waste Infrastructure | C190: =SA34c!C44 -> 0 | D190: =SA34c!D44 -> 0 | E190: =SA34c!E44 -> 0 | F190: =SA34c!F44 -> 0 | G190: =SA34c!G44 -> 0 | H190: =SA34c!H44 -> 0 | I190: =SA34c!I44 -> 0 | J190: =SA34c!J44 -> 0 | K190: =SA34c!K44 -> 0
A191: Rail Infrastructure | C191: =SA34c!C52 -> 0 | D191: =SA34c!D52 -> 0 | E191: =SA34c!E52 -> 0 | F191: =SA34c!F52 -> 0 | G191: =SA34c!G52 -> 0 | H191: =SA34c!H52 -> 0 | I191: =SA34c!I52 -> 0 | J191: =SA34c!J52 -> 0 | K191: =SA34c!K52 -> 0
A192: Coastal Infrastructure | C192: =SA34c!C62 -> 0 | D192: =SA34c!D62 -> 0 | E192: =SA34c!E62 -> 0 | F192: =SA34c!F62 -> 0 | G192: =SA34c!G62 -> 0 | H192: =SA34c!H62 -> 0 | I192: =SA34c!I62 -> 0 | J192: =SA34c!J62 -> 0 | K192: =SA34c!K62 -> 0
A193: Information and Communication Infrastructure | C193: =SA34c!C68 -> 0 | D193: =SA34c!D68 -> 0 | E193: =SA34c!E68 -> 0 | F193: =SA34c!F68 -> 0 | G193: =SA34c!G68 -> 0 | H193: =SA34c!H68 -> 0 | I193: =SA34c!I68 -> 0 | J193: =SA34c!J68 -> 0 | K193: =SA34c!K68 -> 0
A194: Infrastructure | C194: =SUM(C185:C193) -> 0 | D194: =SUM(D185:D193) -> 0 | E194: 0 | F194: 0 | G194: 0 | H194: 0 | I194: 10050710 | J194: 10304945 | K194: 10646766
A195: Community Facilities | C195: =SA34c!C75 -> 0 | D195: =SA34c!D75 -> 0 | E195: =SA34c!E75 -> 0 | F195: =SA34c!F75 -> 0 | G195: =SA34c!G75 -> 0 | H195: =SA34c!H75 -> 0 | I195: =SA34c!I75 -> 0 | J195: =SA34c!J75 -> 0 | K195: =SA34c!K75 -> 0
A196: Sport and Recreation Facilities | C196: =SA34c!C98 -> 0 | D196: =SA34c!D98 -> 0 | E196: =SA34c!E98 -> 0 | F196: =SA34c!F98 -> 0 | G196: =SA34c!G98 -> 0 | H196: =SA34c!H98 -> 0 | I196: =SA34c!I98 -> 0 | J196: =SA34c!J98 -> 0 | K196: =SA34c!K98 -> 0
A197: Community Assets | C197: =SUM(C195:C196) -> 0 | D197: 0 | E197: 0 | F197: 0 | G197: 0 | H197: 0 | I197: 0 | J197: 0 | K197: 0
A198: Heritage Assets | C198: =SA34c!C103 -> 0 | D198: =SA34c!D103 -> 0 | E198: =SA34c!E103 -> 0 | F198: =SA34c!F103 -> 0 | G198: =SA34c!G103 -> 0 | H198: =SA34c!H103 -> 0 | I198: =SA34c!I103 -> 0 | J198: =SA34c!J103 -> 0 | K198: =SA34c!K103 -> 0
A199: Revenue Generating | C199: =SA34c!C111 -> 0 | D199: =SA34c!D111 -> 0 | E199: =SA34c!E111 -> 0 | F199: =SA34c!F111 -> 0 | G199: =SA34c!G111 -> 0 | H199: =SA34c!H111 -> 0 | I199: =SA34c!I111 -> 0 | J199: =SA34c!J111 -> 0 | K199: =SA34c!K111 -> 0
A200: Non-revenue Generating | C200: =SA34c!C114 -> 0 | D200: =SA34c!D114 -> 0 | E200: =SA34c!E114 -> 0 | F200: =SA34c!F114 -> 0 | G200: =SA34c!G114 -> 0 | H200: =SA34c!H114 -> 0 | I200: =SA34c!I114 -> 0 | J200: =SA34c!J114 -> 0 | K200: =SA34c!K114 -> 0
A201: Investment properties | C201: =SUM(C199:C200) -> 0 | D201: 0 | E201: 0 | F201: 0 | G201: 0 | H201: 0 | I201: 0 | J201: 0 | K201: 0
A202: Operational Buildings | C202: =SA34c!C119 -> 0 | D202: =SA34c!D119 -> 0 | E202: =SA34c!E119 -> 0 | F202: =SA34c!F119 -> 0 | G202: =SA34c!G119 -> 0 | H202: =SA34c!H119 -> 0 | I202: =SA34c!I119 -> 0 | J202: =SA34c!J119 -> 0 | K202: =SA34c!K119 -> 0
A203: Housing | C203: =SA34c!C131 -> 0 | D203: =SA34c!D131 -> 0 | E203: =SA34c!E131 -> 0 | F203: =SA34c!F131 -> 0 | G203: =SA34c!G131 -> 0 | H203: =SA34c!H131 -> 0 | I203: =SA34c!I131 -> 0 | J203: =SA34c!J131 -> 0 | K203: =SA34c!K131 -> 0
A204: Other Assets | C204: =SUM(C202:C203) -> 0 | D204: 0 | E204: 0 | F204: 0 | G204: 0 | H204: 0 | I204: 0 | J204: 0 | K204: 0
A205: Biological or Cultivated Assets | C205: =SA34c!C136 -> 0 | D205: =SA34c!D136 -> 0 | E205: =SA34c!E136 -> 0 | F205: =SA34c!F136 -> 0 | G205: =SA34c!G136 -> 0 | H205: =SA34c!H136 -> 0 | I205: =SA34c!I136 -> 0 | J205: =SA34c!J136 -> 0 | K205: =SA34c!K136 -> 0
A206: Servitudes | C206: =SA34c!C140 -> 0 | D206: =SA34c!D140 -> 0 | E206: =SA34c!E140 -> 0 | F206: =SA34c!F140 -> 0 | G206: =SA34c!G140 -> 0 | H206: =SA34c!H140 -> 0 | I206: =SA34c!I140 -> 0 | J206: =SA34c!J140 -> 0 | K206: =SA34c!K140 -> 0
A207: Licences and Rights | C207: =SA34c!C141 -> 0 | D207: =SA34c!D141 -> 0 | E207: =SA34c!E141 -> 0 | F207: =SA34c!F141 -> 0 | G207: =SA34c!G141 -> 0 | H207: =SA34c!H141 -> 0 | I207: =SA34c!I141 -> 0 | J207: =SA34c!J141 -> 0 | K207: =SA34c!K141 -> 0
A208: Intangible Assets | C208: =SUM(C206:C207) -> 0 | D208: 0 | E208: 0 | F208: 0 | G208: 0 | H208: 0 | I208: 0 | J208: 0 | K208: 0
A209: Computer Equipment | C209: =SA34c!C149 -> 0 | D209: =SA34c!D149 -> 0 | E209: =SA34c!E149 -> 0 | F209: =SA34c!F149 -> 0 | G209: =SA34c!G149 -> 0 | H209: =SA34c!H149 -> 0 | I209: =SA34c!I149 -> 0 | J209: =SA34c!J149 -> 0 | K209: =SA34c!K149 -> 0
A210: Furniture and Office Equipment | C210: =SA34c!C152 -> 0 | D210: =SA34c!D152 -> 0 | E210: =SA34c!E152 -> 0 | F210: =SA34c!F152 -> 0 | G210: =SA34c!G152 -> 0 | H210: =SA34c!H152 -> 0 | I210: =SA34c!I152 -> 0 | J210: =SA34c!J152 -> 0 | K210: =SA34c!K152 -> 0
A211: Machinery and Equipment | C211: =SA34c!C155 -> 0 | D211: =SA34c!D155 -> 0 | E211: =SA34c!E155 -> 0 | F211: =SA34c!F155 -> 0 | G211: =SA34c!G155 -> 0 | H211: =SA34c!H155 -> 0 | I211: =SA34c!I155 -> 0 | J211: =SA34c!J155 -> 0 | K211: =SA34c!K155 -> 0
A212: Transport Assets | C212: =SA34c!C158 -> 0 | D212: =SA34c!D158 -> 0 | E212: =SA34c!E158 -> 0 | F212: =SA34c!F158 -> 0 | G212: =SA34c!G158 -> 0 | H212: =SA34c!H158 -> 0 | I212: =SA34c!I158 -> 0 | J212: =SA34c!J158 -> 0 | K212: =SA34c!K158 -> 0
A213: Land | C213: =SA34c!C161 -> 0 | D213: =SA34c!D161 -> 0 | E213: =SA34c!E161 -> 0 | F213: =SA34c!F161 -> 0 | G213: =SA34c!G161 -> 0 | H213: =SA34c!H161 -> 0 | I213: =SA34c!I161 -> 0 | J213: =SA34c!J161 -> 0 | K213: =SA34c!K161 -> 0
A214: Zoo's, Marine and Non-biological Animals | C214: =SA34c!C164 -> 0 | D214: =SA34c!D164 -> 0 | E214: =SA34c!E164 -> 0 | F214: =SA34c!F164 -> 0 | G214: =SA34c!G164 -> 0 | H214: =SA34c!H164 -> 0 | I214: =SA34c!I164 -> 0 | J214: =SA34c!J164 -> 0 | K214: =SA34c!K164 -> 0
A215: Mature | C215: =SA34c!C168 -> 0 | D215: =SA34c!D168 -> 0 | E215: =SA34c!E168 -> 0 | F215: =SA34c!F168 -> 0 | G215: =SA34c!G168 -> 0 | H215: =SA34c!H168 -> 0 | I215: =SA34c!I168 -> 0 | J215: =SA34c!J168 -> 0 | K215: =SA34c!K168 -> 0
... 16 more rows

Sheet A10-SerDel
A1: =muni&" - "&Approve10 -> 0 - Table A10 Basic service delivery measurement
A2: =desc -> Description | B2: =head27 -> Ref | C2: =head1b -> 2019/20 | D2: =head1A -> 2020/21 | E2: =Head1 -> 2021/22 | F2: =Head2 -> Current Year 2022/23 | I2: =Head3 -> 2023/24 Medium Term Revenue & Expenditure Framework
C3: =Head5A -> Outcome | D3: =Head5A -> Outcome | E3: =Head5A -> Outcome | F3: =Head6 -> Original Budget | G3: =Head7 -> Adjusted Budget | H3: =Head8 -> Full Year Forecast | I3: =Head9 -> Budget Year 2023/24 | J3: =Head10 -> Budget Year +1 2024/25 | K3: =Head11 -> Budget Year +2 2025/26
A4: Household service targets | B4: 1
A5: Water:
A6: Piped water inside dwelling | C6: 12423 | D6: 12423 | E6: 12423 | F6: 12423 | G6: 12423 | H6: 12423 | I6: 13423 | J6: 14423 | K6: 15423
A7: Piped water inside yard (but not in dwelling) | C7: 0 | D7: 0 | E7: 0 | F7: 0 | G7: 0 | H7: 0 | I7: 0 | J7: 0 | K7: 0
A8: Using public tap (at least min.service level) | B8: 2 | C8: 0 | D8: 0 | E8: 0 | F8: 0 | G8: 0 | H8: 0 | I8: 0 | J8: 0 | K8: 0
A9: Other water supply (at least min.service level) | B9: 4 | C9: 0 | D9: 0 | E9: 0 | F9: 0 | G9: 0 | H9: 0 | I9: 0 | J9: 0 | K9: 0
A10: Minimum Service Level and Above sub-total | C10: 2151071 | D10: 2151071 | E10: 2151071 | F10: 2151071 | G10: 2151071 | H10: 2151071 | I10: 2151071 | J10: 2151071 | K10: 2151071
A11: Using public tap (< min.service level) | B11: 3 | C11: 5919744 | D11: 7574400 | E11: 6610353 | F11: 6610353 | G11: 6610353 | H11: 928271 | I11: 970972 | J11: 1015637 | K11: 0
A12: Other water supply (< min.service level) | B12: =B9 -> 4 | C12: 0 | D12: 0 | E12: 0 | F12: 0 | G12: 0 | H12: 0 | I12: 0 | J12: 0 | K12: 0
A13: No water supply | C13: 0 | D13: 0 | E13: 0 | F13: 0 | G13: 0 | H13: 0 | I13: 0 | J13: 0 | K13: 0
A14: Below Minimum Service Level sub-total | C14: 54000 | D14: 16404144 | E14: 21014400 | F14: 21634353.09 | G14: 21634353.09 | H14: 21634353.09 | I14: 2800000.134 | J14: 2928799.74 | K14: 3063525.286
A15: Total number of households | B15: 5 | C15: 2217494 | D15: 18567638 | E15: 23177894 | F15: 23797847.09 | G15: 23797847.09 | H15: 23797847.09 | I15: 4963494.134 | J15: 5092293.74 | K15: 5227019.286
A16: Sanitation/sewerage:
A17: Flush toilet (connected to sewerage) | C17: 12071 | D17: 12071 | E17: 12071 | F17: 12071 | G17: 12071 | H17: 12071 | I17: 12071 | J17: 12071 | K17: 12071
A18: Flush toilet (with septic tank) | C18: 0 | D18: 0 | E18: 0 | F18: 0 | G18: 0 | H18: 0 | I18: 0 | J18: 0 | K18: 0
A19: Chemical toilet | C19: 0 | D19: 0 | E19: 0 | F19: 0 | G19: 0 | H19: 0 | I19: 0 | J19: 0 | K19: 0
A20: Pit toilet (ventilated) | C20: 0 | D20: 0 | E20: 0 | F20: 0 | G20: 0 | H20: 0 | I20: 0 | J20: 0 | K20: 0
A21: Other toilet provisions (> min.service level) | C21: 0 | D21: 0 | E21: 0 | F21: 0 | G21: 0 | H21: 0 | I21: 0 | J21: 0 | K21: 0
A22: =$A$10 -> Minimum Service Level and Above sub-total | C22: 2151071 | D22: 2151071 | E22: 2151071 | F22: 2151071 | G22: 2151071 | H22: 2151071 | I22: 2151071 | J22: 2151071 | K22: 2151071
A23: Bucket toilet | C23: 0 | D23: 0 | E23: 0 | F23: 0 | G23: 0 | H23: 0 | I23: 0 | J23: 0 | K23: 0
A24: Other toilet provisions (< min.service level) | C24: 0 | D24: 0 | E24: 0 | F24: 0 | G24: 0 | H24: 0 | I24: 0 | J24: 0 | K24: 0
A25: No toilet provisions | C25: 0 | D25: 6494400 | E25: 8160000 | F25: 9120000 | G25: 9120000 | H25: 9120000 | I25: 999328.8369 | J25: 1045297.963 | K25: 1093381.741
A26: =$A$14 -> Below Minimum Service Level sub-total | C26: 54000 | D26: 16404144 | E26: 21014400 | F26: 21634353.09 | G26: 21634353.09 | H26: 21634353.09 | I26: 2800000.134 | J26: 2928799.74 | K26: 3063525.286
A27: =$A$15 -> Total number of households | B27: =$B$15 -> 5 | C27: 2217494 | D27: 18567638 | E27: 23177894 | F27: 23797847.09 | G27: 23797847.09 | H27: 23797847.09 | I27: 4963494.134 | J27: 5092293.74 | K27: 5227019.286
A28: Energy:
A29: Electricity (at least min.service level) | C29: 2139000 | D29: 2139000 | E29: 2139000 | F29: 2139000 | G29: 2139000 | H29: 2139000 | I29: 2139000 | J29: 2139000 | K29: 2139000
A30: Electricity - prepaid (min.service level) | C30: 0 | D30: 0 | E30: 0 | F30: 0 | G30: 0 | H30: 0 | I30: 0 | J30: 0 | K30: 0
A31: =$A$10 -> Minimum Service Level and Above sub-total | C31: 2151071 | D31: 2151071 | E31: 2151071 | F31: 2151071 | G31: 2151071 | H31: 2151071 | I31: 2151071 | J31: 2151071 | K31: 2151071
A32: Electricity (< min.service level) | C32: 0 | D32: 0 | E32: 0 | F32: 0 | G32: 0 | H32: 0 | I32: 0 | J32: 0 | K32: 0
A33: Electricity - prepaid (< min. service level) | C33: 54000 | D33: 54000 | E33: 0 | F33: 0 | G33: 0 | H33: 0 | I33: 225466 | J33: 235837 | K33: 246686
A34: Other energy sources | C34: 0 | D34: 0 | E34: 0 | F34: 0 | G34: 0 | H34: 0 | I34: 0 | J34: 0 | K34: 0
A35: =$A$14 -> Below Minimum Service Level sub-total | C35: 54000 | D35: 16404144 | E35: 21014400 | F35: 21634353.09 | G35: 21634353.09 | H35: 21634353.09 | I35: 2800000.134 | J35: 2928799.74 | K35: 3063525.286
A36: =$A$15 -> Total number of households | B36: =$B$15 -> 5 | C36: 2217494 | D36: 18567638 | E36: 23177894 | F36: 23797847.09 | G36: 23797847.09 | H36: 23797847.09 | I36: 4963494.134 | J36: 5092293.74 | K36: 5227019.286
A37: Refuse:
A38: Removed at least once a week | C38: 0 | D38: 0 | E38: 0 | F38: 0 | G38: 0 | H38: 0 | I38: 0 | J38: 0 | K38: 0
A39: =$A$10 -> Minimum Service Level and Above sub-total | C39: 2151071 | D39: 2151071 | E39: 2151071 | F39: 2151071 | G39: 2151071 | H39: 2151071 | I39: 2151071 | J39: 2151071 | K39: 2151071
A40: Removed less frequently than once a week | C40: 0 | D40: 3936000 | E40: 5280000 | F40: 5904000 | G40: 5904000 | H40: 5904000 | I40: 646934 | J40: 676693 | K40: 707821
A41: Using communal refuse dump | C41: 0 | D41: 0 | E41: 0 | F41: 0 | G41: 0 | H41: 0 | I41: 0 | J41: 0 | K41: 0
A42: Using own refuse dump | C42: 0 | D42: 0 | E42: 0 | F42: 0 | G42: 0 | H42: 0 | I42: 0 | J42: 0 | K42: 0
A43: Other rubbish disposal | C43: 0 | D43: 0 | E43: 0 | F43: 0 | G43: 0 | H43: 0 | I43: 0 | J43: 0 | K43: 0
A44: No rubbish disposal | C44: 0 | D44: 0 | E44: 0 | F44: 0 | G44: 0 | H44: 0 | I44: 0 | J44: 0 | K44: 0
A45: =$A$14 -> Below Minimum Service Level sub-total | C45: 54000 | D45: 16404144 | E45: 21014400 | F45: 21634353.09 | G45: 21634353.09 | H45: 21634353.09 | I45: 2800000.134 | J45: 2928799.74 | K45: 3063525.286
A46: =$A$15 -> Total number of households | B46: =$B$15 -> 5 | C46: 2217494 | D46: 18567638 | E46: 23177894 | F46: 23797847.09 | G46: 23797847.09 | H46: 23797847.09 | I46: 4963494.134 | J46: 5092293.74 | K46: 5227019.286
A48: Households receiving Free Basic Service | B48: 7
A49: Water (6 kilolitres per household per month) | C49: 0 | D49: 0 | E49: 0 | F49: 0 | G49: 0 | H49: 0 | I49: 0 | J49: 0 | K49: 0
A50: Sanitation (free minimum level service) | C50: 0 | D50: 0 | E50: 0 | F50: 0 | G50: 0 | H50: 0 | I50: 0 | J50: 0 | K50: 0
A51: Electricity/other energy (50kwh per household per month) | C51: 0 | D51: 0 | E51: 0 | F51: 0 | G51: 0 | H51: 0 | I51: 0 | J51: 0 | K51: 0
A52: Refuse (removed at least once a week) | C52: 0 | D52: 0 | E52: 0 | F52: 0 | G52: 0 | H52: 0 | I52: 0 | J52: 0 | K52: 0
A53: Informal Settlements | C53: 0 | D53: 0 | E53: 0 | F53: 0 | G53: 0 | H53: 0 | I53: 0 | J53: 0 | K53: 0
A54: Cost of Free Basic Services provided - Formal Settlements (R'000)
A55: Water (6 kilolitres per indigent household per month) | C55: 0 | D55: 0 | E55: 0 | F55: 0 | G55: 0 | H55: 0 | I55: 0 | J55: 0 | K55: 0
A56: Sanitation (free sanitation service to indigent households) | C56: 0 | D56: 0 | E56: 0 | F56: 0 | G56: 0 | H56: 0 | I56: 0 | J56: 0 | K56: 0
A57: Electricity/other energy (50kwh per indigent household per month) | C57: 0 | D57: 0 | E57: 0 | F57: 0 | G57: 0 | H57: 0 | I57: 0 | J57: 0 | K57: 0
A58: Refuse (removed once a week for indigent households) | C58: 0 | D58: 0 | E58: 0 | F58: 0 | G58: 0 | H58: 0 | I58: 0 | J58: 0 | K58: 0
A59: Cost of Free Basic Services provided - Informal Formal Settlements (R'000) | C59: 0 | D59: 0 | E59: 0 | F59: 0 | G59: 0 | H59: 0 | I59: 0 | J59: 0 | K59: 0
A60: Total cost of FBS provided | B60: 8 | C60: 0 | D60: 0 | E60: 0 | F60: 0 | G60: 0 | H60: 0 | I60: 0 | J60: 0 | K60: 0
A62: Highest level of free service provided per household
A63: Property rates (R value threshold) | C63: 80000 | D63: 80000 | E63: 80000 | F63: 80000 | G63: 80000 | H63: 80000 | I63: 80000 | J63: 80000 | K63: 80000
A64: Water (kilolitres per household per month) | C64: 158 | D64: 158 | E64: 168 | F64: 176 | G64: 176 | H64: 176 | I64: 186 | J64: 195 | K64: 204
A65: Sanitation (kilolitres per household per month) | C65: 0 | D65: 0 | E65: 0 | F65: 0 | G65: 0 | H65: 0 | I65: 0 | J65: 0 | K65: 0
A66: Sanitation (Rand per household per month) | C66: 170 | D66: 170 | E66: 181 | F66: 190 | G66: 190 | H66: 190 | I66: 200 | J66: 210 | K66: 219
A67: Electricity (kwh per household per month) | C67: 100 | D67: 100 | E67: 45 | F67: 45 | G67: 45 | H67: 45 | I67: 45 | J67: 47 | K67: 49
A68: Refuse (average litres per week) | C68: 110 | D68: 110 | E68: 117 | F68: 123 | G68: 123 | H68: 123 | I68: 130 | J68: 136 | K68: 142
A69: Revenue cost of subsidised services provided (R'000) | B69: 9
A70: Property rates (tariff adjustment) ( impermissable values per section 17 of MPRA) | C70: 0 | D70: 0 | E70: 0 | F70: 0 | G70: 0 | H70: 0 | I70: 0 | J70: 0 | K70: 0
A71: Property rates exemptions, reductions and rebates and impermissable values in excess of section 17 of MPRA) | C71: 0 | D71: 0 | E71: 0 | F71: 0 | G71: 0 | H71: 0 | I71: 0 | J71: 0 | K71: 0
A72: Water (in excess of 6 kilolitres per indigent household per month) | C72: 0 | D72: 0 | E72: 0 | F72: 0 | G72: 0 | H72: 0 | I72: 0 | J72: 0 | K72: 0
A73: Sanitation (in excess of free sanitation service to indigent households) | C73: 0 | D73: 0 | E73: 0 | F73: 0 | G73: 0 | H73: 0 | I73: 0 | J73: 0 | K73: 0
A74: Electricity/other energy (in excess of 50 kwh per indigent household per month) | C74: 0 | D74: 0 | E74: 0 | F74: 0 | G74: 0 | H74: 0 | I74: 0 | J74: 0 | K74: 0
A75: Refuse (in excess of one removal a week for indigent households) | C75: 0 | D75: 0 | E75: 0 | F75: 0 | G75: 0 | H75: 0 | I75: 0 | J75: 0 | K75: 0
A76: Municipal Housing - rental rebates | C76: 0 | D76: 0 | E76: 0 | F76: 0 | G76: 0 | H76: 0 | I76: 0 | J76: 0 | K76: 0
A77: Housing - top structure subsidies | B77: 6 | C77: 0 | D77: 0 | E77: 0 | F77: 0 | G77: 0 | H77: 0 | I77: 0 | J77: 0 | K77: 0
A78: Other | C78: 0 | D78: 0 | E78: 0 | F78: 0 | G78: 0 | H78: 0 | I78: 0 | J78: 0 | K78: 0
A79: Total revenue cost of subsidised services provided | C79: 0 | D79: 0 | E79: 0 | F79: 0 | G79: 0 | H79: 0 | I79: 0 | J79: 0 | K79: 0
A80: =head27a -> References
A81: 1. Include services provided by another entity; e.g. Eskom
A82: 2. Stand distance <= 200m from dwelling
A83: 3. Stand distance > 200m from dwelling
A84: 4. Borehole, spring, rain-water tank etc.
A85: 5. Must agree to total number of households in municipal area (informal settlements receiving services must be included)
A86: 6. Include value of subsidy provided by municipality above provincial subsidy level
A87: 7. Show number of households receiving at least these levels of services completely free (informal settlements must be included)
A88: 8. Must reflect the cost to the municipality of providing the Free Basic Service
A89: 9. Reflect the cost of free or subsidised services in excess to the National policy that are not funded from the Free Basic Services component of the Equitable Share

Sheet SA1
A1: =muni&" - "&TableA1 -> 0 - Supporting Table SA1 Supportinging detail to 'Budgeted Financial Performance'
A2: =desc -> Description | B2: =head27 -> Ref | C2: =head1b -> 2019/20 | D2: =head1A -> 2020/21 | E2: =Head1 -> 2021/22 | F2: =Head2 -> Current Year 2022/23 | J2: =Head3 -> 2023/24 Medium Term Revenue & Expenditure Framework
C3: =Head5 -> Audited Outcome | D3: =Head5 -> Audited Outcome | E3: =Head5 -> Audited Outcome | F3: =Head6 -> Original Budget | G3: =Head7 -> Adjusted Budget | H3: =Head8 -> Full Year Forecast | I3: =Head5b -> Pre-audit outcome | J3: =Head9 -> Budget Year 2023/24 | K3: =Head10 -> Budget Year +1 2024/25 | L3: =Head11 -> Budget Year +2 2025/26
A4: R thousand
A5: REVENUE ITEMS:
A6: Non-exchange revenue by source
A7: ='A4-FinPerf RE'!A5 -> Exchange Revenue | B7: 6
A8: Total Property Rates | C8: 20176912.05 | D8: 18630928.98 | E8: 20069121.4 | F8: 24132992 | G8: 21300000 | H8: 21300000 | I8: 21300000 | J8: 23832623 | K8: 25381744 | L8: 27031557
A9: Less Revenue Foregone (exemptions, reductions and rebates and impermissable values in excess of section 17 of MPRA) | C9: 0 | D9: 0 | E9: 0 | F9: 0 | G9: 0 | H9: 0 | I9: 0 | J9: 0 | K9: 0 | L9: 0
A10: Net Property Rates | C10: =C8-C9 -> 20176912.05 | D10: =D8-D9 -> 18630928.98 | E10: 20069121.4 | F10: 24132992 | G10: 21300000 | H10: 21300000 | I10: 21300000 | J10: 23832623 | K10: 25381744 | L10: 27031557
A12: Exchange revenue service charges
A13: ='A4-FinPerf RE'!A6 -> Service charges - Electricity | B13: 6
A14: ="Total "&A13 -> Total Service charges - Electricity | C14: 44127504.52 | D14: 61296992.82 | E14: 48840534.08 | F14: 62938315 | G14: 48000000 | H14: 48000000 | I14: 48000000 | J14: 79175634 | K14: 87006360 | L14: 92006742
A15: Less Revenue Foregone (in excess of 50 kwh per indigent household per month) | C15: 0 | D15: 0 | E15: 0 | F15: 0 | G15: 0 | H15: 0 | I15: 0 | J15: 0 | K15: 0 | L15: 0
A16: Less Cost of Free Basis Services (50 kwh per indigent household per month) | C16: ='SA9'!E250 -> 0 | D16: ='SA9'!F250 -> 0 | E16: ='SA9'!G250 -> 0 | F16: ='SA9'!H250 -> 1000000 | G16: ='SA9'!I250 -> 1000000 | H16: ='SA9'!J250 -> 1000000 | J16: ='SA9'!K250 -> 0 | K16: ='SA9'!L250 -> 0 | L16: ='SA9'!M250 -> 0
A17: ="Net "& A13 -> Net Service charges - Electricity | C17: =C14-C15-C16 -> 44127504.52 | D17: =D14-D15-D16 -> 61296992.82 | E17: 48840534.08 | F17: 61938315 | G17: 47000000 | H17: 47000000 | I17: 48000000 | J17: 79175634 | K17: 87006360 | L17: 92006742
A19: ='A4-FinPerf RE'!A7 -> Service charges - Water | B19: 6
A20: ="Total "&A19 -> Total Service charges - Water | C20: 22550298.31 | D20: 21109232.32 | E20: 24573113.96 | F20: 33133857 | G20: 24500002 | H20: 24500002 | I20: 24500002 | J20: 37300000 | K20: 39000000 | L20: 41000000
A21: Less Revenue Foregone (in excess of 6 kilolitres per indigent household per month) | C21: -7910106.65 | D21: 0 | E21: 0 | F21: 0 | G21: 0 | H21: 0 | I21: 0 | J21: 4051200 | K21: 4100000 | L21: 4200000
A22: Less Cost of Free Basis Services (6 kilolitres per indigent household per month) | C22: ='SA9'!E262 -> 0 | D22: ='SA9'!F262 -> 0 | E22: ='SA9'!G262 -> 0 | F22: ='SA9'!H262 -> 1000000 | G22: ='SA9'!I262 -> 1000000 | H22: ='SA9'!J262 -> 1000000 | J22: ='SA9'!K262 -> 0 | K22: ='SA9'!L262 -> 0 | L22: ='SA9'!M262 -> 0
A23: ="Net "& A19 -> Net Service charges - Water | C23: =C20-C21-C22 -> 30460404.96 | D23: =D20-D21-D22 -> 21109232.32 | E23: 24573113.96 | F23: 32133857 | G23: 23500002 | H23: 23500002 | I23: 24500002 | J23: 33248800 | K23: 34900000 | L23: 36800000
A25: ='A4-FinPerf RE'!A8 -> Service charges - Waste Water Management
A26: ="Total "&A25 -> Total Service charges - Waste Water Management | C26: 9755166.47 | D26: 23322802.45 | E26: 26223309.75 | F26: 33766614 | G26: 31200000 | H26: 31200000 | I26: 31200000 | J26: 39625480 | K26: 40111000 | L26: 40712000
A27: Less Revenue Foregone (in excess of free sanitation service to indigent households) | C27: -12280201.81 | D27: 0 | E27: 0 | F27: 0 | G27: 0 | H27: 0 | I27: 0 | J27: 0 | K27: 0 | L27: 0
A28: Less Cost of Free Basis Services (free sanitation service to indigent households) | C28: ='SA9'!E274 -> 0 | D28: ='SA9'!F274 -> 0 | E28: ='SA9'!G274 -> 0 | F28: ='SA9'!H274 -> 1000000 | G28: ='SA9'!I274 -> 1000000 | H28: ='SA9'!J274 -> 1000000 | J28: ='SA9'!K274 -> 4416000 | K28: ='SA9'!L274 -> 4680960 | L28: ='SA9'!M274 -> 4961818
A29: ="Net "& A25 -> Net Service charges - Waste Water Management | C29: =C26-C27-C28 -> 22035368.28 | D29: =D26-D27-D28 -> 23322802.45 | E29: 26223309.75 | F29: 32766614 | G29: 30200000 | H29: 30200000 | I29: 31200000 | J29: 35209480 | K29: 35430040 | L29: 35750182
A31: ='A4-FinPerf RE'!A9 -> Service charges - Waste Management | B31: 6
A32: Total refuse removal revenue | C32: 2162625.17 | D32: 16466500.89 | E32: 18321717.01 | F32: 23206512 | G32: 21600000 | H32: 21600000 | I32: 21600000 | J32: 34600000 | K32: 36849000 | L32: 39244185
A33: Total landfill revenue | C33: 0 | D33: 0 | E33: 0 | F33: 0 | G33: 0 | H33: 0 | I33: 0 | J33: 0 | K33: 0 | L33: 0
A34: Less Revenue Foregone (in excess of one removal a week to indigent households) | C34: -14132334.09 | D34: 0 | E34: 0 | F34: 0 | G34: 0 | H34: 0 | I34: 0 | J34: 0 | K34: 0 | L34: 0
A35: Less Cost of Free Basis Services (removed once a week to indigent households) | C35: ='SA9'!E286 -> 0 | D35: ='SA9'!F286 -> 0 | E35: ='SA9'!G286 -> 0 | F35: ='SA9'!H286 -> 1000000 | G35: ='SA9'!I286 -> 1000000 | H35: ='SA9'!J286 -> 1000000 | J35: ='SA9'!K286 -> 3700000 | K35: ='SA9'!L286 -> 3940500 | L35: ='SA9'!M286 -> 4196633
A36: ="Net "& A31 -> Net Service charges - Waste Management | C36: =SUM(C32:C33)-C34-C35 -> 16294959.26 | D36: =SUM(D32:D33)-D34-D35 -> 16466500.89 | E36: 18321717.01 | F36: 22206512 | G36: 20600000 | H36: 20600000 | I36: 21600000 | J36: 30900000 | K36: 32908500 | L36: 35047552
A51: EXPENDITURE ITEMS:
A52: ='A4-FinPerf RE'!A34 -> Employee related costs
A53: Basic Salaries and Wages | B53: 2 | C53: 55627534.02 | D53: 58248183.99 | E53: 62939602.31 | F53: 64257016 | G53: 69477430 | H53: 69477430 | I53: 69477430 | J53: 75685455 | K53: 79521571 | L53: 82656766
A54: Pension and UIF Contributions | C54: 10531226.91 | D54: 11013900.06 | E54: 10448857.43 | F54: 12836817 | G54: 10923701 | H54: 10923701 | I54: 10923701 | J54: 11050839 | K54: 11711035 | L54: 12411221
A55: Medical Aid Contributions | C55: 8781696.55 | D55: 9530797.38 | E55: 9619774.42 | F55: 11152564 | G55: 9349122 | H55: 9349122 | I55: 9349122 | J55: 10961239 | K55: 11622081 | L55: 12330605
A56: Overtime | C56: 9650270.56 | D56: 9318535.29 | E56: 12404812.87 | F56: 6983662 | G56: 7319742 | H56: 7319742 | I56: 7319742 | J56: 440000 | K56: 936743 | L56: 1001781
A57: Performance Bonus | C57: 4164007.73 | D57: 4451070.19 | E57: 3892932.03 | F57: 6057463 | G57: 5031329 | H57: 5031329 | I57: 5031329 | J57: 5692751 | K57: 6040573 | L57: 6381694
A58: Motor Vehicle Allowance | C58: 6252808.05 | D58: 6226165.64 | E58: 5960459.28 | F58: 6860954 | G58: 6299067 | H58: 6299067 | I58: 6299067 | J58: 5449302 | K58: 5695862 | L58: 5980399
A59: Cellphone Allowance | C59: 0 | D59: 0 | E59: 0 | F59: 0 | G59: 0 | H59: 0 | I59: 0 | J59: 0 | K59: 0 | L59: 0
A60: Housing Allowances | C60: 1336771.53 | D60: 1540688.65 | E60: 1547277.13 | F60: 1285250 | G60: 1298501 | H60: 1298501 | I60: 1298501 | J60: 1388422 | K60: 1454078 | L60: 1526819
A61: Other benefits and allowances | C61: 1418000.87 | D61: 3202984.8 | E61: 4224551.12 | F61: 1439078 | G61: 1302956 | H61: 1302956 | I61: 1302956 | J61: 2151221 | K61: 2251698 | L61: 2327525
A62: Payments in lieu of leave | C62: -585045.31 | D62: 647159.63 | E62: -933928.61 | F62: 0 | G62: 71671 | H62: 71671 | I62: 71671 | J62: 948604 | K62: 1005521 | L62: 1065970
A63: Long service awards | C63: -46406.67 | D63: 232371.23 | E63: 209110.72 | F63: 0 | G63: 117515 | H63: 117515 | I63: 117515 | J63: 700112 | K63: 742119 | L63: 786643
A64: Post-retirement benefit obligations | B64: 4 | C64: 3352763 | D64: 172724 | E64: 0 | F64: 0 | G64: 0 | H64: 0 | I64: 0 | J64: 77047 | K64: 80000 | L64: 90001
A65: Entertainment | C65: 0 | D65: 0 | E65: 0 | F65: 0 | G65: 0 | H65: 0 | I65: 0 | J65: 0 | K65: 0 | L65: 0
A66: Scarcity | C66: 0 | D66: 0 | E66: 0 | F66: 0 | G66: 0 | H66: 0 | I66: 0 | J66: 0 | K66: 0 | L66: 0
A67: Acting and post related allowance | C67: 434024.24 | D67: 264988.32 | E67: 784143.76 | F67: 370772 | G67: 53777 | H67: 53777 | I67: 53777 | J67: 6 | K67: 6 | L67: 12
A68: In kind benefits | C68: 0 | D68: 0 | E68: 0 | F68: 0 | G68: 0 | H68: 0 | I68: 0 | J68: 0 | K68: 0 | L68: 0
A69: sub-total | B69: 5 | C69: =SUM(C53:C68) -> 100917651.5 | D69: =SUM(D53:D68) -> 104849569.2 | E69: 111097592.5 | F69: 111243576 | G69: 111244811 | H69: 111244811 | I69: 111244811 | J69: 114544998 | K69: 121061287 | L69: 126559436
A70: Less: Employees costs capitalised to PPE | C70: 0 | D70: 0 | E70: 0 | F70: 0 | G70: 0 | H70: 0 | I70: 0 | J70: 0 | K70: 0 | L70: 0
A71: ="Total "&A52 -> Total Employee related costs | B71: 1 | C71: =C69-C70 -> 100917651.5 | D71: =D69-D70 -> 104849569.2 | E71: 111097592.5 | F71: 111243576 | G71: 111244811 | H71: 111244811 | I71: 111244811 | J71: 114544998 | K71: 121061287 | L71: 126559436
A78: ='A4-FinPerf RE'!A39 -> Depreciation and amortisation
A79: Depreciation of Property, Plant & Equipment | C79: 31536120.46 | D79: 38633012.91 | E79: 37272334.59 | F79: 35780275 | G79: 97085318 | H79: 97085318 | I79: 97085318 | J79: 40675000 | K79: 39777400 | L79: 39948256
A80: Lease amortisation | C80: 0 | D80: 0 | E80: 0 | F80: 0 | G80: 0 | H80: 0 | I80: 0 | J80: 0 | K80: 0 | L80: 0
A81: Capital asset impairment | C81: 39968713.85 | D81: -2465482.66 | E81: -6918202.65 | F81: 0 | G81: 0 | H81: 0 | I81: 0 | J81: 0 | K81: 0 | L81: 0
A83: ="Total "&LEFT(A78,35) -> Total Depreciation and amortisation | B83: 1 | C83: =SUM(C79:C81) -> 71504834.31 | D83: =SUM(D79:D81) -> 36167530.25 | E83: 30354131.94 | F83: 35780275 | G83: 97085318 | H83: 97085318 | I83: 97085318 | J83: 40675000 | K83: 39777400 | L83: 39948256
A85: Bulk purchases - electricity
A86: Electricity bulk purchases | C86: 47925156.55 | D86: 63537990.31 | E86: 55678159.45 | F86: 62814188 | G86: 60000000 | H86: 60000000 | I86: 60000000 | J86: 76000000 | K86: 83000000 | L86: 87000000
A88: Total bulk purchases | B88: 1 | C88: =SUM(C86:C87) -> 47925156.55 | D88: =SUM(D86:D87) -> 63537990.31 | E88: 55678159.45 | F88: 62814188 | G88: 60000000 | H88: 60000000 | I88: 60000000 | J88: 76000000 | K88: 83000000 | L88: 87000000
A90: Transfers and grants
A91: Cash transfers and grants | C91: ='SA21'!C32 -> 0 | D91: ='SA21'!D32 -> 717394 | E91: ='SA21'!E32 -> 0 | F91: ='SA21'!F32 -> 0 | G91: ='SA21'!G32 -> 0 | H91: ='SA21'!H32 -> 0 | I91: ='SA21'!I32 -> 0 | J91: ='SA21'!J32 -> 1722000 | K91: ='SA21'!K32 -> 1833930 | L91: ='SA21'!L32 -> 1953135
A92: Non-cash transfers and grants | C92: ='SA21'!C63 -> 0 | D92: ='SA21'!D63 -> 0 | E92: ='SA21'!E63 -> 0 | F92: ='SA21'!F63 -> 0 | G92: ='SA21'!G63 -> 0 | H92: ='SA21'!H63 -> 0 | I92: ='SA21'!I63 -> 0 | J92: ='SA21'!J63 -> 0 | K92: ='SA21'!K63 -> 0 | L92: ='SA21'!L63 -> 0
A93: Total transfers and grants | B93: 1 | C93: =SUM(C91:C92) -> 0 | D93: =SUM(D91:D92) -> 717394 | E93: 0 | F93: 0 | G93: 0 | H93: 0 | I93: 0 | J93: 1722000 | K93: 1833930 | L93: 1953135
A95: Contracted Services
A96: Outsourced Services | C96: 1528310.59 | D96: 8856474.13 | E96: 686200.38 | F96: 4928150 | G96: 3149680 | H96: 3149680 | I96: 3149680 | J96: 3124001 | K96: 3297921 | L96: 3482218
A97: Consultants and Professional Services | C97: 3306986.34 | D97: 3946787.72 | E97: 3501314.3 | F97: 2077432 | G97: 738882 | H97: 738882 | I97: 738882 | J97: 8286571 | K97: 8428720 | L97: 8589589
A98: Contractors | C98: 15609136.01 | D98: 4812921.31 | E98: 6206330.8 | F98: 12282370 | G98: 7385415 | H98: 7385415 | I98: 7385415 | J98: 7745002 | K98: 8202817 | L98: 8688172
A127: Total contracted services | C127: =SUM(C96:C98) -> 20444432.94 | D127: =SUM(D96:D98) -> 17616183.16 | E127: 10393845.48 | F127: 19287952 | G127: 11273977 | H127: 11273977 | I127: 11273977 | J127: 19155574 | K127: 19929458 | L127: 20759979
A129: Operational Costs
A130: Collection costs | C130: 0 | D130: 763069 | E130: 1417596.34 | F130: 0 | G130: 0 | H130: 0 | I130: 0 | J130: 0 | K130: 0 | L130: 0
A131: Contributions to 'other' provisions | C131: 3889332 | D131: 0 | E131: 0 | F131: 0 | G131: 0 | H131: 0 | I131: 0 | J131: 0 | K131: 0 | L131: 0
A133: Audit fees | C133: 4488870.31 | D133: 5042246.23 | E133: 1425126.23 | F133: 11071229 | G133: 5000000 | H133: 5000000 | I133: 5000000 | J133: 5000000 | K133: 5300000 | L133: 5618000
A136: Other Operational Costs | C136: 23532543.86 | D136: 14456444.15 | E136: 18293578.9 | F136: 21062790 | G136: 15995498 | H136: 15995498 | I136: 15995498 | J136: 12955004 | K136: 13416230 | L136: 13995078
A157: Total Operational Costs | B157: 1 | C157: =+C130+C131+C133+C136 -> 31910746.17 | D157: =+D130+D131+D133+D136 -> 20261759.38 | E157: 21136301.47 | F157: 32134019 | G157: 20995498 | H157: 20995498 | I157: 20995498 | J157: 17955004 | K157: 18716230 | L157: 19613078
A159: Repairs and Maintenance by Expenditure Item | B159: 8
A160: Employee related costs | C160: 0 | D160: 0 | E160: 0 | F160: 0 | G160: 0 | H160: 0 | I160: 0 | J160: 9946117 | K160: 10194076 | L160: 10529245
A161: Inventory Consumed (Project Maintenance) | C161: 0 | D161: 0 | E161: 0 | F161: 0 | G161: 0 | H161: 0 | I161: 0 | J161: 0 | K161: 0 | L161: 0
A162: Contracted Services | C162: 0 | D162: 0 | E162: 0 | F162: 0 | G162: 0 | H162: 0 | I162: 0 | J162: 0 | K162: 0 | L162: 0
A163: Operational Costs | C163: 0 | D163: 0 | E163: 0 | F163: 0 | G163: 0 | H163: 0 | I163: 0 | J163: 104593 | K163: 110869 | L163: 117521
A164: Total Repairs and Maintenance Expenditure | B164: 9 | C164: =SUM(C160:C163) -> 0 | D164: =SUM(D160:D163) -> 0 | E164: 0 | F164: 0 | G164: 0 | H164: 0 | I164: 0 | J164: 10050710 | K164: 10304945 | L164: 10646766
A166: Inventory Consumed
A167: Inventory Consumed - Water | C167: 1502280.3 | D167: 1356190.53 | E167: 6999373.85 | F167: 3507316 | G167: 4807316 | H167: 4807316 | I167: 4807316 | J167: 4000000 | K167: 4240000 | L167: 4494400
A168: Inventory Consumed - Other | C168: 7065538.26 | D168: 6984440.58 | E168: 6697731.1 | F168: 4319879 | G168: 6286060 | H168: 6286060 | I168: 6286060 | J168: 6555406 | K168: 6828880 | L168: 7244103
A169: Total Inventory Consumed & Other Material | C169: =SUM(C167:C168) -> 8567818.56 | D169: 8340631.11 | E169: 13697104.95 | F169: 7827195 | G169: 11093376 | H169: 11093376 | I169: 11093376 | J169: 10555406 | K169: 11068880 | L169: 11738503
A171: check | C171: =C164-SA34c!C175 -> 0 | D171: =D164-SA34c!D175 -> 0 | E171: =E164-SA34c!E175 -> 0 | F171: =F164-SA34c!F175 -> 0 | G171: =G164-SA34c!G175 -> 0 | H171: =H164-SA34c!H175 -> 0 | J171: =J164-SA34c!I175 -> 0 | K171: =K164-SA34c!J175 -> 0 | L171: =L164-SA34c!K175 -> 0
A172: =head27a -> References
A173: 1. Must reconcile with 'Budgeted Financial Performance (Revenue and Expenditure)
A174: 2. Must reconcile to supporting documentation on staff salaries
A176: 4. Expenditure to meet any 'unfunded obligations'
A177: 5 This sub-total must agree with the total on SA22, but excluding councillor and board member items
A178: 6. Include a note for each revenue item that is affected by 'revenue foregone'
A180: 8. Repairs and Maintenance is not a GRAP item. However to facilitate transparency, municipalities must provide a breakdown of the amounts included in the relevant GRAP items that will be spent on Repairs and Maintenance.
A181: 9. Must reconcile with Repairs and Maintenance by Asset Class (Total Repairs and Maintenance) on Table SA34c.

Sheet SA2
A1: =muni&" - "&TableA2 -> 0 - Supporting Table SA2 Matrix Financial Performance Budget (revenue source/expenditure type and dept.)
A2: =desc -> Description | B2: =head27 -> Ref | C2: ='A3-FinPerf V'!A5 -> Vote 1 - Executive & Council | D2: ='A3-FinPerf V'!A6 -> Vote 2 - Municipal Manager | E2: ='A3-FinPerf V'!A7 -> Vote 3 - Finance Services | F2: ='A3-FinPerf V'!A8 -> Vote 4 - Corporate Services | G2: ='A3-FinPerf V'!A9 -> Vote 5 - Community Services | H2: ='A3-FinPerf V'!A10 -> Vote 6 - Technical Services | I2: ='A3-FinPerf V'!A11 -> Vote 7 - COMMUNITY & SOCIAL SERVICES | J2: ='A3-FinPerf V'!A12 -> Vote 8 - [NAME OF VOTE 8] | K2: ='A3-FinPerf V'!A13 -> Vote 9 - [NAME OF VOTE 9] | L2: ='A3-FinPerf V'!A14 -> Vote 10 - [NAME OF VOTE 10] | M2: ='A3-FinPerf V'!A15 -> Vote 11 - [NAME OF VOTE 11] | N2: ='A3-FinPerf V'!A16 -> Vote 12 - [NAME OF VOTE 12] | O2: ='A3-FinPerf V'!A17 -> Vote 13 - [NAME OF VOTE 13] | P2: ='A3-FinPerf V'!A18 -> Vote 14 - [NAME OF VOTE 14] | Q2: ='A3-FinPerf V'!A19 -> Vote 15 - [NAME OF VOTE 15] | R2: Total
A3: R thousand | B3: 1 | C3: R'000 | D3: R'000 | E3: R'000 | F3: R'000 | G3: R'000 | H3: R'000 | Q3: R'000 | R3: R'000
A4: Revenue
A5: Exchange Revenue
A6: Service charges - Electricity | C6: 0 | D6: 0 | E6: 6000 | F6: 0 | G6: 0 | H6: 79169634 | I6: 0 | J6: 0 | K6: 0 | L6: 0 | M6: 0 | N6: 0 | O6: 0 | P6: 0 | Q6: 0 | R6: =SUM(C6:Q6) -> 79175634
A7: Service charges - Water | C7: 0 | D7: 0 | E7: 0 | F7: 0 | G7: 0 | H7: 33248800 | I7: 0 | J7: 0 | K7: 0 | L7: 0 | M7: 0 | N7: 0 | O7: 0 | P7: 0 | Q7: 0 | R7: 33248800
A8: Service charges - Waste Water Management | C8: 0 | D8: 0 | E8: 0 | F8: 0 | G8: 0 | H8: 35209480 | I8: 0 | J8: 0 | K8: 0 | L8: 0 | M8: 0 | N8: 0 | O8: 0 | P8: 0 | Q8: 0 | R8: 35209480
A9: Service charges - Waste Management | C9: 0 | D9: 0 | E9: -3700000 | F9: 0 | G9: 0 | H9: 34600000 | I9: 0 | J9: 0 | K9: 0 | L9: 0 | M9: 0 | N9: 0 | O9: 0 | P9: 0 | Q9: 0 | R9: 30900000
A10: Sale of Goods and Rendering of Services | C10: 0 | D10: 0 | E10: 243000 | F10: 104000 | G10: 304000 | H10: 0 | I10: 0 | J10: 0 | K10: 0 | L10: 0 | M10: 0 | N10: 0 | O10: 0 | P10: 0 | Q10: 0 | R10: 651000
A11: Agency services | C11: 0 | D11: 0 | E11: 0 | F11: 0 | G11: 0 | H11: 0 | I11: 0 | J11: 0 | K11: 0 | L11: 0 | M11: 0 | N11: 0 | O11: 0 | P11: 0 | Q11: 0 | R11: 0
A12: Interest | C12: 0 | D12: 0 | E12: 0 | F12: 0 | G12: 0 | H12: 0 | I12: 0 | J12: 0 | K12: 0 | L12: 0 | M12: 0 | N12: 0 | O12: 0 | P12: 0 | Q12: 0 | R12: 0
A13: Interest earned from Receivables | C13: 0 | D13: 0 | E13: 93000000 | F13: 0 | G13: 0 | H13: 0 | I13: 0 | J13: 0 | K13: 0 | L13: 0 | M13: 0 | N13: 0 | O13: 0 | P13: 0 | Q13: 0 | R13: 93000000
A14: Interest earned from Current and Non Current Assets | C14: 0 | D14: 0 | E14: 250205 | F14: 20000 | G14: 0 | H14: 0 | I14: 0 | J14: 0 | K14: 0 | L14: 0 | M14: 0 | N14: 0 | O14: 0 | P14: 0 | Q14: 0 | R14: 270205
A15: Dividends | C15: 0 | D15: 0 | E15: 39163 | F15: 0 | G15: 0 | H15: 0 | I15: 0 | J15: 0 | K15: 0 | L15: 0 | M15: 0 | N15: 0 | O15: 0 | P15: 0 | Q15: 0 | R15: 39163
A16: Rent on Land | C16: 0 | D16: 0 | E16: 100000 | F16: 0 | G16: 0 | H16: 0 | I16: 0 | J16: 0 | K16: 0 | L16: 0 | M16: 0 | N16: 0 | O16: 0 | P16: 0 | Q16: 0 | R16: 100000
A17: Rental from Fixed Assets | C17: 0 | D17: 0 | E17: 0 | F17: 0 | G17: 1080000 | H17: 0 | I17: 0 | J17: 0 | K17: 0 | L17: 0 | M17: 0 | N17: 0 | O17: 0 | P17: 0 | Q17: 0 | R17: 1080000
A18: Licence and permits | C18: 0 | D18: 0 | E18: 100000 | F18: 0 | G18: 0 | H18: 0 | I18: 0 | J18: 0 | K18: 0 | L18: 0 | M18: 0 | N18: 0 | O18: 0 | P18: 0 | Q18: 0 | R18: 100000
A19: Operational Revenue | C19: 0 | D19: 0 | E19: 400000 | F19: 1 | G19: 94766 | H19: 400000 | I19: 0 | J19: 0 | K19: 0 | L19: 0 | M19: 0 | N19: 0 | O19: 0 | P19: 0 | Q19: 0 | R19: 894767
A20: Non-Exchange Revenue
A21: Property rates | C21: 0 | D21: 0 | E21: 23832623 | F21: 0 | G21: 0 | H21: 0 | I21: 0 | J21: 0 | K21: 0 | L21: 0 | M21: 0 | N21: 0 | O21: 0 | P21: 0 | Q21: 0 | R21: =SUM(C21:Q21) -> 23832623
